Workbook

Sheet الصفحة الرئيسية

Sheet بيان الصيانة
A1: مسلسل | B1: نوع التغير
A2: 1 | B2: 1+2+3+ جوزهند
A3: 2 | B3: شمعة1
A4: 3 | B4: شمعة2
A5: 4
A6: 5
A7: 6
A8: 7
A9: 8
A10: 9
A11: 10
A12: 11
A13: 12
A14: 13
A15: 14
A16: 15
A17: 16
A18: 17
A19: 18
A20: 19
A21: 20
A22: 21
A23: 22
A24: 23
A25: 24
A26: 25
A27: 26
A28: 27
A29: 28
A30: 29
A31: 30
A32: 31
A33: 32
A34: 33
A35: 34
A36: 35
A37: 36
A38: 37
A39: 38
A40: 39
A41: 40
A42: 41
A43: 42
A44: 43
A45: 44
A46: 45
A47: 46
A48: 47
A49: 48
A50: 49
A51: 50
A52: 51
A53: 52
A54: 53
A55: 54
A56: 55
A57: 56
A58: 57
A59: 58
A60: 59
A61: 60
A62: 61
A63: 62
A64: 63
A65: 64
A66: 65
A67: 66
A68: 67
A69: 68
A70: 69
A71: 70
A72: 71
A73: 72
A74: 73
A75: 74
A76: 75
A77: 76
A78: 77
A79: 78
A80: 79
A81: 80
A82: 81
A83: 82
A84: 83
A85: 84
A86: 85
A87: 86
A88: 87
A89: 88
A90: 89
A91: 90
A92: 91
A93: 92
A94: 93
A95: 94
A96: 95
A97: 96
A98: 97
A99: 98
A100: 99
A101: 100
A102: 101
A103: 102
A104: 103
A105: 104
A106: 105
A107: 106
A108: 107
A109: 108
A110: 109
A111: 110
A112: 111
A113: 112
A114: 113
A115: 114
A116: 115
A117: 116
A118: 117
A119: 118
A120: 119

Sheet الرصيد الثابت
A1: الاسم | B1: رصيد اقتتاحي | C1: رصيد ختامي
A2: فلتر 5 عادي | B2: 1000 | C2: =IF(B2="","",SUMIF(الدخول!$B$3:$B$251,A2,الدخول!$E$3:$E$251)+SUMIF(الدخول!$B$3:$B$251,A2,الدخول!$I$3:$I$251)+B2-SUMIF(الدخول!$B$3:$B$251,A2,الدخول!$F$3:$F$251)) -> 1000
A3: فلتر 7 عادي | B3: 200 | C3: =IF(B3="","",SUMIF(الدخول!$B$3:$B$251,A3,الدخول!$E$3:$E$251)+SUMIF(الدخول!$B$3:$B$251,A3,الدخول!$I$3:$I$251)+B3-SUMIF(الدخول!$B$3:$B$251,A3,الدخول!$F$3:$F$251)) -> 200
A4: فلتر 5 RO | B4: 600 | C4: =IF(B4="","",SUMIF(الدخول!$B$3:$B$251,A4,الدخول!$E$3:$E$251)+SUMIF(الدخول!$B$3:$B$251,A4,الدخول!$I$3:$I$251)+B4-SUMIF(الدخول!$B$3:$B$251,A4,الدخول!$F$3:$F$251)) -> 600
A5: فلتر 7 RO | B5: 500 | C5: =IF(B5="","",SUMIF(الدخول!$B$3:$B$251,A5,الدخول!$E$3:$E$251)+SUMIF(الدخول!$B$3:$B$251,A5,الدخول!$I$3:$I$251)+B5-SUMIF(الدخول!$B$3:$B$251,A5,الدخول!$F$3:$F$251)) -> 500
A6: شمعة ممبرين | B6: 500 | C6: =IF(B6="","",SUMIF(الدخول!$B$3:$B$251,A6,الدخول!$E$3:$E$251)+SUMIF(الدخول!$B$3:$B$251,A6,الدخول!$I$3:$I$251)+B6-SUMIF(الدخول!$B$3:$B$251,A6,الدخول!$F$3:$F$251)) -> 500
A7: شمعة أولى | B7: 700 | C7: =IF(B7="","",SUMIF(الدخول!$B$3:$B$251,A7,الدخول!$E$3:$E$251)+SUMIF(الدخول!$B$3:$B$251,A7,الدخول!$I$3:$I$251)+B7-SUMIF(الدخول!$B$3:$B$251,A7,الدخول!$F$3:$F$251)) -> 700
A8: شمعة ثانية | B8: 300 | C8: =IF(B8="","",SUMIF(الدخول!$B$3:$B$251,A8,الدخول!$E$3:$E$251)+SUMIF(الدخول!$B$3:$B$251,A8,الدخول!$I$3:$I$251)+B8-SUMIF(الدخول!$B$3:$B$251,A8,الدخول!$F$3:$F$251)) -> 300
A9: شمعة ثالثة | B9: 400 | C9: =IF(B9="","",SUMIF(الدخول!$B$3:$B$251,A9,الدخول!$E$3:$E$251)+SUMIF(الدخول!$B$3:$B$251,A9,الدخول!$I$3:$I$251)+B9-SUMIF(الدخول!$B$3:$B$251,A9,الدخول!$F$3:$F$251)) -> 400
A10: شمعة جوز هند | B10: 100 | C10: =IF(B10="","",SUMIF(الدخول!$B$3:$B$251,A10,الدخول!$E$3:$E$251)+SUMIF(الدخول!$B$3:$B$251,A10,الدخول!$I$3:$I$251)+B10-SUMIF(الدخول!$B$3:$B$251,A10,الدخول!$F$3:$F$251)) -> 100
A11: شمعة كلسيدة | B11: 200 | C11: =IF(B11="","",SUMIF(الدخول!$B$3:$B$251,A11,الدخول!$E$3:$E$251)+SUMIF(الدخول!$B$3:$B$251,A11,الدخول!$I$3:$I$251)+B11-SUMIF(الدخول!$B$3:$B$251,A11,الدخول!$F$3:$F$251)) -> 200
A12: شمعة انفرا | B12: 250 | C12: =IF(B12="","",SUMIF(الدخول!$B$3:$B$251,A12,الدخول!$E$3:$E$251)+SUMIF(الدخول!$B$3:$B$251,A12,الدخول!$I$3:$I$251)+B12-SUMIF(الدخول!$B$3:$B$251,A12,الدخول!$F$3:$F$251)) -> 250
A13: شمعة UV | B13: 350 | C13: =IF(B13="","",SUMIF(الدخول!$B$3:$B$251,A13,الدخول!$E$3:$E$251)+SUMIF(الدخول!$B$3:$B$251,A13,الدخول!$I$3:$I$251)+B13-SUMIF(الدخول!$B$3:$B$251,A13,الدخول!$F$3:$F$251)) -> 350
A14: شاسيه خماسي | B14: 400 | C14: =IF(B14="","",SUMIF(الدخول!$B$3:$B$251,A14,الدخول!$E$3:$E$251)+SUMIF(الدخول!$B$3:$B$251,A14,الدخول!$I$3:$I$251)+B14-SUMIF(الدخول!$B$3:$B$251,A14,الدخول!$F$3:$F$251)) -> 400
A15: شاسيه RO | B15: 500 | C15: =IF(B15="","",SUMIF(الدخول!$B$3:$B$251,A15,الدخول!$E$3:$E$251)+SUMIF(الدخول!$B$3:$B$251,A15,الدخول!$I$3:$I$251)+B15-SUMIF(الدخول!$B$3:$B$251,A15,الدخول!$F$3:$F$251)) -> 500
A16: كريمب 2x1 | B16: 800 | C16: =IF(B16="","",SUMIF(الدخول!$B$3:$B$251,A16,الدخول!$E$3:$E$251)+SUMIF(الدخول!$B$3:$B$251,A16,الدخول!$I$3:$I$251)+B16-SUMIF(الدخول!$B$3:$B$251,A16,الدخول!$F$3:$F$251)) -> 800
A17: كريمب قاعدة | B17: 300 | C17: =IF(B17="","",SUMIF(الدخول!$B$3:$B$251,A17,الدخول!$E$3:$E$251)+SUMIF(الدخول!$B$3:$B$251,A17,الدخول!$I$3:$I$251)+B17-SUMIF(الدخول!$B$3:$B$251,A17,الدخول!$F$3:$F$251)) -> 300
A18: لوبرشير | B18: 100 | C18: =IF(B18="","",SUMIF(الدخول!$B$3:$B$251,A18,الدخول!$E$3:$E$251)+SUMIF(الدخول!$B$3:$B$251,A18,الدخول!$I$3:$I$251)+B18-SUMIF(الدخول!$B$3:$B$251,A18,الدخول!$F$3:$F$251)) -> 100
A19: هاي برشير | B19: 250 | C19: =IF(B19="","",SUMIF(الدخول!$B$3:$B$251,A19,الدخول!$E$3:$E$251)+SUMIF(الدخول!$B$3:$B$251,A19,الدخول!$I$3:$I$251)+B19-SUMIF(الدخول!$B$3:$B$251,A19,الدخول!$F$3:$F$251)) -> 250
A20: رباعي | B20: 350 | C20: =IF(B20="","",SUMIF(الدخول!$B$3:$B$251,A20,الدخول!$E$3:$E$251)+SUMIF(الدخول!$B$3:$B$251,A20,الدخول!$I$3:$I$251)+B20-SUMIF(الدخول!$B$3:$B$251,A20,الدخول!$F$3:$F$251)) -> 350
A21: كوع | B21: 750 | C21: =IF(B21="","",SUMIF(الدخول!$B$3:$B$251,A21,الدخول!$E$3:$E$251)+SUMIF(الدخول!$B$3:$B$251,A21,الدخول!$I$3:$I$251)+B21-SUMIF(الدخول!$B$3:$B$251,A21,الدخول!$F$3:$F$251)) -> 750
A22: خرطوم | B22: 600 | C22: =IF(B22="","",SUMIF(الدخول!$B$3:$B$251,A22,الدخول!$E$3:$E$251)+SUMIF(الدخول!$B$3:$B$251,A22,الدخول!$I$3:$I$251)+B22-SUMIF(الدخول!$B$3:$B$251,A22,الدخول!$F$3:$F$251)) -> 600
A23: هاوزينج | B23: 100 | C23: =IF(B23="","",SUMIF(الدخول!$B$3:$B$251,A23,الدخول!$E$3:$E$251)+SUMIF(الدخول!$B$3:$B$251,A23,الدخول!$I$3:$I$251)+B23-SUMIF(الدخول!$B$3:$B$251,A23,الدخول!$F$3:$F$251)) -> 100
A24: ناطرة نصف | B24: 200 | C24: =IF(B24="","",SUMIF(الدخول!$B$3:$B$251,A24,الدخول!$E$3:$E$251)+SUMIF(الدخول!$B$3:$B$251,A24,الدخول!$I$3:$I$251)+B24-SUMIF(الدخول!$B$3:$B$251,A24,الدخول!$F$3:$F$251)) -> 200
A25: ناطرة ثلاثة ارباع | B25: 200 | C25: =IF(B25="","",SUMIF(الدخول!$B$3:$B$251,A25,الدخول!$E$3:$E$251)+SUMIF(الدخول!$B$3:$B$251,A25,الدخول!$I$3:$I$251)+B25-SUMIF(الدخول!$B$3:$B$251,A25,الدخول!$F$3:$F$251)) -> 200
A26: محبس نصف | B26: 100 | C26: =IF(B26="","",SUMIF(الدخول!$B$3:$B$251,A26,الدخول!$E$3:$E$251)+SUMIF(الدخول!$B$3:$B$251,A26,الدخول!$I$3:$I$251)+B26-SUMIF(الدخول!$B$3:$B$251,A26,الدخول!$F$3:$F$251)) -> 100
A27: جوانات | B27: 120 | C27: =IF(B27="","",SUMIF(الدخول!$B$3:$B$251,A27,الدخول!$E$3:$E$251)+SUMIF(الدخول!$B$3:$B$251,A27,الدخول!$I$3:$I$251)+B27-SUMIF(الدخول!$B$3:$B$251,A27,الدخول!$F$3:$F$251)) -> 120
A28: خزان | B28: 150 | C28: =IF(B28="","",SUMIF(الدخول!$B$3:$B$251,A28,الدخول!$E$3:$E$251)+SUMIF(الدخول!$B$3:$B$251,A28,الدخول!$I$3:$I$251)+B28-SUMIF(الدخول!$B$3:$B$251,A28,الدخول!$F$3:$F$251)) -> 150
A29: مسامير | B29: 900 | C29: =IF(B29="","",SUMIF(الدخول!$B$3:$B$251,A29,الدخول!$E$3:$E$251)+SUMIF(الدخول!$B$3:$B$251,A29,الدخول!$I$3:$I$251)+B29-SUMIF(الدخول!$B$3:$B$251,A29,الدخول!$F$3:$F$251)) -> 900
C30: =IF(B30="","",SUMIF(الدخول!$B$3:$B$251,A30,الدخول!$E$3:$E$251)+SUMIF(الدخول!$B$3:$B$251,A30,الدخول!$I$3:$I$251)+B30-SUMIF(الدخول!$B$3:$B$251,A30,الدخول!$F$3:$F$251)) -> 
C31: =IF(B31="","",SUMIF(الدخول!$B$3:$B$251,A31,الدخول!$E$3:$E$251)+SUMIF(الدخول!$B$3:$B$251,A31,الدخول!$I$3:$I$251)+B31-SUMIF(الدخول!$B$3:$B$251,A31,الدخول!$F$3:$F$251)) -> 
C32: =IF(B32="","",SUMIF(الدخول!$B$3:$B$251,A32,الدخول!$E$3:$E$251)+SUMIF(الدخول!$B$3:$B$251,A32,الدخول!$I$3:$I$251)+B32-SUMIF(الدخول!$B$3:$B$251,A32,الدخول!$F$3:$F$251)) -> 
C33: =IF(B33="","",SUMIF(الدخول!$B$3:$B$251,A33,الدخول!$E$3:$E$251)+SUMIF(الدخول!$B$3:$B$251,A33,الدخول!$I$3:$I$251)+B33-SUMIF(الدخول!$B$3:$B$251,A33,الدخول!$F$3:$F$251)) -> 
C34: =IF(B34="","",SUMIF(الدخول!$B$3:$B$251,A34,الدخول!$E$3:$E$251)+SUMIF(الدخول!$B$3:$B$251,A34,الدخول!$I$3:$I$251)+B34-SUMIF(الدخول!$B$3:$B$251,A34,الدخول!$F$3:$F$251)) -> 
C35: =IF(B35="","",SUMIF(الدخول!$B$3:$B$251,A35,الدخول!$E$3:$E$251)+SUMIF(الدخول!$B$3:$B$251,A35,الدخول!$I$3:$I$251)+B35-SUMIF(الدخول!$B$3:$B$251,A35,الدخول!$F$3:$F$251)) -> 
C36: =IF(B36="","",SUMIF(الدخول!$B$3:$B$251,A36,الدخول!$E$3:$E$251)+SUMIF(الدخول!$B$3:$B$251,A36,الدخول!$I$3:$I$251)+B36-SUMIF(الدخول!$B$3:$B$251,A36,الدخول!$F$3:$F$251)) -> 
C37: =IF(B37="","",SUMIF(الدخول!$B$3:$B$251,A37,الدخول!$E$3:$E$251)+SUMIF(الدخول!$B$3:$B$251,A37,الدخول!$I$3:$I$251)+B37-SUMIF(الدخول!$B$3:$B$251,A37,الدخول!$F$3:$F$251)) -> 
C38: =IF(B38="","",SUMIF(الدخول!$B$3:$B$251,A38,الدخول!$E$3:$E$251)+SUMIF(الدخول!$B$3:$B$251,A38,الدخول!$I$3:$I$251)+B38-SUMIF(الدخول!$B$3:$B$251,A38,الدخول!$F$3:$F$251)) -> 
C39: =IF(B39="","",SUMIF(الدخول!$B$3:$B$251,A39,الدخول!$E$3:$E$251)+SUMIF(الدخول!$B$3:$B$251,A39,الدخول!$I$3:$I$251)+B39-SUMIF(الدخول!$B$3:$B$251,A39,الدخول!$F$3:$F$251)) -> 
C40: =IF(B40="","",SUMIF(الدخول!$B$3:$B$251,A40,الدخول!$E$3:$E$251)+SUMIF(الدخول!$B$3:$B$251,A40,الدخول!$I$3:$I$251)+B40-SUMIF(الدخول!$B$3:$B$251,A40,الدخول!$F$3:$F$251)) -> 
C41: =IF(B41="","",SUMIF(الدخول!$B$3:$B$251,A41,الدخول!$E$3:$E$251)+SUMIF(الدخول!$B$3:$B$251,A41,الدخول!$I$3:$I$251)+B41-SUMIF(الدخول!$B$3:$B$251,A41,الدخول!$F$3:$F$251)) -> 
C42: =IF(B42="","",SUMIF(الدخول!$B$3:$B$251,A42,الدخول!$E$3:$E$251)+SUMIF(الدخول!$B$3:$B$251,A42,الدخول!$I$3:$I$251)+B42-SUMIF(الدخول!$B$3:$B$251,A42,الدخول!$F$3:$F$251)) -> 
C43: =IF(B43="","",SUMIF(الدخول!$B$3:$B$251,A43,الدخول!$E$3:$E$251)+SUMIF(الدخول!$B$3:$B$251,A43,الدخول!$I$3:$I$251)+B43-SUMIF(الدخول!$B$3:$B$251,A43,الدخول!$F$3:$F$251)) -> 
C44: =IF(B44="","",SUMIF(الدخول!$B$3:$B$251,A44,الدخول!$E$3:$E$251)+SUMIF(الدخول!$B$3:$B$251,A44,الدخول!$I$3:$I$251)+B44-SUMIF(الدخول!$B$3:$B$251,A44,الدخول!$F$3:$F$251)) -> 
C45: =IF(B45="","",SUMIF(الدخول!$B$3:$B$251,A45,الدخول!$E$3:$E$251)+SUMIF(الدخول!$B$3:$B$251,A45,الدخول!$I$3:$I$251)+B45-SUMIF(الدخول!$B$3:$B$251,A45,الدخول!$F$3:$F$251)) -> 
C46: =IF(B46="","",SUMIF(الدخول!$B$3:$B$251,A46,الدخول!$E$3:$E$251)+SUMIF(الدخول!$B$3:$B$251,A46,الدخول!$I$3:$I$251)+B46-SUMIF(الدخول!$B$3:$B$251,A46,الدخول!$F$3:$F$251)) -> 
C47: =IF(B47="","",SUMIF(الدخول!$B$3:$B$251,A47,الدخول!$E$3:$E$251)+SUMIF(الدخول!$B$3:$B$251,A47,الدخول!$I$3:$I$251)+B47-SUMIF(الدخول!$B$3:$B$251,A47,الدخول!$F$3:$F$251)) -> 
C48: =IF(B48="","",SUMIF(الدخول!$B$3:$B$251,A48,الدخول!$E$3:$E$251)+SUMIF(الدخول!$B$3:$B$251,A48,الدخول!$I$3:$I$251)+B48-SUMIF(الدخول!$B$3:$B$251,A48,الدخول!$F$3:$F$251)) -> 
C49: =IF(B49="","",SUMIF(الدخول!$B$3:$B$251,A49,الدخول!$E$3:$E$251)+SUMIF(الدخول!$B$3:$B$251,A49,الدخول!$I$3:$I$251)+B49-SUMIF(الدخول!$B$3:$B$251,A49,الدخول!$F$3:$F$251)) -> 
C50: =IF(B50="","",SUMIF(الدخول!$B$3:$B$251,A50,الدخول!$E$3:$E$251)+SUMIF(الدخول!$B$3:$B$251,A50,الدخول!$I$3:$I$251)+B50-SUMIF(الدخول!$B$3:$B$251,A50,الدخول!$F$3:$F$251)) -> 
C51: =IF(B51="","",SUMIF(الدخول!$B$3:$B$251,A51,الدخول!$E$3:$E$251)+SUMIF(الدخول!$B$3:$B$251,A51,الدخول!$I$3:$I$251)+B51-SUMIF(الدخول!$B$3:$B$251,A51,الدخول!$F$3:$F$251)) -> 
C52: =IF(B52="","",SUMIF(الدخول!$B$3:$B$251,A52,الدخول!$E$3:$E$251)+SUMIF(الدخول!$B$3:$B$251,A52,الدخول!$I$3:$I$251)+B52-SUMIF(الدخول!$B$3:$B$251,A52,الدخول!$F$3:$F$251)) -> 

Sheet انواع الفلاتر
A1: مسلسل | B1: الاسم | C1: السعر
A2: 1 | B2: فلتر 5 عادي | C2: 1000
A3: 2 | B3: فلتر 7 عادي | C3: 100
A4: 3 | B4: فلتر 5 RO
A5: 4 | B5: فلتر 7 RO | C5: 250
A6: 5 | B6: شمعة ممبرين
A7: 6 | B7: شمعة أولى
A8: 7 | B8: شمعة ثانية
A9: 8 | B9: شمعة ثالثة
A10: 9 | B10: شمعة جوز هند
A11: 10 | B11: شمعة كلسيدة
A12: 11 | B12: شمعة انفرا
A13: 12 | B13: شمعة UV
A14: 13 | B14: شاسيه خماسي
A15: 14 | B15: شاسيه RO
A16: 15 | B16: كريمب 2x1
A17: 16 | B17: كريمب قاعدة
A18: 17 | B18: لوبرشير
A19: 18 | B19: هاي برشير
A20: 19 | B20: رباعي
A21: 20 | B21: كوع
A22: 21 | B22: خرطوم
A23: 22 | B23: هاوزينج
A24: 23 | B24: ناطرة نصف
A25: 24 | B25: ناطرة ثلاثة ارباع
A26: 25 | B26: محبس نصف
A27: 26 | B27: جوانات
A28: 27 | B28: خزان
A29: 28 | B29: مسامير
A30: 29
A31: 30
A32: 31
A33: 32
A34: 33
A35: 34
A36: 35
A37: 36
A38: 37
A39: 38
A40: 39
A41: 40
A42: 41
A43: 42
A44: 43
A45: 44
A46: 45
A47: 46
A48: 47
A49: 48
A50: 49
A51: 50
A52: 51

Sheet اسماء العملاء
A1: اسم العميل | B1: عنوان العميل | C1: رقم التليفون | D1: رقم تليفون اخر | E1: كود العميل
A2: احمد محمد | B2: العجمي | C2: 123456789 | D2: 01228485818 | E2: 1
A3: محمود محمد | B3: محرم بك | C3: 0123456789 | E3: 2
A4: صلاح سعيد | B4: الحضرة | C4: 011234567 | E4: 3
A5: محسن محمد | B5: سيوف | C5: 01223451233 | E5: 4
A6: احمد سعيد | B6: سموحة | C6: 0111111111 | E6: 5
A7: مروان حسين | B7: البرج | C7: 022222222 | E7: 6
A8: حسين رضوان | B8: سيدي بشر | C8: 1111111111 | E8: 7
A9: وليد ابراهيم | B9: العجمي | C9: 2222222222 | E9: 8
A10: سمير رياض | B10: المندرة | C10: 03333333333 | E10: 9
E11: 10
E12: 11
E13: 12
E14: 13
E15: 14
E16: 15
E17: 16
E18: 17
E19: 18
E20: 19
E21: 20
E22: 21
E23: 22
E24: 23
E25: 24
E26: 25
E27: 26
E28: 27
E29: 28
E30: 29
E31: 30
E32: 31
E33: 32
E34: 33
E35: 34
E36: 35
E37: 36
E38: 37
E39: 38
E40: 39
E41: 40
E42: 41
E43: 42
E44: 43
E45: 44
E46: 45
E47: 46
E48: 47
E49: 48
E50: 49
E51: 50
E52: 51
E53: 52
E54: 53
E55: 54
E56: 55
E57: 56
E58: 57
E59: 58
E60: 59
E61: 60
E62: 61
E63: 62
E64: 63
E65: 64
E66: 65
E67: 66
E68: 67
E69: 68
E70: 69
E71: 70
E72: 71
E73: 72
E74: 73
E75: 74
E76: 75
E77: 76
E78: 77
E79: 78
E80: 79
E81: 80
E82: 81
E83: 82
E84: 83
E85: 84
E86: 85
E87: 86
E88: 87
E89: 88
E90: 89
E91: 90
E92: 91
E93: 92
E94: 93
E95: 94
E96: 95
E97: 96
E98: 97
E99: 98
E100: 99
E101: 100
E102: 101
E103: 102
E104: 103
E105: 104
E106: 105
E107: 106
E108: 107
E109: 108
E110: 109
E111: 110
E112: 111
E113: 112
E114: 113
E115: 114
E116: 115
E117: 116
E118: 117
E119: 118
E120: 119
E121: 120
E122: 121
E123: 122
E124: 123
E125: 124
E126: 125
E127: 126
E128: 127
E129: 128
E130: 129
E131: 130
E132: 131
E133: 132
E134: 133
E135: 134
E136: 135
E137: 136
E138: 137
E139: 138
E140: 139
E141: 140
E142: 141

Sheet الدخول
A1: الصفحة الرئيسية
A2: التاريخ | B2: النوع | C2: رصيد افتتاحي | D2: رصيد ختامي | E2: دخول | F2: خروج | G2: جرد | H2: اسم المندوب | I2: مرتجع | J2: اسم العميل | K2: كود العمبل | L2: عنوان العميل | M2: رقم التليفون | N2: ملاحظات
A3: =IF(B3="","",TODAY()) ->  | C3: =IF(B3="","",SUMIF('الرصيد الثابت'!$A$2:$A$52,B3,'الرصيد الثابت'!$B$2:$B$52)) ->  | D3: =IF(B3="","",SUMIF('الرصيد الثابت'!$A$2:$A$52,B3,'الرصيد الثابت'!$C$2:$C$52)) ->  | G3: =SUM(E3-F3) -> 0 | K3: =IFERROR(VLOOKUP(J3,'اسماء العملاء'!$A$2:$E$142,5,FALSE),"") ->  | L3: =IFERROR(VLOOKUP(J3,'اسماء العملاء'!$A$2:$C$142,2,FALSE),"") ->  | M3: =IFERROR(VLOOKUP(J3,'اسماء العملاء'!$A$2:$C$142,3,FALSE),"") -> 
A4: =IF(B4="","",TODAY()) ->  | C4: =IF(B4="","",SUMIF('الرصيد الثابت'!$A$2:$A$52,B4,'الرصيد الثابت'!$B$2:$B$52)) ->  | D4: =IF(B4="","",SUMIF('الرصيد الثابت'!$A$2:$A$52,B4,'الرصيد الثابت'!$C$2:$C$52)) ->  | G4: =SUM(E4-F4) -> 0 | K4: =IFERROR(VLOOKUP(J4,'اسماء العملاء'!$A$2:$E$142,5,FALSE),"") ->  | L4: =IFERROR(VLOOKUP(J4,'اسماء العملاء'!$A$2:$C$142,2,FALSE),"") ->  | M4: =IFERROR(VLOOKUP(J4,'اسماء العملاء'!$A$2:$C$142,3,FALSE),"") -> 
C5: =IF(B5="","",SUMIF('الرصيد الثابت'!$A$2:$A$52,B5,'الرصيد الثابت'!$B$2:$B$52)) ->  | D5: =IF(B5="","",SUMIF('الرصيد الثابت'!$A$2:$A$52,B5,'الرصيد الثابت'!$C$2:$C$52)) ->  | G5: 0 | K5: =IFERROR(VLOOKUP(J5,'اسماء العملاء'!$A$2:$E$142,5,FALSE),"") ->  | L5: =IFERROR(VLOOKUP(J5,'اسماء العملاء'!$A$2:$C$142,2,FALSE),"") ->  | M5: =IFERROR(VLOOKUP(J5,'اسماء العملاء'!$A$2:$C$142,3,FALSE),"") -> 
C6: =IF(B6="","",SUMIF('الرصيد الثابت'!$A$2:$A$52,B6,'الرصيد الثابت'!$B$2:$B$52)) ->  | D6: =IF(B6="","",SUMIF('الرصيد الثابت'!$A$2:$A$52,B6,'الرصيد الثابت'!$C$2:$C$52)) ->  | G6: 0 | K6: =IFERROR(VLOOKUP(J6,'اسماء العملاء'!$A$2:$E$142,5,FALSE),"") ->  | L6: =IFERROR(VLOOKUP(J6,'اسماء العملاء'!$A$2:$C$142,2,FALSE),"") ->  | M6: =IFERROR(VLOOKUP(J6,'اسماء العملاء'!$A$2:$C$142,3,FALSE),"") -> 
C7: =IF(B7="","",SUMIF('الرصيد الثابت'!$A$2:$A$52,B7,'الرصيد الثابت'!$B$2:$B$52)) ->  | D7: =IF(B7="","",SUMIF('الرصيد الثابت'!$A$2:$A$52,B7,'الرصيد الثابت'!$C$2:$C$52)) ->  | G7: 0 | K7: =IFERROR(VLOOKUP(J7,'اسماء العملاء'!$A$2:$E$142,5,FALSE),"") ->  | L7: =IFERROR(VLOOKUP(J7,'اسماء العملاء'!$A$2:$C$142,2,FALSE),"") ->  | M7: =IFERROR(VLOOKUP(J7,'اسماء العملاء'!$A$2:$C$142,3,FALSE),"") -> 
C8: =IF(B8="","",SUMIF('الرصيد الثابت'!$A$2:$A$52,B8,'الرصيد الثابت'!$B$2:$B$52)) ->  | D8: =IF(B8="","",SUMIF('الرصيد الثابت'!$A$2:$A$52,B8,'الرصيد الثابت'!$C$2:$C$52)) ->  | G8: 0 | K8: =IFERROR(VLOOKUP(J8,'اسماء العملاء'!$A$2:$E$142,5,FALSE),"") ->  | L8: =IFERROR(VLOOKUP(J8,'اسماء العملاء'!$A$2:$C$142,2,FALSE),"") ->  | M8: =IFERROR(VLOOKUP(J8,'اسماء العملاء'!$A$2:$C$142,3,FALSE),"") -> 
C9: =IF(B9="","",SUMIF('الرصيد الثابت'!$A$2:$A$52,B9,'الرصيد الثابت'!$B$2:$B$52)) ->  | D9: =IF(B9="","",SUMIF('الرصيد الثابت'!$A$2:$A$52,B9,'الرصيد الثابت'!$C$2:$C$52)) ->  | G9: 0 | K9: =IFERROR(VLOOKUP(J9,'اسماء العملاء'!$A$2:$E$142,5,FALSE),"") ->  | L9: =IFERROR(VLOOKUP(J9,'اسماء العملاء'!$A$2:$C$142,2,FALSE),"") ->  | M9: =IFERROR(VLOOKUP(J9,'اسماء العملاء'!$A$2:$C$142,3,FALSE),"") -> 
C10: =IF(B10="","",SUMIF('الرصيد الثابت'!$A$2:$A$52,B10,'الرصيد الثابت'!$B$2:$B$52)) ->  | D10: =IF(B10="","",SUMIF('الرصيد الثابت'!$A$2:$A$52,B10,'الرصيد الثابت'!$C$2:$C$52)) ->  | G10: 0 | K10: =IFERROR(VLOOKUP(J10,'اسماء العملاء'!$A$2:$E$142,5,FALSE),"") ->  | L10: =IFERROR(VLOOKUP(J10,'اسماء العملاء'!$A$2:$C$142,2,FALSE),"") ->  | M10: =IFERROR(VLOOKUP(J10,'اسماء العملاء'!$A$2:$C$142,3,FALSE),"") -> 
C11: =IF(B11="","",SUMIF('الرصيد الثابت'!$A$2:$A$52,B11,'الرصيد الثابت'!$B$2:$B$52)) ->  | D11: =IF(B11="","",SUMIF('الرصيد الثابت'!$A$2:$A$52,B11,'الرصيد الثابت'!$C$2:$C$52)) ->  | G11: 0 | K11: =IFERROR(VLOOKUP(J11,'اسماء العملاء'!$A$2:$E$142,5,FALSE),"") ->  | L11: =IFERROR(VLOOKUP(J11,'اسماء العملاء'!$A$2:$C$142,2,FALSE),"") ->  | M11: =IFERROR(VLOOKUP(J11,'اسماء العملاء'!$A$2:$C$142,3,FALSE),"") -> 
C12: =IF(B12="","",SUMIF('الرصيد الثابت'!$A$2:$A$52,B12,'الرصيد الثابت'!$B$2:$B$52)) ->  | D12: =IF(B12="","",SUMIF('الرصيد الثابت'!$A$2:$A$52,B12,'الرصيد الثابت'!$C$2:$C$52)) ->  | G12: 0 | K12: =IFERROR(VLOOKUP(J12,'اسماء العملاء'!$A$2:$E$142,5,FALSE),"") ->  | L12: =IFERROR(VLOOKUP(J12,'اسماء العملاء'!$A$2:$C$142,2,FALSE),"") ->  | M12: =IFERROR(VLOOKUP(J12,'اسماء العملاء'!$A$2:$C$142,3,FALSE),"") -> 
C13: =IF(B13="","",SUMIF('الرصيد الثابت'!$A$2:$A$52,B13,'الرصيد الثابت'!$B$2:$B$52)) ->  | D13: =IF(B13="","",SUMIF('الرصيد الثابت'!$A$2:$A$52,B13,'الرصيد الثابت'!$C$2:$C$52)) ->  | G13: 0 | K13: =IFERROR(VLOOKUP(J13,'اسماء العملاء'!$A$2:$E$142,5,FALSE),"") ->  | L13: =IFERROR(VLOOKUP(J13,'اسماء العملاء'!$A$2:$C$142,2,FALSE),"") ->  | M13: =IFERROR(VLOOKUP(J13,'اسماء العملاء'!$A$2:$C$142,3,FALSE),"") -> 
C14: =IF(B14="","",SUMIF('الرصيد الثابت'!$A$2:$A$52,B14,'الرصيد الثابت'!$B$2:$B$52)) ->  | D14: =IF(B14="","",SUMIF('الرصيد الثابت'!$A$2:$A$52,B14,'الرصيد الثابت'!$C$2:$C$52)) ->  | G14: 0 | K14: =IFERROR(VLOOKUP(J14,'اسماء العملاء'!$A$2:$E$142,5,FALSE),"") ->  | L14: =IFERROR(VLOOKUP(J14,'اسماء العملاء'!$A$2:$C$142,2,FALSE),"") ->  | M14: =IFERROR(VLOOKUP(J14,'اسماء العملاء'!$A$2:$C$142,3,FALSE),"") -> 
C15: =IF(B15="","",SUMIF('الرصيد الثابت'!$A$2:$A$52,B15,'الرصيد الثابت'!$B$2:$B$52)) ->  | D15: =IF(B15="","",SUMIF('الرصيد الثابت'!$A$2:$A$52,B15,'الرصيد الثابت'!$C$2:$C$52)) ->  | G15: 0 | K15: =IFERROR(VLOOKUP(J15,'اسماء العملاء'!$A$2:$E$142,5,FALSE),"") ->  | L15: =IFERROR(VLOOKUP(J15,'اسماء العملاء'!$A$2:$C$142,2,FALSE),"") ->  | M15: =IFERROR(VLOOKUP(J15,'اسماء العملاء'!$A$2:$C$142,3,FALSE),"") -> 
C16: =IF(B16="","",SUMIF('الرصيد الثابت'!$A$2:$A$52,B16,'الرصيد الثابت'!$B$2:$B$52)) ->  | D16: =IF(B16="","",SUMIF('الرصيد الثابت'!$A$2:$A$52,B16,'الرصيد الثابت'!$C$2:$C$52)) ->  | G16: 0 | K16: =IFERROR(VLOOKUP(J16,'اسماء العملاء'!$A$2:$E$142,5,FALSE),"") ->  | L16: =IFERROR(VLOOKUP(J16,'اسماء العملاء'!$A$2:$C$142,2,FALSE),"") ->  | M16: =IFERROR(VLOOKUP(J16,'اسماء العملاء'!$A$2:$C$142,3,FALSE),"") -> 
C17: =IF(B17="","",SUMIF('الرصيد الثابت'!$A$2:$A$52,B17,'الرصيد الثابت'!$B$2:$B$52)) ->  | D17: =IF(B17="","",SUMIF('الرصيد الثابت'!$A$2:$A$52,B17,'الرصيد الثابت'!$C$2:$C$52)) ->  | G17: 0 | K17: =IFERROR(VLOOKUP(J17,'اسماء العملاء'!$A$2:$E$142,5,FALSE),"") ->  | L17: =IFERROR(VLOOKUP(J17,'اسماء العملاء'!$A$2:$C$142,2,FALSE),"") ->  | M17: =IFERROR(VLOOKUP(J17,'اسماء العملاء'!$A$2:$C$142,3,FALSE),"") -> 
C18: =IF(B18="","",SUMIF('الرصيد الثابت'!$A$2:$A$52,B18,'الرصيد الثابت'!$B$2:$B$52)) ->  | D18: =IF(B18="","",SUMIF('الرصيد الثابت'!$A$2:$A$52,B18,'الرصيد الثابت'!$C$2:$C$52)) ->  | G18: 0 | K18: =IFERROR(VLOOKUP(J18,'اسماء العملاء'!$A$2:$E$142,5,FALSE),"") ->  | L18: =IFERROR(VLOOKUP(J18,'اسماء العملاء'!$A$2:$C$142,2,FALSE),"") ->  | M18: =IFERROR(VLOOKUP(J18,'اسماء العملاء'!$A$2:$C$142,3,FALSE),"") -> 
C19: =IF(B19="","",SUMIF('الرصيد الثابت'!$A$2:$A$52,B19,'الرصيد الثابت'!$B$2:$B$52)) ->  | D19: =IF(B19="","",SUMIF('الرصيد الثابت'!$A$2:$A$52,B19,'الرصيد الثابت'!$C$2:$C$52)) ->  | G19: 0 | K19: =IFERROR(VLOOKUP(J19,'اسماء العملاء'!$A$2:$E$142,5,FALSE),"") ->  | L19: =IFERROR(VLOOKUP(J19,'اسماء العملاء'!$A$2:$C$142,2,FALSE),"") ->  | M19: =IFERROR(VLOOKUP(J19,'اسماء العملاء'!$A$2:$C$142,3,FALSE),"") -> 
C20: =IF(B20="","",SUMIF('الرصيد الثابت'!$A$2:$A$52,B20,'الرصيد الثابت'!$B$2:$B$52)) ->  | D20: =IF(B20="","",SUMIF('الرصيد الثابت'!$A$2:$A$52,B20,'الرصيد الثابت'!$C$2:$C$52)) ->  | G20: 0 | K20: =IFERROR(VLOOKUP(J20,'اسماء العملاء'!$A$2:$E$142,5,FALSE),"") ->  | L20: =IFERROR(VLOOKUP(J20,'اسماء العملاء'!$A$2:$C$142,2,FALSE),"") ->  | M20: =IFERROR(VLOOKUP(J20,'اسماء العملاء'!$A$2:$C$142,3,FALSE),"") -> 
C21: =IF(B21="","",SUMIF('الرصيد الثابت'!$A$2:$A$52,B21,'الرصيد الثابت'!$B$2:$B$52)) ->  | D21: =IF(B21="","",SUMIF('الرصيد الثابت'!$A$2:$A$52,B21,'الرصيد الثابت'!$C$2:$C$52)) ->  | G21: 0 | K21: =IFERROR(VLOOKUP(J21,'اسماء العملاء'!$A$2:$E$142,5,FALSE),"") ->  | L21: =IFERROR(VLOOKUP(J21,'اسماء العملاء'!$A$2:$C$142,2,FALSE),"") ->  | M21: =IFERROR(VLOOKUP(J21,'اسماء العملاء'!$A$2:$C$142,3,FALSE),"") -> 
C22: =IF(B22="","",SUMIF('الرصيد الثابت'!$A$2:$A$52,B22,'الرصيد الثابت'!$B$2:$B$52)) ->  | D22: =IF(B22="","",SUMIF('الرصيد الثابت'!$A$2:$A$52,B22,'الرصيد الثابت'!$C$2:$C$52)) ->  | G22: 0 | K22: =IFERROR(VLOOKUP(J22,'اسماء العملاء'!$A$2:$E$142,5,FALSE),"") ->  | L22: =IFERROR(VLOOKUP(J22,'اسماء العملاء'!$A$2:$C$142,2,FALSE),"") ->  | M22: =IFERROR(VLOOKUP(J22,'اسماء العملاء'!$A$2:$C$142,3,FALSE),"") -> 
C23: =IF(B23="","",SUMIF('الرصيد الثابت'!$A$2:$A$52,B23,'الرصيد الثابت'!$B$2:$B$52)) ->  | D23: =IF(B23="","",SUMIF('الرصيد الثابت'!$A$2:$A$52,B23,'الرصيد الثابت'!$C$2:$C$52)) ->  | G23: 0 | K23: =IFERROR(VLOOKUP(J23,'اسماء العملاء'!$A$2:$E$142,5,FALSE),"") ->  | L23: =IFERROR(VLOOKUP(J23,'اسماء العملاء'!$A$2:$C$142,2,FALSE),"") ->  | M23: =IFERROR(VLOOKUP(J23,'اسماء العملاء'!$A$2:$C$142,3,FALSE),"") -> 
C24: =IF(B24="","",SUMIF('الرصيد الثابت'!$A$2:$A$52,B24,'الرصيد الثابت'!$B$2:$B$52)) ->  | D24: =IF(B24="","",SUMIF('الرصيد الثابت'!$A$2:$A$52,B24,'الرصيد الثابت'!$C$2:$C$52)) ->  | G24: 0 | K24: =IFERROR(VLOOKUP(J24,'اسماء العملاء'!$A$2:$E$142,5,FALSE),"") ->  | L24: =IFERROR(VLOOKUP(J24,'اسماء العملاء'!$A$2:$C$142,2,FALSE),"") ->  | M24: =IFERROR(VLOOKUP(J24,'اسماء العملاء'!$A$2:$C$142,3,FALSE),"") -> 
C25: =IF(B25="","",SUMIF('الرصيد الثابت'!$A$2:$A$52,B25,'الرصيد الثابت'!$B$2:$B$52)) ->  | D25: =IF(B25="","",SUMIF('الرصيد الثابت'!$A$2:$A$52,B25,'الرصيد الثابت'!$C$2:$C$52)) ->  | G25: 0 | K25: =IFERROR(VLOOKUP(J25,'اسماء العملاء'!$A$2:$E$142,5,FALSE),"") ->  | L25: =IFERROR(VLOOKUP(J25,'اسماء العملاء'!$A$2:$C$142,2,FALSE),"") ->  | M25: =IFERROR(VLOOKUP(J25,'اسماء العملاء'!$A$2:$C$142,3,FALSE),"") -> 
C26: =IF(B26="","",SUMIF('الرصيد الثابت'!$A$2:$A$52,B26,'الرصيد الثابت'!$B$2:$B$52)) ->  | D26: =IF(B26="","",SUMIF('الرصيد الثابت'!$A$2:$A$52,B26,'الرصيد الثابت'!$C$2:$C$52)) ->  | G26: 0 | K26: =IFERROR(VLOOKUP(J26,'اسماء العملاء'!$A$2:$E$142,5,FALSE),"") ->  | L26: =IFERROR(VLOOKUP(J26,'اسماء العملاء'!$A$2:$C$142,2,FALSE),"") ->  | M26: =IFERROR(VLOOKUP(J26,'اسماء العملاء'!$A$2:$C$142,3,FALSE),"") -> 
C27: =IF(B27="","",SUMIF('الرصيد الثابت'!$A$2:$A$52,B27,'الرصيد الثابت'!$B$2:$B$52)) ->  | D27: =IF(B27="","",SUMIF('الرصيد الثابت'!$A$2:$A$52,B27,'الرصيد الثابت'!$C$2:$C$52)) ->  | G27: 0 | K27: =IFERROR(VLOOKUP(J27,'اسماء العملاء'!$A$2:$E$142,5,FALSE),"") ->  | L27: =IFERROR(VLOOKUP(J27,'اسماء العملاء'!$A$2:$C$142,2,FALSE),"") ->  | M27: =IFERROR(VLOOKUP(J27,'اسماء العملاء'!$A$2:$C$142,3,FALSE),"") -> 
C28: =IF(B28="","",SUMIF('الرصيد الثابت'!$A$2:$A$52,B28,'الرصيد الثابت'!$B$2:$B$52)) ->  | D28: =IF(B28="","",SUMIF('الرصيد الثابت'!$A$2:$A$52,B28,'الرصيد الثابت'!$C$2:$C$52)) ->  | G28: 0 | K28: =IFERROR(VLOOKUP(J28,'اسماء العملاء'!$A$2:$E$142,5,FALSE),"") ->  | L28: =IFERROR(VLOOKUP(J28,'اسماء العملاء'!$A$2:$C$142,2,FALSE),"") ->  | M28: =IFERROR(VLOOKUP(J28,'اسماء العملاء'!$A$2:$C$142,3,FALSE),"") -> 
C29: =IF(B29="","",SUMIF('الرصيد الثابت'!$A$2:$A$52,B29,'الرصيد الثابت'!$B$2:$B$52)) ->  | D29: =IF(B29="","",SUMIF('الرصيد الثابت'!$A$2:$A$52,B29,'الرصيد الثابت'!$C$2:$C$52)) ->  | G29: 0 | K29: =IFERROR(VLOOKUP(J29,'اسماء العملاء'!$A$2:$E$142,5,FALSE),"") ->  | L29: =IFERROR(VLOOKUP(J29,'اسماء العملاء'!$A$2:$C$142,2,FALSE),"") ->  | M29: =IFERROR(VLOOKUP(J29,'اسماء العملاء'!$A$2:$C$142,3,FALSE),"") -> 
C30: =IF(B30="","",SUMIF('الرصيد الثابت'!$A$2:$A$52,B30,'الرصيد الثابت'!$B$2:$B$52)) ->  | D30: =IF(B30="","",SUMIF('الرصيد الثابت'!$A$2:$A$52,B30,'الرصيد الثابت'!$C$2:$C$52)) ->  | G30: 0 | K30: =IFERROR(VLOOKUP(J30,'اسماء العملاء'!$A$2:$E$142,5,FALSE),"") ->  | L30: =IFERROR(VLOOKUP(J30,'اسماء العملاء'!$A$2:$C$142,2,FALSE),"") ->  | M30: =IFERROR(VLOOKUP(J30,'اسماء العملاء'!$A$2:$C$142,3,FALSE),"") -> 
C31: =IF(B31="","",SUMIF('الرصيد الثابت'!$A$2:$A$52,B31,'الرصيد الثابت'!$B$2:$B$52)) ->  | D31: =IF(B31="","",SUMIF('الرصيد الثابت'!$A$2:$A$52,B31,'الرصيد الثابت'!$C$2:$C$52)) ->  | G31: 0 | K31: =IFERROR(VLOOKUP(J31,'اسماء العملاء'!$A$2:$E$142,5,FALSE),"") ->  | L31: =IFERROR(VLOOKUP(J31,'اسماء العملاء'!$A$2:$C$142,2,FALSE),"") ->  | M31: =IFERROR(VLOOKUP(J31,'اسماء العملاء'!$A$2:$C$142,3,FALSE),"") -> 
C32: =IF(B32="","",SUMIF('الرصيد الثابت'!$A$2:$A$52,B32,'الرصيد الثابت'!$B$2:$B$52)) ->  | D32: =IF(B32="","",SUMIF('الرصيد الثابت'!$A$2:$A$52,B32,'الرصيد الثابت'!$C$2:$C$52)) ->  | G32: 0 | K32: =IFERROR(VLOOKUP(J32,'اسماء العملاء'!$A$2:$E$142,5,FALSE),"") ->  | L32: =IFERROR(VLOOKUP(J32,'اسماء العملاء'!$A$2:$C$142,2,FALSE),"") ->  | M32: =IFERROR(VLOOKUP(J32,'اسماء العملاء'!$A$2:$C$142,3,FALSE),"") -> 
C33: =IF(B33="","",SUMIF('الرصيد الثابت'!$A$2:$A$52,B33,'الرصيد الثابت'!$B$2:$B$52)) ->  | D33: =IF(B33="","",SUMIF('الرصيد الثابت'!$A$2:$A$52,B33,'الرصيد الثابت'!$C$2:$C$52)) ->  | G33: 0 | K33: =IFERROR(VLOOKUP(J33,'اسماء العملاء'!$A$2:$E$142,5,FALSE),"") ->  | L33: =IFERROR(VLOOKUP(J33,'اسماء العملاء'!$A$2:$C$142,2,FALSE),"") ->  | M33: =IFERROR(VLOOKUP(J33,'اسماء العملاء'!$A$2:$C$142,3,FALSE),"") -> 
C34: =IF(B34="","",SUMIF('الرصيد الثابت'!$A$2:$A$52,B34,'الرصيد الثابت'!$B$2:$B$52)) ->  | D34: =IF(B34="","",SUMIF('الرصيد الثابت'!$A$2:$A$52,B34,'الرصيد الثابت'!$C$2:$C$52)) ->  | G34: 0 | K34: =IFERROR(VLOOKUP(J34,'اسماء العملاء'!$A$2:$E$142,5,FALSE),"") ->  | L34: =IFERROR(VLOOKUP(J34,'اسماء العملاء'!$A$2:$C$142,2,FALSE),"") ->  | M34: =IFERROR(VLOOKUP(J34,'اسماء العملاء'!$A$2:$C$142,3,FALSE),"") -> 
C35: =IF(B35="","",SUMIF('الرصيد الثابت'!$A$2:$A$52,B35,'الرصيد الثابت'!$B$2:$B$52)) ->  | D35: =IF(B35="","",SUMIF('الرصيد الثابت'!$A$2:$A$52,B35,'الرصيد الثابت'!$C$2:$C$52)) ->  | G35: 0 | K35: =IFERROR(VLOOKUP(J35,'اسماء العملاء'!$A$2:$E$142,5,FALSE),"") ->  | L35: =IFERROR(VLOOKUP(J35,'اسماء العملاء'!$A$2:$C$142,2,FALSE),"") ->  | M35: =IFERROR(VLOOKUP(J35,'اسماء العملاء'!$A$2:$C$142,3,FALSE),"") -> 
C36: =IF(B36="","",SUMIF('الرصيد الثابت'!$A$2:$A$52,B36,'الرصيد الثابت'!$B$2:$B$52)) ->  | D36: =IF(B36="","",SUMIF('الرصيد الثابت'!$A$2:$A$52,B36,'الرصيد الثابت'!$C$2:$C$52)) ->  | G36: 0 | K36: =IFERROR(VLOOKUP(J36,'اسماء العملاء'!$A$2:$E$142,5,FALSE),"") ->  | L36: =IFERROR(VLOOKUP(J36,'اسماء العملاء'!$A$2:$C$142,2,FALSE),"") ->  | M36: =IFERROR(VLOOKUP(J36,'اسماء العملاء'!$A$2:$C$142,3,FALSE),"") -> 
C37: =IF(B37="","",SUMIF('الرصيد الثابت'!$A$2:$A$52,B37,'الرصيد الثابت'!$B$2:$B$52)) ->  | D37: =IF(B37="","",SUMIF('الرصيد الثابت'!$A$2:$A$52,B37,'الرصيد الثابت'!$C$2:$C$52)) ->  | G37: 0 | K37: =IFERROR(VLOOKUP(J37,'اسماء العملاء'!$A$2:$E$142,5,FALSE),"") ->  | L37: =IFERROR(VLOOKUP(J37,'اسماء العملاء'!$A$2:$C$142,2,FALSE),"") ->  | M37: =IFERROR(VLOOKUP(J37,'اسماء العملاء'!$A$2:$C$142,3,FALSE),"") -> 
C38: =IF(B38="","",SUMIF('الرصيد الثابت'!$A$2:$A$52,B38,'الرصيد الثابت'!$B$2:$B$52)) ->  | D38: =IF(B38="","",SUMIF('الرصيد الثابت'!$A$2:$A$52,B38,'الرصيد الثابت'!$C$2:$C$52)) ->  | G38: 0 | K38: =IFERROR(VLOOKUP(J38,'اسماء العملاء'!$A$2:$E$142,5,FALSE),"") ->  | L38: =IFERROR(VLOOKUP(J38,'اسماء العملاء'!$A$2:$C$142,2,FALSE),"") ->  | M38: =IFERROR(VLOOKUP(J38,'اسماء العملاء'!$A$2:$C$142,3,FALSE),"") -> 
C39: =IF(B39="","",SUMIF('الرصيد الثابت'!$A$2:$A$52,B39,'الرصيد الثابت'!$B$2:$B$52)) ->  | D39: =IF(B39="","",SUMIF('الرصيد الثابت'!$A$2:$A$52,B39,'الرصيد الثابت'!$C$2:$C$52)) ->  | G39: 0 | K39: =IFERROR(VLOOKUP(J39,'اسماء العملاء'!$A$2:$E$142,5,FALSE),"") ->  | L39: =IFERROR(VLOOKUP(J39,'اسماء العملاء'!$A$2:$C$142,2,FALSE),"") ->  | M39: =IFERROR(VLOOKUP(J39,'اسماء العملاء'!$A$2:$C$142,3,FALSE),"") -> 
C40: =IF(B40="","",SUMIF('الرصيد الثابت'!$A$2:$A$52,B40,'الرصيد الثابت'!$B$2:$B$52)) ->  | D40: =IF(B40="","",SUMIF('الرصيد الثابت'!$A$2:$A$52,B40,'الرصيد الثابت'!$C$2:$C$52)) ->  | G40: 0 | K40: =IFERROR(VLOOKUP(J40,'اسماء العملاء'!$A$2:$E$142,5,FALSE),"") ->  | L40: =IFERROR(VLOOKUP(J40,'اسماء العملاء'!$A$2:$C$142,2,FALSE),"") ->  | M40: =IFERROR(VLOOKUP(J40,'اسماء العملاء'!$A$2:$C$142,3,FALSE),"") -> 
C41: =IF(B41="","",SUMIF('الرصيد الثابت'!$A$2:$A$52,B41,'الرصيد الثابت'!$B$2:$B$52)) ->  | D41: =IF(B41="","",SUMIF('الرصيد الثابت'!$A$2:$A$52,B41,'الرصيد الثابت'!$C$2:$C$52)) ->  | G41: 0 | K41: =IFERROR(VLOOKUP(J41,'اسماء العملاء'!$A$2:$E$142,5,FALSE),"") ->  | L41: =IFERROR(VLOOKUP(J41,'اسماء العملاء'!$A$2:$C$142,2,FALSE),"") ->  | M41: =IFERROR(VLOOKUP(J41,'اسماء العملاء'!$A$2:$C$142,3,FALSE),"") -> 
C42: =IF(B42="","",SUMIF('الرصيد الثابت'!$A$2:$A$52,B42,'الرصيد الثابت'!$B$2:$B$52)) ->  | D42: =IF(B42="","",SUMIF('الرصيد الثابت'!$A$2:$A$52,B42,'الرصيد الثابت'!$C$2:$C$52)) ->  | G42: 0 | K42: =IFERROR(VLOOKUP(J42,'اسماء العملاء'!$A$2:$E$142,5,FALSE),"") ->  | L42: =IFERROR(VLOOKUP(J42,'اسماء العملاء'!$A$2:$C$142,2,FALSE),"") ->  | M42: =IFERROR(VLOOKUP(J42,'اسماء العملاء'!$A$2:$C$142,3,FALSE),"") -> 
C43: =IF(B43="","",SUMIF('الرصيد الثابت'!$A$2:$A$52,B43,'الرصيد الثابت'!$B$2:$B$52)) ->  | D43: =IF(B43="","",SUMIF('الرصيد الثابت'!$A$2:$A$52,B43,'الرصيد الثابت'!$C$2:$C$52)) ->  | G43: 0 | K43: =IFERROR(VLOOKUP(J43,'اسماء العملاء'!$A$2:$E$142,5,FALSE),"") ->  | L43: =IFERROR(VLOOKUP(J43,'اسماء العملاء'!$A$2:$C$142,2,FALSE),"") ->  | M43: =IFERROR(VLOOKUP(J43,'اسماء العملاء'!$A$2:$C$142,3,FALSE),"") -> 
C44: =IF(B44="","",SUMIF('الرصيد الثابت'!$A$2:$A$52,B44,'الرصيد الثابت'!$B$2:$B$52)) ->  | D44: =IF(B44="","",SUMIF('الرصيد الثابت'!$A$2:$A$52,B44,'الرصيد الثابت'!$C$2:$C$52)) ->  | G44: 0 | K44: =IFERROR(VLOOKUP(J44,'اسماء العملاء'!$A$2:$E$142,5,FALSE),"") ->  | L44: =IFERROR(VLOOKUP(J44,'اسماء العملاء'!$A$2:$C$142,2,FALSE),"") ->  | M44: =IFERROR(VLOOKUP(J44,'اسماء العملاء'!$A$2:$C$142,3,FALSE),"") -> 
C45: =IF(B45="","",SUMIF('الرصيد الثابت'!$A$2:$A$52,B45,'الرصيد الثابت'!$B$2:$B$52)) ->  | D45: =IF(B45="","",SUMIF('الرصيد الثابت'!$A$2:$A$52,B45,'الرصيد الثابت'!$C$2:$C$52)) ->  | G45: 0 | K45: =IFERROR(VLOOKUP(J45,'اسماء العملاء'!$A$2:$E$142,5,FALSE),"") ->  | L45: =IFERROR(VLOOKUP(J45,'اسماء العملاء'!$A$2:$C$142,2,FALSE),"") ->  | M45: =IFERROR(VLOOKUP(J45,'اسماء العملاء'!$A$2:$C$142,3,FALSE),"") -> 
C46: =IF(B46="","",SUMIF('الرصيد الثابت'!$A$2:$A$52,B46,'الرصيد الثابت'!$B$2:$B$52)) ->  | D46: =IF(B46="","",SUMIF('الرصيد الثابت'!$A$2:$A$52,B46,'الرصيد الثابت'!$C$2:$C$52)) ->  | G46: 0 | K46: =IFERROR(VLOOKUP(J46,'اسماء العملاء'!$A$2:$E$142,5,FALSE),"") ->  | L46: =IFERROR(VLOOKUP(J46,'اسماء العملاء'!$A$2:$C$142,2,FALSE),"") ->  | M46: =IFERROR(VLOOKUP(J46,'اسماء العملاء'!$A$2:$C$142,3,FALSE),"") -> 
C47: =IF(B47="","",SUMIF('الرصيد الثابت'!$A$2:$A$52,B47,'الرصيد الثابت'!$B$2:$B$52)) ->  | D47: =IF(B47="","",SUMIF('الرصيد الثابت'!$A$2:$A$52,B47,'الرصيد الثابت'!$C$2:$C$52)) ->  | G47: 0 | K47: =IFERROR(VLOOKUP(J47,'اسماء العملاء'!$A$2:$E$142,5,FALSE),"") ->  | L47: =IFERROR(VLOOKUP(J47,'اسماء العملاء'!$A$2:$C$142,2,FALSE),"") ->  | M47: =IFERROR(VLOOKUP(J47,'اسماء العملاء'!$A$2:$C$142,3,FALSE),"") -> 
C48: =IF(B48="","",SUMIF('الرصيد الثابت'!$A$2:$A$52,B48,'الرصيد الثابت'!$B$2:$B$52)) ->  | D48: =IF(B48="","",SUMIF('الرصيد الثابت'!$A$2:$A$52,B48,'الرصيد الثابت'!$C$2:$C$52)) ->  | G48: 0 | K48: =IFERROR(VLOOKUP(J48,'اسماء العملاء'!$A$2:$E$142,5,FALSE),"") ->  | L48: =IFERROR(VLOOKUP(J48,'اسماء العملاء'!$A$2:$C$142,2,FALSE),"") ->  | M48: =IFERROR(VLOOKUP(J48,'اسماء العملاء'!$A$2:$C$142,3,FALSE),"") -> 
C49: =IF(B49="","",SUMIF('الرصيد الثابت'!$A$2:$A$52,B49,'الرصيد الثابت'!$B$2:$B$52)) ->  | D49: =IF(B49="","",SUMIF('الرصيد الثابت'!$A$2:$A$52,B49,'الرصيد الثابت'!$C$2:$C$52)) ->  | G49: 0 | K49: =IFERROR(VLOOKUP(J49,'اسماء العملاء'!$A$2:$E$142,5,FALSE),"") ->  | L49: =IFERROR(VLOOKUP(J49,'اسماء العملاء'!$A$2:$C$142,2,FALSE),"") ->  | M49: =IFERROR(VLOOKUP(J49,'اسماء العملاء'!$A$2:$C$142,3,FALSE),"") -> 
C50: =IF(B50="","",SUMIF('الرصيد الثابت'!$A$2:$A$52,B50,'الرصيد الثابت'!$B$2:$B$52)) ->  | D50: =IF(B50="","",SUMIF('الرصيد الثابت'!$A$2:$A$52,B50,'الرصيد الثابت'!$C$2:$C$52)) ->  | G50: 0 | K50: =IFERROR(VLOOKUP(J50,'اسماء العملاء'!$A$2:$E$142,5,FALSE),"") ->  | L50: =IFERROR(VLOOKUP(J50,'اسماء العملاء'!$A$2:$C$142,2,FALSE),"") ->  | M50: =IFERROR(VLOOKUP(J50,'اسماء العملاء'!$A$2:$C$142,3,FALSE),"") -> 
C51: =IF(B51="","",SUMIF('الرصيد الثابت'!$A$2:$A$52,B51,'الرصيد الثابت'!$B$2:$B$52)) ->  | D51: =IF(B51="","",SUMIF('الرصيد الثابت'!$A$2:$A$52,B51,'الرصيد الثابت'!$C$2:$C$52)) ->  | G51: 0 | K51: =IFERROR(VLOOKUP(J51,'اسماء العملاء'!$A$2:$E$142,5,FALSE),"") ->  | L51: =IFERROR(VLOOKUP(J51,'اسماء العملاء'!$A$2:$C$142,2,FALSE),"") ->  | M51: =IFERROR(VLOOKUP(J51,'اسماء العملاء'!$A$2:$C$142,3,FALSE),"") -> 
C52: =IF(B52="","",SUMIF('الرصيد الثابت'!$A$2:$A$52,B52,'الرصيد الثابت'!$B$2:$B$52)) ->  | D52: =IF(B52="","",SUMIF('الرصيد الثابت'!$A$2:$A$52,B52,'الرصيد الثابت'!$C$2:$C$52)) ->  | G52: 0 | K52: =IFERROR(VLOOKUP(J52,'اسماء العملاء'!$A$2:$E$142,5,FALSE),"") ->  | L52: =IFERROR(VLOOKUP(J52,'اسماء العملاء'!$A$2:$C$142,2,FALSE),"") ->  | M52: =IFERROR(VLOOKUP(J52,'اسماء العملاء'!$A$2:$C$142,3,FALSE),"") -> 
C53: =IF(B53="","",SUMIF('الرصيد الثابت'!$A$2:$A$52,B53,'الرصيد الثابت'!$B$2:$B$52)) ->  | D53: =IF(B53="","",SUMIF('الرصيد الثابت'!$A$2:$A$52,B53,'الرصيد الثابت'!$C$2:$C$52)) ->  | G53: 0 | K53: =IFERROR(VLOOKUP(J53,'اسماء العملاء'!$A$2:$E$142,5,FALSE),"") ->  | L53: =IFERROR(VLOOKUP(J53,'اسماء العملاء'!$A$2:$C$142,2,FALSE),"") ->  | M53: =IFERROR(VLOOKUP(J53,'اسماء العملاء'!$A$2:$C$142,3,FALSE),"") -> 
C54: =IF(B54="","",SUMIF('الرصيد الثابت'!$A$2:$A$52,B54,'الرصيد الثابت'!$B$2:$B$52)) ->  | D54: =IF(B54="","",SUMIF('الرصيد الثابت'!$A$2:$A$52,B54,'الرصيد الثابت'!$C$2:$C$52)) ->  | G54: 0 | K54: =IFERROR(VLOOKUP(J54,'اسماء العملاء'!$A$2:$E$142,5,FALSE),"") ->  | L54: =IFERROR(VLOOKUP(J54,'اسماء العملاء'!$A$2:$C$142,2,FALSE),"") ->  | M54: =IFERROR(VLOOKUP(J54,'اسماء العملاء'!$A$2:$C$142,3,FALSE),"") -> 
C55: =IF(B55="","",SUMIF('الرصيد الثابت'!$A$2:$A$52,B55,'الرصيد الثابت'!$B$2:$B$52)) ->  | D55: =IF(B55="","",SUMIF('الرصيد الثابت'!$A$2:$A$52,B55,'الرصيد الثابت'!$C$2:$C$52)) ->  | G55: 0 | K55: =IFERROR(VLOOKUP(J55,'اسماء العملاء'!$A$2:$E$142,5,FALSE),"") ->  | L55: =IFERROR(VLOOKUP(J55,'اسماء العملاء'!$A$2:$C$142,2,FALSE),"") ->  | M55: =IFERROR(VLOOKUP(J55,'اسماء العملاء'!$A$2:$C$142,3,FALSE),"") -> 
C56: =IF(B56="","",SUMIF('الرصيد الثابت'!$A$2:$A$52,B56,'الرصيد الثابت'!$B$2:$B$52)) ->  | D56: =IF(B56="","",SUMIF('الرصيد الثابت'!$A$2:$A$52,B56,'الرصيد الثابت'!$C$2:$C$52)) ->  | G56: 0 | K56: =IFERROR(VLOOKUP(J56,'اسماء العملاء'!$A$2:$E$142,5,FALSE),"") ->  | L56: =IFERROR(VLOOKUP(J56,'اسماء العملاء'!$A$2:$C$142,2,FALSE),"") ->  | M56: =IFERROR(VLOOKUP(J56,'اسماء العملاء'!$A$2:$C$142,3,FALSE),"") -> 
C57: =IF(B57="","",SUMIF('الرصيد الثابت'!$A$2:$A$52,B57,'الرصيد الثابت'!$B$2:$B$52)) ->  | D57: =IF(B57="","",SUMIF('الرصيد الثابت'!$A$2:$A$52,B57,'الرصيد الثابت'!$C$2:$C$52)) ->  | G57: 0 | K57: =IFERROR(VLOOKUP(J57,'اسماء العملاء'!$A$2:$E$142,5,FALSE),"") ->  | L57: =IFERROR(VLOOKUP(J57,'اسماء العملاء'!$A$2:$C$142,2,FALSE),"") ->  | M57: =IFERROR(VLOOKUP(J57,'اسماء العملاء'!$A$2:$C$142,3,FALSE),"") -> 
C58: =IF(B58="","",SUMIF('الرصيد الثابت'!$A$2:$A$52,B58,'الرصيد الثابت'!$B$2:$B$52)) ->  | D58: =IF(B58="","",SUMIF('الرصيد الثابت'!$A$2:$A$52,B58,'الرصيد الثابت'!$C$2:$C$52)) ->  | G58: 0 | K58: =IFERROR(VLOOKUP(J58,'اسماء العملاء'!$A$2:$E$142,5,FALSE),"") ->  | L58: =IFERROR(VLOOKUP(J58,'اسماء العملاء'!$A$2:$C$142,2,FALSE),"") ->  | M58: =IFERROR(VLOOKUP(J58,'اسماء العملاء'!$A$2:$C$142,3,FALSE),"") -> 
C59: =IF(B59="","",SUMIF('الرصيد الثابت'!$A$2:$A$52,B59,'الرصيد الثابت'!$B$2:$B$52)) ->  | D59: =IF(B59="","",SUMIF('الرصيد الثابت'!$A$2:$A$52,B59,'الرصيد الثابت'!$C$2:$C$52)) ->  | G59: 0 | K59: =IFERROR(VLOOKUP(J59,'اسماء العملاء'!$A$2:$E$142,5,FALSE),"") ->  | L59: =IFERROR(VLOOKUP(J59,'اسماء العملاء'!$A$2:$C$142,2,FALSE),"") ->  | M59: =IFERROR(VLOOKUP(J59,'اسماء العملاء'!$A$2:$C$142,3,FALSE),"") -> 
C60: =IF(B60="","",SUMIF('الرصيد الثابت'!$A$2:$A$52,B60,'الرصيد الثابت'!$B$2:$B$52)) ->  | D60: =IF(B60="","",SUMIF('الرصيد الثابت'!$A$2:$A$52,B60,'الرصيد الثابت'!$C$2:$C$52)) ->  | G60: 0 | K60: =IFERROR(VLOOKUP(J60,'اسماء العملاء'!$A$2:$E$142,5,FALSE),"") ->  | L60: =IFERROR(VLOOKUP(J60,'اسماء العملاء'!$A$2:$C$142,2,FALSE),"") ->  | M60: =IFERROR(VLOOKUP(J60,'اسماء العملاء'!$A$2:$C$142,3,FALSE),"") -> 
C61: =IF(B61="","",SUMIF('الرصيد الثابت'!$A$2:$A$52,B61,'الرصيد الثابت'!$B$2:$B$52)) ->  | D61: =IF(B61="","",SUMIF('الرصيد الثابت'!$A$2:$A$52,B61,'الرصيد الثابت'!$C$2:$C$52)) ->  | G61: 0 | K61: =IFERROR(VLOOKUP(J61,'اسماء العملاء'!$A$2:$E$142,5,FALSE),"") ->  | L61: =IFERROR(VLOOKUP(J61,'اسماء العملاء'!$A$2:$C$142,2,FALSE),"") ->  | M61: =IFERROR(VLOOKUP(J61,'اسماء العملاء'!$A$2:$C$142,3,FALSE),"") -> 
C62: =IF(B62="","",SUMIF('الرصيد الثابت'!$A$2:$A$52,B62,'الرصيد الثابت'!$B$2:$B$52)) ->  | D62: =IF(B62="","",SUMIF('الرصيد الثابت'!$A$2:$A$52,B62,'الرصيد الثابت'!$C$2:$C$52)) ->  | G62: 0 | K62: =IFERROR(VLOOKUP(J62,'اسماء العملاء'!$A$2:$E$142,5,FALSE),"") ->  | L62: =IFERROR(VLOOKUP(J62,'اسماء العملاء'!$A$2:$C$142,2,FALSE),"") ->  | M62: =IFERROR(VLOOKUP(J62,'اسماء العملاء'!$A$2:$C$142,3,FALSE),"") -> 
C63: =IF(B63="","",SUMIF('الرصيد الثابت'!$A$2:$A$52,B63,'الرصيد الثابت'!$B$2:$B$52)) ->  | D63: =IF(B63="","",SUMIF('الرصيد الثابت'!$A$2:$A$52,B63,'الرصيد الثابت'!$C$2:$C$52)) ->  | G63: 0 | K63: =IFERROR(VLOOKUP(J63,'اسماء العملاء'!$A$2:$E$142,5,FALSE),"") ->  | L63: =IFERROR(VLOOKUP(J63,'اسماء العملاء'!$A$2:$C$142,2,FALSE),"") ->  | M63: =IFERROR(VLOOKUP(J63,'اسماء العملاء'!$A$2:$C$142,3,FALSE),"") -> 
C64: =IF(B64="","",SUMIF('الرصيد الثابت'!$A$2:$A$52,B64,'الرصيد الثابت'!$B$2:$B$52)) ->  | D64: =IF(B64="","",SUMIF('الرصيد الثابت'!$A$2:$A$52,B64,'الرصيد الثابت'!$C$2:$C$52)) ->  | G64: 0 | K64: =IFERROR(VLOOKUP(J64,'اسماء العملاء'!$A$2:$E$142,5,FALSE),"") ->  | L64: =IFERROR(VLOOKUP(J64,'اسماء العملاء'!$A$2:$C$142,2,FALSE),"") ->  | M64: =IFERROR(VLOOKUP(J64,'اسماء العملاء'!$A$2:$C$142,3,FALSE),"") -> 
C65: =IF(B65="","",SUMIF('الرصيد الثابت'!$A$2:$A$52,B65,'الرصيد الثابت'!$B$2:$B$52)) ->  | D65: =IF(B65="","",SUMIF('الرصيد الثابت'!$A$2:$A$52,B65,'الرصيد الثابت'!$C$2:$C$52)) ->  | G65: 0 | K65: =IFERROR(VLOOKUP(J65,'اسماء العملاء'!$A$2:$E$142,5,FALSE),"") ->  | L65: =IFERROR(VLOOKUP(J65,'اسماء العملاء'!$A$2:$C$142,2,FALSE),"") ->  | M65: =IFERROR(VLOOKUP(J65,'اسماء العملاء'!$A$2:$C$142,3,FALSE),"") -> 
C66: =IF(B66="","",SUMIF('الرصيد الثابت'!$A$2:$A$52,B66,'الرصيد الثابت'!$B$2:$B$52)) ->  | D66: =IF(B66="","",SUMIF('الرصيد الثابت'!$A$2:$A$52,B66,'الرصيد الثابت'!$C$2:$C$52)) ->  | G66: 0 | K66: =IFERROR(VLOOKUP(J66,'اسماء العملاء'!$A$2:$E$142,5,FALSE),"") ->  | L66: =IFERROR(VLOOKUP(J66,'اسماء العملاء'!$A$2:$C$142,2,FALSE),"") ->  | M66: =IFERROR(VLOOKUP(J66,'اسماء العملاء'!$A$2:$C$142,3,FALSE),"") -> 
C67: =IF(B67="","",SUMIF('الرصيد الثابت'!$A$2:$A$52,B67,'الرصيد الثابت'!$B$2:$B$52)) ->  | D67: =IF(B67="","",SUMIF('الرصيد الثابت'!$A$2:$A$52,B67,'الرصيد الثابت'!$C$2:$C$52)) ->  | G67: 0 | K67: =IFERROR(VLOOKUP(J67,'اسماء العملاء'!$A$2:$E$142,5,FALSE),"") ->  | L67: =IFERROR(VLOOKUP(J67,'اسماء العملاء'!$A$2:$C$142,2,FALSE),"") ->  | M67: =IFERROR(VLOOKUP(J67,'اسماء العملاء'!$A$2:$C$142,3,FALSE),"") -> 
A68: =IF(B68="","",TODAY()) ->  | C68: =IF(B68="","",SUMIF('الرصيد الثابت'!$A$2:$A$52,B68,'الرصيد الثابت'!$B$2:$B$52)) ->  | D68: =IF(B68="","",SUMIF('الرصيد الثابت'!$A$2:$A$52,B68,'الرصيد الثابت'!$C$2:$C$52)) ->  | G68: =SUM(E68-F68) -> 0 | K68: =IFERROR(VLOOKUP(J68,'اسماء العملاء'!$A$2:$E$142,5,FALSE),"") ->  | L68: =IFERROR(VLOOKUP(J68,'اسماء العملاء'!$A$2:$C$142,2,FALSE),"") ->  | M68: =IFERROR(VLOOKUP(J68,'اسماء العملاء'!$A$2:$C$142,3,FALSE),"") -> 
C69: =IF(B69="","",SUMIF('الرصيد الثابت'!$A$2:$A$52,B69,'الرصيد الثابت'!$B$2:$B$52)) ->  | D69: =IF(B69="","",SUMIF('الرصيد الثابت'!$A$2:$A$52,B69,'الرصيد الثابت'!$C$2:$C$52)) ->  | G69: 0 | K69: =IFERROR(VLOOKUP(J69,'اسماء العملاء'!$A$2:$E$142,5,FALSE),"") ->  | L69: =IFERROR(VLOOKUP(J69,'اسماء العملاء'!$A$2:$C$142,2,FALSE),"") ->  | M69: =IFERROR(VLOOKUP(J69,'اسماء العملاء'!$A$2:$C$142,3,FALSE),"") -> 
C70: =IF(B70="","",SUMIF('الرصيد الثابت'!$A$2:$A$52,B70,'الرصيد الثابت'!$B$2:$B$52)) ->  | D70: =IF(B70="","",SUMIF('الرصيد الثابت'!$A$2:$A$52,B70,'الرصيد الثابت'!$C$2:$C$52)) ->  | G70: 0 | K70: =IFERROR(VLOOKUP(J70,'اسماء العملاء'!$A$2:$E$142,5,FALSE),"") ->  | L70: =IFERROR(VLOOKUP(J70,'اسماء العملاء'!$A$2:$C$142,2,FALSE),"") ->  | M70: =IFERROR(VLOOKUP(J70,'اسماء العملاء'!$A$2:$C$142,3,FALSE),"") -> 
C71: =IF(B71="","",SUMIF('الرصيد الثابت'!$A$2:$A$52,B71,'الرصيد الثابت'!$B$2:$B$52)) ->  | D71: =IF(B71="","",SUMIF('الرصيد الثابت'!$A$2:$A$52,B71,'الرصيد الثابت'!$C$2:$C$52)) ->  | G71: 0 | K71: =IFERROR(VLOOKUP(J71,'اسماء العملاء'!$A$2:$E$142,5,FALSE),"") ->  | L71: =IFERROR(VLOOKUP(J71,'اسماء العملاء'!$A$2:$C$142,2,FALSE),"") ->  | M71: =IFERROR(VLOOKUP(J71,'اسماء العملاء'!$A$2:$C$142,3,FALSE),"") -> 
C72: =IF(B72="","",SUMIF('الرصيد الثابت'!$A$2:$A$52,B72,'الرصيد الثابت'!$B$2:$B$52)) ->  | D72: =IF(B72="","",SUMIF('الرصيد الثابت'!$A$2:$A$52,B72,'الرصيد الثابت'!$C$2:$C$52)) ->  | G72: 0 | K72: =IFERROR(VLOOKUP(J72,'اسماء العملاء'!$A$2:$E$142,5,FALSE),"") ->  | L72: =IFERROR(VLOOKUP(J72,'اسماء العملاء'!$A$2:$C$142,2,FALSE),"") ->  | M72: =IFERROR(VLOOKUP(J72,'اسماء العملاء'!$A$2:$C$142,3,FALSE),"") -> 
C73: =IF(B73="","",SUMIF('الرصيد الثابت'!$A$2:$A$52,B73,'الرصيد الثابت'!$B$2:$B$52)) ->  | D73: =IF(B73="","",SUMIF('الرصيد الثابت'!$A$2:$A$52,B73,'الرصيد الثابت'!$C$2:$C$52)) ->  | G73: 0 | K73: =IFERROR(VLOOKUP(J73,'اسماء العملاء'!$A$2:$E$142,5,FALSE),"") ->  | L73: =IFERROR(VLOOKUP(J73,'اسماء العملاء'!$A$2:$C$142,2,FALSE),"") ->  | M73: =IFERROR(VLOOKUP(J73,'اسماء العملاء'!$A$2:$C$142,3,FALSE),"") -> 
C74: =IF(B74="","",SUMIF('الرصيد الثابت'!$A$2:$A$52,B74,'الرصيد الثابت'!$B$2:$B$52)) ->  | D74: =IF(B74="","",SUMIF('الرصيد الثابت'!$A$2:$A$52,B74,'الرصيد الثابت'!$C$2:$C$52)) ->  | G74: 0 | K74: =IFERROR(VLOOKUP(J74,'اسماء العملاء'!$A$2:$E$142,5,FALSE),"") ->  | L74: =IFERROR(VLOOKUP(J74,'اسماء العملاء'!$A$2:$C$142,2,FALSE),"") ->  | M74: =IFERROR(VLOOKUP(J74,'اسماء العملاء'!$A$2:$C$142,3,FALSE),"") -> 
C75: =IF(B75="","",SUMIF('الرصيد الثابت'!$A$2:$A$52,B75,'الرصيد الثابت'!$B$2:$B$52)) ->  | D75: =IF(B75="","",SUMIF('الرصيد الثابت'!$A$2:$A$52,B75,'الرصيد الثابت'!$C$2:$C$52)) ->  | G75: 0 | K75: =IFERROR(VLOOKUP(J75,'اسماء العملاء'!$A$2:$E$142,5,FALSE),"") ->  | L75: =IFERROR(VLOOKUP(J75,'اسماء العملاء'!$A$2:$C$142,2,FALSE),"") ->  | M75: =IFERROR(VLOOKUP(J75,'اسماء العملاء'!$A$2:$C$142,3,FALSE),"") -> 
C76: =IF(B76="","",SUMIF('الرصيد الثابت'!$A$2:$A$52,B76,'الرصيد الثابت'!$B$2:$B$52)) ->  | D76: =IF(B76="","",SUMIF('الرصيد الثابت'!$A$2:$A$52,B76,'الرصيد الثابت'!$C$2:$C$52)) ->  | G76: 0 | K76: =IFERROR(VLOOKUP(J76,'اسماء العملاء'!$A$2:$E$142,5,FALSE),"") ->  | L76: =IFERROR(VLOOKUP(J76,'اسماء العملاء'!$A$2:$C$142,2,FALSE),"") ->  | M76: =IFERROR(VLOOKUP(J76,'اسماء العملاء'!$A$2:$C$142,3,FALSE),"") -> 
C77: =IF(B77="","",SUMIF('الرصيد الثابت'!$A$2:$A$52,B77,'الرصيد الثابت'!$B$2:$B$52)) ->  | D77: =IF(B77="","",SUMIF('الرصيد الثابت'!$A$2:$A$52,B77,'الرصيد الثابت'!$C$2:$C$52)) ->  | G77: 0 | K77: =IFERROR(VLOOKUP(J77,'اسماء العملاء'!$A$2:$E$142,5,FALSE),"") ->  | L77: =IFERROR(VLOOKUP(J77,'اسماء العملاء'!$A$2:$C$142,2,FALSE),"") ->  | M77: =IFERROR(VLOOKUP(J77,'اسماء العملاء'!$A$2:$C$142,3,FALSE),"") -> 
C78: =IF(B78="","",SUMIF('الرصيد الثابت'!$A$2:$A$52,B78,'الرصيد الثابت'!$B$2:$B$52)) ->  | D78: =IF(B78="","",SUMIF('الرصيد الثابت'!$A$2:$A$52,B78,'الرصيد الثابت'!$C$2:$C$52)) ->  | G78: 0 | K78: =IFERROR(VLOOKUP(J78,'اسماء العملاء'!$A$2:$E$142,5,FALSE),"") ->  | L78: =IFERROR(VLOOKUP(J78,'اسماء العملاء'!$A$2:$C$142,2,FALSE),"") ->  | M78: =IFERROR(VLOOKUP(J78,'اسماء العملاء'!$A$2:$C$142,3,FALSE),"") -> 
C79: =IF(B79="","",SUMIF('الرصيد الثابت'!$A$2:$A$52,B79,'الرصيد الثابت'!$B$2:$B$52)) ->  | D79: =IF(B79="","",SUMIF('الرصيد الثابت'!$A$2:$A$52,B79,'الرصيد الثابت'!$C$2:$C$52)) ->  | G79: 0 | K79: =IFERROR(VLOOKUP(J79,'اسماء العملاء'!$A$2:$E$142,5,FALSE),"") ->  | L79: =IFERROR(VLOOKUP(J79,'اسماء العملاء'!$A$2:$C$142,2,FALSE),"") ->  | M79: =IFERROR(VLOOKUP(J79,'اسماء العملاء'!$A$2:$C$142,3,FALSE),"") -> 
C80: =IF(B80="","",SUMIF('الرصيد الثابت'!$A$2:$A$52,B80,'الرصيد الثابت'!$B$2:$B$52)) ->  | D80: =IF(B80="","",SUMIF('الرصيد الثابت'!$A$2:$A$52,B80,'الرصيد الثابت'!$C$2:$C$52)) ->  | G80: 0 | K80: =IFERROR(VLOOKUP(J80,'اسماء العملاء'!$A$2:$E$142,5,FALSE),"") ->  | L80: =IFERROR(VLOOKUP(J80,'اسماء العملاء'!$A$2:$C$142,2,FALSE),"") ->  | M80: =IFERROR(VLOOKUP(J80,'اسماء العملاء'!$A$2:$C$142,3,FALSE),"") -> 
C81: =IF(B81="","",SUMIF('الرصيد الثابت'!$A$2:$A$52,B81,'الرصيد الثابت'!$B$2:$B$52)) ->  | D81: =IF(B81="","",SUMIF('الرصيد الثابت'!$A$2:$A$52,B81,'الرصيد الثابت'!$C$2:$C$52)) ->  | G81: 0 | K81: =IFERROR(VLOOKUP(J81,'اسماء العملاء'!$A$2:$E$142,5,FALSE),"") ->  | L81: =IFERROR(VLOOKUP(J81,'اسماء العملاء'!$A$2:$C$142,2,FALSE),"") ->  | M81: =IFERROR(VLOOKUP(J81,'اسماء العملاء'!$A$2:$C$142,3,FALSE),"") -> 
C82: =IF(B82="","",SUMIF('الرصيد الثابت'!$A$2:$A$52,B82,'الرصيد الثابت'!$B$2:$B$52)) ->  | D82: =IF(B82="","",SUMIF('الرصيد الثابت'!$A$2:$A$52,B82,'الرصيد الثابت'!$C$2:$C$52)) ->  | G82: 0 | K82: =IFERROR(VLOOKUP(J82,'اسماء العملاء'!$A$2:$E$142,5,FALSE),"") ->  | L82: =IFERROR(VLOOKUP(J82,'اسماء العملاء'!$A$2:$C$142,2,FALSE),"") ->  | M82: =IFERROR(VLOOKUP(J82,'اسماء العملاء'!$A$2:$C$142,3,FALSE),"") -> 
C83: =IF(B83="","",SUMIF('الرصيد الثابت'!$A$2:$A$52,B83,'الرصيد الثابت'!$B$2:$B$52)) ->  | D83: =IF(B83="","",SUMIF('الرصيد الثابت'!$A$2:$A$52,B83,'الرصيد الثابت'!$C$2:$C$52)) ->  | G83: 0 | K83: =IFERROR(VLOOKUP(J83,'اسماء العملاء'!$A$2:$E$142,5,FALSE),"") ->  | L83: =IFERROR(VLOOKUP(J83,'اسماء العملاء'!$A$2:$C$142,2,FALSE),"") ->  | M83: =IFERROR(VLOOKUP(J83,'اسماء العملاء'!$A$2:$C$142,3,FALSE),"") -> 
C84: =IF(B84="","",SUMIF('الرصيد الثابت'!$A$2:$A$52,B84,'الرصيد الثابت'!$B$2:$B$52)) ->  | D84: =IF(B84="","",SUMIF('الرصيد الثابت'!$A$2:$A$52,B84,'الرصيد الثابت'!$C$2:$C$52)) ->  | G84: 0 | K84: =IFERROR(VLOOKUP(J84,'اسماء العملاء'!$A$2:$E$142,5,FALSE),"") ->  | L84: =IFERROR(VLOOKUP(J84,'اسماء العملاء'!$A$2:$C$142,2,FALSE),"") ->  | M84: =IFERROR(VLOOKUP(J84,'اسماء العملاء'!$A$2:$C$142,3,FALSE),"") -> 
C85: =IF(B85="","",SUMIF('الرصيد الثابت'!$A$2:$A$52,B85,'الرصيد الثابت'!$B$2:$B$52)) ->  | D85: =IF(B85="","",SUMIF('الرصيد الثابت'!$A$2:$A$52,B85,'الرصيد الثابت'!$C$2:$C$52)) ->  | G85: 0 | K85: =IFERROR(VLOOKUP(J85,'اسماء العملاء'!$A$2:$E$142,5,FALSE),"") ->  | L85: =IFERROR(VLOOKUP(J85,'اسماء العملاء'!$A$2:$C$142,2,FALSE),"") ->  | M85: =IFERROR(VLOOKUP(J85,'اسماء العملاء'!$A$2:$C$142,3,FALSE),"") -> 
C86: =IF(B86="","",SUMIF('الرصيد الثابت'!$A$2:$A$52,B86,'الرصيد الثابت'!$B$2:$B$52)) ->  | D86: =IF(B86="","",SUMIF('الرصيد الثابت'!$A$2:$A$52,B86,'الرصيد الثابت'!$C$2:$C$52)) ->  | G86: 0 | K86: =IFERROR(VLOOKUP(J86,'اسماء العملاء'!$A$2:$E$142,5,FALSE),"") ->  | L86: =IFERROR(VLOOKUP(J86,'اسماء العملاء'!$A$2:$C$142,2,FALSE),"") ->  | M86: =IFERROR(VLOOKUP(J86,'اسماء العملاء'!$A$2:$C$142,3,FALSE),"") -> 
C87: =IF(B87="","",SUMIF('الرصيد الثابت'!$A$2:$A$52,B87,'الرصيد الثابت'!$B$2:$B$52)) ->  | D87: =IF(B87="","",SUMIF('الرصيد الثابت'!$A$2:$A$52,B87,'الرصيد الثابت'!$C$2:$C$52)) ->  | G87: 0 | K87: =IFERROR(VLOOKUP(J87,'اسماء العملاء'!$A$2:$E$142,5,FALSE),"") ->  | L87: =IFERROR(VLOOKUP(J87,'اسماء العملاء'!$A$2:$C$142,2,FALSE),"") ->  | M87: =IFERROR(VLOOKUP(J87,'اسماء العملاء'!$A$2:$C$142,3,FALSE),"") -> 
C88: =IF(B88="","",SUMIF('الرصيد الثابت'!$A$2:$A$52,B88,'الرصيد الثابت'!$B$2:$B$52)) ->  | D88: =IF(B88="","",SUMIF('الرصيد الثابت'!$A$2:$A$52,B88,'الرصيد الثابت'!$C$2:$C$52)) ->  | G88: 0 | K88: =IFERROR(VLOOKUP(J88,'اسماء العملاء'!$A$2:$E$142,5,FALSE),"") ->  | L88: =IFERROR(VLOOKUP(J88,'اسماء العملاء'!$A$2:$C$142,2,FALSE),"") ->  | M88: =IFERROR(VLOOKUP(J88,'اسماء العملاء'!$A$2:$C$142,3,FALSE),"") -> 
C89: =IF(B89="","",SUMIF('الرصيد الثابت'!$A$2:$A$52,B89,'الرصيد الثابت'!$B$2:$B$52)) ->  | D89: =IF(B89="","",SUMIF('الرصيد الثابت'!$A$2:$A$52,B89,'الرصيد الثابت'!$C$2:$C$52)) ->  | G89: 0 | K89: =IFERROR(VLOOKUP(J89,'اسماء العملاء'!$A$2:$E$142,5,FALSE),"") ->  | L89: =IFERROR(VLOOKUP(J89,'اسماء العملاء'!$A$2:$C$142,2,FALSE),"") ->  | M89: =IFERROR(VLOOKUP(J89,'اسماء العملاء'!$A$2:$C$142,3,FALSE),"") -> 
C90: =IF(B90="","",SUMIF('الرصيد الثابت'!$A$2:$A$52,B90,'الرصيد الثابت'!$B$2:$B$52)) ->  | D90: =IF(B90="","",SUMIF('الرصيد الثابت'!$A$2:$A$52,B90,'الرصيد الثابت'!$C$2:$C$52)) ->  | G90: 0 | K90: =IFERROR(VLOOKUP(J90,'اسماء العملاء'!$A$2:$E$142,5,FALSE),"") ->  | L90: =IFERROR(VLOOKUP(J90,'اسماء العملاء'!$A$2:$C$142,2,FALSE),"") ->  | M90: =IFERROR(VLOOKUP(J90,'اسماء العملاء'!$A$2:$C$142,3,FALSE),"") -> 
C91: =IF(B91="","",SUMIF('الرصيد الثابت'!$A$2:$A$52,B91,'الرصيد الثابت'!$B$2:$B$52)) ->  | D91: =IF(B91="","",SUMIF('الرصيد الثابت'!$A$2:$A$52,B91,'الرصيد الثابت'!$C$2:$C$52)) ->  | G91: 0 | K91: =IFERROR(VLOOKUP(J91,'اسماء العملاء'!$A$2:$E$142,5,FALSE),"") ->  | L91: =IFERROR(VLOOKUP(J91,'اسماء العملاء'!$A$2:$C$142,2,FALSE),"") ->  | M91: =IFERROR(VLOOKUP(J91,'اسماء العملاء'!$A$2:$C$142,3,FALSE),"") -> 
C92: =IF(B92="","",SUMIF('الرصيد الثابت'!$A$2:$A$52,B92,'الرصيد الثابت'!$B$2:$B$52)) ->  | D92: =IF(B92="","",SUMIF('الرصيد الثابت'!$A$2:$A$52,B92,'الرصيد الثابت'!$C$2:$C$52)) ->  | G92: 0 | K92: =IFERROR(VLOOKUP(J92,'اسماء العملاء'!$A$2:$E$142,5,FALSE),"") ->  | L92: =IFERROR(VLOOKUP(J92,'اسماء العملاء'!$A$2:$C$142,2,FALSE),"") ->  | M92: =IFERROR(VLOOKUP(J92,'اسماء العملاء'!$A$2:$C$142,3,FALSE),"") -> 
C93: =IF(B93="","",SUMIF('الرصيد الثابت'!$A$2:$A$52,B93,'الرصيد الثابت'!$B$2:$B$52)) ->  | D93: =IF(B93="","",SUMIF('الرصيد الثابت'!$A$2:$A$52,B93,'الرصيد الثابت'!$C$2:$C$52)) ->  | G93: 0 | K93: =IFERROR(VLOOKUP(J93,'اسماء العملاء'!$A$2:$E$142,5,FALSE),"") ->  | L93: =IFERROR(VLOOKUP(J93,'اسماء العملاء'!$A$2:$C$142,2,FALSE),"") ->  | M93: =IFERROR(VLOOKUP(J93,'اسماء العملاء'!$A$2:$C$142,3,FALSE),"") -> 
C94: =IF(B94="","",SUMIF('الرصيد الثابت'!$A$2:$A$52,B94,'الرصيد الثابت'!$B$2:$B$52)) ->  | D94: =IF(B94="","",SUMIF('الرصيد الثابت'!$A$2:$A$52,B94,'الرصيد الثابت'!$C$2:$C$52)) ->  | G94: 0 | K94: =IFERROR(VLOOKUP(J94,'اسماء العملاء'!$A$2:$E$142,5,FALSE),"") ->  | L94: =IFERROR(VLOOKUP(J94,'اسماء العملاء'!$A$2:$C$142,2,FALSE),"") ->  | M94: =IFERROR(VLOOKUP(J94,'اسماء العملاء'!$A$2:$C$142,3,FALSE),"") -> 
C95: =IF(B95="","",SUMIF('الرصيد الثابت'!$A$2:$A$52,B95,'الرصيد الثابت'!$B$2:$B$52)) ->  | D95: =IF(B95="","",SUMIF('الرصيد الثابت'!$A$2:$A$52,B95,'الرصيد الثابت'!$C$2:$C$52)) ->  | G95: 0 | K95: =IFERROR(VLOOKUP(J95,'اسماء العملاء'!$A$2:$E$142,5,FALSE),"") ->  | L95: =IFERROR(VLOOKUP(J95,'اسماء العملاء'!$A$2:$C$142,2,FALSE),"") ->  | M95: =IFERROR(VLOOKUP(J95,'اسماء العملاء'!$A$2:$C$142,3,FALSE),"") -> 
C96: =IF(B96="","",SUMIF('الرصيد الثابت'!$A$2:$A$52,B96,'الرصيد الثابت'!$B$2:$B$52)) ->  | D96: =IF(B96="","",SUMIF('الرصيد الثابت'!$A$2:$A$52,B96,'الرصيد الثابت'!$C$2:$C$52)) ->  | G96: 0 | K96: =IFERROR(VLOOKUP(J96,'اسماء العملاء'!$A$2:$E$142,5,FALSE),"") ->  | L96: =IFERROR(VLOOKUP(J96,'اسماء العملاء'!$A$2:$C$142,2,FALSE),"") ->  | M96: =IFERROR(VLOOKUP(J96,'اسماء العملاء'!$A$2:$C$142,3,FALSE),"") -> 
C97: =IF(B97="","",SUMIF('الرصيد الثابت'!$A$2:$A$52,B97,'الرصيد الثابت'!$B$2:$B$52)) ->  | D97: =IF(B97="","",SUMIF('الرصيد الثابت'!$A$2:$A$52,B97,'الرصيد الثابت'!$C$2:$C$52)) ->  | G97: 0 | K97: =IFERROR(VLOOKUP(J97,'اسماء العملاء'!$A$2:$E$142,5,FALSE),"") ->  | L97: =IFERROR(VLOOKUP(J97,'اسماء العملاء'!$A$2:$C$142,2,FALSE),"") ->  | M97: =IFERROR(VLOOKUP(J97,'اسماء العملاء'!$A$2:$C$142,3,FALSE),"") -> 
C98: =IF(B98="","",SUMIF('الرصيد الثابت'!$A$2:$A$52,B98,'الرصيد الثابت'!$B$2:$B$52)) ->  | D98: =IF(B98="","",SUMIF('الرصيد الثابت'!$A$2:$A$52,B98,'الرصيد الثابت'!$C$2:$C$52)) ->  | G98: 0 | K98: =IFERROR(VLOOKUP(J98,'اسماء العملاء'!$A$2:$E$142,5,FALSE),"") ->  | L98: =IFERROR(VLOOKUP(J98,'اسماء العملاء'!$A$2:$C$142,2,FALSE),"") ->  | M98: =IFERROR(VLOOKUP(J98,'اسماء العملاء'!$A$2:$C$142,3,FALSE),"") -> 
C99: =IF(B99="","",SUMIF('الرصيد الثابت'!$A$2:$A$52,B99,'الرصيد الثابت'!$B$2:$B$52)) ->  | D99: =IF(B99="","",SUMIF('الرصيد الثابت'!$A$2:$A$52,B99,'الرصيد الثابت'!$C$2:$C$52)) ->  | G99: 0 | K99: =IFERROR(VLOOKUP(J99,'اسماء العملاء'!$A$2:$E$142,5,FALSE),"") ->  | L99: =IFERROR(VLOOKUP(J99,'اسماء العملاء'!$A$2:$C$142,2,FALSE),"") ->  | M99: =IFERROR(VLOOKUP(J99,'اسماء العملاء'!$A$2:$C$142,3,FALSE),"") -> 
C100: =IF(B100="","",SUMIF('الرصيد الثابت'!$A$2:$A$52,B100,'الرصيد الثابت'!$B$2:$B$52)) ->  | D100: =IF(B100="","",SUMIF('الرصيد الثابت'!$A$2:$A$52,B100,'الرصيد الثابت'!$C$2:$C$52)) ->  | G100: 0 | K100: =IFERROR(VLOOKUP(J100,'اسماء العملاء'!$A$2:$E$142,5,FALSE),"") ->  | L100: =IFERROR(VLOOKUP(J100,'اسماء العملاء'!$A$2:$C$142,2,FALSE),"") ->  | M100: =IFERROR(VLOOKUP(J100,'اسماء العملاء'!$A$2:$C$142,3,FALSE),"") -> 
C101: =IF(B101="","",SUMIF('الرصيد الثابت'!$A$2:$A$52,B101,'الرصيد الثابت'!$B$2:$B$52)) ->  | D101: =IF(B101="","",SUMIF('الرصيد الثابت'!$A$2:$A$52,B101,'الرصيد الثابت'!$C$2:$C$52)) ->  | G101: 0 | K101: =IFERROR(VLOOKUP(J101,'اسماء العملاء'!$A$2:$E$142,5,FALSE),"") ->  | L101: =IFERROR(VLOOKUP(J101,'اسماء العملاء'!$A$2:$C$142,2,FALSE),"") ->  | M101: =IFERROR(VLOOKUP(J101,'اسماء العملاء'!$A$2:$C$142,3,FALSE),"") -> 
C102: =IF(B102="","",SUMIF('الرصيد الثابت'!$A$2:$A$52,B102,'الرصيد الثابت'!$B$2:$B$52)) ->  | D102: =IF(B102="","",SUMIF('الرصيد الثابت'!$A$2:$A$52,B102,'الرصيد الثابت'!$C$2:$C$52)) ->  | G102: 0 | K102: =IFERROR(VLOOKUP(J102,'اسماء العملاء'!$A$2:$E$142,5,FALSE),"") ->  | L102: =IFERROR(VLOOKUP(J102,'اسماء العملاء'!$A$2:$C$142,2,FALSE),"") ->  | M102: =IFERROR(VLOOKUP(J102,'اسماء العملاء'!$A$2:$C$142,3,FALSE),"") -> 
C103: =IF(B103="","",SUMIF('الرصيد الثابت'!$A$2:$A$52,B103,'الرصيد الثابت'!$B$2:$B$52)) ->  | D103: =IF(B103="","",SUMIF('الرصيد الثابت'!$A$2:$A$52,B103,'الرصيد الثابت'!$C$2:$C$52)) ->  | G103: 0 | K103: =IFERROR(VLOOKUP(J103,'اسماء العملاء'!$A$2:$E$142,5,FALSE),"") ->  | L103: =IFERROR(VLOOKUP(J103,'اسماء العملاء'!$A$2:$C$142,2,FALSE),"") ->  | M103: =IFERROR(VLOOKUP(J103,'اسماء العملاء'!$A$2:$C$142,3,FALSE),"") -> 
C104: =IF(B104="","",SUMIF('الرصيد الثابت'!$A$2:$A$52,B104,'الرصيد الثابت'!$B$2:$B$52)) ->  | D104: =IF(B104="","",SUMIF('الرصيد الثابت'!$A$2:$A$52,B104,'الرصيد الثابت'!$C$2:$C$52)) ->  | G104: 0 | K104: =IFERROR(VLOOKUP(J104,'اسماء العملاء'!$A$2:$E$142,5,FALSE),"") ->  | L104: =IFERROR(VLOOKUP(J104,'اسماء العملاء'!$A$2:$C$142,2,FALSE),"") ->  | M104: =IFERROR(VLOOKUP(J104,'اسماء العملاء'!$A$2:$C$142,3,FALSE),"") -> 
C105: =IF(B105="","",SUMIF('الرصيد الثابت'!$A$2:$A$52,B105,'الرصيد الثابت'!$B$2:$B$52)) ->  | D105: =IF(B105="","",SUMIF('الرصيد الثابت'!$A$2:$A$52,B105,'الرصيد الثابت'!$C$2:$C$52)) ->  | G105: 0 | K105: =IFERROR(VLOOKUP(J105,'اسماء العملاء'!$A$2:$E$142,5,FALSE),"") ->  | L105: =IFERROR(VLOOKUP(J105,'اسماء العملاء'!$A$2:$C$142,2,FALSE),"") ->  | M105: =IFERROR(VLOOKUP(J105,'اسماء العملاء'!$A$2:$C$142,3,FALSE),"") -> 
C106: =IF(B106="","",SUMIF('الرصيد الثابت'!$A$2:$A$52,B106,'الرصيد الثابت'!$B$2:$B$52)) ->  | D106: =IF(B106="","",SUMIF('الرصيد الثابت'!$A$2:$A$52,B106,'الرصيد الثابت'!$C$2:$C$52)) ->  | G106: 0 | K106: =IFERROR(VLOOKUP(J106,'اسماء العملاء'!$A$2:$E$142,5,FALSE),"") ->  | L106: =IFERROR(VLOOKUP(J106,'اسماء العملاء'!$A$2:$C$142,2,FALSE),"") ->  | M106: =IFERROR(VLOOKUP(J106,'اسماء العملاء'!$A$2:$C$142,3,FALSE),"") -> 
C107: =IF(B107="","",SUMIF('الرصيد الثابت'!$A$2:$A$52,B107,'الرصيد الثابت'!$B$2:$B$52)) ->  | D107: =IF(B107="","",SUMIF('الرصيد الثابت'!$A$2:$A$52,B107,'الرصيد الثابت'!$C$2:$C$52)) ->  | G107: 0 | K107: =IFERROR(VLOOKUP(J107,'اسماء العملاء'!$A$2:$E$142,5,FALSE),"") ->  | L107: =IFERROR(VLOOKUP(J107,'اسماء العملاء'!$A$2:$C$142,2,FALSE),"") ->  | M107: =IFERROR(VLOOKUP(J107,'اسماء العملاء'!$A$2:$C$142,3,FALSE),"") -> 
C108: =IF(B108="","",SUMIF('الرصيد الثابت'!$A$2:$A$52,B108,'الرصيد الثابت'!$B$2:$B$52)) ->  | D108: =IF(B108="","",SUMIF('الرصيد الثابت'!$A$2:$A$52,B108,'الرصيد الثابت'!$C$2:$C$52)) ->  | G108: 0 | K108: =IFERROR(VLOOKUP(J108,'اسماء العملاء'!$A$2:$E$142,5,FALSE),"") ->  | L108: =IFERROR(VLOOKUP(J108,'اسماء العملاء'!$A$2:$C$142,2,FALSE),"") ->  | M108: =IFERROR(VLOOKUP(J108,'اسماء العملاء'!$A$2:$C$142,3,FALSE),"") -> 
C109: =IF(B109="","",SUMIF('الرصيد الثابت'!$A$2:$A$52,B109,'الرصيد الثابت'!$B$2:$B$52)) ->  | D109: =IF(B109="","",SUMIF('الرصيد الثابت'!$A$2:$A$52,B109,'الرصيد الثابت'!$C$2:$C$52)) ->  | G109: 0 | K109: =IFERROR(VLOOKUP(J109,'اسماء العملاء'!$A$2:$E$142,5,FALSE),"") ->  | L109: =IFERROR(VLOOKUP(J109,'اسماء العملاء'!$A$2:$C$142,2,FALSE),"") ->  | M109: =IFERROR(VLOOKUP(J109,'اسماء العملاء'!$A$2:$C$142,3,FALSE),"") -> 
C110: =IF(B110="","",SUMIF('الرصيد الثابت'!$A$2:$A$52,B110,'الرصيد الثابت'!$B$2:$B$52)) ->  | D110: =IF(B110="","",SUMIF('الرصيد الثابت'!$A$2:$A$52,B110,'الرصيد الثابت'!$C$2:$C$52)) ->  | G110: 0 | K110: =IFERROR(VLOOKUP(J110,'اسماء العملاء'!$A$2:$E$142,5,FALSE),"") ->  | L110: =IFERROR(VLOOKUP(J110,'اسماء العملاء'!$A$2:$C$142,2,FALSE),"") ->  | M110: =IFERROR(VLOOKUP(J110,'اسماء العملاء'!$A$2:$C$142,3,FALSE),"") -> 
C111: =IF(B111="","",SUMIF('الرصيد الثابت'!$A$2:$A$52,B111,'الرصيد الثابت'!$B$2:$B$52)) ->  | D111: =IF(B111="","",SUMIF('الرصيد الثابت'!$A$2:$A$52,B111,'الرصيد الثابت'!$C$2:$C$52)) ->  | G111: 0 | K111: =IFERROR(VLOOKUP(J111,'اسماء العملاء'!$A$2:$E$142,5,FALSE),"") ->  | L111: =IFERROR(VLOOKUP(J111,'اسماء العملاء'!$A$2:$C$142,2,FALSE),"") ->  | M111: =IFERROR(VLOOKUP(J111,'اسماء العملاء'!$A$2:$C$142,3,FALSE),"") -> 
C112: =IF(B112="","",SUMIF('الرصيد الثابت'!$A$2:$A$52,B112,'الرصيد الثابت'!$B$2:$B$52)) ->  | D112: =IF(B112="","",SUMIF('الرصيد الثابت'!$A$2:$A$52,B112,'الرصيد الثابت'!$C$2:$C$52)) ->  | G112: 0 | K112: =IFERROR(VLOOKUP(J112,'اسماء العملاء'!$A$2:$E$142,5,FALSE),"") ->  | L112: =IFERROR(VLOOKUP(J112,'اسماء العملاء'!$A$2:$C$142,2,FALSE),"") ->  | M112: =IFERROR(VLOOKUP(J112,'اسماء العملاء'!$A$2:$C$142,3,FALSE),"") -> 
C113: =IF(B113="","",SUMIF('الرصيد الثابت'!$A$2:$A$52,B113,'الرصيد الثابت'!$B$2:$B$52)) ->  | D113: =IF(B113="","",SUMIF('الرصيد الثابت'!$A$2:$A$52,B113,'الرصيد الثابت'!$C$2:$C$52)) ->  | G113: 0 | K113: =IFERROR(VLOOKUP(J113,'اسماء العملاء'!$A$2:$E$142,5,FALSE),"") ->  | L113: =IFERROR(VLOOKUP(J113,'اسماء العملاء'!$A$2:$C$142,2,FALSE),"") ->  | M113: =IFERROR(VLOOKUP(J113,'اسماء العملاء'!$A$2:$C$142,3,FALSE),"") -> 
C114: =IF(B114="","",SUMIF('الرصيد الثابت'!$A$2:$A$52,B114,'الرصيد الثابت'!$B$2:$B$52)) ->  | D114: =IF(B114="","",SUMIF('الرصيد الثابت'!$A$2:$A$52,B114,'الرصيد الثابت'!$C$2:$C$52)) ->  | G114: 0 | K114: =IFERROR(VLOOKUP(J114,'اسماء العملاء'!$A$2:$E$142,5,FALSE),"") ->  | L114: =IFERROR(VLOOKUP(J114,'اسماء العملاء'!$A$2:$C$142,2,FALSE),"") ->  | M114: =IFERROR(VLOOKUP(J114,'اسماء العملاء'!$A$2:$C$142,3,FALSE),"") -> 
C115: =IF(B115="","",SUMIF('الرصيد الثابت'!$A$2:$A$52,B115,'الرصيد الثابت'!$B$2:$B$52)) ->  | D115: =IF(B115="","",SUMIF('الرصيد الثابت'!$A$2:$A$52,B115,'الرصيد الثابت'!$C$2:$C$52)) ->  | G115: 0 | K115: =IFERROR(VLOOKUP(J115,'اسماء العملاء'!$A$2:$E$142,5,FALSE),"") ->  | L115: =IFERROR(VLOOKUP(J115,'اسماء العملاء'!$A$2:$C$142,2,FALSE),"") ->  | M115: =IFERROR(VLOOKUP(J115,'اسماء العملاء'!$A$2:$C$142,3,FALSE),"") -> 
C116: =IF(B116="","",SUMIF('الرصيد الثابت'!$A$2:$A$52,B116,'الرصيد الثابت'!$B$2:$B$52)) ->  | D116: =IF(B116="","",SUMIF('الرصيد الثابت'!$A$2:$A$52,B116,'الرصيد الثابت'!$C$2:$C$52)) ->  | G116: 0 | K116: =IFERROR(VLOOKUP(J116,'اسماء العملاء'!$A$2:$E$142,5,FALSE),"") ->  | L116: =IFERROR(VLOOKUP(J116,'اسماء العملاء'!$A$2:$C$142,2,FALSE),"") ->  | M116: =IFERROR(VLOOKUP(J116,'اسماء العملاء'!$A$2:$C$142,3,FALSE),"") -> 
C117: =IF(B117="","",SUMIF('الرصيد الثابت'!$A$2:$A$52,B117,'الرصيد الثابت'!$B$2:$B$52)) ->  | D117: =IF(B117="","",SUMIF('الرصيد الثابت'!$A$2:$A$52,B117,'الرصيد الثابت'!$C$2:$C$52)) ->  | G117: 0 | K117: =IFERROR(VLOOKUP(J117,'اسماء العملاء'!$A$2:$E$142,5,FALSE),"") ->  | L117: =IFERROR(VLOOKUP(J117,'اسماء العملاء'!$A$2:$C$142,2,FALSE),"") ->  | M117: =IFERROR(VLOOKUP(J117,'اسماء العملاء'!$A$2:$C$142,3,FALSE),"") -> 
C118: =IF(B118="","",SUMIF('الرصيد الثابت'!$A$2:$A$52,B118,'الرصيد الثابت'!$B$2:$B$52)) ->  | D118: =IF(B118="","",SUMIF('الرصيد الثابت'!$A$2:$A$52,B118,'الرصيد الثابت'!$C$2:$C$52)) ->  | G118: 0 | K118: =IFERROR(VLOOKUP(J118,'اسماء العملاء'!$A$2:$E$142,5,FALSE),"") ->  | L118: =IFERROR(VLOOKUP(J118,'اسماء العملاء'!$A$2:$C$142,2,FALSE),"") ->  | M118: =IFERROR(VLOOKUP(J118,'اسماء العملاء'!$A$2:$C$142,3,FALSE),"") -> 
C119: =IF(B119="","",SUMIF('الرصيد الثابت'!$A$2:$A$52,B119,'الرصيد الثابت'!$B$2:$B$52)) ->  | D119: =IF(B119="","",SUMIF('الرصيد الثابت'!$A$2:$A$52,B119,'الرصيد الثابت'!$C$2:$C$52)) ->  | G119: 0 | K119: =IFERROR(VLOOKUP(J119,'اسماء العملاء'!$A$2:$E$142,5,FALSE),"") ->  | L119: =IFERROR(VLOOKUP(J119,'اسماء العملاء'!$A$2:$C$142,2,FALSE),"") ->  | M119: =IFERROR(VLOOKUP(J119,'اسماء العملاء'!$A$2:$C$142,3,FALSE),"") -> 
C120: =IF(B120="","",SUMIF('الرصيد الثابت'!$A$2:$A$52,B120,'الرصيد الثابت'!$B$2:$B$52)) ->  | D120: =IF(B120="","",SUMIF('الرصيد الثابت'!$A$2:$A$52,B120,'الرصيد الثابت'!$C$2:$C$52)) ->  | G120: 0 | K120: =IFERROR(VLOOKUP(J120,'اسماء العملاء'!$A$2:$E$142,5,FALSE),"") ->  | L120: =IFERROR(VLOOKUP(J120,'اسماء العملاء'!$A$2:$C$142,2,FALSE),"") ->  | M120: =IFERROR(VLOOKUP(J120,'اسماء العملاء'!$A$2:$C$142,3,FALSE),"") -> 
C121: =IF(B121="","",SUMIF('الرصيد الثابت'!$A$2:$A$52,B121,'الرصيد الثابت'!$B$2:$B$52)) ->  | D121: =IF(B121="","",SUMIF('الرصيد الثابت'!$A$2:$A$52,B121,'الرصيد الثابت'!$C$2:$C$52)) ->  | G121: 0 | K121: =IFERROR(VLOOKUP(J121,'اسماء العملاء'!$A$2:$E$142,5,FALSE),"") ->  | L121: =IFERROR(VLOOKUP(J121,'اسماء العملاء'!$A$2:$C$142,2,FALSE),"") ->  | M121: =IFERROR(VLOOKUP(J121,'اسماء العملاء'!$A$2:$C$142,3,FALSE),"") -> 
C122: =IF(B122="","",SUMIF('الرصيد الثابت'!$A$2:$A$52,B122,'الرصيد الثابت'!$B$2:$B$52)) ->  | D122: =IF(B122="","",SUMIF('الرصيد الثابت'!$A$2:$A$52,B122,'الرصيد الثابت'!$C$2:$C$52)) ->  | G122: 0 | K122: =IFERROR(VLOOKUP(J122,'اسماء العملاء'!$A$2:$E$142,5,FALSE),"") ->  | L122: =IFERROR(VLOOKUP(J122,'اسماء العملاء'!$A$2:$C$142,2,FALSE),"") ->  | M122: =IFERROR(VLOOKUP(J122,'اسماء العملاء'!$A$2:$C$142,3,FALSE),"") -> 
C123: =IF(B123="","",SUMIF('الرصيد الثابت'!$A$2:$A$52,B123,'الرصيد الثابت'!$B$2:$B$52)) ->  | D123: =IF(B123="","",SUMIF('الرصيد الثابت'!$A$2:$A$52,B123,'الرصيد الثابت'!$C$2:$C$52)) ->  | G123: 0 | K123: =IFERROR(VLOOKUP(J123,'اسماء العملاء'!$A$2:$E$142,5,FALSE),"") ->  | L123: =IFERROR(VLOOKUP(J123,'اسماء العملاء'!$A$2:$C$142,2,FALSE),"") ->  | M123: =IFERROR(VLOOKUP(J123,'اسماء العملاء'!$A$2:$C$142,3,FALSE),"") -> 
C124: =IF(B124="","",SUMIF('الرصيد الثابت'!$A$2:$A$52,B124,'الرصيد الثابت'!$B$2:$B$52)) ->  | D124: =IF(B124="","",SUMIF('الرصيد الثابت'!$A$2:$A$52,B124,'الرصيد الثابت'!$C$2:$C$52)) ->  | G124: 0 | K124: =IFERROR(VLOOKUP(J124,'اسماء العملاء'!$A$2:$E$142,5,FALSE),"") ->  | L124: =IFERROR(VLOOKUP(J124,'اسماء العملاء'!$A$2:$C$142,2,FALSE),"") ->  | M124: =IFERROR(VLOOKUP(J124,'اسماء العملاء'!$A$2:$C$142,3,FALSE),"") -> 
C125: =IF(B125="","",SUMIF('الرصيد الثابت'!$A$2:$A$52,B125,'الرصيد الثابت'!$B$2:$B$52)) ->  | D125: =IF(B125="","",SUMIF('الرصيد الثابت'!$A$2:$A$52,B125,'الرصيد الثابت'!$C$2:$C$52)) ->  | G125: 0 | K125: =IFERROR(VLOOKUP(J125,'اسماء العملاء'!$A$2:$E$142,5,FALSE),"") ->  | L125: =IFERROR(VLOOKUP(J125,'اسماء العملاء'!$A$2:$C$142,2,FALSE),"") ->  | M125: =IFERROR(VLOOKUP(J125,'اسماء العملاء'!$A$2:$C$142,3,FALSE),"") -> 
C126: =IF(B126="","",SUMIF('الرصيد الثابت'!$A$2:$A$52,B126,'الرصيد الثابت'!$B$2:$B$52)) ->  | D126: =IF(B126="","",SUMIF('الرصيد الثابت'!$A$2:$A$52,B126,'الرصيد الثابت'!$C$2:$C$52)) ->  | G126: 0 | K126: =IFERROR(VLOOKUP(J126,'اسماء العملاء'!$A$2:$E$142,5,FALSE),"") ->  | L126: =IFERROR(VLOOKUP(J126,'اسماء العملاء'!$A$2:$C$142,2,FALSE),"") ->  | M126: =IFERROR(VLOOKUP(J126,'اسماء العملاء'!$A$2:$C$142,3,FALSE),"") -> 
C127: =IF(B127="","",SUMIF('الرصيد الثابت'!$A$2:$A$52,B127,'الرصيد الثابت'!$B$2:$B$52)) ->  | D127: =IF(B127="","",SUMIF('الرصيد الثابت'!$A$2:$A$52,B127,'الرصيد الثابت'!$C$2:$C$52)) ->  | G127: 0 | K127: =IFERROR(VLOOKUP(J127,'اسماء العملاء'!$A$2:$E$142,5,FALSE),"") ->  | L127: =IFERROR(VLOOKUP(J127,'اسماء العملاء'!$A$2:$C$142,2,FALSE),"") ->  | M127: =IFERROR(VLOOKUP(J127,'اسماء العملاء'!$A$2:$C$142,3,FALSE),"") -> 
C128: =IF(B128="","",SUMIF('الرصيد الثابت'!$A$2:$A$52,B128,'الرصيد الثابت'!$B$2:$B$52)) ->  | D128: =IF(B128="","",SUMIF('الرصيد الثابت'!$A$2:$A$52,B128,'الرصيد الثابت'!$C$2:$C$52)) ->  | G128: 0 | K128: =IFERROR(VLOOKUP(J128,'اسماء العملاء'!$A$2:$E$142,5,FALSE),"") ->  | L128: =IFERROR(VLOOKUP(J128,'اسماء العملاء'!$A$2:$C$142,2,FALSE),"") ->  | M128: =IFERROR(VLOOKUP(J128,'اسماء العملاء'!$A$2:$C$142,3,FALSE),"") -> 
C129: =IF(B129="","",SUMIF('الرصيد الثابت'!$A$2:$A$52,B129,'الرصيد الثابت'!$B$2:$B$52)) ->  | D129: =IF(B129="","",SUMIF('الرصيد الثابت'!$A$2:$A$52,B129,'الرصيد الثابت'!$C$2:$C$52)) ->  | G129: 0 | K129: =IFERROR(VLOOKUP(J129,'اسماء العملاء'!$A$2:$E$142,5,FALSE),"") ->  | L129: =IFERROR(VLOOKUP(J129,'اسماء العملاء'!$A$2:$C$142,2,FALSE),"") ->  | M129: =IFERROR(VLOOKUP(J129,'اسماء العملاء'!$A$2:$C$142,3,FALSE),"") -> 
C130: =IF(B130="","",SUMIF('الرصيد الثابت'!$A$2:$A$52,B130,'الرصيد الثابت'!$B$2:$B$52)) ->  | D130: =IF(B130="","",SUMIF('الرصيد الثابت'!$A$2:$A$52,B130,'الرصيد الثابت'!$C$2:$C$52)) ->  | G130: 0 | K130: =IFERROR(VLOOKUP(J130,'اسماء العملاء'!$A$2:$E$142,5,FALSE),"") ->  | L130: =IFERROR(VLOOKUP(J130,'اسماء العملاء'!$A$2:$C$142,2,FALSE),"") ->  | M130: =IFERROR(VLOOKUP(J130,'اسماء العملاء'!$A$2:$C$142,3,FALSE),"") -> 
C131: =IF(B131="","",SUMIF('الرصيد الثابت'!$A$2:$A$52,B131,'الرصيد الثابت'!$B$2:$B$52)) ->  | D131: =IF(B131="","",SUMIF('الرصيد الثابت'!$A$2:$A$52,B131,'الرصيد الثابت'!$C$2:$C$52)) ->  | G131: 0 | K131: =IFERROR(VLOOKUP(J131,'اسماء العملاء'!$A$2:$E$142,5,FALSE),"") ->  | L131: =IFERROR(VLOOKUP(J131,'اسماء العملاء'!$A$2:$C$142,2,FALSE),"") ->  | M131: =IFERROR(VLOOKUP(J131,'اسماء العملاء'!$A$2:$C$142,3,FALSE),"") -> 
A132: =IF(B132="","",TODAY()) ->  | C132: =IF(B132="","",SUMIF('الرصيد الثابت'!$A$2:$A$52,B132,'الرصيد الثابت'!$B$2:$B$52)) ->  | D132: =IF(B132="","",SUMIF('الرصيد الثابت'!$A$2:$A$52,B132,'الرصيد الثابت'!$C$2:$C$52)) ->  | G132: =SUM(E132-F132) -> 0 | K132: =IFERROR(VLOOKUP(J132,'اسماء العملاء'!$A$2:$E$142,5,FALSE),"") ->  | L132: =IFERROR(VLOOKUP(J132,'اسماء العملاء'!$A$2:$C$142,2,FALSE),"") ->  | M132: =IFERROR(VLOOKUP(J132,'اسماء العملاء'!$A$2:$C$142,3,FALSE),"") -> 
C133: =IF(B133="","",SUMIF('الرصيد الثابت'!$A$2:$A$52,B133,'الرصيد الثابت'!$B$2:$B$52)) ->  | D133: =IF(B133="","",SUMIF('الرصيد الثابت'!$A$2:$A$52,B133,'الرصيد الثابت'!$C$2:$C$52)) ->  | G133: 0 | K133: =IFERROR(VLOOKUP(J133,'اسماء العملاء'!$A$2:$E$142,5,FALSE),"") ->  | L133: =IFERROR(VLOOKUP(J133,'اسماء العملاء'!$A$2:$C$142,2,FALSE),"") ->  | M133: =IFERROR(VLOOKUP(J133,'اسماء العملاء'!$A$2:$C$142,3,FALSE),"") -> 
C134: =IF(B134="","",SUMIF('الرصيد الثابت'!$A$2:$A$52,B134,'الرصيد الثابت'!$B$2:$B$52)) ->  | D134: =IF(B134="","",SUMIF('الرصيد الثابت'!$A$2:$A$52,B134,'الرصيد الثابت'!$C$2:$C$52)) ->  | G134: 0 | K134: =IFERROR(VLOOKUP(J134,'اسماء العملاء'!$A$2:$E$142,5,FALSE),"") ->  | L134: =IFERROR(VLOOKUP(J134,'اسماء العملاء'!$A$2:$C$142,2,FALSE),"") ->  | M134: =IFERROR(VLOOKUP(J134,'اسماء العملاء'!$A$2:$C$142,3,FALSE),"") -> 
C135: =IF(B135="","",SUMIF('الرصيد الثابت'!$A$2:$A$52,B135,'الرصيد الثابت'!$B$2:$B$52)) ->  | D135: =IF(B135="","",SUMIF('الرصيد الثابت'!$A$2:$A$52,B135,'الرصيد الثابت'!$C$2:$C$52)) ->  | G135: 0 | K135: =IFERROR(VLOOKUP(J135,'اسماء العملاء'!$A$2:$E$142,5,FALSE),"") ->  | L135: =IFERROR(VLOOKUP(J135,'اسماء العملاء'!$A$2:$C$142,2,FALSE),"") ->  | M135: =IFERROR(VLOOKUP(J135,'اسماء العملاء'!$A$2:$C$142,3,FALSE),"") -> 
C136: =IF(B136="","",SUMIF('الرصيد الثابت'!$A$2:$A$52,B136,'الرصيد الثابت'!$B$2:$B$52)) ->  | D136: =IF(B136="","",SUMIF('الرصيد الثابت'!$A$2:$A$52,B136,'الرصيد الثابت'!$C$2:$C$52)) ->  | G136: 0 | K136: =IFERROR(VLOOKUP(J136,'اسماء العملاء'!$A$2:$E$142,5,FALSE),"") ->  | L136: =IFERROR(VLOOKUP(J136,'اسماء العملاء'!$A$2:$C$142,2,FALSE),"") ->  | M136: =IFERROR(VLOOKUP(J136,'اسماء العملاء'!$A$2:$C$142,3,FALSE),"") -> 
C137: =IF(B137="","",SUMIF('الرصيد الثابت'!$A$2:$A$52,B137,'الرصيد الثابت'!$B$2:$B$52)) ->  | D137: =IF(B137="","",SUMIF('الرصيد الثابت'!$A$2:$A$52,B137,'الرصيد الثابت'!$C$2:$C$52)) ->  | G137: 0 | K137: =IFERROR(VLOOKUP(J137,'اسماء العملاء'!$A$2:$E$142,5,FALSE),"") ->  | L137: =IFERROR(VLOOKUP(J137,'اسماء العملاء'!$A$2:$C$142,2,FALSE),"") ->  | M137: =IFERROR(VLOOKUP(J137,'اسماء العملاء'!$A$2:$C$142,3,FALSE),"") -> 
C138: =IF(B138="","",SUMIF('الرصيد الثابت'!$A$2:$A$52,B138,'الرصيد الثابت'!$B$2:$B$52)) ->  | D138: =IF(B138="","",SUMIF('الرصيد الثابت'!$A$2:$A$52,B138,'الرصيد الثابت'!$C$2:$C$52)) ->  | G138: 0 | K138: =IFERROR(VLOOKUP(J138,'اسماء العملاء'!$A$2:$E$142,5,FALSE),"") ->  | L138: =IFERROR(VLOOKUP(J138,'اسماء العملاء'!$A$2:$C$142,2,FALSE),"") ->  | M138: =IFERROR(VLOOKUP(J138,'اسماء العملاء'!$A$2:$C$142,3,FALSE),"") -> 
C139: =IF(B139="","",SUMIF('الرصيد الثابت'!$A$2:$A$52,B139,'الرصيد الثابت'!$B$2:$B$52)) ->  | D139: =IF(B139="","",SUMIF('الرصيد الثابت'!$A$2:$A$52,B139,'الرصيد الثابت'!$C$2:$C$52)) ->  | G139: 0 | K139: =IFERROR(VLOOKUP(J139,'اسماء العملاء'!$A$2:$E$142,5,FALSE),"") ->  | L139: =IFERROR(VLOOKUP(J139,'اسماء العملاء'!$A$2:$C$142,2,FALSE),"") ->  | M139: =IFERROR(VLOOKUP(J139,'اسماء العملاء'!$A$2:$C$142,3,FALSE),"") -> 
C140: =IF(B140="","",SUMIF('الرصيد الثابت'!$A$2:$A$52,B140,'الرصيد الثابت'!$B$2:$B$52)) ->  | D140: =IF(B140="","",SUMIF('الرصيد الثابت'!$A$2:$A$52,B140,'الرصيد الثابت'!$C$2:$C$52)) ->  | G140: 0 | K140: =IFERROR(VLOOKUP(J140,'اسماء العملاء'!$A$2:$E$142,5,FALSE),"") ->  | L140: =IFERROR(VLOOKUP(J140,'اسماء العملاء'!$A$2:$C$142,2,FALSE),"") ->  | M140: =IFERROR(VLOOKUP(J140,'اسماء العملاء'!$A$2:$C$142,3,FALSE),"") -> 
C141: =IF(B141="","",SUMIF('الرصيد الثابت'!$A$2:$A$52,B141,'الرصيد الثابت'!$B$2:$B$52)) ->  | D141: =IF(B141="","",SUMIF('الرصيد الثابت'!$A$2:$A$52,B141,'الرصيد الثابت'!$C$2:$C$52)) ->  | G141: 0 | K141: =IFERROR(VLOOKUP(J141,'اسماء العملاء'!$A$2:$E$142,5,FALSE),"") ->  | L141: =IFERROR(VLOOKUP(J141,'اسماء العملاء'!$A$2:$C$142,2,FALSE),"") ->  | M141: =IFERROR(VLOOKUP(J141,'اسماء العملاء'!$A$2:$C$142,3,FALSE),"") -> 
C142: =IF(B142="","",SUMIF('الرصيد الثابت'!$A$2:$A$52,B142,'الرصيد الثابت'!$B$2:$B$52)) ->  | D142: =IF(B142="","",SUMIF('الرصيد الثابت'!$A$2:$A$52,B142,'الرصيد الثابت'!$C$2:$C$52)) ->  | G142: 0 | K142: =IFERROR(VLOOKUP(J142,'اسماء العملاء'!$A$2:$E$142,5,FALSE),"") ->  | L142: =IFERROR(VLOOKUP(J142,'اسماء العملاء'!$A$2:$C$142,2,FALSE),"") ->  | M142: =IFERROR(VLOOKUP(J142,'اسماء العملاء'!$A$2:$C$142,3,FALSE),"") -> 
C143: =IF(B143="","",SUMIF('الرصيد الثابت'!$A$2:$A$52,B143,'الرصيد الثابت'!$B$2:$B$52)) ->  | D143: =IF(B143="","",SUMIF('الرصيد الثابت'!$A$2:$A$52,B143,'الرصيد الثابت'!$C$2:$C$52)) ->  | G143: 0 | K143: =IFERROR(VLOOKUP(J143,'اسماء العملاء'!$A$2:$E$142,5,FALSE),"") ->  | L143: =IFERROR(VLOOKUP(J143,'اسماء العملاء'!$A$2:$C$142,2,FALSE),"") ->  | M143: =IFERROR(VLOOKUP(J143,'اسماء العملاء'!$A$2:$C$142,3,FALSE),"") -> 
C144: =IF(B144="","",SUMIF('الرصيد الثابت'!$A$2:$A$52,B144,'الرصيد الثابت'!$B$2:$B$52)) ->  | D144: =IF(B144="","",SUMIF('الرصيد الثابت'!$A$2:$A$52,B144,'الرصيد الثابت'!$C$2:$C$52)) ->  | G144: 0 | K144: =IFERROR(VLOOKUP(J144,'اسماء العملاء'!$A$2:$E$142,5,FALSE),"") ->  | L144: =IFERROR(VLOOKUP(J144,'اسماء العملاء'!$A$2:$C$142,2,FALSE),"") ->  | M144: =IFERROR(VLOOKUP(J144,'اسماء العملاء'!$A$2:$C$142,3,FALSE),"") -> 
C145: =IF(B145="","",SUMIF('الرصيد الثابت'!$A$2:$A$52,B145,'الرصيد الثابت'!$B$2:$B$52)) ->  | D145: =IF(B145="","",SUMIF('الرصيد الثابت'!$A$2:$A$52,B145,'الرصيد الثابت'!$C$2:$C$52)) ->  | G145: 0 | K145: =IFERROR(VLOOKUP(J145,'اسماء العملاء'!$A$2:$E$142,5,FALSE),"") ->  | L145: =IFERROR(VLOOKUP(J145,'اسماء العملاء'!$A$2:$C$142,2,FALSE),"") ->  | M145: =IFERROR(VLOOKUP(J145,'اسماء العملاء'!$A$2:$C$142,3,FALSE),"") -> 
C146: =IF(B146="","",SUMIF('الرصيد الثابت'!$A$2:$A$52,B146,'الرصيد الثابت'!$B$2:$B$52)) ->  | D146: =IF(B146="","",SUMIF('الرصيد الثابت'!$A$2:$A$52,B146,'الرصيد الثابت'!$C$2:$C$52)) ->  | G146: 0 | K146: =IFERROR(VLOOKUP(J146,'اسماء العملاء'!$A$2:$E$142,5,FALSE),"") ->  | L146: =IFERROR(VLOOKUP(J146,'اسماء العملاء'!$A$2:$C$142,2,FALSE),"") ->  | M146: =IFERROR(VLOOKUP(J146,'اسماء العملاء'!$A$2:$C$142,3,FALSE),"") -> 
C147: =IF(B147="","",SUMIF('الرصيد الثابت'!$A$2:$A$52,B147,'الرصيد الثابت'!$B$2:$B$52)) ->  | D147: =IF(B147="","",SUMIF('الرصيد الثابت'!$A$2:$A$52,B147,'الرصيد الثابت'!$C$2:$C$52)) ->  | G147: 0 | K147: =IFERROR(VLOOKUP(J147,'اسماء العملاء'!$A$2:$E$142,5,FALSE),"") ->  | L147: =IFERROR(VLOOKUP(J147,'اسماء العملاء'!$A$2:$C$142,2,FALSE),"") ->  | M147: =IFERROR(VLOOKUP(J147,'اسماء العملاء'!$A$2:$C$142,3,FALSE),"") -> 
C148: =IF(B148="","",SUMIF('الرصيد الثابت'!$A$2:$A$52,B148,'الرصيد الثابت'!$B$2:$B$52)) ->  | D148: =IF(B148="","",SUMIF('الرصيد الثابت'!$A$2:$A$52,B148,'الرصيد الثابت'!$C$2:$C$52)) ->  | G148: 0 | K148: =IFERROR(VLOOKUP(J148,'اسماء العملاء'!$A$2:$E$142,5,FALSE),"") ->  | L148: =IFERROR(VLOOKUP(J148,'اسماء العملاء'!$A$2:$C$142,2,FALSE),"") ->  | M148: =IFERROR(VLOOKUP(J148,'اسماء العملاء'!$A$2:$C$142,3,FALSE),"") -> 
C149: =IF(B149="","",SUMIF('الرصيد الثابت'!$A$2:$A$52,B149,'الرصيد الثابت'!$B$2:$B$52)) ->  | D149: =IF(B149="","",SUMIF('الرصيد الثابت'!$A$2:$A$52,B149,'الرصيد الثابت'!$C$2:$C$52)) ->  | G149: 0 | K149: =IFERROR(VLOOKUP(J149,'اسماء العملاء'!$A$2:$E$142,5,FALSE),"") ->  | L149: =IFERROR(VLOOKUP(J149,'اسماء العملاء'!$A$2:$C$142,2,FALSE),"") ->  | M149: =IFERROR(VLOOKUP(J149,'اسماء العملاء'!$A$2:$C$142,3,FALSE),"") -> 
C150: =IF(B150="","",SUMIF('الرصيد الثابت'!$A$2:$A$52,B150,'الرصيد الثابت'!$B$2:$B$52)) ->  | D150: =IF(B150="","",SUMIF('الرصيد الثابت'!$A$2:$A$52,B150,'الرصيد الثابت'!$C$2:$C$52)) ->  | G150: 0 | K150: =IFERROR(VLOOKUP(J150,'اسماء العملاء'!$A$2:$E$142,5,FALSE),"") ->  | L150: =IFERROR(VLOOKUP(J150,'اسماء العملاء'!$A$2:$C$142,2,FALSE),"") ->  | M150: =IFERROR(VLOOKUP(J150,'اسماء العملاء'!$A$2:$C$142,3,FALSE),"") -> 
C151: =IF(B151="","",SUMIF('الرصيد الثابت'!$A$2:$A$52,B151,'الرصيد الثابت'!$B$2:$B$52)) ->  | D151: =IF(B151="","",SUMIF('الرصيد الثابت'!$A$2:$A$52,B151,'الرصيد الثابت'!$C$2:$C$52)) ->  | G151: 0 | K151: =IFERROR(VLOOKUP(J151,'اسماء العملاء'!$A$2:$E$142,5,FALSE),"") ->  | L151: =IFERROR(VLOOKUP(J151,'اسماء العملاء'!$A$2:$C$142,2,FALSE),"") ->  | M151: =IFERROR(VLOOKUP(J151,'اسماء العملاء'!$A$2:$C$142,3,FALSE),"") -> 
C152: =IF(B152="","",SUMIF('الرصيد الثابت'!$A$2:$A$52,B152,'الرصيد الثابت'!$B$2:$B$52)) ->  | D152: =IF(B152="","",SUMIF('الرصيد الثابت'!$A$2:$A$52,B152,'الرصيد الثابت'!$C$2:$C$52)) ->  | G152: 0 | K152: =IFERROR(VLOOKUP(J152,'اسماء العملاء'!$A$2:$E$142,5,FALSE),"") ->  | L152: =IFERROR(VLOOKUP(J152,'اسماء العملاء'!$A$2:$C$142,2,FALSE),"") ->  | M152: =IFERROR(VLOOKUP(J152,'اسماء العملاء'!$A$2:$C$142,3,FALSE),"") -> 
C153: =IF(B153="","",SUMIF('الرصيد الثابت'!$A$2:$A$52,B153,'الرصيد الثابت'!$B$2:$B$52)) ->  | D153: =IF(B153="","",SUMIF('الرصيد الثابت'!$A$2:$A$52,B153,'الرصيد الثابت'!$C$2:$C$52)) ->  | G153: 0 | K153: =IFERROR(VLOOKUP(J153,'اسماء العملاء'!$A$2:$E$142,5,FALSE),"") ->  | L153: =IFERROR(VLOOKUP(J153,'اسماء العملاء'!$A$2:$C$142,2,FALSE),"") ->  | M153: =IFERROR(VLOOKUP(J153,'اسماء العملاء'!$A$2:$C$142,3,FALSE),"") -> 
C154: =IF(B154="","",SUMIF('الرصيد الثابت'!$A$2:$A$52,B154,'الرصيد الثابت'!$B$2:$B$52)) ->  | D154: =IF(B154="","",SUMIF('الرصيد الثابت'!$A$2:$A$52,B154,'الرصيد الثابت'!$C$2:$C$52)) ->  | G154: 0 | K154: =IFERROR(VLOOKUP(J154,'اسماء العملاء'!$A$2:$E$142,5,FALSE),"") ->  | L154: =IFERROR(VLOOKUP(J154,'اسماء العملاء'!$A$2:$C$142,2,FALSE),"") ->  | M154: =IFERROR(VLOOKUP(J154,'اسماء العملاء'!$A$2:$C$142,3,FALSE),"") -> 
C155: =IF(B155="","",SUMIF('الرصيد الثابت'!$A$2:$A$52,B155,'الرصيد الثابت'!$B$2:$B$52)) ->  | D155: =IF(B155="","",SUMIF('الرصيد الثابت'!$A$2:$A$52,B155,'الرصيد الثابت'!$C$2:$C$52)) ->  | G155: 0 | K155: =IFERROR(VLOOKUP(J155,'اسماء العملاء'!$A$2:$E$142,5,FALSE),"") ->  | L155: =IFERROR(VLOOKUP(J155,'اسماء العملاء'!$A$2:$C$142,2,FALSE),"") ->  | M155: =IFERROR(VLOOKUP(J155,'اسماء العملاء'!$A$2:$C$142,3,FALSE),"") -> 
C156: =IF(B156="","",SUMIF('الرصيد الثابت'!$A$2:$A$52,B156,'الرصيد الثابت'!$B$2:$B$52)) ->  | D156: =IF(B156="","",SUMIF('الرصيد الثابت'!$A$2:$A$52,B156,'الرصيد الثابت'!$C$2:$C$52)) ->  | G156: 0 | K156: =IFERROR(VLOOKUP(J156,'اسماء العملاء'!$A$2:$E$142,5,FALSE),"") ->  | L156: =IFERROR(VLOOKUP(J156,'اسماء العملاء'!$A$2:$C$142,2,FALSE),"") ->  | M156: =IFERROR(VLOOKUP(J156,'اسماء العملاء'!$A$2:$C$142,3,FALSE),"") -> 
C157: =IF(B157="","",SUMIF('الرصيد الثابت'!$A$2:$A$52,B157,'الرصيد الثابت'!$B$2:$B$52)) ->  | D157: =IF(B157="","",SUMIF('الرصيد الثابت'!$A$2:$A$52,B157,'الرصيد الثابت'!$C$2:$C$52)) ->  | G157: 0 | K157: =IFERROR(VLOOKUP(J157,'اسماء العملاء'!$A$2:$E$142,5,FALSE),"") ->  | L157: =IFERROR(VLOOKUP(J157,'اسماء العملاء'!$A$2:$C$142,2,FALSE),"") ->  | M157: =IFERROR(VLOOKUP(J157,'اسماء العملاء'!$A$2:$C$142,3,FALSE),"") -> 
C158: =IF(B158="","",SUMIF('الرصيد الثابت'!$A$2:$A$52,B158,'الرصيد الثابت'!$B$2:$B$52)) ->  | D158: =IF(B158="","",SUMIF('الرصيد الثابت'!$A$2:$A$52,B158,'الرصيد الثابت'!$C$2:$C$52)) ->  | G158: 0 | K158: =IFERROR(VLOOKUP(J158,'اسماء العملاء'!$A$2:$E$142,5,FALSE),"") ->  | L158: =IFERROR(VLOOKUP(J158,'اسماء العملاء'!$A$2:$C$142,2,FALSE),"") ->  | M158: =IFERROR(VLOOKUP(J158,'اسماء العملاء'!$A$2:$C$142,3,FALSE),"") -> 
C159: =IF(B159="","",SUMIF('الرصيد الثابت'!$A$2:$A$52,B159,'الرصيد الثابت'!$B$2:$B$52)) ->  | D159: =IF(B159="","",SUMIF('الرصيد الثابت'!$A$2:$A$52,B159,'الرصيد الثابت'!$C$2:$C$52)) ->  | G159: 0 | K159: =IFERROR(VLOOKUP(J159,'اسماء العملاء'!$A$2:$E$142,5,FALSE),"") ->  | L159: =IFERROR(VLOOKUP(J159,'اسماء العملاء'!$A$2:$C$142,2,FALSE),"") ->  | M159: =IFERROR(VLOOKUP(J159,'اسماء العملاء'!$A$2:$C$142,3,FALSE),"") -> 
C160: =IF(B160="","",SUMIF('الرصيد الثابت'!$A$2:$A$52,B160,'الرصيد الثابت'!$B$2:$B$52)) ->  | D160: =IF(B160="","",SUMIF('الرصيد الثابت'!$A$2:$A$52,B160,'الرصيد الثابت'!$C$2:$C$52)) ->  | G160: 0 | K160: =IFERROR(VLOOKUP(J160,'اسماء العملاء'!$A$2:$E$142,5,FALSE),"") ->  | L160: =IFERROR(VLOOKUP(J160,'اسماء العملاء'!$A$2:$C$142,2,FALSE),"") ->  | M160: =IFERROR(VLOOKUP(J160,'اسماء العملاء'!$A$2:$C$142,3,FALSE),"") -> 
C161: =IF(B161="","",SUMIF('الرصيد الثابت'!$A$2:$A$52,B161,'الرصيد الثابت'!$B$2:$B$52)) ->  | D161: =IF(B161="","",SUMIF('الرصيد الثابت'!$A$2:$A$52,B161,'الرصيد الثابت'!$C$2:$C$52)) ->  | G161: 0 | K161: =IFERROR(VLOOKUP(J161,'اسماء العملاء'!$A$2:$E$142,5,FALSE),"") ->  | L161: =IFERROR(VLOOKUP(J161,'اسماء العملاء'!$A$2:$C$142,2,FALSE),"") ->  | M161: =IFERROR(VLOOKUP(J161,'اسماء العملاء'!$A$2:$C$142,3,FALSE),"") -> 
C162: =IF(B162="","",SUMIF('الرصيد الثابت'!$A$2:$A$52,B162,'الرصيد الثابت'!$B$2:$B$52)) ->  | D162: =IF(B162="","",SUMIF('الرصيد الثابت'!$A$2:$A$52,B162,'الرصيد الثابت'!$C$2:$C$52)) ->  | G162: 0 | K162: =IFERROR(VLOOKUP(J162,'اسماء العملاء'!$A$2:$E$142,5,FALSE),"") ->  | L162: =IFERROR(VLOOKUP(J162,'اسماء العملاء'!$A$2:$C$142,2,FALSE),"") ->  | M162: =IFERROR(VLOOKUP(J162,'اسماء العملاء'!$A$2:$C$142,3,FALSE),"") -> 
C163: =IF(B163="","",SUMIF('الرصيد الثابت'!$A$2:$A$52,B163,'الرصيد الثابت'!$B$2:$B$52)) ->  | D163: =IF(B163="","",SUMIF('الرصيد الثابت'!$A$2:$A$52,B163,'الرصيد الثابت'!$C$2:$C$52)) ->  | G163: 0 | K163: =IFERROR(VLOOKUP(J163,'اسماء العملاء'!$A$2:$E$142,5,FALSE),"") ->  | L163: =IFERROR(VLOOKUP(J163,'اسماء العملاء'!$A$2:$C$142,2,FALSE),"") ->  | M163: =IFERROR(VLOOKUP(J163,'اسماء العملاء'!$A$2:$C$142,3,FALSE),"") -> 
C164: =IF(B164="","",SUMIF('الرصيد الثابت'!$A$2:$A$52,B164,'الرصيد الثابت'!$B$2:$B$52)) ->  | D164: =IF(B164="","",SUMIF('الرصيد الثابت'!$A$2:$A$52,B164,'الرصيد الثابت'!$C$2:$C$52)) ->  | G164: 0 | K164: =IFERROR(VLOOKUP(J164,'اسماء العملاء'!$A$2:$E$142,5,FALSE),"") ->  | L164: =IFERROR(VLOOKUP(J164,'اسماء العملاء'!$A$2:$C$142,2,FALSE),"") ->  | M164: =IFERROR(VLOOKUP(J164,'اسماء العملاء'!$A$2:$C$142,3,FALSE),"") -> 
C165: =IF(B165="","",SUMIF('الرصيد الثابت'!$A$2:$A$52,B165,'الرصيد الثابت'!$B$2:$B$52)) ->  | D165: =IF(B165="","",SUMIF('الرصيد الثابت'!$A$2:$A$52,B165,'الرصيد الثابت'!$C$2:$C$52)) ->  | G165: 0 | K165: =IFERROR(VLOOKUP(J165,'اسماء العملاء'!$A$2:$E$142,5,FALSE),"") ->  | L165: =IFERROR(VLOOKUP(J165,'اسماء العملاء'!$A$2:$C$142,2,FALSE),"") ->  | M165: =IFERROR(VLOOKUP(J165,'اسماء العملاء'!$A$2:$C$142,3,FALSE),"") -> 
C166: =IF(B166="","",SUMIF('الرصيد الثابت'!$A$2:$A$52,B166,'الرصيد الثابت'!$B$2:$B$52)) ->  | D166: =IF(B166="","",SUMIF('الرصيد الثابت'!$A$2:$A$52,B166,'الرصيد الثابت'!$C$2:$C$52)) ->  | G166: 0 | K166: =IFERROR(VLOOKUP(J166,'اسماء العملاء'!$A$2:$E$142,5,FALSE),"") ->  | L166: =IFERROR(VLOOKUP(J166,'اسماء العملاء'!$A$2:$C$142,2,FALSE),"") ->  | M166: =IFERROR(VLOOKUP(J166,'اسماء العملاء'!$A$2:$C$142,3,FALSE),"") -> 
C167: =IF(B167="","",SUMIF('الرصيد الثابت'!$A$2:$A$52,B167,'الرصيد الثابت'!$B$2:$B$52)) ->  | D167: =IF(B167="","",SUMIF('الرصيد الثابت'!$A$2:$A$52,B167,'الرصيد الثابت'!$C$2:$C$52)) ->  | G167: 0 | K167: =IFERROR(VLOOKUP(J167,'اسماء العملاء'!$A$2:$E$142,5,FALSE),"") ->  | L167: =IFERROR(VLOOKUP(J167,'اسماء العملاء'!$A$2:$C$142,2,FALSE),"") ->  | M167: =IFERROR(VLOOKUP(J167,'اسماء العملاء'!$A$2:$C$142,3,FALSE),"") -> 
C168: =IF(B168="","",SUMIF('الرصيد الثابت'!$A$2:$A$52,B168,'الرصيد الثابت'!$B$2:$B$52)) ->  | D168: =IF(B168="","",SUMIF('الرصيد الثابت'!$A$2:$A$52,B168,'الرصيد الثابت'!$C$2:$C$52)) ->  | G168: 0 | K168: =IFERROR(VLOOKUP(J168,'اسماء العملاء'!$A$2:$E$142,5,FALSE),"") ->  | L168: =IFERROR(VLOOKUP(J168,'اسماء العملاء'!$A$2:$C$142,2,FALSE),"") ->  | M168: =IFERROR(VLOOKUP(J168,'اسماء العملاء'!$A$2:$C$142,3,FALSE),"") -> 
C169: =IF(B169="","",SUMIF('الرصيد الثابت'!$A$2:$A$52,B169,'الرصيد الثابت'!$B$2:$B$52)) ->  | D169: =IF(B169="","",SUMIF('الرصيد الثابت'!$A$2:$A$52,B169,'الرصيد الثابت'!$C$2:$C$52)) ->  | G169: 0 | K169: =IFERROR(VLOOKUP(J169,'اسماء العملاء'!$A$2:$E$142,5,FALSE),"") ->  | L169: =IFERROR(VLOOKUP(J169,'اسماء العملاء'!$A$2:$C$142,2,FALSE),"") ->  | M169: =IFERROR(VLOOKUP(J169,'اسماء العملاء'!$A$2:$C$142,3,FALSE),"") -> 
C170: =IF(B170="","",SUMIF('الرصيد الثابت'!$A$2:$A$52,B170,'الرصيد الثابت'!$B$2:$B$52)) ->  | D170: =IF(B170="","",SUMIF('الرصيد الثابت'!$A$2:$A$52,B170,'الرصيد الثابت'!$C$2:$C$52)) ->  | G170: 0 | K170: =IFERROR(VLOOKUP(J170,'اسماء العملاء'!$A$2:$E$142,5,FALSE),"") ->  | L170: =IFERROR(VLOOKUP(J170,'اسماء العملاء'!$A$2:$C$142,2,FALSE),"") ->  | M170: =IFERROR(VLOOKUP(J170,'اسماء العملاء'!$A$2:$C$142,3,FALSE),"") -> 
C171: =IF(B171="","",SUMIF('الرصيد الثابت'!$A$2:$A$52,B171,'الرصيد الثابت'!$B$2:$B$52)) ->  | D171: =IF(B171="","",SUMIF('الرصيد الثابت'!$A$2:$A$52,B171,'الرصيد الثابت'!$C$2:$C$52)) ->  | G171: 0 | K171: =IFERROR(VLOOKUP(J171,'اسماء العملاء'!$A$2:$E$142,5,FALSE),"") ->  | L171: =IFERROR(VLOOKUP(J171,'اسماء العملاء'!$A$2:$C$142,2,FALSE),"") ->  | M171: =IFERROR(VLOOKUP(J171,'اسماء العملاء'!$A$2:$C$142,3,FALSE),"") -> 
C172: =IF(B172="","",SUMIF('الرصيد الثابت'!$A$2:$A$52,B172,'الرصيد الثابت'!$B$2:$B$52)) ->  | D172: =IF(B172="","",SUMIF('الرصيد الثابت'!$A$2:$A$52,B172,'الرصيد الثابت'!$C$2:$C$52)) ->  | G172: 0 | K172: =IFERROR(VLOOKUP(J172,'اسماء العملاء'!$A$2:$E$142,5,FALSE),"") ->  | L172: =IFERROR(VLOOKUP(J172,'اسماء العملاء'!$A$2:$C$142,2,FALSE),"") ->  | M172: =IFERROR(VLOOKUP(J172,'اسماء العملاء'!$A$2:$C$142,3,FALSE),"") -> 
C173: =IF(B173="","",SUMIF('الرصيد الثابت'!$A$2:$A$52,B173,'الرصيد الثابت'!$B$2:$B$52)) ->  | D173: =IF(B173="","",SUMIF('الرصيد الثابت'!$A$2:$A$52,B173,'الرصيد الثابت'!$C$2:$C$52)) ->  | G173: 0 | K173: =IFERROR(VLOOKUP(J173,'اسماء العملاء'!$A$2:$E$142,5,FALSE),"") ->  | L173: =IFERROR(VLOOKUP(J173,'اسماء العملاء'!$A$2:$C$142,2,FALSE),"") ->  | M173: =IFERROR(VLOOKUP(J173,'اسماء العملاء'!$A$2:$C$142,3,FALSE),"") -> 
C174: =IF(B174="","",SUMIF('الرصيد الثابت'!$A$2:$A$52,B174,'الرصيد الثابت'!$B$2:$B$52)) ->  | D174: =IF(B174="","",SUMIF('الرصيد الثابت'!$A$2:$A$52,B174,'الرصيد الثابت'!$C$2:$C$52)) ->  | G174: 0 | K174: =IFERROR(VLOOKUP(J174,'اسماء العملاء'!$A$2:$E$142,5,FALSE),"") ->  | L174: =IFERROR(VLOOKUP(J174,'اسماء العملاء'!$A$2:$C$142,2,FALSE),"") ->  | M174: =IFERROR(VLOOKUP(J174,'اسماء العملاء'!$A$2:$C$142,3,FALSE),"") -> 
C175: =IF(B175="","",SUMIF('الرصيد الثابت'!$A$2:$A$52,B175,'الرصيد الثابت'!$B$2:$B$52)) ->  | D175: =IF(B175="","",SUMIF('الرصيد الثابت'!$A$2:$A$52,B175,'الرصيد الثابت'!$C$2:$C$52)) ->  | G175: 0 | K175: =IFERROR(VLOOKUP(J175,'اسماء العملاء'!$A$2:$E$142,5,FALSE),"") ->  | L175: =IFERROR(VLOOKUP(J175,'اسماء العملاء'!$A$2:$C$142,2,FALSE),"") ->  | M175: =IFERROR(VLOOKUP(J175,'اسماء العملاء'!$A$2:$C$142,3,FALSE),"") -> 
C176: =IF(B176="","",SUMIF('الرصيد الثابت'!$A$2:$A$52,B176,'الرصيد الثابت'!$B$2:$B$52)) ->  | D176: =IF(B176="","",SUMIF('الرصيد الثابت'!$A$2:$A$52,B176,'الرصيد الثابت'!$C$2:$C$52)) ->  | G176: 0 | K176: =IFERROR(VLOOKUP(J176,'اسماء العملاء'!$A$2:$E$142,5,FALSE),"") ->  | L176: =IFERROR(VLOOKUP(J176,'اسماء العملاء'!$A$2:$C$142,2,FALSE),"") ->  | M176: =IFERROR(VLOOKUP(J176,'اسماء العملاء'!$A$2:$C$142,3,FALSE),"") -> 
C177: =IF(B177="","",SUMIF('الرصيد الثابت'!$A$2:$A$52,B177,'الرصيد الثابت'!$B$2:$B$52)) ->  | D177: =IF(B177="","",SUMIF('الرصيد الثابت'!$A$2:$A$52,B177,'الرصيد الثابت'!$C$2:$C$52)) ->  | G177: 0 | K177: =IFERROR(VLOOKUP(J177,'اسماء العملاء'!$A$2:$E$142,5,FALSE),"") ->  | L177: =IFERROR(VLOOKUP(J177,'اسماء العملاء'!$A$2:$C$142,2,FALSE),"") ->  | M177: =IFERROR(VLOOKUP(J177,'اسماء العملاء'!$A$2:$C$142,3,FALSE),"") -> 
C178: =IF(B178="","",SUMIF('الرصيد الثابت'!$A$2:$A$52,B178,'الرصيد الثابت'!$B$2:$B$52)) ->  | D178: =IF(B178="","",SUMIF('الرصيد الثابت'!$A$2:$A$52,B178,'الرصيد الثابت'!$C$2:$C$52)) ->  | G178: 0 | K178: =IFERROR(VLOOKUP(J178,'اسماء العملاء'!$A$2:$E$142,5,FALSE),"") ->  | L178: =IFERROR(VLOOKUP(J178,'اسماء العملاء'!$A$2:$C$142,2,FALSE),"") ->  | M178: =IFERROR(VLOOKUP(J178,'اسماء العملاء'!$A$2:$C$142,3,FALSE),"") -> 
C179: =IF(B179="","",SUMIF('الرصيد الثابت'!$A$2:$A$52,B179,'الرصيد الثابت'!$B$2:$B$52)) ->  | D179: =IF(B179="","",SUMIF('الرصيد الثابت'!$A$2:$A$52,B179,'الرصيد الثابت'!$C$2:$C$52)) ->  | G179: 0 | K179: =IFERROR(VLOOKUP(J179,'اسماء العملاء'!$A$2:$E$142,5,FALSE),"") ->  | L179: =IFERROR(VLOOKUP(J179,'اسماء العملاء'!$A$2:$C$142,2,FALSE),"") ->  | M179: =IFERROR(VLOOKUP(J179,'اسماء العملاء'!$A$2:$C$142,3,FALSE),"") -> 
C180: =IF(B180="","",SUMIF('الرصيد الثابت'!$A$2:$A$52,B180,'الرصيد الثابت'!$B$2:$B$52)) ->  | D180: =IF(B180="","",SUMIF('الرصيد الثابت'!$A$2:$A$52,B180,'الرصيد الثابت'!$C$2:$C$52)) ->  | G180: 0 | K180: =IFERROR(VLOOKUP(J180,'اسماء العملاء'!$A$2:$E$142,5,FALSE),"") ->  | L180: =IFERROR(VLOOKUP(J180,'اسماء العملاء'!$A$2:$C$142,2,FALSE),"") ->  | M180: =IFERROR(VLOOKUP(J180,'اسماء العملاء'!$A$2:$C$142,3,FALSE),"") -> 
C181: =IF(B181="","",SUMIF('الرصيد الثابت'!$A$2:$A$52,B181,'الرصيد الثابت'!$B$2:$B$52)) ->  | D181: =IF(B181="","",SUMIF('الرصيد الثابت'!$A$2:$A$52,B181,'الرصيد الثابت'!$C$2:$C$52)) ->  | G181: 0 | K181: =IFERROR(VLOOKUP(J181,'اسماء العملاء'!$A$2:$E$142,5,FALSE),"") ->  | L181: =IFERROR(VLOOKUP(J181,'اسماء العملاء'!$A$2:$C$142,2,FALSE),"") ->  | M181: =IFERROR(VLOOKUP(J181,'اسماء العملاء'!$A$2:$C$142,3,FALSE),"") -> 
C182: =IF(B182="","",SUMIF('الرصيد الثابت'!$A$2:$A$52,B182,'الرصيد الثابت'!$B$2:$B$52)) ->  | D182: =IF(B182="","",SUMIF('الرصيد الثابت'!$A$2:$A$52,B182,'الرصيد الثابت'!$C$2:$C$52)) ->  | G182: 0 | K182: =IFERROR(VLOOKUP(J182,'اسماء العملاء'!$A$2:$E$142,5,FALSE),"") ->  | L182: =IFERROR(VLOOKUP(J182,'اسماء العملاء'!$A$2:$C$142,2,FALSE),"") ->  | M182: =IFERROR(VLOOKUP(J182,'اسماء العملاء'!$A$2:$C$142,3,FALSE),"") -> 
C183: =IF(B183="","",SUMIF('الرصيد الثابت'!$A$2:$A$52,B183,'الرصيد الثابت'!$B$2:$B$52)) ->  | D183: =IF(B183="","",SUMIF('الرصيد الثابت'!$A$2:$A$52,B183,'الرصيد الثابت'!$C$2:$C$52)) ->  | G183: 0 | K183: =IFERROR(VLOOKUP(J183,'اسماء العملاء'!$A$2:$E$142,5,FALSE),"") ->  | L183: =IFERROR(VLOOKUP(J183,'اسماء العملاء'!$A$2:$C$142,2,FALSE),"") ->  | M183: =IFERROR(VLOOKUP(J183,'اسماء العملاء'!$A$2:$C$142,3,FALSE),"") -> 
C184: =IF(B184="","",SUMIF('الرصيد الثابت'!$A$2:$A$52,B184,'الرصيد الثابت'!$B$2:$B$52)) ->  | D184: =IF(B184="","",SUMIF('الرصيد الثابت'!$A$2:$A$52,B184,'الرصيد الثابت'!$C$2:$C$52)) ->  | G184: 0 | K184: =IFERROR(VLOOKUP(J184,'اسماء العملاء'!$A$2:$E$142,5,FALSE),"") ->  | L184: =IFERROR(VLOOKUP(J184,'اسماء العملاء'!$A$2:$C$142,2,FALSE),"") ->  | M184: =IFERROR(VLOOKUP(J184,'اسماء العملاء'!$A$2:$C$142,3,FALSE),"") -> 
C185: =IF(B185="","",SUMIF('الرصيد الثابت'!$A$2:$A$52,B185,'الرصيد الثابت'!$B$2:$B$52)) ->  | D185: =IF(B185="","",SUMIF('الرصيد الثابت'!$A$2:$A$52,B185,'الرصيد الثابت'!$C$2:$C$52)) ->  | G185: 0 | K185: =IFERROR(VLOOKUP(J185,'اسماء العملاء'!$A$2:$E$142,5,FALSE),"") ->  | L185: =IFERROR(VLOOKUP(J185,'اسماء العملاء'!$A$2:$C$142,2,FALSE),"") ->  | M185: =IFERROR(VLOOKUP(J185,'اسماء العملاء'!$A$2:$C$142,3,FALSE),"") -> 
C186: =IF(B186="","",SUMIF('الرصيد الثابت'!$A$2:$A$52,B186,'الرصيد الثابت'!$B$2:$B$52)) ->  | D186: =IF(B186="","",SUMIF('الرصيد الثابت'!$A$2:$A$52,B186,'الرصيد الثابت'!$C$2:$C$52)) ->  | G186: 0 | K186: =IFERROR(VLOOKUP(J186,'اسماء العملاء'!$A$2:$E$142,5,FALSE),"") ->  | L186: =IFERROR(VLOOKUP(J186,'اسماء العملاء'!$A$2:$C$142,2,FALSE),"") ->  | M186: =IFERROR(VLOOKUP(J186,'اسماء العملاء'!$A$2:$C$142,3,FALSE),"") -> 
C187: =IF(B187="","",SUMIF('الرصيد الثابت'!$A$2:$A$52,B187,'الرصيد الثابت'!$B$2:$B$52)) ->  | D187: =IF(B187="","",SUMIF('الرصيد الثابت'!$A$2:$A$52,B187,'الرصيد الثابت'!$C$2:$C$52)) ->  | G187: 0 | K187: =IFERROR(VLOOKUP(J187,'اسماء العملاء'!$A$2:$E$142,5,FALSE),"") ->  | L187: =IFERROR(VLOOKUP(J187,'اسماء العملاء'!$A$2:$C$142,2,FALSE),"") ->  | M187: =IFERROR(VLOOKUP(J187,'اسماء العملاء'!$A$2:$C$142,3,FALSE),"") -> 
C188: =IF(B188="","",SUMIF('الرصيد الثابت'!$A$2:$A$52,B188,'الرصيد الثابت'!$B$2:$B$52)) ->  | D188: =IF(B188="","",SUMIF('الرصيد الثابت'!$A$2:$A$52,B188,'الرصيد الثابت'!$C$2:$C$52)) ->  | G188: 0 | K188: =IFERROR(VLOOKUP(J188,'اسماء العملاء'!$A$2:$E$142,5,FALSE),"") ->  | L188: =IFERROR(VLOOKUP(J188,'اسماء العملاء'!$A$2:$C$142,2,FALSE),"") ->  | M188: =IFERROR(VLOOKUP(J188,'اسماء العملاء'!$A$2:$C$142,3,FALSE),"") -> 
C189: =IF(B189="","",SUMIF('الرصيد الثابت'!$A$2:$A$52,B189,'الرصيد الثابت'!$B$2:$B$52)) ->  | D189: =IF(B189="","",SUMIF('الرصيد الثابت'!$A$2:$A$52,B189,'الرصيد الثابت'!$C$2:$C$52)) ->  | G189: 0 | K189: =IFERROR(VLOOKUP(J189,'اسماء العملاء'!$A$2:$E$142,5,FALSE),"") ->  | L189: =IFERROR(VLOOKUP(J189,'اسماء العملاء'!$A$2:$C$142,2,FALSE),"") ->  | M189: =IFERROR(VLOOKUP(J189,'اسماء العملاء'!$A$2:$C$142,3,FALSE),"") -> 
C190: =IF(B190="","",SUMIF('الرصيد الثابت'!$A$2:$A$52,B190,'الرصيد الثابت'!$B$2:$B$52)) ->  | D190: =IF(B190="","",SUMIF('الرصيد الثابت'!$A$2:$A$52,B190,'الرصيد الثابت'!$C$2:$C$52)) ->  | G190: 0 | K190: =IFERROR(VLOOKUP(J190,'اسماء العملاء'!$A$2:$E$142,5,FALSE),"") ->  | L190: =IFERROR(VLOOKUP(J190,'اسماء العملاء'!$A$2:$C$142,2,FALSE),"") ->  | M190: =IFERROR(VLOOKUP(J190,'اسماء العملاء'!$A$2:$C$142,3,FALSE),"") -> 
C191: =IF(B191="","",SUMIF('الرصيد الثابت'!$A$2:$A$52,B191,'الرصيد الثابت'!$B$2:$B$52)) ->  | D191: =IF(B191="","",SUMIF('الرصيد الثابت'!$A$2:$A$52,B191,'الرصيد الثابت'!$C$2:$C$52)) ->  | G191: 0 | K191: =IFERROR(VLOOKUP(J191,'اسماء العملاء'!$A$2:$E$142,5,FALSE),"") ->  | L191: =IFERROR(VLOOKUP(J191,'اسماء العملاء'!$A$2:$C$142,2,FALSE),"") ->  | M191: =IFERROR(VLOOKUP(J191,'اسماء العملاء'!$A$2:$C$142,3,FALSE),"") -> 
C192: =IF(B192="","",SUMIF('الرصيد الثابت'!$A$2:$A$52,B192,'الرصيد الثابت'!$B$2:$B$52)) ->  | D192: =IF(B192="","",SUMIF('الرصيد الثابت'!$A$2:$A$52,B192,'الرصيد الثابت'!$C$2:$C$52)) ->  | G192: 0 | K192: =IFERROR(VLOOKUP(J192,'اسماء العملاء'!$A$2:$E$142,5,FALSE),"") ->  | L192: =IFERROR(VLOOKUP(J192,'اسماء العملاء'!$A$2:$C$142,2,FALSE),"") ->  | M192: =IFERROR(VLOOKUP(J192,'اسماء العملاء'!$A$2:$C$142,3,FALSE),"") -> 
C193: =IF(B193="","",SUMIF('الرصيد الثابت'!$A$2:$A$52,B193,'الرصيد الثابت'!$B$2:$B$52)) ->  | D193: =IF(B193="","",SUMIF('الرصيد الثابت'!$A$2:$A$52,B193,'الرصيد الثابت'!$C$2:$C$52)) ->  | G193: 0 | K193: =IFERROR(VLOOKUP(J193,'اسماء العملاء'!$A$2:$E$142,5,FALSE),"") ->  | L193: =IFERROR(VLOOKUP(J193,'اسماء العملاء'!$A$2:$C$142,2,FALSE),"") ->  | M193: =IFERROR(VLOOKUP(J193,'اسماء العملاء'!$A$2:$C$142,3,FALSE),"") -> 
C194: =IF(B194="","",SUMIF('الرصيد الثابت'!$A$2:$A$52,B194,'الرصيد الثابت'!$B$2:$B$52)) ->  | D194: =IF(B194="","",SUMIF('الرصيد الثابت'!$A$2:$A$52,B194,'الرصيد الثابت'!$C$2:$C$52)) ->  | G194: 0 | K194: =IFERROR(VLOOKUP(J194,'اسماء العملاء'!$A$2:$E$142,5,FALSE),"") ->  | L194: =IFERROR(VLOOKUP(J194,'اسماء العملاء'!$A$2:$C$142,2,FALSE),"") ->  | M194: =IFERROR(VLOOKUP(J194,'اسماء العملاء'!$A$2:$C$142,3,FALSE),"") -> 
C195: =IF(B195="","",SUMIF('الرصيد الثابت'!$A$2:$A$52,B195,'الرصيد الثابت'!$B$2:$B$52)) ->  | D195: =IF(B195="","",SUMIF('الرصيد الثابت'!$A$2:$A$52,B195,'الرصيد الثابت'!$C$2:$C$52)) ->  | G195: 0 | K195: =IFERROR(VLOOKUP(J195,'اسماء العملاء'!$A$2:$E$142,5,FALSE),"") ->  | L195: =IFERROR(VLOOKUP(J195,'اسماء العملاء'!$A$2:$C$142,2,FALSE),"") ->  | M195: =IFERROR(VLOOKUP(J195,'اسماء العملاء'!$A$2:$C$142,3,FALSE),"") -> 
A196: =IF(B196="","",TODAY()) ->  | C196: =IF(B196="","",SUMIF('الرصيد الثابت'!$A$2:$A$52,B196,'الرصيد الثابت'!$B$2:$B$52)) ->  | D196: =IF(B196="","",SUMIF('الرصيد الثابت'!$A$2:$A$52,B196,'الرصيد الثابت'!$C$2:$C$52)) ->  | G196: =SUM(E196-F196) -> 0 | K196: =IFERROR(VLOOKUP(J196,'اسماء العملاء'!$A$2:$E$142,5,FALSE),"") ->  | L196: =IFERROR(VLOOKUP(J196,'اسماء العملاء'!$A$2:$C$142,2,FALSE),"") ->  | M196: =IFERROR(VLOOKUP(J196,'اسماء العملاء'!$A$2:$C$142,3,FALSE),"") -> 
C197: =IF(B197="","",SUMIF('الرصيد الثابت'!$A$2:$A$52,B197,'الرصيد الثابت'!$B$2:$B$52)) ->  | D197: =IF(B197="","",SUMIF('الرصيد الثابت'!$A$2:$A$52,B197,'الرصيد الثابت'!$C$2:$C$52)) ->  | G197: 0 | K197: =IFERROR(VLOOKUP(J197,'اسماء العملاء'!$A$2:$E$142,5,FALSE),"") ->  | L197: =IFERROR(VLOOKUP(J197,'اسماء العملاء'!$A$2:$C$142,2,FALSE),"") ->  | M197: =IFERROR(VLOOKUP(J197,'اسماء العملاء'!$A$2:$C$142,3,FALSE),"") -> 
C198: =IF(B198="","",SUMIF('الرصيد الثابت'!$A$2:$A$52,B198,'الرصيد الثابت'!$B$2:$B$52)) ->  | D198: =IF(B198="","",SUMIF('الرصيد الثابت'!$A$2:$A$52,B198,'الرصيد الثابت'!$C$2:$C$52)) ->  | G198: 0 | K198: =IFERROR(VLOOKUP(J198,'اسماء العملاء'!$A$2:$E$142,5,FALSE),"") ->  | L198: =IFERROR(VLOOKUP(J198,'اسماء العملاء'!$A$2:$C$142,2,FALSE),"") ->  | M198: =IFERROR(VLOOKUP(J198,'اسماء العملاء'!$A$2:$C$142,3,FALSE),"") -> 
C199: =IF(B199="","",SUMIF('الرصيد الثابت'!$A$2:$A$52,B199,'الرصيد الثابت'!$B$2:$B$52)) ->  | D199: =IF(B199="","",SUMIF('الرصيد الثابت'!$A$2:$A$52,B199,'الرصيد الثابت'!$C$2:$C$52)) ->  | G199: 0 | K199: =IFERROR(VLOOKUP(J199,'اسماء العملاء'!$A$2:$E$142,5,FALSE),"") ->  | L199: =IFERROR(VLOOKUP(J199,'اسماء العملاء'!$A$2:$C$142,2,FALSE),"") ->  | M199: =IFERROR(VLOOKUP(J199,'اسماء العملاء'!$A$2:$C$142,3,FALSE),"") -> 
C200: =IF(B200="","",SUMIF('الرصيد الثابت'!$A$2:$A$52,B200,'الرصيد الثابت'!$B$2:$B$52)) ->  | D200: =IF(B200="","",SUMIF('الرصيد الثابت'!$A$2:$A$52,B200,'الرصيد الثابت'!$C$2:$C$52)) ->  | G200: 0 | K200: =IFERROR(VLOOKUP(J200,'اسماء العملاء'!$A$2:$E$142,5,FALSE),"") ->  | L200: =IFERROR(VLOOKUP(J200,'اسماء العملاء'!$A$2:$C$142,2,FALSE),"") ->  | M200: =IFERROR(VLOOKUP(J200,'اسماء العملاء'!$A$2:$C$142,3,FALSE),"") -> 
... 152 more rows

Sheet العملاء
A1: التاريخ | B1: اسم العميل | C1: كود العميل | D1: عنوان العميل | F1: رقم تليفون العميل | G1: نوع المنتج | H1: السعر | I1: الكمية | J1: الاجمالي | K1: كاش | L1: قسط | M1: مقدم | N1: الباقي | O1: الشهور المتأخرة | P1: قيمة القسط | Q1: عدد الاقساط السليمة | R1: قيمة آخر قسط | S1: فترة سماح أول قسط (يوم) | T1: الباقي بعد دفع الأقساط | U1: تاريخ القسط المقدم | V1: القسط رقم 01 | Y1: القسط رقم 02 | AB1: القسط رقم 03 | AE1: القسط رقم 04 | AH1: القسط رقم 05 | AK1: القسط رقم 06 | AN1: القسط رقم 07 | AQ1: القسط رقم 08 | AT1: القسط رقم 09 | AW1: القسط رقم 10 | AZ1: القسط رقم 11 | BC1: القسط رقم 12 | BF1: القسط رقم 13 | BI1: القسط رقم 14 | BL1: القسط رقم 15 | BO1: القسط رقم 16 | BR1: القسط رقم 17 | BU1: القسط رقم 18 | BX1: القسط رقم 19 | CA1: القسط رقم 20 | CD1: القسط رقم 21 | CG1: القسط رقم 22 | CJ1: القسط رقم 23 | CM1: القسط رقم 24 | CP1: القسط رقم 25 | CS1: القسط رقم 26 | CV1: القسط رقم 27 | CY1: القسط رقم 28 | DB1: القسط رقم 29 | DE1: القسط رقم 30 | DH1: القسط رقم 31 | DK1: القسط رقم 32 | DN1: القسط رقم 33 | DQ1: القسط رقم 34 | DT1: القسط رقم 35 | DW1: القسط رقم 36 | DZ1: ملاحظات
V2: ميعاد القسط | W2: تاريخ السداد | X2: التأخير | Y2: ميعاد القسط | Z2: تاريخ السداد | AA2: التأخير | AB2: ميعاد القسط | AC2: تاريخ السداد | AD2: التأخير | AE2: ميعاد القسط | AF2: تاريخ السداد | AG2: التأخير | AH2: ميعاد القسط | AI2: تاريخ السداد | AJ2: التأخير | AK2: ميعاد القسط | AL2: تاريخ السداد | AM2: التأخير | AN2: ميعاد القسط | AO2: تاريخ السداد | AP2: التأخير | AQ2: ميعاد القسط | AR2: تاريخ السداد | AS2: التأخير | AT2: ميعاد القسط | AU2: تاريخ السداد | AV2: التأخير | AW2: ميعاد القسط | AX2: تاريخ السداد | AY2: التأخير | AZ2: ميعاد القسط | BA2: تاريخ السداد | BB2: التأخير | BC2: ميعاد القسط | BD2: تاريخ السداد | BE2: التأخير | BF2: ميعاد القسط | BG2: تاريخ السداد | BH2: التأخير | BI2: ميعاد القسط | BJ2: تاريخ السداد | BK2: التأخير | BL2: ميعاد القسط | BM2: تاريخ السداد | BN2: التأخير | BO2: ميعاد القسط | BP2: تاريخ السداد | BQ2: التأخير | BR2: ميعاد القسط | BS2: تاريخ السداد | BT2: التأخير | BU2: ميعاد القسط | BV2: تاريخ السداد | BW2: التأخير | BX2: ميعاد القسط | BY2: تاريخ السداد | BZ2: التأخير | CA2: ميعاد القسط | CB2: تاريخ السداد | CC2: التأخير | CD2: ميعاد القسط | CE2: تاريخ السداد | CF2: التأخير | CG2: ميعاد القسط | CH2: تاريخ السداد | CI2: التأخير | CJ2: ميعاد القسط | CK2: تاريخ السداد | CL2: التأخير | CM2: ميعاد القسط | CN2: تاريخ السداد | CO2: التأخير | CP2: ميعاد القسط | CQ2: تاريخ السداد | CR2: التأخير | CS2: ميعاد القسط | CT2: تاريخ السداد | CU2: التأخير | CV2: ميعاد القسط | CW2: تاريخ السداد | CX2: التأخير | CY2: ميعاد القسط | CZ2: تاريخ السداد | DA2: التأخير | DB2: ميعاد القسط | DC2: تاريخ السداد | DD2: التأخير | DE2: ميعاد القسط | DF2: تاريخ السداد | DG2: التأخير | DH2: ميعاد القسط | DI2: تاريخ السداد | DJ2: التأخير | DK2: ميعاد القسط | DL2: تاريخ السداد | DM2: التأخير | DN2: ميعاد القسط | DO2: تاريخ السداد | DP2: التأخير | DQ2: ميعاد القسط | DR2: تاريخ السداد | DS2: التأخير | DT2: ميعاد القسط | DU2: تاريخ السداد | DV2: التأخير | DW2: ميعاد القسط | DX2: تاريخ السداد | DY2: التأخير
A3: =IF(B3="","",TODAY()) -> 2018-09-24 | B3: احمد محمد | C3: =IFERROR(VLOOKUP(B3,'اسماء العملاء'!$A$2:$E$142,5,FALSE),"") -> 1 | D3: =IFERROR(VLOOKUP(B3,'اسماء العملاء'!$A$2:$C$142,2,FALSE),"") -> العجمي | F3: =IFERROR(VLOOKUP(B3,'اسماء العملاء'!$A$2:$C$142,3,FALSE),"") -> 123456789 | G3: فلتر 5 عادي | H3: =IFERROR(VLOOKUP(G3,'انواع الفلاتر'!$B$2:$C$52,2,FALSE),"") -> 1000 | I3: 2 | J3: =IFERROR(SUM(I3*H3),"") -> 2000 | L3: 2500 | M3: 500 | N3: =SUM(L3-M3) -> 2000 | O3: ظهور رسالة تذكير | P3: 150 | Q3: =INT(N3/P3) -> 13 | R3: =N3-P3*Q3 -> 50 | S3: 0 | T3: =IF(Sadad>Q3,0,N3-Sadad*P3) -> 1550 | U3: 2018-04-12 | V3: =IF(ISBLANK(U3),"",EDATE(U3,1)+S3) -> 2018-05-12 | W3: 2018-09-23 | X3: =IF(W3>V3,W3-V3,IF(AND(ISBLANK(W3)=TRUE,V3<TODAY()),TODAY()-V3,"")) -> 134 | Y3: =IFERROR(IF((COLUMN()-22)/3>=$Q3+ROUNDUP($R3/$P3,0),"",EDATE(V3,1)),"") -> 2018-06-12 | Z3: 2018-09-23 | AA3: =IF(Z3>Y3,Z3-Y3,IF(AND(ISBLANK(Z3)=TRUE,Y3<TODAY()),TODAY()-Y3,"")) -> 103 | AB3: =IFERROR(IF((COLUMN()-22)/3>=$Q3+ROUNDUP($R3/$P3,0),"",EDATE(Y3,1)),"") -> 2018-07-12 | AC3: 2018-09-23 | AD3: =IF(AC3>AB3,AC3-AB3,IF(AND(ISBLANK(AC3)=TRUE,AB3<TODAY()),TODAY()-AB3,"")) -> 73 | AE3: =IFERROR(IF((COLUMN()-22)/3>=$Q3+ROUNDUP($R3/$P3,0),"",EDATE(AB3,1)),"") -> 2018-08-12 | AG3: =IF(AF3>AE3,AF3-AE3,IF(AND(ISBLANK(AF3)=TRUE,AE3<TODAY()),TODAY()-AE3,"")) -> 43 | AH3: =IFERROR(IF((COLUMN()-22)/3>=$Q3+ROUNDUP($R3/$P3,0),"",EDATE(AE3,1)),"") -> 2018-09-12 | AJ3: =IF(AI3>AH3,AI3-AH3,IF(AND(ISBLANK(AI3)=TRUE,AH3<TODAY()),TODAY()-AH3,"")) -> 12 | AK3: =IFERROR(IF((COLUMN()-22)/3>=$Q3+ROUNDUP($R3/$P3,0),"",EDATE(AH3,1)),"") -> 2018-10-12 | AM3: =IF(AL3>AK3,AL3-AK3,IF(AND(ISBLANK(AL3)=TRUE,AK3<TODAY()),TODAY()-AK3,"")) ->  | AN3: =IFERROR(IF((COLUMN()-22)/3>=$Q3+ROUNDUP($R3/$P3,0),"",EDATE(AK3,1)),"") -> 2018-11-12 | AP3: =IF(AO3>AN3,AO3-AN3,IF(AND(ISBLANK(AO3)=TRUE,AN3<TODAY()),TODAY()-AN3,"")) ->  | AQ3: =IFERROR(IF((COLUMN()-22)/3>=$Q3+ROUNDUP($R3/$P3,0),"",EDATE(AN3,1)),"") -> 2018-12-12 | AS3: =IF(AR3>AQ3,AR3-AQ3,IF(AND(ISBLANK(AR3)=TRUE,AQ3<TODAY()),TODAY()-AQ3,"")) ->  | AT3: =IFERROR(IF((COLUMN()-22)/3>=$Q3+ROUNDUP($R3/$P3,0),"",EDATE(AQ3,1)),"") -> 2019-01-12 | AV3: =IF(AU3>AT3,AU3-AT3,IF(AND(ISBLANK(AU3)=TRUE,AT3<TODAY()),TODAY()-AT3,"")) ->  | AW3: =IFERROR(IF((COLUMN()-22)/3>=$Q3+ROUNDUP($R3/$P3,0),"",EDATE(AT3,1)),"") -> 2019-02-12 | AY3: =IF(AX3>AW3,AX3-AW3,IF(AND(ISBLANK(AX3)=TRUE,AW3<TODAY()),TODAY()-AW3,"")) ->  | AZ3: =IFERROR(IF((COLUMN()-22)/3>=$Q3+ROUNDUP($R3/$P3,0),"",EDATE(AW3,1)),"") -> 2019-03-12 | BB3: =IF(BA3>AZ3,BA3-AZ3,IF(AND(ISBLANK(BA3)=TRUE,AZ3<TODAY()),TODAY()-AZ3,"")) ->  | BC3: =IFERROR(IF((COLUMN()-22)/3>=$Q3+ROUNDUP($R3/$P3,0),"",EDATE(AZ3,1)),"") -> 2019-04-12 | BE3: =IF(BD3>BC3,BD3-BC3,IF(AND(ISBLANK(BD3)=TRUE,BC3<TODAY()),TODAY()-BC3,"")) ->  | BF3: =IFERROR(IF((COLUMN()-22)/3>=$Q3+ROUNDUP($R3/$P3,0),"",EDATE(BC3,1)),"") -> 2019-05-12 | BH3: =IF(BG3>BF3,BG3-BF3,IF(AND(ISBLANK(BG3)=TRUE,BF3<TODAY()),TODAY()-BF3,"")) ->  | BI3: =IFERROR(IF((COLUMN()-22)/3>=$Q3+ROUNDUP($R3/$P3,0),"",EDATE(BF3,1)),"") -> 2019-06-12 | BK3: =IF(BJ3>BI3,BJ3-BI3,IF(AND(ISBLANK(BJ3)=TRUE,BI3<TODAY()),TODAY()-BI3,"")) ->  | BL3: =IFERROR(IF((COLUMN()-22)/3>=$Q3+ROUNDUP($R3/$P3,0),"",EDATE(BI3,1)),"") ->  | BN3: =IF(BM3>BL3,BM3-BL3,IF(AND(ISBLANK(BM3)=TRUE,BL3<TODAY()),TODAY()-BL3,"")) ->  | BO3: =IFERROR(IF((COLUMN()-22)/3>=$Q3+ROUNDUP($R3/$P3,0),"",EDATE(BL3,1)),"") ->  | BQ3: =IF(BP3>BO3,BP3-BO3,IF(AND(ISBLANK(BP3)=TRUE,BO3<TODAY()),TODAY()-BO3,"")) ->  | BR3: =IFERROR(IF((COLUMN()-22)/3>=$Q3+ROUNDUP($R3/$P3,0),"",EDATE(BO3,1)),"") ->  | BT3: =IF(BS3>BR3,BS3-BR3,IF(AND(ISBLANK(BS3)=TRUE,BR3<TODAY()),TODAY()-BR3,"")) ->  | BU3: =IFERROR(IF((COLUMN()-22)/3>=$Q3+ROUNDUP($R3/$P3,0),"",EDATE(BR3,1)),"") ->  | BW3: =IF(BV3>BU3,BV3-BU3,IF(AND(ISBLANK(BV3)=TRUE,BU3<TODAY()),TODAY()-BU3,"")) ->  | BX3: =IFERROR(IF((COLUMN()-22)/3>=$Q3+ROUNDUP($R3/$P3,0),"",EDATE(BU3,1)),"") ->  | BZ3: =IF(BY3>BX3,BY3-BX3,IF(AND(ISBLANK(BY3)=TRUE,BX3<TODAY()),TODAY()-BX3,"")) ->  | CA3: =IFERROR(IF((COLUMN()-22)/3>=$Q3+ROUNDUP($R3/$P3,0),"",EDATE(BX3,1)),"") ->  | CC3: =IF(CB3>CA3,CB3-CA3,IF(AND(ISBLANK(CB3)=TRUE,CA3<TODAY()),TODAY()-CA3,"")) ->  | CD3: =IFERROR(IF((COLUMN()-22)/3>=$Q3+ROUNDUP($R3/$P3,0),"",EDATE(CA3,1)),"") ->  | CF3: =IF(CE3>CD3,CE3-CD3,IF(AND(ISBLANK(CE3)=TRUE,CD3<TODAY()),TODAY()-CD3,"")) ->  | CG3: =IFERROR(IF((COLUMN()-22)/3>=$Q3+ROUNDUP($R3/$P3,0),"",EDATE(CD3,1)),"") ->  | CI3: =IF(CH3>CG3,CH3-CG3,IF(AND(ISBLANK(CH3)=TRUE,CG3<TODAY()),TODAY()-CG3,"")) ->  | CJ3: =IFERROR(IF((COLUMN()-22)/3>=$Q3+ROUNDUP($R3/$P3,0),"",EDATE(CG3,1)),"") ->  | CL3: =IF(CK3>CJ3,CK3-CJ3,IF(AND(ISBLANK(CK3)=TRUE,CJ3<TODAY()),TODAY()-CJ3,"")) ->  | CM3: =IFERROR(IF((COLUMN()-22)/3>=$Q3+ROUNDUP($R3/$P3,0),"",EDATE(CJ3,1)),"") ->  | CO3: =IF(CN3>CM3,CN3-CM3,IF(AND(ISBLANK(CN3)=TRUE,CM3<TODAY()),TODAY()-CM3,"")) ->  | CP3: =IFERROR(IF((COLUMN()-22)/3>=$Q3+ROUNDUP($R3/$P3,0),"",EDATE(CM3,1)),"") ->  | CR3: =IF(CQ3>CP3,CQ3-CP3,IF(AND(ISBLANK(CQ3)=TRUE,CP3<TODAY()),TODAY()-CP3,"")) ->  | CS3: =IFERROR(IF((COLUMN()-22)/3>=$Q3+ROUNDUP($R3/$P3,0),"",EDATE(CP3,1)),"") ->  | CU3: =IF(CT3>CS3,CT3-CS3,IF(AND(ISBLANK(CT3)=TRUE,CS3<TODAY()),TODAY()-CS3,"")) ->  | CV3: =IFERROR(IF((COLUMN()-22)/3>=$Q3+ROUNDUP($R3/$P3,0),"",EDATE(CS3,1)),"") ->  | CX3: =IF(CW3>CV3,CW3-CV3,IF(AND(ISBLANK(CW3)=TRUE,CV3<TODAY()),TODAY()-CV3,"")) ->  | CY3: =IFERROR(IF((COLUMN()-22)/3>=$Q3+ROUNDUP($R3/$P3,0),"",EDATE(CV3,1)),"") ->  | DA3: =IF(CZ3>CY3,CZ3-CY3,IF(AND(ISBLANK(CZ3)=TRUE,CY3<TODAY()),TODAY()-CY3,"")) ->  | DB3: =IFERROR(IF((COLUMN()-22)/3>=$Q3+ROUNDUP($R3/$P3,0),"",EDATE(CY3,1)),"") ->  | DD3: =IF(DC3>DB3,DC3-DB3,IF(AND(ISBLANK(DC3)=TRUE,DB3<TODAY()),TODAY()-DB3,"")) ->  | DE3: =IFERROR(IF((COLUMN()-22)/3>=$Q3+ROUNDUP($R3/$P3,0),"",EDATE(DB3,1)),"") ->  | DG3: =IF(DF3>DE3,DF3-DE3,IF(AND(ISBLANK(DF3)=TRUE,DE3<TODAY()),TODAY()-DE3,"")) ->  | DH3: =IFERROR(IF((COLUMN()-22)/3>=$Q3+ROUNDUP($R3/$P3,0),"",EDATE(DE3,1)),"") ->  | DJ3: =IF(DI3>DH3,DI3-DH3,IF(AND(ISBLANK(DI3)=TRUE,DH3<TODAY()),TODAY()-DH3,"")) ->  | DK3: =IFERROR(IF((COLUMN()-22)/3>=$Q3+ROUNDUP($R3/$P3,0),"",EDATE(DH3,1)),"") ->  | DM3: =IF(DL3>DK3,DL3-DK3,IF(AND(ISBLANK(DL3)=TRUE,DK3<TODAY()),TODAY()-DK3,"")) ->  | DN3: =IFERROR(IF((COLUMN()-22)/3>=$Q3+ROUNDUP($R3/$P3,0),"",EDATE(DK3,1)),"") ->  | DP3: =IF(DO3>DN3,DO3-DN3,IF(AND(ISBLANK(DO3)=TRUE,DN3<TODAY()),TODAY()-DN3,"")) ->  | DQ3: =IFERROR(IF((COLUMN()-22)/3>=$Q3+ROUNDUP($R3/$P3,0),"",EDATE(DN3,1)),"") ->  | DS3: =IF(DR3>DQ3,DR3-DQ3,IF(AND(ISBLANK(DR3)=TRUE,DQ3<TODAY()),TODAY()-DQ3,"")) ->  | DT3: =IFERROR(IF((COLUMN()-22)/3>=$Q3+ROUNDUP($R3/$P3,0),"",EDATE(DQ3,1)),"") ->  | DV3: =IF(DU3>DT3,DU3-DT3,IF(AND(ISBLANK(DU3)=TRUE,DT3<TODAY()),TODAY()-DT3,"")) ->  | DW3: =IFERROR(IF((COLUMN()-22)/3>=$Q3+ROUNDUP($R3/$P3,0),"",EDATE(DT3,1)),"") ->  | DY3: =IF(DX3>DW3,DX3-DW3,IF(AND(ISBLANK(DX3)=TRUE,DW3<TODAY()),TODAY()-DW3,"")) -> 
A4: =IF(B4="","",TODAY()) -> 2018-09-24 | B4: صلاح سعيد | C4: =IFERROR(VLOOKUP(B4,'اسماء العملاء'!$A$2:$E$142,5,FALSE),"") -> 3 | D4: =IFERROR(VLOOKUP(B4,'اسماء العملاء'!$A$2:$C$142,2,FALSE),"") -> الحضرة | F4: =IFERROR(VLOOKUP(B4,'اسماء العملاء'!$A$2:$C$142,3,FALSE),"") -> 011234567 | G4: فلتر 7 عادي | H4: =IFERROR(VLOOKUP(G4,'انواع الفلاتر'!$B$2:$C$52,2,FALSE),"") -> 100 | I4: 35 | J4: =IFERROR(SUM(I4*H4),"") -> 3500 | L4: =J4*1.25 -> 4375 | M4: 375 | N4: =SUM(L4-M4) -> 4000 | P4: 200 | Q4: =INT(N4/P4) -> 20 | R4: =N4-P4*Q4 -> 0 | S4: 10 | T4: =IF(Sadad>Q4,0,N4-Sadad*P4) -> 3800 | U4: 2018-05-22 | V4: =IF(ISBLANK(U4),"",EDATE(U4,1)+S4) -> 2018-07-02 | W4: 2018-09-23 | X4: =IF(W4>V4,W4-V4,IF(AND(ISBLANK(W4)=TRUE,V4<TODAY()),TODAY()-V4,"")) -> 83 | Y4: =IFERROR(IF((COLUMN()-22)/3>=$Q4+ROUNDUP($R4/$P4,0),"",EDATE(V4,1)),"") -> 2018-08-02 | AA4: =IF(Z4>Y4,Z4-Y4,IF(AND(ISBLANK(Z4)=TRUE,Y4<TODAY()),TODAY()-Y4,"")) -> 53 | AB4: =IFERROR(IF((COLUMN()-22)/3>=$Q4+ROUNDUP($R4/$P4,0),"",EDATE(Y4,1)),"") -> 2018-09-02 | AD4: =IF(AC4>AB4,AC4-AB4,IF(AND(ISBLANK(AC4)=TRUE,AB4<TODAY()),TODAY()-AB4,"")) -> 22 | AE4: =IFERROR(IF((COLUMN()-22)/3>=$Q4+ROUNDUP($R4/$P4,0),"",EDATE(AB4,1)),"") -> 2018-10-02 | AG4: =IF(AF4>AE4,AF4-AE4,IF(AND(ISBLANK(AF4)=TRUE,AE4<TODAY()),TODAY()-AE4,"")) ->  | AH4: =IFERROR(IF((COLUMN()-22)/3>=$Q4+ROUNDUP($R4/$P4,0),"",EDATE(AE4,1)),"") -> 2018-11-02 | AJ4: =IF(AI4>AH4,AI4-AH4,IF(AND(ISBLANK(AI4)=TRUE,AH4<TODAY()),TODAY()-AH4,"")) ->  | AK4: =IFERROR(IF((COLUMN()-22)/3>=$Q4+ROUNDUP($R4/$P4,0),"",EDATE(AH4,1)),"") -> 2018-12-02 | AM4: =IF(AL4>AK4,AL4-AK4,IF(AND(ISBLANK(AL4)=TRUE,AK4<TODAY()),TODAY()-AK4,"")) ->  | AN4: 2019-01-02 | AP4: =IF(AO4>AN4,AO4-AN4,IF(AND(ISBLANK(AO4)=TRUE,AN4<TODAY()),TODAY()-AN4,"")) ->  | AQ4: 2019-02-02 | AS4: =IF(AR4>AQ4,AR4-AQ4,IF(AND(ISBLANK(AR4)=TRUE,AQ4<TODAY()),TODAY()-AQ4,"")) ->  | AT4: 2019-03-02 | AV4: =IF(AU4>AT4,AU4-AT4,IF(AND(ISBLANK(AU4)=TRUE,AT4<TODAY()),TODAY()-AT4,"")) ->  | AW4: 2019-04-02 | AY4: =IF(AX4>AW4,AX4-AW4,IF(AND(ISBLANK(AX4)=TRUE,AW4<TODAY()),TODAY()-AW4,"")) ->  | AZ4: 2019-05-02 | BB4: =IF(BA4>AZ4,BA4-AZ4,IF(AND(ISBLANK(BA4)=TRUE,AZ4<TODAY()),TODAY()-AZ4,"")) ->  | BC4: 2019-06-02 | BE4: =IF(BD4>BC4,BD4-BC4,IF(AND(ISBLANK(BD4)=TRUE,BC4<TODAY()),TODAY()-BC4,"")) ->  | BF4: 2019-07-02 | BH4: =IF(BG4>BF4,BG4-BF4,IF(AND(ISBLANK(BG4)=TRUE,BF4<TODAY()),TODAY()-BF4,"")) ->  | BI4: 2019-08-02 | BK4: =IF(BJ4>BI4,BJ4-BI4,IF(AND(ISBLANK(BJ4)=TRUE,BI4<TODAY()),TODAY()-BI4,"")) ->  | BL4: 2019-09-02 | BN4: =IF(BM4>BL4,BM4-BL4,IF(AND(ISBLANK(BM4)=TRUE,BL4<TODAY()),TODAY()-BL4,"")) ->  | BO4: 2019-10-02 | BQ4: =IF(BP4>BO4,BP4-BO4,IF(AND(ISBLANK(BP4)=TRUE,BO4<TODAY()),TODAY()-BO4,"")) ->  | BR4: 2019-11-02 | BT4: =IF(BS4>BR4,BS4-BR4,IF(AND(ISBLANK(BS4)=TRUE,BR4<TODAY()),TODAY()-BR4,"")) ->  | BU4: 2019-12-02 | BW4: =IF(BV4>BU4,BV4-BU4,IF(AND(ISBLANK(BV4)=TRUE,BU4<TODAY()),TODAY()-BU4,"")) ->  | BX4: 2020-01-02 | BZ4: =IF(BY4>BX4,BY4-BX4,IF(AND(ISBLANK(BY4)=TRUE,BX4<TODAY()),TODAY()-BX4,"")) ->  | CA4: 2020-02-02 | CC4: =IF(CB4>CA4,CB4-CA4,IF(AND(ISBLANK(CB4)=TRUE,CA4<TODAY()),TODAY()-CA4,"")) ->  | CF4: =IF(CE4>CD4,CE4-CD4,IF(AND(ISBLANK(CE4)=TRUE,CD4<TODAY()),TODAY()-CD4,"")) ->  | CI4: =IF(CH4>CG4,CH4-CG4,IF(AND(ISBLANK(CH4)=TRUE,CG4<TODAY()),TODAY()-CG4,"")) ->  | CL4: =IF(CK4>CJ4,CK4-CJ4,IF(AND(ISBLANK(CK4)=TRUE,CJ4<TODAY()),TODAY()-CJ4,"")) ->  | CO4: =IF(CN4>CM4,CN4-CM4,IF(AND(ISBLANK(CN4)=TRUE,CM4<TODAY()),TODAY()-CM4,"")) ->  | CR4: =IF(CQ4>CP4,CQ4-CP4,IF(AND(ISBLANK(CQ4)=TRUE,CP4<TODAY()),TODAY()-CP4,"")) ->  | CU4: =IF(CT4>CS4,CT4-CS4,IF(AND(ISBLANK(CT4)=TRUE,CS4<TODAY()),TODAY()-CS4,"")) ->  | CX4: =IF(CW4>CV4,CW4-CV4,IF(AND(ISBLANK(CW4)=TRUE,CV4<TODAY()),TODAY()-CV4,"")) ->  | DA4: =IF(CZ4>CY4,CZ4-CY4,IF(AND(ISBLANK(CZ4)=TRUE,CY4<TODAY()),TODAY()-CY4,"")) ->  | DD4: =IF(DC4>DB4,DC4-DB4,IF(AND(ISBLANK(DC4)=TRUE,DB4<TODAY()),TODAY()-DB4,"")) ->  | DG4: =IF(DF4>DE4,DF4-DE4,IF(AND(ISBLANK(DF4)=TRUE,DE4<TODAY()),TODAY()-DE4,"")) ->  | DJ4: =IF(DI4>DH4,DI4-DH4,IF(AND(ISBLANK(DI4)=TRUE,DH4<TODAY()),TODAY()-DH4,"")) ->  | DM4: =IF(DL4>DK4,DL4-DK4,IF(AND(ISBLANK(DL4)=TRUE,DK4<TODAY()),TODAY()-DK4,"")) ->  | DP4: =IF(DO4>DN4,DO4-DN4,IF(AND(ISBLANK(DO4)=TRUE,DN4<TODAY()),TODAY()-DN4,"")) ->  | DS4: =IF(DR4>DQ4,DR4-DQ4,IF(AND(ISBLANK(DR4)=TRUE,DQ4<TODAY()),TODAY()-DQ4,"")) ->  | DV4: =IF(DU4>DT4,DU4-DT4,IF(AND(ISBLANK(DU4)=TRUE,DT4<TODAY()),TODAY()-DT4,"")) ->  | DY4: =IF(DX4>DW4,DX4-DW4,IF(AND(ISBLANK(DX4)=TRUE,DW4<TODAY()),TODAY()-DW4,"")) -> 
A5: 2018-09-24 | B5: مروان حسين | C5: =IFERROR(VLOOKUP(B5,'اسماء العملاء'!$A$2:$E$142,5,FALSE),"") -> 6 | D5: =IFERROR(VLOOKUP(B5,'اسماء العملاء'!$A$2:$C$142,2,FALSE),"") -> البرج | F5: =IFERROR(VLOOKUP(B5,'اسماء العملاء'!$A$2:$C$142,3,FALSE),"") -> 022222222 | G5: فلتر 5 عادي | H5: =IFERROR(VLOOKUP(G5,'انواع الفلاتر'!$B$2:$C$52,2,FALSE),"") -> 1000 | I5: 4 | J5: 4000 | L5: =J5*1.25 -> 5000 | M5: 500 | N5: 4500 | P5: 200 | Q5: 22 | R5: 100 | S5: 14 | T5: =IF(Sadad>Q5,0,N5-Sadad*P5) -> 3900 | U5: 2018-07-17 | V5: =IF(ISBLANK(U5),"",EDATE(U5,1)+S5) -> 2018-08-31 | W5: 2018-09-23 | X5: 23 | Y5: 2018-09-30 | Z5: 2018-09-23 | AB5: 2018-10-30 | AC5: 2018-09-23 | AE5: 2018-11-30 | AH5: 2018-12-30 | AK5: 2019-01-30 | AN5: 2019-02-28 | AQ5: 2019-03-28 | AT5: 2019-04-28 | AW5: 2019-05-28 | AZ5: 2019-06-28 | BC5: 2019-07-28 | BF5: 2019-08-28 | BI5: 2019-09-28 | BL5: 2019-10-28 | BO5: 2019-11-28 | BR5: 2019-12-28 | BU5: 2020-01-28 | BX5: 2020-02-28 | CA5: 2020-03-28 | CD5: 2020-04-28 | CG5: 2020-05-28 | CJ5: 2020-06-28
A6: 2018-09-24 | B6: وليد ابراهيم | C6: =IFERROR(VLOOKUP(B6,'اسماء العملاء'!$A$2:$E$142,5,FALSE),"") -> 8 | D6: =IFERROR(VLOOKUP(B6,'اسماء العملاء'!$A$2:$C$142,2,FALSE),"") -> العجمي | F6: =IFERROR(VLOOKUP(B6,'اسماء العملاء'!$A$2:$C$142,3,FALSE),"") -> 2222222222 | G6: فلتر 7 RO | H6: =IFERROR(VLOOKUP(G6,'انواع الفلاتر'!$B$2:$C$52,2,FALSE),"") -> 250 | I6: 24 | J6: 6000 | L6: 7500 | M6: 1500 | N6: 6000 | P6: 350 | Q6: 17 | R6: 50 | S6: 27 | T6: =IF(Sadad>Q6,0,N6-Sadad*P6) -> 4950 | U6: 2018-03-04 | V6: 2018-05-01 | W6: 2018-09-23 | X6: 145 | Y6: 2018-06-01 | Z6: 2018-09-23 | AA6: 114 | AB6: 2018-07-01 | AC6: 2018-09-23 | AD6: 84 | AE6: 2018-08-01 | AG6: 54 | AH6: 2018-09-01 | AJ6: 23 | AK6: 2018-10-01 | AN6: 2018-11-01 | AQ6: 2018-12-01 | AT6: 2019-01-01 | AW6: 2019-02-01 | AZ6: 2019-03-01 | BC6: 2019-04-01 | BF6: 2019-05-01 | BI6: 2019-06-01 | BL6: 2019-07-01 | BO6: 2019-08-01 | BR6: 2019-09-01 | BU6: 2019-10-01
A7: 2018-09-24 | B7: سمير رياض | C7: =IFERROR(VLOOKUP(B7,'اسماء العملاء'!$A$2:$E$142,5,FALSE),"") -> 9 | D7: =IFERROR(VLOOKUP(B7,'اسماء العملاء'!$A$2:$C$142,2,FALSE),"") -> المندرة | F7: =IFERROR(VLOOKUP(B7,'اسماء العملاء'!$A$2:$C$142,3,FALSE),"") -> 03333333333 | G7: فلتر 5 عادي | H7: =IFERROR(VLOOKUP(G7,'انواع الفلاتر'!$B$2:$C$52,2,FALSE),"") -> 1000 | I7: 12 | J7: 12000 | L7: 15000 | M7: 2000 | N7: 13000 | P7: 400 | Q7: =INT(N7/P7) -> 32 | R7: =N7-P7*Q7 -> 200 | S7: 0 | T7: =IF(Sadad>Q7,0,N7-Sadad*P7) -> 11400 | U7: 2018-02-20 | V7: 2018-03-20 | W7: 2018-04-05 | X7: 16 | Y7: 2018-04-20 | Z7: 2018-04-15 | AB7: 2018-05-20 | AC7: 2018-05-05 | AE7: 2018-06-20 | AF7: 2018-07-07 | AG7: 17 | AH7: 2018-07-20 | AJ7: 66 | AK7: 2018-08-20 | AM7: 35 | AN7: 2018-09-20 | AP7: 4 | AQ7: 2018-10-20 | AT7: 2018-11-20 | AW7: 2018-12-20 | AZ7: 2019-01-20 | BC7: 2019-02-20 | BF7: 2019-03-20 | BI7: 2019-04-20 | BL7: 2019-05-20 | BO7: 2019-06-20 | BR7: 2019-07-20 | BU7: 2019-08-20 | BX7: 2019-09-20 | CA7: 2019-10-20 | CD7: 2019-11-20 | CG7: 2019-12-20 | CJ7: 2020-01-20 | CM7: 2020-02-20 | CP7: 2020-03-20 | CS7: 2020-04-20 | CV7: 2020-05-20 | CY7: 2020-06-20 | DB7: 2020-07-20 | DE7: 2020-08-20 | DH7: 2020-09-20 | DK7: 2020-10-20 | DN7: 2020-11-20
C8: =IFERROR(VLOOKUP(B8,'اسماء العملاء'!$A$2:$E$142,5,FALSE),"") ->  | D8: =IFERROR(VLOOKUP(B8,'اسماء العملاء'!$A$2:$C$142,2,FALSE),"") ->  | F8: =IFERROR(VLOOKUP(B8,'اسماء العملاء'!$A$2:$C$142,3,FALSE),"") ->  | H8: =IFERROR(VLOOKUP(G8,'انواع الفلاتر'!$B$2:$C$52,2,FALSE),"") ->  | N8: 0 | T8: =IF(Sadad>Q8,0,N8-Sadad*P8) -> 0
C9: =IFERROR(VLOOKUP(B9,'اسماء العملاء'!$A$2:$E$142,5,FALSE),"") ->  | D9: =IFERROR(VLOOKUP(B9,'اسماء العملاء'!$A$2:$C$142,2,FALSE),"") ->  | F9: =IFERROR(VLOOKUP(B9,'اسماء العملاء'!$A$2:$C$142,3,FALSE),"") ->  | H9: =IFERROR(VLOOKUP(G9,'انواع الفلاتر'!$B$2:$C$52,2,FALSE),"") ->  | N9: 0 | T9: =IF(Sadad>Q9,0,N9-Sadad*P9) -> 0
C10: =IFERROR(VLOOKUP(B10,'اسماء العملاء'!$A$2:$E$142,5,FALSE),"") ->  | D10: =IFERROR(VLOOKUP(B10,'اسماء العملاء'!$A$2:$C$142,2,FALSE),"") ->  | F10: =IFERROR(VLOOKUP(B10,'اسماء العملاء'!$A$2:$C$142,3,FALSE),"") ->  | H10: =IFERROR(VLOOKUP(G10,'انواع الفلاتر'!$B$2:$C$52,2,FALSE),"") ->  | N10: 0 | T10: =IF(Sadad>Q10,0,N10-Sadad*P10) -> 0
C11: =IFERROR(VLOOKUP(B11,'اسماء العملاء'!$A$2:$E$142,5,FALSE),"") ->  | D11: =IFERROR(VLOOKUP(B11,'اسماء العملاء'!$A$2:$C$142,2,FALSE),"") ->  | F11: =IFERROR(VLOOKUP(B11,'اسماء العملاء'!$A$2:$C$142,3,FALSE),"") ->  | H11: =IFERROR(VLOOKUP(G11,'انواع الفلاتر'!$B$2:$C$52,2,FALSE),"") ->  | N11: 0 | T11: =IF(Sadad>Q11,0,N11-Sadad*P11) -> 0
C12: =IFERROR(VLOOKUP(B12,'اسماء العملاء'!$A$2:$E$142,5,FALSE),"") ->  | D12: =IFERROR(VLOOKUP(B12,'اسماء العملاء'!$A$2:$C$142,2,FALSE),"") ->  | F12: =IFERROR(VLOOKUP(B12,'اسماء العملاء'!$A$2:$C$142,3,FALSE),"") ->  | H12: =IFERROR(VLOOKUP(G12,'انواع الفلاتر'!$B$2:$C$52,2,FALSE),"") ->  | N12: 0 | T12: =IF(Sadad>Q12,0,N12-Sadad*P12) -> 0
C13: =IFERROR(VLOOKUP(B13,'اسماء العملاء'!$A$2:$E$142,5,FALSE),"") ->  | D13: =IFERROR(VLOOKUP(B13,'اسماء العملاء'!$A$2:$C$142,2,FALSE),"") ->  | F13: =IFERROR(VLOOKUP(B13,'اسماء العملاء'!$A$2:$C$142,3,FALSE),"") ->  | H13: =IFERROR(VLOOKUP(G13,'انواع الفلاتر'!$B$2:$C$52,2,FALSE),"") ->  | N13: 0 | T13: =IF(Sadad>Q13,0,N13-Sadad*P13) -> 0
C14: =IFERROR(VLOOKUP(B14,'اسماء العملاء'!$A$2:$E$142,5,FALSE),"") ->  | D14: =IFERROR(VLOOKUP(B14,'اسماء العملاء'!$A$2:$C$142,2,FALSE),"") ->  | F14: =IFERROR(VLOOKUP(B14,'اسماء العملاء'!$A$2:$C$142,3,FALSE),"") ->  | H14: =IFERROR(VLOOKUP(G14,'انواع الفلاتر'!$B$2:$C$52,2,FALSE),"") ->  | N14: 0 | T14: =IF(Sadad>Q14,0,N14-Sadad*P14) -> 0
C15: =IFERROR(VLOOKUP(B15,'اسماء العملاء'!$A$2:$E$142,5,FALSE),"") ->  | D15: =IFERROR(VLOOKUP(B15,'اسماء العملاء'!$A$2:$C$142,2,FALSE),"") ->  | F15: =IFERROR(VLOOKUP(B15,'اسماء العملاء'!$A$2:$C$142,3,FALSE),"") ->  | H15: =IFERROR(VLOOKUP(G15,'انواع الفلاتر'!$B$2:$C$52,2,FALSE),"") ->  | N15: 0 | T15: =IF(Sadad>Q15,0,N15-Sadad*P15) -> 0
C16: =IFERROR(VLOOKUP(B16,'اسماء العملاء'!$A$2:$E$142,5,FALSE),"") ->  | D16: =IFERROR(VLOOKUP(B16,'اسماء العملاء'!$A$2:$C$142,2,FALSE),"") ->  | F16: =IFERROR(VLOOKUP(B16,'اسماء العملاء'!$A$2:$C$142,3,FALSE),"") ->  | H16: =IFERROR(VLOOKUP(G16,'انواع الفلاتر'!$B$2:$C$52,2,FALSE),"") ->  | N16: 0 | T16: =IF(Sadad>Q16,0,N16-Sadad*P16) -> 0
C17: =IFERROR(VLOOKUP(B17,'اسماء العملاء'!$A$2:$E$142,5,FALSE),"") ->  | D17: =IFERROR(VLOOKUP(B17,'اسماء العملاء'!$A$2:$C$142,2,FALSE),"") ->  | F17: =IFERROR(VLOOKUP(B17,'اسماء العملاء'!$A$2:$C$142,3,FALSE),"") ->  | H17: =IFERROR(VLOOKUP(G17,'انواع الفلاتر'!$B$2:$C$52,2,FALSE),"") ->  | N17: 0 | T17: =IF(Sadad>Q17,0,N17-Sadad*P17) -> 0
C18: =IFERROR(VLOOKUP(B18,'اسماء العملاء'!$A$2:$E$142,5,FALSE),"") ->  | D18: =IFERROR(VLOOKUP(B18,'اسماء العملاء'!$A$2:$C$142,2,FALSE),"") ->  | F18: =IFERROR(VLOOKUP(B18,'اسماء العملاء'!$A$2:$C$142,3,FALSE),"") ->  | H18: =IFERROR(VLOOKUP(G18,'انواع الفلاتر'!$B$2:$C$52,2,FALSE),"") ->  | N18: 0 | T18: =IF(Sadad>Q18,0,N18-Sadad*P18) -> 0
C19: =IFERROR(VLOOKUP(B19,'اسماء العملاء'!$A$2:$E$142,5,FALSE),"") ->  | D19: =IFERROR(VLOOKUP(B19,'اسماء العملاء'!$A$2:$C$142,2,FALSE),"") ->  | F19: =IFERROR(VLOOKUP(B19,'اسماء العملاء'!$A$2:$C$142,3,FALSE),"") ->  | H19: =IFERROR(VLOOKUP(G19,'انواع الفلاتر'!$B$2:$C$52,2,FALSE),"") ->  | N19: 0 | T19: =IF(Sadad>Q19,0,N19-Sadad*P19) -> 0
C20: =IFERROR(VLOOKUP(B20,'اسماء العملاء'!$A$2:$E$142,5,FALSE),"") ->  | D20: =IFERROR(VLOOKUP(B20,'اسماء العملاء'!$A$2:$C$142,2,FALSE),"") ->  | F20: =IFERROR(VLOOKUP(B20,'اسماء العملاء'!$A$2:$C$142,3,FALSE),"") ->  | H20: =IFERROR(VLOOKUP(G20,'انواع الفلاتر'!$B$2:$C$52,2,FALSE),"") ->  | N20: 0 | T20: =IF(Sadad>Q20,0,N20-Sadad*P20) -> 0
C21: =IFERROR(VLOOKUP(B21,'اسماء العملاء'!$A$2:$E$142,5,FALSE),"") ->  | D21: =IFERROR(VLOOKUP(B21,'اسماء العملاء'!$A$2:$C$142,2,FALSE),"") ->  | F21: =IFERROR(VLOOKUP(B21,'اسماء العملاء'!$A$2:$C$142,3,FALSE),"") ->  | H21: =IFERROR(VLOOKUP(G21,'انواع الفلاتر'!$B$2:$C$52,2,FALSE),"") ->  | N21: 0 | T21: =IF(Sadad>Q21,0,N21-Sadad*P21) -> 0
C22: =IFERROR(VLOOKUP(B22,'اسماء العملاء'!$A$2:$E$142,5,FALSE),"") ->  | D22: =IFERROR(VLOOKUP(B22,'اسماء العملاء'!$A$2:$C$142,2,FALSE),"") ->  | F22: =IFERROR(VLOOKUP(B22,'اسماء العملاء'!$A$2:$C$142,3,FALSE),"") ->  | H22: =IFERROR(VLOOKUP(G22,'انواع الفلاتر'!$B$2:$C$52,2,FALSE),"") ->  | N22: 0 | T22: =IF(Sadad>Q22,0,N22-Sadad*P22) -> 0
C23: =IFERROR(VLOOKUP(B23,'اسماء العملاء'!$A$2:$E$142,5,FALSE),"") ->  | D23: =IFERROR(VLOOKUP(B23,'اسماء العملاء'!$A$2:$C$142,2,FALSE),"") ->  | F23: =IFERROR(VLOOKUP(B23,'اسماء العملاء'!$A$2:$C$142,3,FALSE),"") ->  | H23: =IFERROR(VLOOKUP(G23,'انواع الفلاتر'!$B$2:$C$52,2,FALSE),"") ->  | N23: 0 | T23: =IF(Sadad>Q23,0,N23-Sadad*P23) -> 0
C24: =IFERROR(VLOOKUP(B24,'اسماء العملاء'!$A$2:$E$142,5,FALSE),"") ->  | D24: =IFERROR(VLOOKUP(B24,'اسماء العملاء'!$A$2:$C$142,2,FALSE),"") ->  | F24: =IFERROR(VLOOKUP(B24,'اسماء العملاء'!$A$2:$C$142,3,FALSE),"") ->  | H24: =IFERROR(VLOOKUP(G24,'انواع الفلاتر'!$B$2:$C$52,2,FALSE),"") ->  | N24: 0 | T24: =IF(Sadad>Q24,0,N24-Sadad*P24) -> 0
C25: =IFERROR(VLOOKUP(B25,'اسماء العملاء'!$A$2:$E$142,5,FALSE),"") ->  | D25: =IFERROR(VLOOKUP(B25,'اسماء العملاء'!$A$2:$C$142,2,FALSE),"") ->  | F25: =IFERROR(VLOOKUP(B25,'اسماء العملاء'!$A$2:$C$142,3,FALSE),"") ->  | H25: =IFERROR(VLOOKUP(G25,'انواع الفلاتر'!$B$2:$C$52,2,FALSE),"") ->  | N25: 0 | T25: =IF(Sadad>Q25,0,N25-Sadad*P25) -> 0
C26: =IFERROR(VLOOKUP(B26,'اسماء العملاء'!$A$2:$E$142,5,FALSE),"") ->  | D26: =IFERROR(VLOOKUP(B26,'اسماء العملاء'!$A$2:$C$142,2,FALSE),"") ->  | F26: =IFERROR(VLOOKUP(B26,'اسماء العملاء'!$A$2:$C$142,3,FALSE),"") ->  | H26: =IFERROR(VLOOKUP(G26,'انواع الفلاتر'!$B$2:$C$52,2,FALSE),"") ->  | N26: 0 | T26: =IF(Sadad>Q26,0,N26-Sadad*P26) -> 0
C27: =IFERROR(VLOOKUP(B27,'اسماء العملاء'!$A$2:$E$142,5,FALSE),"") ->  | D27: =IFERROR(VLOOKUP(B27,'اسماء العملاء'!$A$2:$C$142,2,FALSE),"") ->  | F27: =IFERROR(VLOOKUP(B27,'اسماء العملاء'!$A$2:$C$142,3,FALSE),"") ->  | H27: =IFERROR(VLOOKUP(G27,'انواع الفلاتر'!$B$2:$C$52,2,FALSE),"") ->  | N27: 0 | T27: =IF(Sadad>Q27,0,N27-Sadad*P27) -> 0
C28: =IFERROR(VLOOKUP(B28,'اسماء العملاء'!$A$2:$E$142,5,FALSE),"") ->  | D28: =IFERROR(VLOOKUP(B28,'اسماء العملاء'!$A$2:$C$142,2,FALSE),"") ->  | F28: =IFERROR(VLOOKUP(B28,'اسماء العملاء'!$A$2:$C$142,3,FALSE),"") ->  | H28: =IFERROR(VLOOKUP(G28,'انواع الفلاتر'!$B$2:$C$52,2,FALSE),"") ->  | N28: 0 | T28: =IF(Sadad>Q28,0,N28-Sadad*P28) -> 0
C29: =IFERROR(VLOOKUP(B29,'اسماء العملاء'!$A$2:$E$142,5,FALSE),"") ->  | D29: =IFERROR(VLOOKUP(B29,'اسماء العملاء'!$A$2:$C$142,2,FALSE),"") ->  | F29: =IFERROR(VLOOKUP(B29,'اسماء العملاء'!$A$2:$C$142,3,FALSE),"") ->  | H29: =IFERROR(VLOOKUP(G29,'انواع الفلاتر'!$B$2:$C$52,2,FALSE),"") ->  | N29: 0 | T29: =IF(Sadad>Q29,0,N29-Sadad*P29) -> 0
C30: =IFERROR(VLOOKUP(B30,'اسماء العملاء'!$A$2:$E$142,5,FALSE),"") ->  | D30: =IFERROR(VLOOKUP(B30,'اسماء العملاء'!$A$2:$C$142,2,FALSE),"") ->  | F30: =IFERROR(VLOOKUP(B30,'اسماء العملاء'!$A$2:$C$142,3,FALSE),"") ->  | H30: =IFERROR(VLOOKUP(G30,'انواع الفلاتر'!$B$2:$C$52,2,FALSE),"") ->  | N30: 0 | T30: =IF(Sadad>Q30,0,N30-Sadad*P30) -> 0
C31: =IFERROR(VLOOKUP(B31,'اسماء العملاء'!$A$2:$E$142,5,FALSE),"") ->  | D31: =IFERROR(VLOOKUP(B31,'اسماء العملاء'!$A$2:$C$142,2,FALSE),"") ->  | F31: =IFERROR(VLOOKUP(B31,'اسماء العملاء'!$A$2:$C$142,3,FALSE),"") ->  | H31: =IFERROR(VLOOKUP(G31,'انواع الفلاتر'!$B$2:$C$52,2,FALSE),"") ->  | N31: 0 | T31: =IF(Sadad>Q31,0,N31-Sadad*P31) -> 0
C32: =IFERROR(VLOOKUP(B32,'اسماء العملاء'!$A$2:$E$142,5,FALSE),"") ->  | D32: =IFERROR(VLOOKUP(B32,'اسماء العملاء'!$A$2:$C$142,2,FALSE),"") ->  | F32: =IFERROR(VLOOKUP(B32,'اسماء العملاء'!$A$2:$C$142,3,FALSE),"") ->  | H32: =IFERROR(VLOOKUP(G32,'انواع الفلاتر'!$B$2:$C$52,2,FALSE),"") ->  | N32: 0 | T32: =IF(Sadad>Q32,0,N32-Sadad*P32) -> 0
C33: =IFERROR(VLOOKUP(B33,'اسماء العملاء'!$A$2:$E$142,5,FALSE),"") ->  | D33: =IFERROR(VLOOKUP(B33,'اسماء العملاء'!$A$2:$C$142,2,FALSE),"") ->  | F33: =IFERROR(VLOOKUP(B33,'اسماء العملاء'!$A$2:$C$142,3,FALSE),"") ->  | H33: =IFERROR(VLOOKUP(G33,'انواع الفلاتر'!$B$2:$C$52,2,FALSE),"") ->  | N33: 0 | T33: =IF(Sadad>Q33,0,N33-Sadad*P33) -> 0
C34: =IFERROR(VLOOKUP(B34,'اسماء العملاء'!$A$2:$E$142,5,FALSE),"") ->  | D34: =IFERROR(VLOOKUP(B34,'اسماء العملاء'!$A$2:$C$142,2,FALSE),"") ->  | F34: =IFERROR(VLOOKUP(B34,'اسماء العملاء'!$A$2:$C$142,3,FALSE),"") ->  | H34: =IFERROR(VLOOKUP(G34,'انواع الفلاتر'!$B$2:$C$52,2,FALSE),"") ->  | N34: 0 | T34: =IF(Sadad>Q34,0,N34-Sadad*P34) -> 0
C35: =IFERROR(VLOOKUP(B35,'اسماء العملاء'!$A$2:$E$142,5,FALSE),"") ->  | D35: =IFERROR(VLOOKUP(B35,'اسماء العملاء'!$A$2:$C$142,2,FALSE),"") ->  | F35: =IFERROR(VLOOKUP(B35,'اسماء العملاء'!$A$2:$C$142,3,FALSE),"") ->  | H35: =IFERROR(VLOOKUP(G35,'انواع الفلاتر'!$B$2:$C$52,2,FALSE),"") ->  | N35: 0 | T35: =IF(Sadad>Q35,0,N35-Sadad*P35) -> 0
C36: =IFERROR(VLOOKUP(B36,'اسماء العملاء'!$A$2:$E$142,5,FALSE),"") ->  | D36: =IFERROR(VLOOKUP(B36,'اسماء العملاء'!$A$2:$C$142,2,FALSE),"") ->  | F36: =IFERROR(VLOOKUP(B36,'اسماء العملاء'!$A$2:$C$142,3,FALSE),"") ->  | H36: =IFERROR(VLOOKUP(G36,'انواع الفلاتر'!$B$2:$C$52,2,FALSE),"") ->  | N36: 0 | T36: =IF(Sadad>Q36,0,N36-Sadad*P36) -> 0
C37: =IFERROR(VLOOKUP(B37,'اسماء العملاء'!$A$2:$E$142,5,FALSE),"") ->  | D37: =IFERROR(VLOOKUP(B37,'اسماء العملاء'!$A$2:$C$142,2,FALSE),"") ->  | F37: =IFERROR(VLOOKUP(B37,'اسماء العملاء'!$A$2:$C$142,3,FALSE),"") ->  | H37: =IFERROR(VLOOKUP(G37,'انواع الفلاتر'!$B$2:$C$52,2,FALSE),"") ->  | N37: 0 | T37: =IF(Sadad>Q37,0,N37-Sadad*P37) -> 0
C38: =IFERROR(VLOOKUP(B38,'اسماء العملاء'!$A$2:$E$142,5,FALSE),"") ->  | D38: =IFERROR(VLOOKUP(B38,'اسماء العملاء'!$A$2:$C$142,2,FALSE),"") ->  | F38: =IFERROR(VLOOKUP(B38,'اسماء العملاء'!$A$2:$C$142,3,FALSE),"") ->  | H38: =IFERROR(VLOOKUP(G38,'انواع الفلاتر'!$B$2:$C$52,2,FALSE),"") ->  | N38: 0 | T38: =IF(Sadad>Q38,0,N38-Sadad*P38) -> 0
C39: =IFERROR(VLOOKUP(B39,'اسماء العملاء'!$A$2:$E$142,5,FALSE),"") ->  | D39: =IFERROR(VLOOKUP(B39,'اسماء العملاء'!$A$2:$C$142,2,FALSE),"") ->  | F39: =IFERROR(VLOOKUP(B39,'اسماء العملاء'!$A$2:$C$142,3,FALSE),"") ->  | H39: =IFERROR(VLOOKUP(G39,'انواع الفلاتر'!$B$2:$C$52,2,FALSE),"") ->  | N39: 0 | T39: =IF(Sadad>Q39,0,N39-Sadad*P39) -> 0
C40: =IFERROR(VLOOKUP(B40,'اسماء العملاء'!$A$2:$E$142,5,FALSE),"") ->  | D40: =IFERROR(VLOOKUP(B40,'اسماء العملاء'!$A$2:$C$142,2,FALSE),"") ->  | F40: =IFERROR(VLOOKUP(B40,'اسماء العملاء'!$A$2:$C$142,3,FALSE),"") ->  | H40: =IFERROR(VLOOKUP(G40,'انواع الفلاتر'!$B$2:$C$52,2,FALSE),"") ->  | N40: 0 | T40: =IF(Sadad>Q40,0,N40-Sadad*P40) -> 0
C41: =IFERROR(VLOOKUP(B41,'اسماء العملاء'!$A$2:$E$142,5,FALSE),"") ->  | D41: =IFERROR(VLOOKUP(B41,'اسماء العملاء'!$A$2:$C$142,2,FALSE),"") ->  | F41: =IFERROR(VLOOKUP(B41,'اسماء العملاء'!$A$2:$C$142,3,FALSE),"") ->  | H41: =IFERROR(VLOOKUP(G41,'انواع الفلاتر'!$B$2:$C$52,2,FALSE),"") ->  | N41: 0 | T41: =IF(Sadad>Q41,0,N41-Sadad*P41) -> 0
C42: =IFERROR(VLOOKUP(B42,'اسماء العملاء'!$A$2:$E$142,5,FALSE),"") ->  | D42: =IFERROR(VLOOKUP(B42,'اسماء العملاء'!$A$2:$C$142,2,FALSE),"") ->  | F42: =IFERROR(VLOOKUP(B42,'اسماء العملاء'!$A$2:$C$142,3,FALSE),"") ->  | H42: =IFERROR(VLOOKUP(G42,'انواع الفلاتر'!$B$2:$C$52,2,FALSE),"") ->  | N42: 0 | T42: =IF(Sadad>Q42,0,N42-Sadad*P42) -> 0
C43: =IFERROR(VLOOKUP(B43,'اسماء العملاء'!$A$2:$E$142,5,FALSE),"") ->  | D43: =IFERROR(VLOOKUP(B43,'اسماء العملاء'!$A$2:$C$142,2,FALSE),"") ->  | F43: =IFERROR(VLOOKUP(B43,'اسماء العملاء'!$A$2:$C$142,3,FALSE),"") ->  | H43: =IFERROR(VLOOKUP(G43,'انواع الفلاتر'!$B$2:$C$52,2,FALSE),"") ->  | N43: 0 | T43: =IF(Sadad>Q43,0,N43-Sadad*P43) -> 0
C44: =IFERROR(VLOOKUP(B44,'اسماء العملاء'!$A$2:$E$142,5,FALSE),"") ->  | D44: =IFERROR(VLOOKUP(B44,'اسماء العملاء'!$A$2:$C$142,2,FALSE),"") ->  | F44: =IFERROR(VLOOKUP(B44,'اسماء العملاء'!$A$2:$C$142,3,FALSE),"") ->  | H44: =IFERROR(VLOOKUP(G44,'انواع الفلاتر'!$B$2:$C$52,2,FALSE),"") ->  | N44: 0 | T44: =IF(Sadad>Q44,0,N44-Sadad*P44) -> 0
C45: =IFERROR(VLOOKUP(B45,'اسماء العملاء'!$A$2:$E$142,5,FALSE),"") ->  | D45: =IFERROR(VLOOKUP(B45,'اسماء العملاء'!$A$2:$C$142,2,FALSE),"") ->  | F45: =IFERROR(VLOOKUP(B45,'اسماء العملاء'!$A$2:$C$142,3,FALSE),"") ->  | H45: =IFERROR(VLOOKUP(G45,'انواع الفلاتر'!$B$2:$C$52,2,FALSE),"") ->  | N45: 0 | T45: =IF(Sadad>Q45,0,N45-Sadad*P45) -> 0
C46: =IFERROR(VLOOKUP(B46,'اسماء العملاء'!$A$2:$E$142,5,FALSE),"") ->  | D46: =IFERROR(VLOOKUP(B46,'اسماء العملاء'!$A$2:$C$142,2,FALSE),"") ->  | F46: =IFERROR(VLOOKUP(B46,'اسماء العملاء'!$A$2:$C$142,3,FALSE),"") ->  | H46: =IFERROR(VLOOKUP(G46,'انواع الفلاتر'!$B$2:$C$52,2,FALSE),"") ->  | N46: 0 | T46: =IF(Sadad>Q46,0,N46-Sadad*P46) -> 0
C47: =IFERROR(VLOOKUP(B47,'اسماء العملاء'!$A$2:$E$142,5,FALSE),"") ->  | D47: =IFERROR(VLOOKUP(B47,'اسماء العملاء'!$A$2:$C$142,2,FALSE),"") ->  | F47: =IFERROR(VLOOKUP(B47,'اسماء العملاء'!$A$2:$C$142,3,FALSE),"") ->  | H47: =IFERROR(VLOOKUP(G47,'انواع الفلاتر'!$B$2:$C$52,2,FALSE),"") ->  | N47: 0 | T47: =IF(Sadad>Q47,0,N47-Sadad*P47) -> 0
C48: =IFERROR(VLOOKUP(B48,'اسماء العملاء'!$A$2:$E$142,5,FALSE),"") ->  | D48: =IFERROR(VLOOKUP(B48,'اسماء العملاء'!$A$2:$C$142,2,FALSE),"") ->  | F48: =IFERROR(VLOOKUP(B48,'اسماء العملاء'!$A$2:$C$142,3,FALSE),"") ->  | H48: =IFERROR(VLOOKUP(G48,'انواع الفلاتر'!$B$2:$C$52,2,FALSE),"") ->  | N48: 0 | T48: =IF(Sadad>Q48,0,N48-Sadad*P48) -> 0
C49: =IFERROR(VLOOKUP(B49,'اسماء العملاء'!$A$2:$E$142,5,FALSE),"") ->  | D49: =IFERROR(VLOOKUP(B49,'اسماء العملاء'!$A$2:$C$142,2,FALSE),"") ->  | F49: =IFERROR(VLOOKUP(B49,'اسماء العملاء'!$A$2:$C$142,3,FALSE),"") ->  | H49: =IFERROR(VLOOKUP(G49,'انواع الفلاتر'!$B$2:$C$52,2,FALSE),"") ->  | N49: 0 | T49: =IF(Sadad>Q49,0,N49-Sadad*P49) -> 0
C50: =IFERROR(VLOOKUP(B50,'اسماء العملاء'!$A$2:$E$142,5,FALSE),"") ->  | D50: =IFERROR(VLOOKUP(B50,'اسماء العملاء'!$A$2:$C$142,2,FALSE),"") ->  | F50: =IFERROR(VLOOKUP(B50,'اسماء العملاء'!$A$2:$C$142,3,FALSE),"") ->  | H50: =IFERROR(VLOOKUP(G50,'انواع الفلاتر'!$B$2:$C$52,2,FALSE),"") ->  | N50: 0 | T50: =IF(Sadad>Q50,0,N50-Sadad*P50) -> 0
C51: =IFERROR(VLOOKUP(B51,'اسماء العملاء'!$A$2:$E$142,5,FALSE),"") ->  | D51: =IFERROR(VLOOKUP(B51,'اسماء العملاء'!$A$2:$C$142,2,FALSE),"") ->  | F51: =IFERROR(VLOOKUP(B51,'اسماء العملاء'!$A$2:$C$142,3,FALSE),"") ->  | H51: =IFERROR(VLOOKUP(G51,'انواع الفلاتر'!$B$2:$C$52,2,FALSE),"") ->  | N51: 0 | T51: =IF(Sadad>Q51,0,N51-Sadad*P51) -> 0
C52: =IFERROR(VLOOKUP(B52,'اسماء العملاء'!$A$2:$E$142,5,FALSE),"") ->  | D52: =IFERROR(VLOOKUP(B52,'اسماء العملاء'!$A$2:$C$142,2,FALSE),"") ->  | F52: =IFERROR(VLOOKUP(B52,'اسماء العملاء'!$A$2:$C$142,3,FALSE),"") ->  | H52: =IFERROR(VLOOKUP(G52,'انواع الفلاتر'!$B$2:$C$52,2,FALSE),"") ->  | N52: 0 | T52: =IF(Sadad>Q52,0,N52-Sadad*P52) -> 0
C53: =IFERROR(VLOOKUP(B53,'اسماء العملاء'!$A$2:$E$142,5,FALSE),"") ->  | D53: =IFERROR(VLOOKUP(B53,'اسماء العملاء'!$A$2:$C$142,2,FALSE),"") ->  | F53: =IFERROR(VLOOKUP(B53,'اسماء العملاء'!$A$2:$C$142,3,FALSE),"") ->  | H53: =IFERROR(VLOOKUP(G53,'انواع الفلاتر'!$B$2:$C$52,2,FALSE),"") ->  | N53: 0 | T53: =IF(Sadad>Q53,0,N53-Sadad*P53) -> 0
C54: =IFERROR(VLOOKUP(B54,'اسماء العملاء'!$A$2:$E$142,5,FALSE),"") ->  | D54: =IFERROR(VLOOKUP(B54,'اسماء العملاء'!$A$2:$C$142,2,FALSE),"") ->  | F54: =IFERROR(VLOOKUP(B54,'اسماء العملاء'!$A$2:$C$142,3,FALSE),"") ->  | H54: =IFERROR(VLOOKUP(G54,'انواع الفلاتر'!$B$2:$C$52,2,FALSE),"") ->  | N54: 0 | T54: =IF(Sadad>Q54,0,N54-Sadad*P54) -> 0
C55: =IFERROR(VLOOKUP(B55,'اسماء العملاء'!$A$2:$E$142,5,FALSE),"") ->  | D55: =IFERROR(VLOOKUP(B55,'اسماء العملاء'!$A$2:$C$142,2,FALSE),"") ->  | F55: =IFERROR(VLOOKUP(B55,'اسماء العملاء'!$A$2:$C$142,3,FALSE),"") ->  | H55: =IFERROR(VLOOKUP(G55,'انواع الفلاتر'!$B$2:$C$52,2,FALSE),"") ->  | N55: 0 | T55: =IF(Sadad>Q55,0,N55-Sadad*P55) -> 0
C56: =IFERROR(VLOOKUP(B56,'اسماء العملاء'!$A$2:$E$142,5,FALSE),"") ->  | D56: =IFERROR(VLOOKUP(B56,'اسماء العملاء'!$A$2:$C$142,2,FALSE),"") ->  | F56: =IFERROR(VLOOKUP(B56,'اسماء العملاء'!$A$2:$C$142,3,FALSE),"") ->  | H56: =IFERROR(VLOOKUP(G56,'انواع الفلاتر'!$B$2:$C$52,2,FALSE),"") ->  | N56: 0 | T56: =IF(Sadad>Q56,0,N56-Sadad*P56) -> 0
C57: =IFERROR(VLOOKUP(B57,'اسماء العملاء'!$A$2:$E$142,5,FALSE),"") ->  | D57: =IFERROR(VLOOKUP(B57,'اسماء العملاء'!$A$2:$C$142,2,FALSE),"") ->  | F57: =IFERROR(VLOOKUP(B57,'اسماء العملاء'!$A$2:$C$142,3,FALSE),"") ->  | H57: =IFERROR(VLOOKUP(G57,'انواع الفلاتر'!$B$2:$C$52,2,FALSE),"") ->  | N57: 0 | T57: =IF(Sadad>Q57,0,N57-Sadad*P57) -> 0
C58: =IFERROR(VLOOKUP(B58,'اسماء العملاء'!$A$2:$E$142,5,FALSE),"") ->  | D58: =IFERROR(VLOOKUP(B58,'اسماء العملاء'!$A$2:$C$142,2,FALSE),"") ->  | F58: =IFERROR(VLOOKUP(B58,'اسماء العملاء'!$A$2:$C$142,3,FALSE),"") ->  | H58: =IFERROR(VLOOKUP(G58,'انواع الفلاتر'!$B$2:$C$52,2,FALSE),"") ->  | N58: 0 | T58: =IF(Sadad>Q58,0,N58-Sadad*P58) -> 0
C59: =IFERROR(VLOOKUP(B59,'اسماء العملاء'!$A$2:$E$142,5,FALSE),"") ->  | D59: =IFERROR(VLOOKUP(B59,'اسماء العملاء'!$A$2:$C$142,2,FALSE),"") ->  | F59: =IFERROR(VLOOKUP(B59,'اسماء العملاء'!$A$2:$C$142,3,FALSE),"") ->  | H59: =IFERROR(VLOOKUP(G59,'انواع الفلاتر'!$B$2:$C$52,2,FALSE),"") ->  | N59: 0 | T59: =IF(Sadad>Q59,0,N59-Sadad*P59) -> 0
C60: =IFERROR(VLOOKUP(B60,'اسماء العملاء'!$A$2:$E$142,5,FALSE),"") ->  | D60: =IFERROR(VLOOKUP(B60,'اسماء العملاء'!$A$2:$C$142,2,FALSE),"") ->  | F60: =IFERROR(VLOOKUP(B60,'اسماء العملاء'!$A$2:$C$142,3,FALSE),"") ->  | H60: =IFERROR(VLOOKUP(G60,'انواع الفلاتر'!$B$2:$C$52,2,FALSE),"") ->  | N60: 0 | T60: =IF(Sadad>Q60,0,N60-Sadad*P60) -> 0
C61: =IFERROR(VLOOKUP(B61,'اسماء العملاء'!$A$2:$E$142,5,FALSE),"") ->  | D61: =IFERROR(VLOOKUP(B61,'اسماء العملاء'!$A$2:$C$142,2,FALSE),"") ->  | F61: =IFERROR(VLOOKUP(B61,'اسماء العملاء'!$A$2:$C$142,3,FALSE),"") ->  | H61: =IFERROR(VLOOKUP(G61,'انواع الفلاتر'!$B$2:$C$52,2,FALSE),"") ->  | N61: 0 | T61: =IF(Sadad>Q61,0,N61-Sadad*P61) -> 0
C62: =IFERROR(VLOOKUP(B62,'اسماء العملاء'!$A$2:$E$142,5,FALSE),"") ->  | D62: =IFERROR(VLOOKUP(B62,'اسماء العملاء'!$A$2:$C$142,2,FALSE),"") ->  | F62: =IFERROR(VLOOKUP(B62,'اسماء العملاء'!$A$2:$C$142,3,FALSE),"") ->  | H62: =IFERROR(VLOOKUP(G62,'انواع الفلاتر'!$B$2:$C$52,2,FALSE),"") ->  | N62: 0 | T62: =IF(Sadad>Q62,0,N62-Sadad*P62) -> 0
C63: =IFERROR(VLOOKUP(B63,'اسماء العملاء'!$A$2:$E$142,5,FALSE),"") ->  | D63: =IFERROR(VLOOKUP(B63,'اسماء العملاء'!$A$2:$C$142,2,FALSE),"") ->  | F63: =IFERROR(VLOOKUP(B63,'اسماء العملاء'!$A$2:$C$142,3,FALSE),"") ->  | H63: =IFERROR(VLOOKUP(G63,'انواع الفلاتر'!$B$2:$C$52,2,FALSE),"") ->  | N63: 0 | T63: =IF(Sadad>Q63,0,N63-Sadad*P63) -> 0
C64: =IFERROR(VLOOKUP(B64,'اسماء العملاء'!$A$2:$E$142,5,FALSE),"") ->  | D64: =IFERROR(VLOOKUP(B64,'اسماء العملاء'!$A$2:$C$142,2,FALSE),"") ->  | F64: =IFERROR(VLOOKUP(B64,'اسماء العملاء'!$A$2:$C$142,3,FALSE),"") ->  | H64: =IFERROR(VLOOKUP(G64,'انواع الفلاتر'!$B$2:$C$52,2,FALSE),"") ->  | N64: 0 | T64: =IF(Sadad>Q64,0,N64-Sadad*P64) -> 0
C65: =IFERROR(VLOOKUP(B65,'اسماء العملاء'!$A$2:$E$142,5,FALSE),"") ->  | D65: =IFERROR(VLOOKUP(B65,'اسماء العملاء'!$A$2:$C$142,2,FALSE),"") ->  | F65: =IFERROR(VLOOKUP(B65,'اسماء العملاء'!$A$2:$C$142,3,FALSE),"") ->  | H65: =IFERROR(VLOOKUP(G65,'انواع الفلاتر'!$B$2:$C$52,2,FALSE),"") ->  | N65: 0 | T65: =IF(Sadad>Q65,0,N65-Sadad*P65) -> 0
C66: =IFERROR(VLOOKUP(B66,'اسماء العملاء'!$A$2:$E$142,5,FALSE),"") ->  | D66: =IFERROR(VLOOKUP(B66,'اسماء العملاء'!$A$2:$C$142,2,FALSE),"") ->  | F66: =IFERROR(VLOOKUP(B66,'اسماء العملاء'!$A$2:$C$142,3,FALSE),"") ->  | H66: =IFERROR(VLOOKUP(G66,'انواع الفلاتر'!$B$2:$C$52,2,FALSE),"") ->  | N66: 0 | T66: =IF(Sadad>Q66,0,N66-Sadad*P66) -> 0
C67: =IFERROR(VLOOKUP(B67,'اسماء العملاء'!$A$2:$E$142,5,FALSE),"") ->  | D67: =IFERROR(VLOOKUP(B67,'اسماء العملاء'!$A$2:$C$142,2,FALSE),"") ->  | F67: =IFERROR(VLOOKUP(B67,'اسماء العملاء'!$A$2:$C$142,3,FALSE),"") ->  | H67: =IFERROR(VLOOKUP(G67,'انواع الفلاتر'!$B$2:$C$52,2,FALSE),"") ->  | N67: 0 | T67: =IF(Sadad>Q67,0,N67-Sadad*P67) -> 0 | AN67: =IFERROR(IF((COLUMN()-22)/3>=$Q67+ROUNDUP($R67/$P67,0),"",EDATE(AK67,1)),"") ->  | AQ67: =IFERROR(IF((COLUMN()-22)/3>=$Q67+ROUNDUP($R67/$P67,0),"",EDATE(AN67,1)),"") ->  | AT67: =IFERROR(IF((COLUMN()-22)/3>=$Q67+ROUNDUP($R67/$P67,0),"",EDATE(AQ67,1)),"") ->  | AW67: =IFERROR(IF((COLUMN()-22)/3>=$Q67+ROUNDUP($R67/$P67,0),"",EDATE(AT67,1)),"") ->  | AZ67: =IFERROR(IF((COLUMN()-22)/3>=$Q67+ROUNDUP($R67/$P67,0),"",EDATE(AW67,1)),"") ->  | BC67: =IFERROR(IF((COLUMN()-22)/3>=$Q67+ROUNDUP($R67/$P67,0),"",EDATE(AZ67,1)),"") ->  | BF67: =IFERROR(IF((COLUMN()-22)/3>=$Q67+ROUNDUP($R67/$P67,0),"",EDATE(BC67,1)),"") ->  | BI67: =IFERROR(IF((COLUMN()-22)/3>=$Q67+ROUNDUP($R67/$P67,0),"",EDATE(BF67,1)),"") ->  | BL67: =IFERROR(IF((COLUMN()-22)/3>=$Q67+ROUNDUP($R67/$P67,0),"",EDATE(BI67,1)),"") ->  | BO67: =IFERROR(IF((COLUMN()-22)/3>=$Q67+ROUNDUP($R67/$P67,0),"",EDATE(BL67,1)),"") ->  | BR67: =IFERROR(IF((COLUMN()-22)/3>=$Q67+ROUNDUP($R67/$P67,0),"",EDATE(BO67,1)),"") ->  | BU67: =IFERROR(IF((COLUMN()-22)/3>=$Q67+ROUNDUP($R67/$P67,0),"",EDATE(BR67,1)),"") ->  | BX67: =IFERROR(IF((COLUMN()-22)/3>=$Q67+ROUNDUP($R67/$P67,0),"",EDATE(BU67,1)),"") ->  | CA67: =IFERROR(IF((COLUMN()-22)/3>=$Q67+ROUNDUP($R67/$P67,0),"",EDATE(BX67,1)),"") ->  | CD67: =IFERROR(IF((COLUMN()-22)/3>=$Q67+ROUNDUP($R67/$P67,0),"",EDATE(CA67,1)),"") ->  | CG67: =IFERROR(IF((COLUMN()-22)/3>=$Q67+ROUNDUP($R67/$P67,0),"",EDATE(CD67,1)),"") ->  | CJ67: =IFERROR(IF((COLUMN()-22)/3>=$Q67+ROUNDUP($R67/$P67,0),"",EDATE(CG67,1)),"") ->  | CM67: =IFERROR(IF((COLUMN()-22)/3>=$Q67+ROUNDUP($R67/$P67,0),"",EDATE(CJ67,1)),"") ->  | CP67: =IFERROR(IF((COLUMN()-22)/3>=$Q67+ROUNDUP($R67/$P67,0),"",EDATE(CM67,1)),"") ->  | CS67: =IFERROR(IF((COLUMN()-22)/3>=$Q67+ROUNDUP($R67/$P67,0),"",EDATE(CP67,1)),"") ->  | CV67: =IFERROR(IF((COLUMN()-22)/3>=$Q67+ROUNDUP($R67/$P67,0),"",EDATE(CS67,1)),"") ->  | CY67: =IFERROR(IF((COLUMN()-22)/3>=$Q67+ROUNDUP($R67/$P67,0),"",EDATE(CV67,1)),"") ->  | DB67: =IFERROR(IF((COLUMN()-22)/3>=$Q67+ROUNDUP($R67/$P67,0),"",EDATE(CY67,1)),"") ->  | DE67: =IFERROR(IF((COLUMN()-22)/3>=$Q67+ROUNDUP($R67/$P67,0),"",EDATE(DB67,1)),"") ->  | DH67: =IFERROR(IF((COLUMN()-22)/3>=$Q67+ROUNDUP($R67/$P67,0),"",EDATE(DE67,1)),"") ->  | DK67: =IFERROR(IF((COLUMN()-22)/3>=$Q67+ROUNDUP($R67/$P67,0),"",EDATE(DH67,1)),"") ->  | DN67: =IFERROR(IF((COLUMN()-22)/3>=$Q67+ROUNDUP($R67/$P67,0),"",EDATE(DK67,1)),"") ->  | DQ67: =IFERROR(IF((COLUMN()-22)/3>=$Q67+ROUNDUP($R67/$P67,0),"",EDATE(DN67,1)),"") ->  | DT67: =IFERROR(IF((COLUMN()-22)/3>=$Q67+ROUNDUP($R67/$P67,0),"",EDATE(DQ67,1)),"") ->  | DW67: =IFERROR(IF((COLUMN()-22)/3>=$Q67+ROUNDUP($R67/$P67,0),"",EDATE(DT67,1)),"") -> 
A68: =IF(B68="","",TODAY()) ->  | C68: =IFERROR(VLOOKUP(B68,'اسماء العملاء'!$A$2:$E$142,5,FALSE),"") ->  | D68: =IFERROR(VLOOKUP(B68,'اسماء العملاء'!$A$2:$C$142,2,FALSE),"") ->  | F68: =IFERROR(VLOOKUP(B68,'اسماء العملاء'!$A$2:$C$142,3,FALSE),"") ->  | H68: =IFERROR(VLOOKUP(G68,'انواع الفلاتر'!$B$2:$C$52,2,FALSE),"") ->  | J68: =IFERROR(SUM(I68*H68),"") ->  | N68: =SUM(L68-M68) -> 0 | T68: =IF(Sadad>Q68,0,N68-Sadad*P68) -> 0 | X68: =IF(W68>V68,W68-V68,IF(AND(ISBLANK(W68)=TRUE,V68<TODAY()),TODAY()-V68,"")) ->  | Y68: =IFERROR(IF((COLUMN()-22)/3>=$Q68+ROUNDUP($R68/$P68,0),"",EDATE(V68,1)),"") ->  | AA68: =IF(Z68>Y68,Z68-Y68,IF(AND(ISBLANK(Z68)=TRUE,Y68<TODAY()),TODAY()-Y68,"")) ->  | AB68: =IFERROR(IF((COLUMN()-22)/3>=$Q68+ROUNDUP($R68/$P68,0),"",EDATE(Y68,1)),"") ->  | AD68: =IF(AC68>AB68,AC68-AB68,IF(AND(ISBLANK(AC68)=TRUE,AB68<TODAY()),TODAY()-AB68,"")) ->  | AE68: =IFERROR(IF((COLUMN()-22)/3>=$Q68+ROUNDUP($R68/$P68,0),"",EDATE(AB68,1)),"") ->  | AG68: =IF(AF68>AE68,AF68-AE68,IF(AND(ISBLANK(AF68)=TRUE,AE68<TODAY()),TODAY()-AE68,"")) ->  | AH68: =IFERROR(IF((COLUMN()-22)/3>=$Q68+ROUNDUP($R68/$P68,0),"",EDATE(AE68,1)),"") ->  | AJ68: =IF(AI68>AH68,AI68-AH68,IF(AND(ISBLANK(AI68)=TRUE,AH68<TODAY()),TODAY()-AH68,"")) ->  | AK68: =IFERROR(IF((COLUMN()-22)/3>=$Q68+ROUNDUP($R68/$P68,0),"",EDATE(AH68,1)),"") ->  | AM68: =IF(AL68>AK68,AL68-AK68,IF(AND(ISBLANK(AL68)=TRUE,AK68<TODAY()),TODAY()-AK68,"")) ->  | AP68: =IF(AO68>AN68,AO68-AN68,IF(AND(ISBLANK(AO68)=TRUE,AN68<TODAY()),TODAY()-AN68,"")) ->  | AS68: =IF(AR68>AQ68,AR68-AQ68,IF(AND(ISBLANK(AR68)=TRUE,AQ68<TODAY()),TODAY()-AQ68,"")) ->  | AV68: =IF(AU68>AT68,AU68-AT68,IF(AND(ISBLANK(AU68)=TRUE,AT68<TODAY()),TODAY()-AT68,"")) ->  | AY68: =IF(AX68>AW68,AX68-AW68,IF(AND(ISBLANK(AX68)=TRUE,AW68<TODAY()),TODAY()-AW68,"")) ->  | BB68: =IF(BA68>AZ68,BA68-AZ68,IF(AND(ISBLANK(BA68)=TRUE,AZ68<TODAY()),TODAY()-AZ68,"")) ->  | BE68: =IF(BD68>BC68,BD68-BC68,IF(AND(ISBLANK(BD68)=TRUE,BC68<TODAY()),TODAY()-BC68,"")) ->  | BH68: =IF(BG68>BF68,BG68-BF68,IF(AND(ISBLANK(BG68)=TRUE,BF68<TODAY()),TODAY()-BF68,"")) ->  | BK68: =IF(BJ68>BI68,BJ68-BI68,IF(AND(ISBLANK(BJ68)=TRUE,BI68<TODAY()),TODAY()-BI68,"")) ->  | BN68: =IF(BM68>BL68,BM68-BL68,IF(AND(ISBLANK(BM68)=TRUE,BL68<TODAY()),TODAY()-BL68,"")) ->  | BQ68: =IF(BP68>BO68,BP68-BO68,IF(AND(ISBLANK(BP68)=TRUE,BO68<TODAY()),TODAY()-BO68,"")) ->  | BT68: =IF(BS68>BR68,BS68-BR68,IF(AND(ISBLANK(BS68)=TRUE,BR68<TODAY()),TODAY()-BR68,"")) ->  | BW68: =IF(BV68>BU68,BV68-BU68,IF(AND(ISBLANK(BV68)=TRUE,BU68<TODAY()),TODAY()-BU68,"")) ->  | BZ68: =IF(BY68>BX68,BY68-BX68,IF(AND(ISBLANK(BY68)=TRUE,BX68<TODAY()),TODAY()-BX68,"")) ->  | CC68: =IF(CB68>CA68,CB68-CA68,IF(AND(ISBLANK(CB68)=TRUE,CA68<TODAY()),TODAY()-CA68,"")) ->  | CF68: =IF(CE68>CD68,CE68-CD68,IF(AND(ISBLANK(CE68)=TRUE,CD68<TODAY()),TODAY()-CD68,"")) ->  | CI68: =IF(CH68>CG68,CH68-CG68,IF(AND(ISBLANK(CH68)=TRUE,CG68<TODAY()),TODAY()-CG68,"")) ->  | CL68: =IF(CK68>CJ68,CK68-CJ68,IF(AND(ISBLANK(CK68)=TRUE,CJ68<TODAY()),TODAY()-CJ68,"")) ->  | CO68: =IF(CN68>CM68,CN68-CM68,IF(AND(ISBLANK(CN68)=TRUE,CM68<TODAY()),TODAY()-CM68,"")) ->  | CR68: =IF(CQ68>CP68,CQ68-CP68,IF(AND(ISBLANK(CQ68)=TRUE,CP68<TODAY()),TODAY()-CP68,"")) ->  | CU68: =IF(CT68>CS68,CT68-CS68,IF(AND(ISBLANK(CT68)=TRUE,CS68<TODAY()),TODAY()-CS68,"")) ->  | CX68: =IF(CW68>CV68,CW68-CV68,IF(AND(ISBLANK(CW68)=TRUE,CV68<TODAY()),TODAY()-CV68,"")) ->  | DA68: =IF(CZ68>CY68,CZ68-CY68,IF(AND(ISBLANK(CZ68)=TRUE,CY68<TODAY()),TODAY()-CY68,"")) ->  | DD68: =IF(DC68>DB68,DC68-DB68,IF(AND(ISBLANK(DC68)=TRUE,DB68<TODAY()),TODAY()-DB68,"")) ->  | DG68: =IF(DF68>DE68,DF68-DE68,IF(AND(ISBLANK(DF68)=TRUE,DE68<TODAY()),TODAY()-DE68,"")) ->  | DJ68: =IF(DI68>DH68,DI68-DH68,IF(AND(ISBLANK(DI68)=TRUE,DH68<TODAY()),TODAY()-DH68,"")) ->  | DM68: =IF(DL68>DK68,DL68-DK68,IF(AND(ISBLANK(DL68)=TRUE,DK68<TODAY()),TODAY()-DK68,"")) ->  | DP68: =IF(DO68>DN68,DO68-DN68,IF(AND(ISBLANK(DO68)=TRUE,DN68<TODAY()),TODAY()-DN68,"")) ->  | DS68: =IF(DR68>DQ68,DR68-DQ68,IF(AND(ISBLANK(DR68)=TRUE,DQ68<TODAY()),TODAY()-DQ68,"")) ->  | DV68: =IF(DU68>DT68,DU68-DT68,IF(AND(ISBLANK(DU68)=TRUE,DT68<TODAY()),TODAY()-DT68,"")) ->  | DY68: =IF(DX68>DW68,DX68-DW68,IF(AND(ISBLANK(DX68)=TRUE,DW68<TODAY()),TODAY()-DW68,"")) -> 
C69: =IFERROR(VLOOKUP(B69,'اسماء العملاء'!$A$2:$E$142,5,FALSE),"") ->  | D69: =IFERROR(VLOOKUP(B69,'اسماء العملاء'!$A$2:$C$142,2,FALSE),"") ->  | F69: =IFERROR(VLOOKUP(B69,'اسماء العملاء'!$A$2:$C$142,3,FALSE),"") ->  | H69: =IFERROR(VLOOKUP(G69,'انواع الفلاتر'!$B$2:$C$52,2,FALSE),"") ->  | N69: 0 | T69: =IF(Sadad>Q69,0,N69-Sadad*P69) -> 0 | V69: =IF(ISBLANK(U69),"",EDATE(U69,1)+S69) -> 
C70: =IFERROR(VLOOKUP(B70,'اسماء العملاء'!$A$2:$E$142,5,FALSE),"") ->  | D70: =IFERROR(VLOOKUP(B70,'اسماء العملاء'!$A$2:$C$142,2,FALSE),"") ->  | F70: =IFERROR(VLOOKUP(B70,'اسماء العملاء'!$A$2:$C$142,3,FALSE),"") ->  | H70: =IFERROR(VLOOKUP(G70,'انواع الفلاتر'!$B$2:$C$52,2,FALSE),"") ->  | N70: 0 | T70: =IF(Sadad>Q70,0,N70-Sadad*P70) -> 0
C71: =IFERROR(VLOOKUP(B71,'اسماء العملاء'!$A$2:$E$142,5,FALSE),"") ->  | D71: =IFERROR(VLOOKUP(B71,'اسماء العملاء'!$A$2:$C$142,2,FALSE),"") ->  | F71: =IFERROR(VLOOKUP(B71,'اسماء العملاء'!$A$2:$C$142,3,FALSE),"") ->  | H71: =IFERROR(VLOOKUP(G71,'انواع الفلاتر'!$B$2:$C$52,2,FALSE),"") ->  | N71: 0 | T71: =IF(Sadad>Q71,0,N71-Sadad*P71) -> 0
C72: =IFERROR(VLOOKUP(B72,'اسماء العملاء'!$A$2:$E$142,5,FALSE),"") ->  | D72: =IFERROR(VLOOKUP(B72,'اسماء العملاء'!$A$2:$C$142,2,FALSE),"") ->  | F72: =IFERROR(VLOOKUP(B72,'اسماء العملاء'!$A$2:$C$142,3,FALSE),"") ->  | H72: =IFERROR(VLOOKUP(G72,'انواع الفلاتر'!$B$2:$C$52,2,FALSE),"") ->  | N72: 0 | T72: =IF(Sadad>Q72,0,N72-Sadad*P72) -> 0
C73: =IFERROR(VLOOKUP(B73,'اسماء العملاء'!$A$2:$E$142,5,FALSE),"") ->  | D73: =IFERROR(VLOOKUP(B73,'اسماء العملاء'!$A$2:$C$142,2,FALSE),"") ->  | F73: =IFERROR(VLOOKUP(B73,'اسماء العملاء'!$A$2:$C$142,3,FALSE),"") ->  | H73: =IFERROR(VLOOKUP(G73,'انواع الفلاتر'!$B$2:$C$52,2,FALSE),"") ->  | N73: 0 | T73: =IF(Sadad>Q73,0,N73-Sadad*P73) -> 0
C74: =IFERROR(VLOOKUP(B74,'اسماء العملاء'!$A$2:$E$142,5,FALSE),"") ->  | D74: =IFERROR(VLOOKUP(B74,'اسماء العملاء'!$A$2:$C$142,2,FALSE),"") ->  | F74: =IFERROR(VLOOKUP(B74,'اسماء العملاء'!$A$2:$C$142,3,FALSE),"") ->  | H74: =IFERROR(VLOOKUP(G74,'انواع الفلاتر'!$B$2:$C$52,2,FALSE),"") ->  | N74: 0 | T74: =IF(Sadad>Q74,0,N74-Sadad*P74) -> 0
C75: =IFERROR(VLOOKUP(B75,'اسماء العملاء'!$A$2:$E$142,5,FALSE),"") ->  | D75: =IFERROR(VLOOKUP(B75,'اسماء العملاء'!$A$2:$C$142,2,FALSE),"") ->  | F75: =IFERROR(VLOOKUP(B75,'اسماء العملاء'!$A$2:$C$142,3,FALSE),"") ->  | H75: =IFERROR(VLOOKUP(G75,'انواع الفلاتر'!$B$2:$C$52,2,FALSE),"") ->  | N75: 0 | T75: =IF(Sadad>Q75,0,N75-Sadad*P75) -> 0
C76: =IFERROR(VLOOKUP(B76,'اسماء العملاء'!$A$2:$E$142,5,FALSE),"") ->  | D76: =IFERROR(VLOOKUP(B76,'اسماء العملاء'!$A$2:$C$142,2,FALSE),"") ->  | F76: =IFERROR(VLOOKUP(B76,'اسماء العملاء'!$A$2:$C$142,3,FALSE),"") ->  | H76: =IFERROR(VLOOKUP(G76,'انواع الفلاتر'!$B$2:$C$52,2,FALSE),"") ->  | N76: 0 | T76: =IF(Sadad>Q76,0,N76-Sadad*P76) -> 0
C77: =IFERROR(VLOOKUP(B77,'اسماء العملاء'!$A$2:$E$142,5,FALSE),"") ->  | D77: =IFERROR(VLOOKUP(B77,'اسماء العملاء'!$A$2:$C$142,2,FALSE),"") ->  | F77: =IFERROR(VLOOKUP(B77,'اسماء العملاء'!$A$2:$C$142,3,FALSE),"") ->  | H77: =IFERROR(VLOOKUP(G77,'انواع الفلاتر'!$B$2:$C$52,2,FALSE),"") ->  | N77: 0 | T77: =IF(Sadad>Q77,0,N77-Sadad*P77) -> 0
C78: =IFERROR(VLOOKUP(B78,'اسماء العملاء'!$A$2:$E$142,5,FALSE),"") ->  | D78: =IFERROR(VLOOKUP(B78,'اسماء العملاء'!$A$2:$C$142,2,FALSE),"") ->  | F78: =IFERROR(VLOOKUP(B78,'اسماء العملاء'!$A$2:$C$142,3,FALSE),"") ->  | H78: =IFERROR(VLOOKUP(G78,'انواع الفلاتر'!$B$2:$C$52,2,FALSE),"") ->  | N78: 0 | T78: =IF(Sadad>Q78,0,N78-Sadad*P78) -> 0
C79: =IFERROR(VLOOKUP(B79,'اسماء العملاء'!$A$2:$E$142,5,FALSE),"") ->  | D79: =IFERROR(VLOOKUP(B79,'اسماء العملاء'!$A$2:$C$142,2,FALSE),"") ->  | F79: =IFERROR(VLOOKUP(B79,'اسماء العملاء'!$A$2:$C$142,3,FALSE),"") ->  | H79: =IFERROR(VLOOKUP(G79,'انواع الفلاتر'!$B$2:$C$52,2,FALSE),"") ->  | N79: 0 | T79: =IF(Sadad>Q79,0,N79-Sadad*P79) -> 0
C80: =IFERROR(VLOOKUP(B80,'اسماء العملاء'!$A$2:$E$142,5,FALSE),"") ->  | D80: =IFERROR(VLOOKUP(B80,'اسماء العملاء'!$A$2:$C$142,2,FALSE),"") ->  | F80: =IFERROR(VLOOKUP(B80,'اسماء العملاء'!$A$2:$C$142,3,FALSE),"") ->  | H80: =IFERROR(VLOOKUP(G80,'انواع الفلاتر'!$B$2:$C$52,2,FALSE),"") ->  | N80: 0 | T80: =IF(Sadad>Q80,0,N80-Sadad*P80) -> 0
C81: =IFERROR(VLOOKUP(B81,'اسماء العملاء'!$A$2:$E$142,5,FALSE),"") ->  | D81: =IFERROR(VLOOKUP(B81,'اسماء العملاء'!$A$2:$C$142,2,FALSE),"") ->  | F81: =IFERROR(VLOOKUP(B81,'اسماء العملاء'!$A$2:$C$142,3,FALSE),"") ->  | H81: =IFERROR(VLOOKUP(G81,'انواع الفلاتر'!$B$2:$C$52,2,FALSE),"") ->  | N81: 0 | T81: =IF(Sadad>Q81,0,N81-Sadad*P81) -> 0
C82: =IFERROR(VLOOKUP(B82,'اسماء العملاء'!$A$2:$E$142,5,FALSE),"") ->  | D82: =IFERROR(VLOOKUP(B82,'اسماء العملاء'!$A$2:$C$142,2,FALSE),"") ->  | F82: =IFERROR(VLOOKUP(B82,'اسماء العملاء'!$A$2:$C$142,3,FALSE),"") ->  | H82: =IFERROR(VLOOKUP(G82,'انواع الفلاتر'!$B$2:$C$52,2,FALSE),"") ->  | N82: 0 | T82: =IF(Sadad>Q82,0,N82-Sadad*P82) -> 0
C83: =IFERROR(VLOOKUP(B83,'اسماء العملاء'!$A$2:$E$142,5,FALSE),"") ->  | D83: =IFERROR(VLOOKUP(B83,'اسماء العملاء'!$A$2:$C$142,2,FALSE),"") ->  | F83: =IFERROR(VLOOKUP(B83,'اسماء العملاء'!$A$2:$C$142,3,FALSE),"") ->  | H83: =IFERROR(VLOOKUP(G83,'انواع الفلاتر'!$B$2:$C$52,2,FALSE),"") ->  | N83: 0 | T83: =IF(Sadad>Q83,0,N83-Sadad*P83) -> 0
C84: =IFERROR(VLOOKUP(B84,'اسماء العملاء'!$A$2:$E$142,5,FALSE),"") ->  | D84: =IFERROR(VLOOKUP(B84,'اسماء العملاء'!$A$2:$C$142,2,FALSE),"") ->  | F84: =IFERROR(VLOOKUP(B84,'اسماء العملاء'!$A$2:$C$142,3,FALSE),"") ->  | H84: =IFERROR(VLOOKUP(G84,'انواع الفلاتر'!$B$2:$C$52,2,FALSE),"") ->  | N84: 0 | T84: =IF(Sadad>Q84,0,N84-Sadad*P84) -> 0
C85: =IFERROR(VLOOKUP(B85,'اسماء العملاء'!$A$2:$E$142,5,FALSE),"") ->  | D85: =IFERROR(VLOOKUP(B85,'اسماء العملاء'!$A$2:$C$142,2,FALSE),"") ->  | F85: =IFERROR(VLOOKUP(B85,'اسماء العملاء'!$A$2:$C$142,3,FALSE),"") ->  | H85: =IFERROR(VLOOKUP(G85,'انواع الفلاتر'!$B$2:$C$52,2,FALSE),"") ->  | N85: 0 | T85: =IF(Sadad>Q85,0,N85-Sadad*P85) -> 0
C86: =IFERROR(VLOOKUP(B86,'اسماء العملاء'!$A$2:$E$142,5,FALSE),"") ->  | D86: =IFERROR(VLOOKUP(B86,'اسماء العملاء'!$A$2:$C$142,2,FALSE),"") ->  | F86: =IFERROR(VLOOKUP(B86,'اسماء العملاء'!$A$2:$C$142,3,FALSE),"") ->  | H86: =IFERROR(VLOOKUP(G86,'انواع الفلاتر'!$B$2:$C$52,2,FALSE),"") ->  | N86: 0 | T86: =IF(Sadad>Q86,0,N86-Sadad*P86) -> 0
C87: =IFERROR(VLOOKUP(B87,'اسماء العملاء'!$A$2:$E$142,5,FALSE),"") ->  | D87: =IFERROR(VLOOKUP(B87,'اسماء العملاء'!$A$2:$C$142,2,FALSE),"") ->  | F87: =IFERROR(VLOOKUP(B87,'اسماء العملاء'!$A$2:$C$142,3,FALSE),"") ->  | H87: =IFERROR(VLOOKUP(G87,'انواع الفلاتر'!$B$2:$C$52,2,FALSE),"") ->  | N87: 0 | T87: =IF(Sadad>Q87,0,N87-Sadad*P87) -> 0
C88: =IFERROR(VLOOKUP(B88,'اسماء العملاء'!$A$2:$E$142,5,FALSE),"") ->  | D88: =IFERROR(VLOOKUP(B88,'اسماء العملاء'!$A$2:$C$142,2,FALSE),"") ->  | F88: =IFERROR(VLOOKUP(B88,'اسماء العملاء'!$A$2:$C$142,3,FALSE),"") ->  | H88: =IFERROR(VLOOKUP(G88,'انواع الفلاتر'!$B$2:$C$52,2,FALSE),"") ->  | N88: 0 | T88: =IF(Sadad>Q88,0,N88-Sadad*P88) -> 0
C89: =IFERROR(VLOOKUP(B89,'اسماء العملاء'!$A$2:$E$142,5,FALSE),"") ->  | D89: =IFERROR(VLOOKUP(B89,'اسماء العملاء'!$A$2:$C$142,2,FALSE),"") ->  | F89: =IFERROR(VLOOKUP(B89,'اسماء العملاء'!$A$2:$C$142,3,FALSE),"") ->  | H89: =IFERROR(VLOOKUP(G89,'انواع الفلاتر'!$B$2:$C$52,2,FALSE),"") ->  | N89: 0 | T89: =IF(Sadad>Q89,0,N89-Sadad*P89) -> 0
C90: =IFERROR(VLOOKUP(B90,'اسماء العملاء'!$A$2:$E$142,5,FALSE),"") ->  | D90: =IFERROR(VLOOKUP(B90,'اسماء العملاء'!$A$2:$C$142,2,FALSE),"") ->  | F90: =IFERROR(VLOOKUP(B90,'اسماء العملاء'!$A$2:$C$142,3,FALSE),"") ->  | H90: =IFERROR(VLOOKUP(G90,'انواع الفلاتر'!$B$2:$C$52,2,FALSE),"") ->  | N90: 0 | T90: =IF(Sadad>Q90,0,N90-Sadad*P90) -> 0
C91: =IFERROR(VLOOKUP(B91,'اسماء العملاء'!$A$2:$E$142,5,FALSE),"") ->  | D91: =IFERROR(VLOOKUP(B91,'اسماء العملاء'!$A$2:$C$142,2,FALSE),"") ->  | F91: =IFERROR(VLOOKUP(B91,'اسماء العملاء'!$A$2:$C$142,3,FALSE),"") ->  | H91: =IFERROR(VLOOKUP(G91,'انواع الفلاتر'!$B$2:$C$52,2,FALSE),"") ->  | N91: 0 | T91: =IF(Sadad>Q91,0,N91-Sadad*P91) -> 0
C92: =IFERROR(VLOOKUP(B92,'اسماء العملاء'!$A$2:$E$142,5,FALSE),"") ->  | D92: =IFERROR(VLOOKUP(B92,'اسماء العملاء'!$A$2:$C$142,2,FALSE),"") ->  | F92: =IFERROR(VLOOKUP(B92,'اسماء العملاء'!$A$2:$C$142,3,FALSE),"") ->  | H92: =IFERROR(VLOOKUP(G92,'انواع الفلاتر'!$B$2:$C$52,2,FALSE),"") ->  | N92: 0 | T92: =IF(Sadad>Q92,0,N92-Sadad*P92) -> 0
C93: =IFERROR(VLOOKUP(B93,'اسماء العملاء'!$A$2:$E$142,5,FALSE),"") ->  | D93: =IFERROR(VLOOKUP(B93,'اسماء العملاء'!$A$2:$C$142,2,FALSE),"") ->  | F93: =IFERROR(VLOOKUP(B93,'اسماء العملاء'!$A$2:$C$142,3,FALSE),"") ->  | H93: =IFERROR(VLOOKUP(G93,'انواع الفلاتر'!$B$2:$C$52,2,FALSE),"") ->  | N93: 0 | T93: =IF(Sadad>Q93,0,N93-Sadad*P93) -> 0
C94: =IFERROR(VLOOKUP(B94,'اسماء العملاء'!$A$2:$E$142,5,FALSE),"") ->  | D94: =IFERROR(VLOOKUP(B94,'اسماء العملاء'!$A$2:$C$142,2,FALSE),"") ->  | F94: =IFERROR(VLOOKUP(B94,'اسماء العملاء'!$A$2:$C$142,3,FALSE),"") ->  | H94: =IFERROR(VLOOKUP(G94,'انواع الفلاتر'!$B$2:$C$52,2,FALSE),"") ->  | N94: 0 | T94: =IF(Sadad>Q94,0,N94-Sadad*P94) -> 0
C95: =IFERROR(VLOOKUP(B95,'اسماء العملاء'!$A$2:$E$142,5,FALSE),"") ->  | D95: =IFERROR(VLOOKUP(B95,'اسماء العملاء'!$A$2:$C$142,2,FALSE),"") ->  | F95: =IFERROR(VLOOKUP(B95,'اسماء العملاء'!$A$2:$C$142,3,FALSE),"") ->  | H95: =IFERROR(VLOOKUP(G95,'انواع الفلاتر'!$B$2:$C$52,2,FALSE),"") ->  | N95: 0 | T95: =IF(Sadad>Q95,0,N95-Sadad*P95) -> 0
C96: =IFERROR(VLOOKUP(B96,'اسماء العملاء'!$A$2:$E$142,5,FALSE),"") ->  | D96: =IFERROR(VLOOKUP(B96,'اسماء العملاء'!$A$2:$C$142,2,FALSE),"") ->  | F96: =IFERROR(VLOOKUP(B96,'اسماء العملاء'!$A$2:$C$142,3,FALSE),"") ->  | H96: =IFERROR(VLOOKUP(G96,'انواع الفلاتر'!$B$2:$C$52,2,FALSE),"") ->  | N96: 0 | T96: =IF(Sadad>Q96,0,N96-Sadad*P96) -> 0
C97: =IFERROR(VLOOKUP(B97,'اسماء العملاء'!$A$2:$E$142,5,FALSE),"") ->  | D97: =IFERROR(VLOOKUP(B97,'اسماء العملاء'!$A$2:$C$142,2,FALSE),"") ->  | F97: =IFERROR(VLOOKUP(B97,'اسماء العملاء'!$A$2:$C$142,3,FALSE),"") ->  | H97: =IFERROR(VLOOKUP(G97,'انواع الفلاتر'!$B$2:$C$52,2,FALSE),"") ->  | N97: 0 | T97: =IF(Sadad>Q97,0,N97-Sadad*P97) -> 0
C98: =IFERROR(VLOOKUP(B98,'اسماء العملاء'!$A$2:$E$142,5,FALSE),"") ->  | D98: =IFERROR(VLOOKUP(B98,'اسماء العملاء'!$A$2:$C$142,2,FALSE),"") ->  | F98: =IFERROR(VLOOKUP(B98,'اسماء العملاء'!$A$2:$C$142,3,FALSE),"") ->  | H98: =IFERROR(VLOOKUP(G98,'انواع الفلاتر'!$B$2:$C$52,2,FALSE),"") ->  | N98: 0 | T98: =IF(Sadad>Q98,0,N98-Sadad*P98) -> 0
C99: =IFERROR(VLOOKUP(B99,'اسماء العملاء'!$A$2:$E$142,5,FALSE),"") ->  | D99: =IFERROR(VLOOKUP(B99,'اسماء العملاء'!$A$2:$C$142,2,FALSE),"") ->  | F99: =IFERROR(VLOOKUP(B99,'اسماء العملاء'!$A$2:$C$142,3,FALSE),"") ->  | H99: =IFERROR(VLOOKUP(G99,'انواع الفلاتر'!$B$2:$C$52,2,FALSE),"") ->  | N99: 0 | T99: =IF(Sadad>Q99,0,N99-Sadad*P99) -> 0
C100: =IFERROR(VLOOKUP(B100,'اسماء العملاء'!$A$2:$E$142,5,FALSE),"") ->  | D100: =IFERROR(VLOOKUP(B100,'اسماء العملاء'!$A$2:$C$142,2,FALSE),"") ->  | F100: =IFERROR(VLOOKUP(B100,'اسماء العملاء'!$A$2:$C$142,3,FALSE),"") ->  | H100: =IFERROR(VLOOKUP(G100,'انواع الفلاتر'!$B$2:$C$52,2,FALSE),"") ->  | N100: 0 | T100: =IF(Sadad>Q100,0,N100-Sadad*P100) -> 0
C101: =IFERROR(VLOOKUP(B101,'اسماء العملاء'!$A$2:$E$142,5,FALSE),"") ->  | D101: =IFERROR(VLOOKUP(B101,'اسماء العملاء'!$A$2:$C$142,2,FALSE),"") ->  | F101: =IFERROR(VLOOKUP(B101,'اسماء العملاء'!$A$2:$C$142,3,FALSE),"") ->  | H101: =IFERROR(VLOOKUP(G101,'انواع الفلاتر'!$B$2:$C$52,2,FALSE),"") ->  | N101: 0 | T101: =IF(Sadad>Q101,0,N101-Sadad*P101) -> 0
C102: =IFERROR(VLOOKUP(B102,'اسماء العملاء'!$A$2:$E$142,5,FALSE),"") ->  | D102: =IFERROR(VLOOKUP(B102,'اسماء العملاء'!$A$2:$C$142,2,FALSE),"") ->  | F102: =IFERROR(VLOOKUP(B102,'اسماء العملاء'!$A$2:$C$142,3,FALSE),"") ->  | H102: =IFERROR(VLOOKUP(G102,'انواع الفلاتر'!$B$2:$C$52,2,FALSE),"") ->  | N102: 0 | T102: =IF(Sadad>Q102,0,N102-Sadad*P102) -> 0
C103: =IFERROR(VLOOKUP(B103,'اسماء العملاء'!$A$2:$E$142,5,FALSE),"") ->  | D103: =IFERROR(VLOOKUP(B103,'اسماء العملاء'!$A$2:$C$142,2,FALSE),"") ->  | F103: =IFERROR(VLOOKUP(B103,'اسماء العملاء'!$A$2:$C$142,3,FALSE),"") ->  | H103: =IFERROR(VLOOKUP(G103,'انواع الفلاتر'!$B$2:$C$52,2,FALSE),"") ->  | N103: 0 | T103: =IF(Sadad>Q103,0,N103-Sadad*P103) -> 0
F394: مسلسل | G394: الاسم | I394: يناير2018
F395: 1 | G395: ='انواع الفلاتر'!B2 -> فلتر 5 عادي | I395: فبراير 2018
F396: 2 | G396: ='انواع الفلاتر'!B3 -> فلتر 7 عادي | I396: مارس 2018
F397: 3 | G397: ='انواع الفلاتر'!B4 -> فلتر 5 RO | I397: ابريل 2018
F398: 4 | G398: ='انواع الفلاتر'!B5 -> فلتر 7 RO | I398: مايو 2018
F399: 5 | G399: ='انواع الفلاتر'!B6 -> شمعة ممبرين | I399: يونيو 2018
F400: 6 | G400: ='انواع الفلاتر'!B7 -> شمعة أولى | I400: يوليو 2018
F401: 7 | G401: ='انواع الفلاتر'!B8 -> شمعة ثانية | I401: اغسطس 2018
F402: 8 | G402: ='انواع الفلاتر'!B9 -> شمعة ثالثة | I402: سبتمبر 2018
F403: 9 | G403: ='انواع الفلاتر'!B10 -> شمعة جوز هند | I403: اكتوبر 2018
F404: 10 | G404: ='انواع الفلاتر'!B11 -> شمعة كلسيدة | I404: نوفمبر 2018
F405: 11 | G405: ='انواع الفلاتر'!B12 -> شمعة انفرا | I405: ديسمبر 2018
F406: 12 | G406: ='انواع الفلاتر'!B13 -> شمعة UV | I406: يناير2019
F407: 13 | G407: ='انواع الفلاتر'!B14 -> شاسيه خماسي | I407: فبراير 2019
F408: 14 | G408: ='انواع الفلاتر'!B15 -> شاسيه RO | I408: مارس 2019
F409: 15 | G409: ='انواع الفلاتر'!B16 -> كريمب 2x1 | I409: ابريل 2019
F410: 16 | G410: ='انواع الفلاتر'!B17 -> كريمب قاعدة | I410: مايو 2019
F411: 17 | G411: ='انواع الفلاتر'!B18 -> لوبرشير | I411: يونيو 2019
F412: 18 | G412: ='انواع الفلاتر'!B19 -> هاي برشير | I412: يوليو 2019
F413: 19 | G413: ='انواع الفلاتر'!B20 -> رباعي | I413: اغسطس 2019
F414: 20 | G414: ='انواع الفلاتر'!B21 -> كوع | I414: سبتمبر 2019
F415: 21 | G415: ='انواع الفلاتر'!B22 -> خرطوم | I415: اكتوبر 2019
F416: 22 | G416: ='انواع الفلاتر'!B23 -> هاوزينج | I416: نوفمبر 2019
F417: 23 | G417: ='انواع الفلاتر'!B24 -> ناطرة نصف | I417: ديسمبر 2019
F418: 24 | G418: ='انواع الفلاتر'!B25 -> ناطرة ثلاثة ارباع | I418: يناير2020
F419: 25 | G419: ='انواع الفلاتر'!B26 -> محبس نصف | I419: فبراير 2020
F420: 26 | G420: ='انواع الفلاتر'!B27 -> جوانات | I420: مارس 2020
F421: 27 | G421: ='انواع الفلاتر'!B28 -> خزان | I421: ابريل 2020
F422: 28 | G422: ='انواع الفلاتر'!B29 -> مسامير | I422: مايو 2020
F423: 29 | G423: ='انواع الفلاتر'!B30 -> 0 | I423: يونيو 2020
F424: 30 | G424: ='انواع الفلاتر'!B31 -> 0 | I424: يوليو 2020
F425: 31 | G425: ='انواع الفلاتر'!B32 -> 0 | I425: اغسطس 2020
F426: 32 | G426: ='انواع الفلاتر'!B33 -> 0 | I426: سبتمبر 2020
F427: 33 | G427: ='انواع الفلاتر'!B34 -> 0 | I427: اكتوبر 2020
F428: 34 | G428: ='انواع الفلاتر'!B35 -> 0 | I428: نوفمبر 2020
F429: 35 | G429: ='انواع الفلاتر'!B36 -> 0 | I429: ديسمبر 2020
F430: 36 | G430: ='انواع الفلاتر'!B37 -> 0
F431: 37 | G431: ='انواع الفلاتر'!B38 -> 0
F432: 38 | G432: ='انواع الفلاتر'!B39 -> 0
F433: 39 | G433: ='انواع الفلاتر'!B40 -> 0
F434: 40 | G434: ='انواع الفلاتر'!B41 -> 0
F435: 41 | G435: ='انواع الفلاتر'!B42 -> 0
F436: 42 | G436: ='انواع الفلاتر'!B43 -> 0
F437: 43 | G437: ='انواع الفلاتر'!B44 -> 0
F438: 44 | G438: ='انواع الفلاتر'!B45 -> 0
F439: 45 | G439: ='انواع الفلاتر'!B46 -> 0
F440: 46 | G440: ='انواع الفلاتر'!B47 -> 0
F441: 47 | G441: ='انواع الفلاتر'!B48 -> 0
F442: 48 | G442: ='انواع الفلاتر'!B49 -> 0
F443: 49 | G443: ='انواع الفلاتر'!B50 -> 0
F444: 50 | G444: ='انواع الفلاتر'!B51 -> 0
F445: 51 | G445: ='انواع الفلاتر'!B52 -> 0

Sheet إستحقاق سداد
B1: اسم العميل | C1: كود العميل | D1: عنوان العميل | E1: رقم تليفون العميل | F1: قيمة القسط | G1: الأقساط المتأخرة
G2: رقم القسط | H2: ميعاد القسط | I2: رقم القسط | J2: ميعاد القسط | K2: رقم القسط | L2: ميعاد القسط | M2: رقم القسط | N2: ميعاد القسط | O2: رقم القسط | P2: ميعاد القسط | Q2: رقم القسط | R2: ميعاد القسط
B3: احمد محمد | C3: =IFERROR(VLOOKUP(B3,'اسماء العملاء'!$A$2:$E$142,5,FALSE),"") -> 1 | D3: =IFERROR(VLOOKUP(B3,'اسماء العملاء'!$A$2:$C$142,2,FALSE),"") -> العجمي | E3: =IFERROR(VLOOKUP(B3,'اسماء العملاء'!$A$2:$C$142,3,FALSE),"") -> 123456789 | F3: =IFERROR(VLOOKUP(B3,العملاء!$B$3:$P$103,15,0),"") -> 150 | G3: 4 | H3: 2018-08-12 | I3: 5 | J3: 2018-09-12
B4: صلاح سعيد | C4: =IFERROR(VLOOKUP(B4,'اسماء العملاء'!$A$2:$E$142,5,FALSE),"") -> 3 | D4: =IFERROR(VLOOKUP(B4,'اسماء العملاء'!$A$2:$C$142,2,FALSE),"") -> الحضرة | E4: =IFERROR(VLOOKUP(B4,'اسماء العملاء'!$A$2:$C$142,3,FALSE),"") -> 011234567 | F4: =IFERROR(VLOOKUP(B4,العملاء!$B$3:$P$103,15,0),"") -> 200 | G4: 2 | H4: 2018-08-02 | I4: 3 | J4: 2018-09-02
B5: وليد ابراهيم | C5: =IFERROR(VLOOKUP(B5,'اسماء العملاء'!$A$2:$E$142,5,FALSE),"") -> 8 | D5: =IFERROR(VLOOKUP(B5,'اسماء العملاء'!$A$2:$C$142,2,FALSE),"") -> العجمي | E5: =IFERROR(VLOOKUP(B5,'اسماء العملاء'!$A$2:$C$142,3,FALSE),"") -> 2222222222 | F5: =IFERROR(VLOOKUP(B5,العملاء!$B$3:$P$103,15,0),"") -> 350 | G5: 4 | H5: 2018-08-01 | I5: 5 | J5: 2018-09-01
B6: سمير رياض | C6: =IFERROR(VLOOKUP(B6,'اسماء العملاء'!$A$2:$E$142,5,FALSE),"") -> 9 | D6: =IFERROR(VLOOKUP(B6,'اسماء العملاء'!$A$2:$C$142,2,FALSE),"") -> المندرة | E6: =IFERROR(VLOOKUP(B6,'اسماء العملاء'!$A$2:$C$142,3,FALSE),"") -> 03333333333 | F6: =IFERROR(VLOOKUP(B6,العملاء!$B$3:$P$103,15,0),"") -> 400 | G6: 5 | H6: 2018-07-20 | I6: 6 | J6: 2018-08-20 | K6: 7 | L6: 2018-09-20
C7: =IFERROR(VLOOKUP(B7,'اسماء العملاء'!$A$2:$E$142,5,FALSE),"") ->  | D7: =IFERROR(VLOOKUP(B7,'اسماء العملاء'!$A$2:$C$142,2,FALSE),"") ->  | E7: =IFERROR(VLOOKUP(B7,'اسماء العملاء'!$A$2:$C$142,3,FALSE),"") ->  | F7: =IFERROR(VLOOKUP(B7,العملاء!$B$3:$P$103,15,0),"") -> 
C8: =IFERROR(VLOOKUP(B8,'اسماء العملاء'!$A$2:$E$142,5,FALSE),"") ->  | D8: =IFERROR(VLOOKUP(B8,'اسماء العملاء'!$A$2:$C$142,2,FALSE),"") ->  | E8: =IFERROR(VLOOKUP(B8,'اسماء العملاء'!$A$2:$C$142,3,FALSE),"") ->  | F8: =IFERROR(VLOOKUP(B8,العملاء!$B$3:$P$103,15,0),"") -> 
C9: =IFERROR(VLOOKUP(B9,'اسماء العملاء'!$A$2:$E$142,5,FALSE),"") ->  | D9: =IFERROR(VLOOKUP(B9,'اسماء العملاء'!$A$2:$C$142,2,FALSE),"") ->  | E9: =IFERROR(VLOOKUP(B9,'اسماء العملاء'!$A$2:$C$142,3,FALSE),"") ->  | F9: =IFERROR(VLOOKUP(B9,العملاء!$B$3:$P$103,15,0),"") -> 
C10: =IFERROR(VLOOKUP(B10,'اسماء العملاء'!$A$2:$E$142,5,FALSE),"") ->  | D10: =IFERROR(VLOOKUP(B10,'اسماء العملاء'!$A$2:$C$142,2,FALSE),"") ->  | E10: =IFERROR(VLOOKUP(B10,'اسماء العملاء'!$A$2:$C$142,3,FALSE),"") ->  | F10: =IFERROR(VLOOKUP(B10,العملاء!$B$3:$P$103,15,0),"") -> 
C11: =IFERROR(VLOOKUP(B11,'اسماء العملاء'!$A$2:$E$142,5,FALSE),"") ->  | D11: =IFERROR(VLOOKUP(B11,'اسماء العملاء'!$A$2:$C$142,2,FALSE),"") ->  | E11: =IFERROR(VLOOKUP(B11,'اسماء العملاء'!$A$2:$C$142,3,FALSE),"") ->  | F11: =IFERROR(VLOOKUP(B11,العملاء!$B$3:$P$103,15,0),"") -> 
C12: =IFERROR(VLOOKUP(B12,'اسماء العملاء'!$A$2:$E$142,5,FALSE),"") ->  | D12: =IFERROR(VLOOKUP(B12,'اسماء العملاء'!$A$2:$C$142,2,FALSE),"") ->  | E12: =IFERROR(VLOOKUP(B12,'اسماء العملاء'!$A$2:$C$142,3,FALSE),"") ->  | F12: =IFERROR(VLOOKUP(B12,العملاء!$B$3:$P$103,15,0),"") -> 
C13: =IFERROR(VLOOKUP(B13,'اسماء العملاء'!$A$2:$E$142,5,FALSE),"") ->  | D13: =IFERROR(VLOOKUP(B13,'اسماء العملاء'!$A$2:$C$142,2,FALSE),"") ->  | E13: =IFERROR(VLOOKUP(B13,'اسماء العملاء'!$A$2:$C$142,3,FALSE),"") ->  | F13: =IFERROR(VLOOKUP(B13,العملاء!$B$3:$P$103,15,0),"") -> 
C14: =IFERROR(VLOOKUP(B14,'اسماء العملاء'!$A$2:$E$142,5,FALSE),"") ->  | D14: =IFERROR(VLOOKUP(B14,'اسماء العملاء'!$A$2:$C$142,2,FALSE),"") ->  | E14: =IFERROR(VLOOKUP(B14,'اسماء العملاء'!$A$2:$C$142,3,FALSE),"") ->  | F14: =IFERROR(VLOOKUP(B14,العملاء!$B$3:$P$103,15,0),"") -> 
C15: =IFERROR(VLOOKUP(B15,'اسماء العملاء'!$A$2:$E$142,5,FALSE),"") ->  | D15: =IFERROR(VLOOKUP(B15,'اسماء العملاء'!$A$2:$C$142,2,FALSE),"") ->  | E15: =IFERROR(VLOOKUP(B15,'اسماء العملاء'!$A$2:$C$142,3,FALSE),"") ->  | F15: =IFERROR(VLOOKUP(B15,العملاء!$B$3:$P$103,15,0),"") -> 
C16: =IFERROR(VLOOKUP(B16,'اسماء العملاء'!$A$2:$E$142,5,FALSE),"") ->  | D16: =IFERROR(VLOOKUP(B16,'اسماء العملاء'!$A$2:$C$142,2,FALSE),"") ->  | E16: =IFERROR(VLOOKUP(B16,'اسماء العملاء'!$A$2:$C$142,3,FALSE),"") ->  | F16: =IFERROR(VLOOKUP(B16,العملاء!$B$3:$P$103,15,0),"") -> 
C17: =IFERROR(VLOOKUP(B17,'اسماء العملاء'!$A$2:$E$142,5,FALSE),"") ->  | D17: =IFERROR(VLOOKUP(B17,'اسماء العملاء'!$A$2:$C$142,2,FALSE),"") ->  | E17: =IFERROR(VLOOKUP(B17,'اسماء العملاء'!$A$2:$C$142,3,FALSE),"") ->  | F17: =IFERROR(VLOOKUP(B17,العملاء!$B$3:$P$103,15,0),"") -> 
C18: =IFERROR(VLOOKUP(B18,'اسماء العملاء'!$A$2:$E$142,5,FALSE),"") ->  | D18: =IFERROR(VLOOKUP(B18,'اسماء العملاء'!$A$2:$C$142,2,FALSE),"") ->  | E18: =IFERROR(VLOOKUP(B18,'اسماء العملاء'!$A$2:$C$142,3,FALSE),"") ->  | F18: =IFERROR(VLOOKUP(B18,العملاء!$B$3:$P$103,15,0),"") -> 
C19: =IFERROR(VLOOKUP(B19,'اسماء العملاء'!$A$2:$E$142,5,FALSE),"") ->  | D19: =IFERROR(VLOOKUP(B19,'اسماء العملاء'!$A$2:$C$142,2,FALSE),"") ->  | E19: =IFERROR(VLOOKUP(B19,'اسماء العملاء'!$A$2:$C$142,3,FALSE),"") ->  | F19: =IFERROR(VLOOKUP(B19,العملاء!$B$3:$P$103,15,0),"") -> 
C20: =IFERROR(VLOOKUP(B20,'اسماء العملاء'!$A$2:$E$142,5,FALSE),"") ->  | D20: =IFERROR(VLOOKUP(B20,'اسماء العملاء'!$A$2:$C$142,2,FALSE),"") ->  | E20: =IFERROR(VLOOKUP(B20,'اسماء العملاء'!$A$2:$C$142,3,FALSE),"") ->  | F20: =IFERROR(VLOOKUP(B20,العملاء!$B$3:$P$103,15,0),"") -> 
C21: =IFERROR(VLOOKUP(B21,'اسماء العملاء'!$A$2:$E$142,5,FALSE),"") ->  | D21: =IFERROR(VLOOKUP(B21,'اسماء العملاء'!$A$2:$C$142,2,FALSE),"") ->  | E21: =IFERROR(VLOOKUP(B21,'اسماء العملاء'!$A$2:$C$142,3,FALSE),"") ->  | F21: =IFERROR(VLOOKUP(B21,العملاء!$B$3:$P$103,15,0),"") -> 
C22: =IFERROR(VLOOKUP(B22,'اسماء العملاء'!$A$2:$E$142,5,FALSE),"") ->  | D22: =IFERROR(VLOOKUP(B22,'اسماء العملاء'!$A$2:$C$142,2,FALSE),"") ->  | E22: =IFERROR(VLOOKUP(B22,'اسماء العملاء'!$A$2:$C$142,3,FALSE),"") ->  | F22: =IFERROR(VLOOKUP(B22,العملاء!$B$3:$P$103,15,0),"") -> 
C23: =IFERROR(VLOOKUP(B23,'اسماء العملاء'!$A$2:$E$142,5,FALSE),"") ->  | D23: =IFERROR(VLOOKUP(B23,'اسماء العملاء'!$A$2:$C$142,2,FALSE),"") ->  | E23: =IFERROR(VLOOKUP(B23,'اسماء العملاء'!$A$2:$C$142,3,FALSE),"") ->  | F23: =IFERROR(VLOOKUP(B23,العملاء!$B$3:$P$103,15,0),"") -> 
C24: =IFERROR(VLOOKUP(B24,'اسماء العملاء'!$A$2:$E$142,5,FALSE),"") ->  | D24: =IFERROR(VLOOKUP(B24,'اسماء العملاء'!$A$2:$C$142,2,FALSE),"") ->  | E24: =IFERROR(VLOOKUP(B24,'اسماء العملاء'!$A$2:$C$142,3,FALSE),"") ->  | F24: =IFERROR(VLOOKUP(B24,العملاء!$B$3:$P$103,15,0),"") -> 
C25: =IFERROR(VLOOKUP(B25,'اسماء العملاء'!$A$2:$E$142,5,FALSE),"") ->  | D25: =IFERROR(VLOOKUP(B25,'اسماء العملاء'!$A$2:$C$142,2,FALSE),"") ->  | E25: =IFERROR(VLOOKUP(B25,'اسماء العملاء'!$A$2:$C$142,3,FALSE),"") ->  | F25: =IFERROR(VLOOKUP(B25,العملاء!$B$3:$P$103,15,0),"") -> 
C26: =IFERROR(VLOOKUP(B26,'اسماء العملاء'!$A$2:$E$142,5,FALSE),"") ->  | D26: =IFERROR(VLOOKUP(B26,'اسماء العملاء'!$A$2:$C$142,2,FALSE),"") ->  | E26: =IFERROR(VLOOKUP(B26,'اسماء العملاء'!$A$2:$C$142,3,FALSE),"") ->  | F26: =IFERROR(VLOOKUP(B26,العملاء!$B$3:$P$103,15,0),"") -> 
C27: =IFERROR(VLOOKUP(B27,'اسماء العملاء'!$A$2:$E$142,5,FALSE),"") ->  | D27: =IFERROR(VLOOKUP(B27,'اسماء العملاء'!$A$2:$C$142,2,FALSE),"") ->  | E27: =IFERROR(VLOOKUP(B27,'اسماء العملاء'!$A$2:$C$142,3,FALSE),"") ->  | F27: =IFERROR(VLOOKUP(B27,العملاء!$B$3:$P$103,15,0),"") -> 
C28: =IFERROR(VLOOKUP(B28,'اسماء العملاء'!$A$2:$E$142,5,FALSE),"") ->  | D28: =IFERROR(VLOOKUP(B28,'اسماء العملاء'!$A$2:$C$142,2,FALSE),"") ->  | E28: =IFERROR(VLOOKUP(B28,'اسماء العملاء'!$A$2:$C$142,3,FALSE),"") ->  | F28: =IFERROR(VLOOKUP(B28,العملاء!$B$3:$P$103,15,0),"") -> 
C29: =IFERROR(VLOOKUP(B29,'اسماء العملاء'!$A$2:$E$142,5,FALSE),"") ->  | D29: =IFERROR(VLOOKUP(B29,'اسماء العملاء'!$A$2:$C$142,2,FALSE),"") ->  | E29: =IFERROR(VLOOKUP(B29,'اسماء العملاء'!$A$2:$C$142,3,FALSE),"") ->  | F29: =IFERROR(VLOOKUP(B29,العملاء!$B$3:$P$103,15,0),"") -> 
C30: =IFERROR(VLOOKUP(B30,'اسماء العملاء'!$A$2:$E$142,5,FALSE),"") ->  | D30: =IFERROR(VLOOKUP(B30,'اسماء العملاء'!$A$2:$C$142,2,FALSE),"") ->  | E30: =IFERROR(VLOOKUP(B30,'اسماء العملاء'!$A$2:$C$142,3,FALSE),"") ->  | F30: =IFERROR(VLOOKUP(B30,العملاء!$B$3:$P$103,15,0),"") -> 
C31: =IFERROR(VLOOKUP(B31,'اسماء العملاء'!$A$2:$E$142,5,FALSE),"") ->  | D31: =IFERROR(VLOOKUP(B31,'اسماء العملاء'!$A$2:$C$142,2,FALSE),"") ->  | E31: =IFERROR(VLOOKUP(B31,'اسماء العملاء'!$A$2:$C$142,3,FALSE),"") ->  | F31: =IFERROR(VLOOKUP(B31,العملاء!$B$3:$P$103,15,0),"") -> 
C32: =IFERROR(VLOOKUP(B32,'اسماء العملاء'!$A$2:$E$142,5,FALSE),"") ->  | D32: =IFERROR(VLOOKUP(B32,'اسماء العملاء'!$A$2:$C$142,2,FALSE),"") ->  | E32: =IFERROR(VLOOKUP(B32,'اسماء العملاء'!$A$2:$C$142,3,FALSE),"") ->  | F32: =IFERROR(VLOOKUP(B32,العملاء!$B$3:$P$103,15,0),"") -> 
C33: =IFERROR(VLOOKUP(B33,'اسماء العملاء'!$A$2:$E$142,5,FALSE),"") ->  | D33: =IFERROR(VLOOKUP(B33,'اسماء العملاء'!$A$2:$C$142,2,FALSE),"") ->  | E33: =IFERROR(VLOOKUP(B33,'اسماء العملاء'!$A$2:$C$142,3,FALSE),"") ->  | F33: =IFERROR(VLOOKUP(B33,العملاء!$B$3:$P$103,15,0),"") -> 
C34: =IFERROR(VLOOKUP(B34,'اسماء العملاء'!$A$2:$E$142,5,FALSE),"") ->  | D34: =IFERROR(VLOOKUP(B34,'اسماء العملاء'!$A$2:$C$142,2,FALSE),"") ->  | E34: =IFERROR(VLOOKUP(B34,'اسماء العملاء'!$A$2:$C$142,3,FALSE),"") ->  | F34: =IFERROR(VLOOKUP(B34,العملاء!$B$3:$P$103,15,0),"") -> 
C35: =IFERROR(VLOOKUP(B35,'اسماء العملاء'!$A$2:$E$142,5,FALSE),"") ->  | D35: =IFERROR(VLOOKUP(B35,'اسماء العملاء'!$A$2:$C$142,2,FALSE),"") ->  | E35: =IFERROR(VLOOKUP(B35,'اسماء العملاء'!$A$2:$C$142,3,FALSE),"") ->  | F35: =IFERROR(VLOOKUP(B35,العملاء!$B$3:$P$103,15,0),"") -> 
C36: =IFERROR(VLOOKUP(B36,'اسماء العملاء'!$A$2:$E$142,5,FALSE),"") ->  | D36: =IFERROR(VLOOKUP(B36,'اسماء العملاء'!$A$2:$C$142,2,FALSE),"") ->  | E36: =IFERROR(VLOOKUP(B36,'اسماء العملاء'!$A$2:$C$142,3,FALSE),"") ->  | F36: =IFERROR(VLOOKUP(B36,العملاء!$B$3:$P$103,15,0),"") -> 
C37: =IFERROR(VLOOKUP(B37,'اسماء العملاء'!$A$2:$E$142,5,FALSE),"") ->  | D37: =IFERROR(VLOOKUP(B37,'اسماء العملاء'!$A$2:$C$142,2,FALSE),"") ->  | E37: =IFERROR(VLOOKUP(B37,'اسماء العملاء'!$A$2:$C$142,3,FALSE),"") ->  | F37: =IFERROR(VLOOKUP(B37,العملاء!$B$3:$P$103,15,0),"") -> 
C38: =IFERROR(VLOOKUP(B38,'اسماء العملاء'!$A$2:$E$142,5,FALSE),"") ->  | D38: =IFERROR(VLOOKUP(B38,'اسماء العملاء'!$A$2:$C$142,2,FALSE),"") ->  | E38: =IFERROR(VLOOKUP(B38,'اسماء العملاء'!$A$2:$C$142,3,FALSE),"") ->  | F38: =IFERROR(VLOOKUP(B38,العملاء!$B$3:$P$103,15,0),"") -> 
C39: =IFERROR(VLOOKUP(B39,'اسماء العملاء'!$A$2:$E$142,5,FALSE),"") ->  | D39: =IFERROR(VLOOKUP(B39,'اسماء العملاء'!$A$2:$C$142,2,FALSE),"") ->  | E39: =IFERROR(VLOOKUP(B39,'اسماء العملاء'!$A$2:$C$142,3,FALSE),"") ->  | F39: =IFERROR(VLOOKUP(B39,العملاء!$B$3:$P$103,15,0),"") -> 

Sheet الصيانة
A1: التاريخ | B1: اسم العميل | C1: كود العميل | D1: عنوان العميل | E1: رقم تليفون العميل | F1: نوع الصيانة | AQ1: ملاحظات
G2: ميعاد الصيانة | H2: ميعاد الصيانة | I2: ميعاد الصيانة | J2: ميعاد الصيانة | K2: ميعاد الصيانة | L2: ميعاد الصيانة | M2: ميعاد الصيانة | N2: ميعاد الصيانة | O2: ميعاد الصيانة | P2: ميعاد الصيانة | Q2: ميعاد الصيانة | R2: ميعاد الصيانة | S2: ميعاد الصيانة | T2: ميعاد الصيانة | U2: ميعاد الصيانة | V2: ميعاد الصيانة | W2: ميعاد الصيانة | X2: ميعاد الصيانة | Y2: ميعاد الصيانة | Z2: ميعاد الصيانة | AA2: ميعاد الصيانة | AB2: ميعاد الصيانة | AC2: ميعاد الصيانة | AD2: ميعاد الصيانة | AE2: ميعاد الصيانة | AF2: ميعاد الصيانة | AG2: ميعاد الصيانة | AH2: ميعاد الصيانة | AI2: ميعاد الصيانة | AJ2: ميعاد الصيانة | AK2: ميعاد الصيانة | AL2: ميعاد الصيانة | AM2: ميعاد الصيانة | AN2: ميعاد الصيانة | AO2: ميعاد الصيانة | AP2: ميعاد الصيانة
A3: =IF(B3="","",TODAY()) -> 2018-09-24 | B3: احمد محمد | C3: =+VLOOKUP(B3,'اسماء العملاء'!$A$2:$E$142,5,FALSE) -> 1 | D3: =+VLOOKUP(B3,'اسماء العملاء'!$A$2:$C$142,2,FALSE) -> العجمي | E3: =+VLOOKUP(B3,'اسماء العملاء'!$A$2:$C$142,3,FALSE) -> 123456789 | F3: شمعة1 | G3: يناير2018
A4: =IF(B4="","",TODAY()) ->  | C4: =+VLOOKUP(B4,'اسماء العملاء'!$A$2:$E$142,5,FALSE) ->  | D4: =+VLOOKUP(B4,'اسماء العملاء'!$A$2:$C$140,2,FALSE) ->  | E4: =+VLOOKUP(B4,'اسماء العملاء'!$A$2:$C$140,3,FALSE) -> 
C5: =+VLOOKUP(B5,'اسماء العملاء'!$A$2:$E$142,5,FALSE) ->  | D5: =+VLOOKUP(B5,'اسماء العملاء'!$A$2:$C$140,2,FALSE) ->  | E5: =+VLOOKUP(B5,'اسماء العملاء'!$A$2:$C$140,3,FALSE) -> 
C6: =+VLOOKUP(B6,'اسماء العملاء'!$A$2:$E$142,5,FALSE) ->  | D6: =+VLOOKUP(B6,'اسماء العملاء'!$A$2:$C$140,2,FALSE) ->  | E6: =+VLOOKUP(B6,'اسماء العملاء'!$A$2:$C$140,3,FALSE) -> 
C7: =+VLOOKUP(B7,'اسماء العملاء'!$A$2:$E$142,5,FALSE) ->  | D7: =+VLOOKUP(B7,'اسماء العملاء'!$A$2:$C$140,2,FALSE) ->  | E7: =+VLOOKUP(B7,'اسماء العملاء'!$A$2:$C$140,3,FALSE) -> 
C8: =+VLOOKUP(B8,'اسماء العملاء'!$A$2:$E$142,5,FALSE) ->  | D8: =+VLOOKUP(B8,'اسماء العملاء'!$A$2:$C$140,2,FALSE) ->  | E8: =+VLOOKUP(B8,'اسماء العملاء'!$A$2:$C$140,3,FALSE) -> 
C9: =+VLOOKUP(B9,'اسماء العملاء'!$A$2:$E$142,5,FALSE) ->  | D9: =+VLOOKUP(B9,'اسماء العملاء'!$A$2:$C$140,2,FALSE) ->  | E9: =+VLOOKUP(B9,'اسماء العملاء'!$A$2:$C$140,3,FALSE) -> 
C10: =+VLOOKUP(B10,'اسماء العملاء'!$A$2:$E$142,5,FALSE) ->  | D10: =+VLOOKUP(B10,'اسماء العملاء'!$A$2:$C$140,2,FALSE) ->  | E10: =+VLOOKUP(B10,'اسماء العملاء'!$A$2:$C$140,3,FALSE) -> 
C11: =+VLOOKUP(B11,'اسماء العملاء'!$A$2:$E$142,5,FALSE) ->  | D11: =+VLOOKUP(B11,'اسماء العملاء'!$A$2:$C$140,2,FALSE) ->  | E11: =+VLOOKUP(B11,'اسماء العملاء'!$A$2:$C$140,3,FALSE) -> 
C12: =+VLOOKUP(B12,'اسماء العملاء'!$A$2:$E$142,5,FALSE) ->  | D12: =+VLOOKUP(B12,'اسماء العملاء'!$A$2:$C$140,2,FALSE) ->  | E12: =+VLOOKUP(B12,'اسماء العملاء'!$A$2:$C$140,3,FALSE) -> 
C13: =+VLOOKUP(B13,'اسماء العملاء'!$A$2:$E$142,5,FALSE) ->  | D13: =+VLOOKUP(B13,'اسماء العملاء'!$A$2:$C$140,2,FALSE) ->  | E13: =+VLOOKUP(B13,'اسماء العملاء'!$A$2:$C$140,3,FALSE) -> 
C14: =+VLOOKUP(B14,'اسماء العملاء'!$A$2:$E$142,5,FALSE) ->  | D14: =+VLOOKUP(B14,'اسماء العملاء'!$A$2:$C$140,2,FALSE) ->  | E14: =+VLOOKUP(B14,'اسماء العملاء'!$A$2:$C$140,3,FALSE) -> 
C15: =+VLOOKUP(B15,'اسماء العملاء'!$A$2:$E$142,5,FALSE) ->  | D15: =+VLOOKUP(B15,'اسماء العملاء'!$A$2:$C$140,2,FALSE) ->  | E15: =+VLOOKUP(B15,'اسماء العملاء'!$A$2:$C$140,3,FALSE) -> 
C16: =+VLOOKUP(B16,'اسماء العملاء'!$A$2:$E$142,5,FALSE) ->  | D16: =+VLOOKUP(B16,'اسماء العملاء'!$A$2:$C$140,2,FALSE) ->  | E16: =+VLOOKUP(B16,'اسماء العملاء'!$A$2:$C$140,3,FALSE) -> 
C17: =+VLOOKUP(B17,'اسماء العملاء'!$A$2:$E$142,5,FALSE) ->  | D17: =+VLOOKUP(B17,'اسماء العملاء'!$A$2:$C$140,2,FALSE) ->  | E17: =+VLOOKUP(B17,'اسماء العملاء'!$A$2:$C$140,3,FALSE) -> 
C18: =+VLOOKUP(B18,'اسماء العملاء'!$A$2:$E$142,5,FALSE) ->  | D18: =+VLOOKUP(B18,'اسماء العملاء'!$A$2:$C$140,2,FALSE) ->  | E18: =+VLOOKUP(B18,'اسماء العملاء'!$A$2:$C$140,3,FALSE) -> 
C19: =+VLOOKUP(B19,'اسماء العملاء'!$A$2:$E$142,5,FALSE) ->  | D19: =+VLOOKUP(B19,'اسماء العملاء'!$A$2:$C$140,2,FALSE) ->  | E19: =+VLOOKUP(B19,'اسماء العملاء'!$A$2:$C$140,3,FALSE) -> 
C20: =+VLOOKUP(B20,'اسماء العملاء'!$A$2:$E$142,5,FALSE) ->  | D20: =+VLOOKUP(B20,'اسماء العملاء'!$A$2:$C$140,2,FALSE) ->  | E20: =+VLOOKUP(B20,'اسماء العملاء'!$A$2:$C$140,3,FALSE) -> 
C21: =+VLOOKUP(B21,'اسماء العملاء'!$A$2:$E$142,5,FALSE) ->  | D21: =+VLOOKUP(B21,'اسماء العملاء'!$A$2:$C$140,2,FALSE) ->  | E21: =+VLOOKUP(B21,'اسماء العملاء'!$A$2:$C$140,3,FALSE) -> 
C22: =+VLOOKUP(B22,'اسماء العملاء'!$A$2:$E$142,5,FALSE) ->  | D22: =+VLOOKUP(B22,'اسماء العملاء'!$A$2:$C$140,2,FALSE) ->  | E22: =+VLOOKUP(B22,'اسماء العملاء'!$A$2:$C$140,3,FALSE) -> 
C23: =+VLOOKUP(B23,'اسماء العملاء'!$A$2:$E$142,5,FALSE) ->  | D23: =+VLOOKUP(B23,'اسماء العملاء'!$A$2:$C$140,2,FALSE) ->  | E23: =+VLOOKUP(B23,'اسماء العملاء'!$A$2:$C$140,3,FALSE) -> 
C24: =+VLOOKUP(B24,'اسماء العملاء'!$A$2:$E$142,5,FALSE) ->  | D24: =+VLOOKUP(B24,'اسماء العملاء'!$A$2:$C$140,2,FALSE) ->  | E24: =+VLOOKUP(B24,'اسماء العملاء'!$A$2:$C$140,3,FALSE) -> 
C25: =+VLOOKUP(B25,'اسماء العملاء'!$A$2:$E$142,5,FALSE) ->  | D25: =+VLOOKUP(B25,'اسماء العملاء'!$A$2:$C$140,2,FALSE) ->  | E25: =+VLOOKUP(B25,'اسماء العملاء'!$A$2:$C$140,3,FALSE) -> 
C26: =+VLOOKUP(B26,'اسماء العملاء'!$A$2:$E$142,5,FALSE) ->  | D26: =+VLOOKUP(B26,'اسماء العملاء'!$A$2:$C$140,2,FALSE) ->  | E26: =+VLOOKUP(B26,'اسماء العملاء'!$A$2:$C$140,3,FALSE) -> 
C27: =+VLOOKUP(B27,'اسماء العملاء'!$A$2:$E$142,5,FALSE) ->  | D27: =+VLOOKUP(B27,'اسماء العملاء'!$A$2:$C$140,2,FALSE) ->  | E27: =+VLOOKUP(B27,'اسماء العملاء'!$A$2:$C$140,3,FALSE) -> 
C28: =+VLOOKUP(B28,'اسماء العملاء'!$A$2:$E$142,5,FALSE) ->  | D28: =+VLOOKUP(B28,'اسماء العملاء'!$A$2:$C$140,2,FALSE) ->  | E28: =+VLOOKUP(B28,'اسماء العملاء'!$A$2:$C$140,3,FALSE) -> 
C29: =+VLOOKUP(B29,'اسماء العملاء'!$A$2:$E$142,5,FALSE) ->  | D29: =+VLOOKUP(B29,'اسماء العملاء'!$A$2:$C$140,2,FALSE) ->  | E29: =+VLOOKUP(B29,'اسماء العملاء'!$A$2:$C$140,3,FALSE) -> 
C30: =+VLOOKUP(B30,'اسماء العملاء'!$A$2:$E$142,5,FALSE) ->  | D30: =+VLOOKUP(B30,'اسماء العملاء'!$A$2:$C$140,2,FALSE) ->  | E30: =+VLOOKUP(B30,'اسماء العملاء'!$A$2:$C$140,3,FALSE) -> 
C31: =+VLOOKUP(B31,'اسماء العملاء'!$A$2:$E$142,5,FALSE) ->  | D31: =+VLOOKUP(B31,'اسماء العملاء'!$A$2:$C$140,2,FALSE) ->  | E31: =+VLOOKUP(B31,'اسماء العملاء'!$A$2:$C$140,3,FALSE) -> 
C32: =+VLOOKUP(B32,'اسماء العملاء'!$A$2:$E$142,5,FALSE) ->  | D32: =+VLOOKUP(B32,'اسماء العملاء'!$A$2:$C$140,2,FALSE) ->  | E32: =+VLOOKUP(B32,'اسماء العملاء'!$A$2:$C$140,3,FALSE) -> 
C33: =+VLOOKUP(B33,'اسماء العملاء'!$A$2:$E$142,5,FALSE) ->  | D33: =+VLOOKUP(B33,'اسماء العملاء'!$A$2:$C$140,2,FALSE) ->  | E33: =+VLOOKUP(B33,'اسماء العملاء'!$A$2:$C$140,3,FALSE) -> 
C34: =+VLOOKUP(B34,'اسماء العملاء'!$A$2:$E$142,5,FALSE) ->  | D34: =+VLOOKUP(B34,'اسماء العملاء'!$A$2:$C$140,2,FALSE) ->  | E34: =+VLOOKUP(B34,'اسماء العملاء'!$A$2:$C$140,3,FALSE) -> 
C35: =+VLOOKUP(B35,'اسماء العملاء'!$A$2:$E$142,5,FALSE) ->  | D35: =+VLOOKUP(B35,'اسماء العملاء'!$A$2:$C$140,2,FALSE) ->  | E35: =+VLOOKUP(B35,'اسماء العملاء'!$A$2:$C$140,3,FALSE) -> 
C36: =+VLOOKUP(B36,'اسماء العملاء'!$A$2:$E$142,5,FALSE) ->  | D36: =+VLOOKUP(B36,'اسماء العملاء'!$A$2:$C$140,2,FALSE) ->  | E36: =+VLOOKUP(B36,'اسماء العملاء'!$A$2:$C$140,3,FALSE) -> 
C37: =+VLOOKUP(B37,'اسماء العملاء'!$A$2:$E$142,5,FALSE) ->  | D37: =+VLOOKUP(B37,'اسماء العملاء'!$A$2:$C$140,2,FALSE) ->  | E37: =+VLOOKUP(B37,'اسماء العملاء'!$A$2:$C$140,3,FALSE) -> 
C38: =+VLOOKUP(B38,'اسماء العملاء'!$A$2:$E$142,5,FALSE) ->  | D38: =+VLOOKUP(B38,'اسماء العملاء'!$A$2:$C$140,2,FALSE) ->  | E38: =+VLOOKUP(B38,'اسماء العملاء'!$A$2:$C$140,3,FALSE) -> 
C39: =+VLOOKUP(B39,'اسماء العملاء'!$A$2:$E$142,5,FALSE) ->  | D39: =+VLOOKUP(B39,'اسماء العملاء'!$A$2:$C$140,2,FALSE) ->  | E39: =+VLOOKUP(B39,'اسماء العملاء'!$A$2:$C$140,3,FALSE) -> 
C40: =+VLOOKUP(B40,'اسماء العملاء'!$A$2:$E$142,5,FALSE) ->  | D40: =+VLOOKUP(B40,'اسماء العملاء'!$A$2:$C$140,2,FALSE) ->  | E40: =+VLOOKUP(B40,'اسماء العملاء'!$A$2:$C$140,3,FALSE) -> 
C41: =+VLOOKUP(B41,'اسماء العملاء'!$A$2:$E$142,5,FALSE) ->  | D41: =+VLOOKUP(B41,'اسماء العملاء'!$A$2:$C$140,2,FALSE) ->  | E41: =+VLOOKUP(B41,'اسماء العملاء'!$A$2:$C$140,3,FALSE) -> 
C42: =+VLOOKUP(B42,'اسماء العملاء'!$A$2:$E$142,5,FALSE) ->  | D42: =+VLOOKUP(B42,'اسماء العملاء'!$A$2:$C$140,2,FALSE) ->  | E42: =+VLOOKUP(B42,'اسماء العملاء'!$A$2:$C$140,3,FALSE) -> 
C43: =+VLOOKUP(B43,'اسماء العملاء'!$A$2:$E$142,5,FALSE) ->  | D43: =+VLOOKUP(B43,'اسماء العملاء'!$A$2:$C$140,2,FALSE) ->  | E43: =+VLOOKUP(B43,'اسماء العملاء'!$A$2:$C$140,3,FALSE) -> 
C44: =+VLOOKUP(B44,'اسماء العملاء'!$A$2:$E$142,5,FALSE) ->  | D44: =+VLOOKUP(B44,'اسماء العملاء'!$A$2:$C$140,2,FALSE) ->  | E44: =+VLOOKUP(B44,'اسماء العملاء'!$A$2:$C$140,3,FALSE) -> 
C45: =+VLOOKUP(B45,'اسماء العملاء'!$A$2:$E$142,5,FALSE) ->  | D45: =+VLOOKUP(B45,'اسماء العملاء'!$A$2:$C$140,2,FALSE) ->  | E45: =+VLOOKUP(B45,'اسماء العملاء'!$A$2:$C$140,3,FALSE) -> 
C46: =+VLOOKUP(B46,'اسماء العملاء'!$A$2:$E$142,5,FALSE) ->  | D46: =+VLOOKUP(B46,'اسماء العملاء'!$A$2:$C$140,2,FALSE) ->  | E46: =+VLOOKUP(B46,'اسماء العملاء'!$A$2:$C$140,3,FALSE) -> 
C47: =+VLOOKUP(B47,'اسماء العملاء'!$A$2:$E$142,5,FALSE) ->  | D47: =+VLOOKUP(B47,'اسماء العملاء'!$A$2:$C$140,2,FALSE) ->  | E47: =+VLOOKUP(B47,'اسماء العملاء'!$A$2:$C$140,3,FALSE) -> 
C48: =+VLOOKUP(B48,'اسماء العملاء'!$A$2:$E$142,5,FALSE) ->  | D48: =+VLOOKUP(B48,'اسماء العملاء'!$A$2:$C$140,2,FALSE) ->  | E48: =+VLOOKUP(B48,'اسماء العملاء'!$A$2:$C$140,3,FALSE) -> 
C49: =+VLOOKUP(B49,'اسماء العملاء'!$A$2:$E$142,5,FALSE) ->  | D49: =+VLOOKUP(B49,'اسماء العملاء'!$A$2:$C$140,2,FALSE) ->  | E49: =+VLOOKUP(B49,'اسماء العملاء'!$A$2:$C$140,3,FALSE) -> 
C50: =+VLOOKUP(B50,'اسماء العملاء'!$A$2:$E$142,5,FALSE) ->  | D50: =+VLOOKUP(B50,'اسماء العملاء'!$A$2:$C$140,2,FALSE) ->  | E50: =+VLOOKUP(B50,'اسماء العملاء'!$A$2:$C$140,3,FALSE) -> 
C51: =+VLOOKUP(B51,'اسماء العملاء'!$A$2:$E$142,5,FALSE) ->  | D51: =+VLOOKUP(B51,'اسماء العملاء'!$A$2:$C$140,2,FALSE) ->  | E51: =+VLOOKUP(B51,'اسماء العملاء'!$A$2:$C$140,3,FALSE) -> 
C52: =+VLOOKUP(B52,'اسماء العملاء'!$A$2:$E$142,5,FALSE) ->  | D52: =+VLOOKUP(B52,'اسماء العملاء'!$A$2:$C$140,2,FALSE) ->  | E52: =+VLOOKUP(B52,'اسماء العملاء'!$A$2:$C$140,3,FALSE) -> 
C53: =+VLOOKUP(B53,'اسماء العملاء'!$A$2:$E$142,5,FALSE) ->  | D53: =+VLOOKUP(B53,'اسماء العملاء'!$A$2:$C$140,2,FALSE) ->  | E53: =+VLOOKUP(B53,'اسماء العملاء'!$A$2:$C$140,3,FALSE) -> 
C54: =+VLOOKUP(B54,'اسماء العملاء'!$A$2:$E$142,5,FALSE) ->  | D54: =+VLOOKUP(B54,'اسماء العملاء'!$A$2:$C$140,2,FALSE) ->  | E54: =+VLOOKUP(B54,'اسماء العملاء'!$A$2:$C$140,3,FALSE) -> 
C55: =+VLOOKUP(B55,'اسماء العملاء'!$A$2:$E$142,5,FALSE) ->  | D55: =+VLOOKUP(B55,'اسماء العملاء'!$A$2:$C$140,2,FALSE) ->  | E55: =+VLOOKUP(B55,'اسماء العملاء'!$A$2:$C$140,3,FALSE) -> 
C56: =+VLOOKUP(B56,'اسماء العملاء'!$A$2:$E$142,5,FALSE) ->  | D56: =+VLOOKUP(B56,'اسماء العملاء'!$A$2:$C$140,2,FALSE) ->  | E56: =+VLOOKUP(B56,'اسماء العملاء'!$A$2:$C$140,3,FALSE) -> 
C57: =+VLOOKUP(B57,'اسماء العملاء'!$A$2:$E$142,5,FALSE) ->  | D57: =+VLOOKUP(B57,'اسماء العملاء'!$A$2:$C$140,2,FALSE) ->  | E57: =+VLOOKUP(B57,'اسماء العملاء'!$A$2:$C$140,3,FALSE) -> 
C58: =+VLOOKUP(B58,'اسماء العملاء'!$A$2:$E$142,5,FALSE) ->  | D58: =+VLOOKUP(B58,'اسماء العملاء'!$A$2:$C$140,2,FALSE) ->  | E58: =+VLOOKUP(B58,'اسماء العملاء'!$A$2:$C$140,3,FALSE) -> 
C59: =+VLOOKUP(B59,'اسماء العملاء'!$A$2:$E$142,5,FALSE) ->  | D59: =+VLOOKUP(B59,'اسماء العملاء'!$A$2:$C$140,2,FALSE) ->  | E59: =+VLOOKUP(B59,'اسماء العملاء'!$A$2:$C$140,3,FALSE) -> 
C60: =+VLOOKUP(B60,'اسماء العملاء'!$A$2:$E$142,5,FALSE) ->  | D60: =+VLOOKUP(B60,'اسماء العملاء'!$A$2:$C$140,2,FALSE) ->  | E60: =+VLOOKUP(B60,'اسماء العملاء'!$A$2:$C$140,3,FALSE) -> 
C61: =+VLOOKUP(B61,'اسماء العملاء'!$A$2:$E$142,5,FALSE) ->  | D61: =+VLOOKUP(B61,'اسماء العملاء'!$A$2:$C$140,2,FALSE) ->  | E61: =+VLOOKUP(B61,'اسماء العملاء'!$A$2:$C$140,3,FALSE) -> 
C62: =+VLOOKUP(B62,'اسماء العملاء'!$A$2:$E$142,5,FALSE) ->  | D62: =+VLOOKUP(B62,'اسماء العملاء'!$A$2:$C$140,2,FALSE) ->  | E62: =+VLOOKUP(B62,'اسماء العملاء'!$A$2:$C$140,3,FALSE) -> 
C63: =+VLOOKUP(B63,'اسماء العملاء'!$A$2:$E$142,5,FALSE) ->  | D63: =+VLOOKUP(B63,'اسماء العملاء'!$A$2:$C$140,2,FALSE) ->  | E63: =+VLOOKUP(B63,'اسماء العملاء'!$A$2:$C$140,3,FALSE) -> 
C64: =+VLOOKUP(B64,'اسماء العملاء'!$A$2:$E$142,5,FALSE) ->  | D64: =+VLOOKUP(B64,'اسماء العملاء'!$A$2:$C$140,2,FALSE) ->  | E64: =+VLOOKUP(B64,'اسماء العملاء'!$A$2:$C$140,3,FALSE) -> 
C65: =+VLOOKUP(B65,'اسماء العملاء'!$A$2:$E$142,5,FALSE) ->  | D65: =+VLOOKUP(B65,'اسماء العملاء'!$A$2:$C$140,2,FALSE) ->  | E65: =+VLOOKUP(B65,'اسماء العملاء'!$A$2:$C$140,3,FALSE) -> 
C66: =+VLOOKUP(B66,'اسماء العملاء'!$A$2:$E$142,5,FALSE) ->  | D66: =+VLOOKUP(B66,'اسماء العملاء'!$A$2:$C$140,2,FALSE) ->  | E66: =+VLOOKUP(B66,'اسماء العملاء'!$A$2:$C$140,3,FALSE) -> 
C67: =+VLOOKUP(B67,'اسماء العملاء'!$A$2:$E$142,5,FALSE) ->  | D67: =+VLOOKUP(B67,'اسماء العملاء'!$A$2:$C$140,2,FALSE) ->  | E67: =+VLOOKUP(B67,'اسماء العملاء'!$A$2:$C$140,3,FALSE) -> 
A68: =IF(B68="","",TODAY()) ->  | C68: =+VLOOKUP(B68,'اسماء العملاء'!$A$2:$E$142,5,FALSE) ->  | D68: =+VLOOKUP(B68,'اسماء العملاء'!$A$2:$C$140,2,FALSE) ->  | E68: =+VLOOKUP(B68,'اسماء العملاء'!$A$2:$C$140,3,FALSE) -> 
C69: =+VLOOKUP(B69,'اسماء العملاء'!$A$2:$E$142,5,FALSE) ->  | D69: =+VLOOKUP(B69,'اسماء العملاء'!$A$2:$C$140,2,FALSE) ->  | E69: =+VLOOKUP(B69,'اسماء العملاء'!$A$2:$C$140,3,FALSE) -> 
C70: =+VLOOKUP(B70,'اسماء العملاء'!$A$2:$E$142,5,FALSE) ->  | D70: =+VLOOKUP(B70,'اسماء العملاء'!$A$2:$C$140,2,FALSE) ->  | E70: =+VLOOKUP(B70,'اسماء العملاء'!$A$2:$C$140,3,FALSE) -> 
C71: =+VLOOKUP(B71,'اسماء العملاء'!$A$2:$E$142,5,FALSE) ->  | D71: =+VLOOKUP(B71,'اسماء العملاء'!$A$2:$C$140,2,FALSE) ->  | E71: =+VLOOKUP(B71,'اسماء العملاء'!$A$2:$C$140,3,FALSE) -> 
C72: =+VLOOKUP(B72,'اسماء العملاء'!$A$2:$E$142,5,FALSE) ->  | D72: =+VLOOKUP(B72,'اسماء العملاء'!$A$2:$C$140,2,FALSE) ->  | E72: =+VLOOKUP(B72,'اسماء العملاء'!$A$2:$C$140,3,FALSE) -> 
C73: =+VLOOKUP(B73,'اسماء العملاء'!$A$2:$E$142,5,FALSE) ->  | D73: =+VLOOKUP(B73,'اسماء العملاء'!$A$2:$C$140,2,FALSE) ->  | E73: =+VLOOKUP(B73,'اسماء العملاء'!$A$2:$C$140,3,FALSE) -> 
C74: =+VLOOKUP(B74,'اسماء العملاء'!$A$2:$E$142,5,FALSE) ->  | D74: =+VLOOKUP(B74,'اسماء العملاء'!$A$2:$C$140,2,FALSE) ->  | E74: =+VLOOKUP(B74,'اسماء العملاء'!$A$2:$C$140,3,FALSE) -> 
C75: =+VLOOKUP(B75,'اسماء العملاء'!$A$2:$E$142,5,FALSE) ->  | D75: =+VLOOKUP(B75,'اسماء العملاء'!$A$2:$C$140,2,FALSE) ->  | E75: =+VLOOKUP(B75,'اسماء العملاء'!$A$2:$C$140,3,FALSE) -> 
C76: =+VLOOKUP(B76,'اسماء العملاء'!$A$2:$E$142,5,FALSE) ->  | D76: =+VLOOKUP(B76,'اسماء العملاء'!$A$2:$C$140,2,FALSE) ->  | E76: =+VLOOKUP(B76,'اسماء العملاء'!$A$2:$C$140,3,FALSE) -> 
C77: =+VLOOKUP(B77,'اسماء العملاء'!$A$2:$E$142,5,FALSE) ->  | D77: =+VLOOKUP(B77,'اسماء العملاء'!$A$2:$C$140,2,FALSE) ->  | E77: =+VLOOKUP(B77,'اسماء العملاء'!$A$2:$C$140,3,FALSE) -> 
C78: =+VLOOKUP(B78,'اسماء العملاء'!$A$2:$E$142,5,FALSE) ->  | D78: =+VLOOKUP(B78,'اسماء العملاء'!$A$2:$C$140,2,FALSE) ->  | E78: =+VLOOKUP(B78,'اسماء العملاء'!$A$2:$C$140,3,FALSE) -> 
C79: =+VLOOKUP(B79,'اسماء العملاء'!$A$2:$E$142,5,FALSE) ->  | D79: =+VLOOKUP(B79,'اسماء العملاء'!$A$2:$C$140,2,FALSE) ->  | E79: =+VLOOKUP(B79,'اسماء العملاء'!$A$2:$C$140,3,FALSE) -> 
C80: =+VLOOKUP(B80,'اسماء العملاء'!$A$2:$E$142,5,FALSE) ->  | D80: =+VLOOKUP(B80,'اسماء العملاء'!$A$2:$C$140,2,FALSE) ->  | E80: =+VLOOKUP(B80,'اسماء العملاء'!$A$2:$C$140,3,FALSE) -> 
C81: =+VLOOKUP(B81,'اسماء العملاء'!$A$2:$E$142,5,FALSE) ->  | D81: =+VLOOKUP(B81,'اسماء العملاء'!$A$2:$C$140,2,FALSE) ->  | E81: =+VLOOKUP(B81,'اسماء العملاء'!$A$2:$C$140,3,FALSE) -> 
C82: =+VLOOKUP(B82,'اسماء العملاء'!$A$2:$E$142,5,FALSE) ->  | D82: =+VLOOKUP(B82,'اسماء العملاء'!$A$2:$C$140,2,FALSE) ->  | E82: =+VLOOKUP(B82,'اسماء العملاء'!$A$2:$C$140,3,FALSE) -> 
C83: =+VLOOKUP(B83,'اسماء العملاء'!$A$2:$E$142,5,FALSE) ->  | D83: =+VLOOKUP(B83,'اسماء العملاء'!$A$2:$C$140,2,FALSE) ->  | E83: =+VLOOKUP(B83,'اسماء العملاء'!$A$2:$C$140,3,FALSE) -> 
C84: =+VLOOKUP(B84,'اسماء العملاء'!$A$2:$E$142,5,FALSE) ->  | D84: =+VLOOKUP(B84,'اسماء العملاء'!$A$2:$C$140,2,FALSE) ->  | E84: =+VLOOKUP(B84,'اسماء العملاء'!$A$2:$C$140,3,FALSE) -> 
C85: =+VLOOKUP(B85,'اسماء العملاء'!$A$2:$E$142,5,FALSE) ->  | D85: =+VLOOKUP(B85,'اسماء العملاء'!$A$2:$C$140,2,FALSE) ->  | E85: =+VLOOKUP(B85,'اسماء العملاء'!$A$2:$C$140,3,FALSE) -> 
C86: =+VLOOKUP(B86,'اسماء العملاء'!$A$2:$E$142,5,FALSE) ->  | D86: =+VLOOKUP(B86,'اسماء العملاء'!$A$2:$C$140,2,FALSE) ->  | E86: =+VLOOKUP(B86,'اسماء العملاء'!$A$2:$C$140,3,FALSE) -> 
C87: =+VLOOKUP(B87,'اسماء العملاء'!$A$2:$E$142,5,FALSE) ->  | D87: =+VLOOKUP(B87,'اسماء العملاء'!$A$2:$C$140,2,FALSE) ->  | E87: =+VLOOKUP(B87,'اسماء العملاء'!$A$2:$C$140,3,FALSE) -> 
C88: =+VLOOKUP(B88,'اسماء العملاء'!$A$2:$E$142,5,FALSE) ->  | D88: =+VLOOKUP(B88,'اسماء العملاء'!$A$2:$C$140,2,FALSE) ->  | E88: =+VLOOKUP(B88,'اسماء العملاء'!$A$2:$C$140,3,FALSE) -> 
C89: =+VLOOKUP(B89,'اسماء العملاء'!$A$2:$E$142,5,FALSE) ->  | D89: =+VLOOKUP(B89,'اسماء العملاء'!$A$2:$C$140,2,FALSE) ->  | E89: =+VLOOKUP(B89,'اسماء العملاء'!$A$2:$C$140,3,FALSE) -> 
C90: =+VLOOKUP(B90,'اسماء العملاء'!$A$2:$E$142,5,FALSE) ->  | D90: =+VLOOKUP(B90,'اسماء العملاء'!$A$2:$C$140,2,FALSE) ->  | E90: =+VLOOKUP(B90,'اسماء العملاء'!$A$2:$C$140,3,FALSE) -> 
C91: =+VLOOKUP(B91,'اسماء العملاء'!$A$2:$E$142,5,FALSE) ->  | D91: =+VLOOKUP(B91,'اسماء العملاء'!$A$2:$C$140,2,FALSE) ->  | E91: =+VLOOKUP(B91,'اسماء العملاء'!$A$2:$C$140,3,FALSE) -> 
C92: =+VLOOKUP(B92,'اسماء العملاء'!$A$2:$E$142,5,FALSE) ->  | D92: =+VLOOKUP(B92,'اسماء العملاء'!$A$2:$C$140,2,FALSE) ->  | E92: =+VLOOKUP(B92,'اسماء العملاء'!$A$2:$C$140,3,FALSE) -> 
C93: =+VLOOKUP(B93,'اسماء العملاء'!$A$2:$E$142,5,FALSE) ->  | D93: =+VLOOKUP(B93,'اسماء العملاء'!$A$2:$C$140,2,FALSE) ->  | E93: =+VLOOKUP(B93,'اسماء العملاء'!$A$2:$C$140,3,FALSE) -> 
C94: =+VLOOKUP(B94,'اسماء العملاء'!$A$2:$E$142,5,FALSE) ->  | D94: =+VLOOKUP(B94,'اسماء العملاء'!$A$2:$C$140,2,FALSE) ->  | E94: =+VLOOKUP(B94,'اسماء العملاء'!$A$2:$C$140,3,FALSE) -> 
C95: =+VLOOKUP(B95,'اسماء العملاء'!$A$2:$E$142,5,FALSE) ->  | D95: =+VLOOKUP(B95,'اسماء العملاء'!$A$2:$C$140,2,FALSE) ->  | E95: =+VLOOKUP(B95,'اسماء العملاء'!$A$2:$C$140,3,FALSE) -> 
C96: =+VLOOKUP(B96,'اسماء العملاء'!$A$2:$E$142,5,FALSE) ->  | D96: =+VLOOKUP(B96,'اسماء العملاء'!$A$2:$C$140,2,FALSE) ->  | E96: =+VLOOKUP(B96,'اسماء العملاء'!$A$2:$C$140,3,FALSE) -> 
C97: =+VLOOKUP(B97,'اسماء العملاء'!$A$2:$E$142,5,FALSE) ->  | D97: =+VLOOKUP(B97,'اسماء العملاء'!$A$2:$C$140,2,FALSE) ->  | E97: =+VLOOKUP(B97,'اسماء العملاء'!$A$2:$C$140,3,FALSE) -> 
C98: =+VLOOKUP(B98,'اسماء العملاء'!$A$2:$E$142,5,FALSE) ->  | D98: =+VLOOKUP(B98,'اسماء العملاء'!$A$2:$C$140,2,FALSE) ->  | E98: =+VLOOKUP(B98,'اسماء العملاء'!$A$2:$C$140,3,FALSE) -> 
C99: =+VLOOKUP(B99,'اسماء العملاء'!$A$2:$E$142,5,FALSE) ->  | D99: =+VLOOKUP(B99,'اسماء العملاء'!$A$2:$C$140,2,FALSE) ->  | E99: =+VLOOKUP(B99,'اسماء العملاء'!$A$2:$C$140,3,FALSE) -> 
C100: =+VLOOKUP(B100,'اسماء العملاء'!$A$2:$E$142,5,FALSE) ->  | D100: =+VLOOKUP(B100,'اسماء العملاء'!$A$2:$C$140,2,FALSE) ->  | E100: =+VLOOKUP(B100,'اسماء العملاء'!$A$2:$C$140,3,FALSE) -> 
C101: =+VLOOKUP(B101,'اسماء العملاء'!$A$2:$E$142,5,FALSE) ->  | D101: =+VLOOKUP(B101,'اسماء العملاء'!$A$2:$C$140,2,FALSE) ->  | E101: =+VLOOKUP(B101,'اسماء العملاء'!$A$2:$C$140,3,FALSE) -> 
C102: =+VLOOKUP(B102,'اسماء العملاء'!$A$2:$E$142,5,FALSE) ->  | D102: =+VLOOKUP(B102,'اسماء العملاء'!$A$2:$C$140,2,FALSE) ->  | E102: =+VLOOKUP(B102,'اسماء العملاء'!$A$2:$C$140,3,FALSE) -> 
C103: =+VLOOKUP(B103,'اسماء العملاء'!$A$2:$E$142,5,FALSE) ->  | D103: =+VLOOKUP(B103,'اسماء العملاء'!$A$2:$C$140,2,FALSE) ->  | E103: =+VLOOKUP(B103,'اسماء العملاء'!$A$2:$C$140,3,FALSE) -> 
AK394: مسلسل | AL394: اسم العميل | AM394: عنوان العميل | AN394: رقم التليفون
AK395: 1 | AL395: ='اسماء العملاء'!A2 -> احمد محمد | AM395: ='اسماء العملاء'!B2 -> العجمي | AN395: ='اسماء العملاء'!C2 -> 123456789
AK396: 2 | AL396: ='اسماء العملاء'!A3 -> محمود محمد | AM396: ='اسماء العملاء'!B3 -> محرم بك | AN396: ='اسماء العملاء'!C3 -> 0123456789
AK397: 3 | AL397: ='اسماء العملاء'!A4 -> صلاح سعيد | AM397: ='اسماء العملاء'!B4 -> الحضرة | AN397: ='اسماء العملاء'!C4 -> 011234567
AK398: 4 | AL398: ='اسماء العملاء'!A5 -> محسن محمد | AM398: ='اسماء العملاء'!B5 -> سيوف | AN398: ='اسماء العملاء'!C5 -> 01223451233
AK399: 5 | AL399: ='اسماء العملاء'!A6 -> احمد سعيد | AM399: ='اسماء العملاء'!B6 -> سموحة | AN399: ='اسماء العملاء'!C6 -> 0111111111
AK400: 6 | AL400: ='اسماء العملاء'!A7 -> مروان حسين | AM400: ='اسماء العملاء'!B7 -> البرج | AN400: ='اسماء العملاء'!C7 -> 022222222
AK401: 7 | AL401: ='اسماء العملاء'!A8 -> حسين رضوان | AM401: ='اسماء العملاء'!B8 -> سيدي بشر | AN401: ='اسماء العملاء'!C8 -> 1111111111
AK402: 8 | AL402: ='اسماء العملاء'!A9 -> وليد ابراهيم | AM402: ='اسماء العملاء'!B9 -> العجمي | AN402: ='اسماء العملاء'!C9 -> 2222222222
AK403: 9 | AL403: ='اسماء العملاء'!A10 -> سمير رياض | AM403: ='اسماء العملاء'!B10 -> المندرة | AN403: ='اسماء العملاء'!C10 -> 03333333333
AK404: 10 | AL404: ='اسماء العملاء'!A11 -> 0 | AM404: ='اسماء العملاء'!B11 -> 0 | AN404: ='اسماء العملاء'!C11 -> 0
AK405: 11 | AL405: ='اسماء العملاء'!A12 -> 0 | AM405: ='اسماء العملاء'!B12 -> 0 | AN405: ='اسماء العملاء'!C12 -> 0
AK406: 12 | AL406: ='اسماء العملاء'!A13 -> 0 | AM406: ='اسماء العملاء'!B13 -> 0 | AN406: ='اسماء العملاء'!C13 -> 0
AK407: 13 | AL407: ='اسماء العملاء'!A14 -> 0 | AM407: ='اسماء العملاء'!B14 -> 0 | AN407: ='اسماء العملاء'!C14 -> 0
AK408: 14 | AL408: ='اسماء العملاء'!A15 -> 0 | AM408: ='اسماء العملاء'!B15 -> 0 | AN408: ='اسماء العملاء'!C15 -> 0
AK409: 15 | AL409: ='اسماء العملاء'!A16 -> 0 | AM409: ='اسماء العملاء'!B16 -> 0 | AN409: ='اسماء العملاء'!C16 -> 0
AK410: 16 | AL410: ='اسماء العملاء'!A17 -> 0 | AM410: ='اسماء العملاء'!B17 -> 0 | AN410: ='اسماء العملاء'!C17 -> 0
AK411: 17 | AL411: ='اسماء العملاء'!A18 -> 0 | AM411: ='اسماء العملاء'!B18 -> 0 | AN411: ='اسماء العملاء'!C18 -> 0
AK412: 18 | AL412: ='اسماء العملاء'!A19 -> 0 | AM412: ='اسماء العملاء'!B19 -> 0 | AN412: ='اسماء العملاء'!C19 -> 0
AK413: 19 | AL413: ='اسماء العملاء'!A20 -> 0 | AM413: ='اسماء العملاء'!B20 -> 0 | AN413: ='اسماء العملاء'!C20 -> 0
AK414: 20 | AL414: ='اسماء العملاء'!A21 -> 0 | AM414: ='اسماء العملاء'!B21 -> 0 | AN414: ='اسماء العملاء'!C21 -> 0
AK415: 21 | AL415: ='اسماء العملاء'!A22 -> 0 | AM415: ='اسماء العملاء'!B22 -> 0 | AN415: ='اسماء العملاء'!C22 -> 0
AK416: 22 | AL416: ='اسماء العملاء'!A23 -> 0 | AM416: ='اسماء العملاء'!B23 -> 0 | AN416: ='اسماء العملاء'!C23 -> 0
AK417: 23 | AL417: ='اسماء العملاء'!A24 -> 0 | AM417: ='اسماء العملاء'!B24 -> 0 | AN417: ='اسماء العملاء'!C24 -> 0
AK418: 24 | AL418: ='اسماء العملاء'!A25 -> 0 | AM418: ='اسماء العملاء'!B25 -> 0 | AN418: ='اسماء العملاء'!C25 -> 0
AK419: 25 | AL419: ='اسماء العملاء'!A26 -> 0 | AM419: ='اسماء العملاء'!B26 -> 0 | AN419: ='اسماء العملاء'!C26 -> 0
AK420: 26 | AL420: ='اسماء العملاء'!A27 -> 0 | AM420: ='اسماء العملاء'!B27 -> 0 | AN420: ='اسماء العملاء'!C27 -> 0
AK421: 27 | AL421: ='اسماء العملاء'!A28 -> 0 | AM421: ='اسماء العملاء'!B28 -> 0 | AN421: ='اسماء العملاء'!C28 -> 0
AK422: 28 | AL422: ='اسماء العملاء'!A29 -> 0 | AM422: ='اسماء العملاء'!B29 -> 0 | AN422: ='اسماء العملاء'!C29 -> 0
AK423: 29 | AL423: ='اسماء العملاء'!A30 -> 0 | AM423: ='اسماء العملاء'!B30 -> 0 | AN423: ='اسماء العملاء'!C30 -> 0
AK424: 30 | AL424: ='اسماء العملاء'!A31 -> 0 | AM424: ='اسماء العملاء'!B31 -> 0 | AN424: ='اسماء العملاء'!C31 -> 0
AK425: 31 | AL425: ='اسماء العملاء'!A32 -> 0 | AM425: ='اسماء العملاء'!B32 -> 0 | AN425: ='اسماء العملاء'!C32 -> 0
AK426: 32 | AL426: ='اسماء العملاء'!A33 -> 0 | AM426: ='اسماء العملاء'!B33 -> 0 | AN426: ='اسماء العملاء'!C33 -> 0
AK427: 33 | AL427: ='اسماء العملاء'!A34 -> 0 | AM427: ='اسماء العملاء'!B34 -> 0 | AN427: ='اسماء العملاء'!C34 -> 0
AK428: 34 | AL428: ='اسماء العملاء'!A35 -> 0 | AM428: ='اسماء العملاء'!B35 -> 0 | AN428: ='اسماء العملاء'!C35 -> 0
AK429: 35 | AL429: ='اسماء العملاء'!A36 -> 0 | AM429: ='اسماء العملاء'!B36 -> 0 | AN429: ='اسماء العملاء'!C36 -> 0
AK430: 36 | AL430: ='اسماء العملاء'!A37 -> 0 | AM430: ='اسماء العملاء'!B37 -> 0 | AN430: ='اسماء العملاء'!C37 -> 0
AK431: 37 | AL431: ='اسماء العملاء'!A38 -> 0 | AM431: ='اسماء العملاء'!B38 -> 0 | AN431: ='اسماء العملاء'!C38 -> 0
AK432: 38 | AL432: ='اسماء العملاء'!A39 -> 0 | AM432: ='اسماء العملاء'!B39 -> 0 | AN432: ='اسماء العملاء'!C39 -> 0
AK433: 39 | AL433: ='اسماء العملاء'!A40 -> 0 | AM433: ='اسماء العملاء'!B40 -> 0 | AN433: ='اسماء العملاء'!C40 -> 0
AK434: 40 | AL434: ='اسماء العملاء'!A41 -> 0 | AM434: ='اسماء العملاء'!B41 -> 0 | AN434: ='اسماء العملاء'!C41 -> 0
AK435: 41 | AL435: ='اسماء العملاء'!A42 -> 0 | AM435: ='اسماء العملاء'!B42 -> 0 | AN435: ='اسماء العملاء'!C42 -> 0
AK436: 42 | AL436: ='اسماء العملاء'!A43 -> 0 | AM436: ='اسماء العملاء'!B43 -> 0 | AN436: ='اسماء العملاء'!C43 -> 0
AK437: 43 | AL437: ='اسماء العملاء'!A44 -> 0 | AM437: ='اسماء العملاء'!B44 -> 0 | AN437: ='اسماء العملاء'!C44 -> 0
AK438: 44 | AL438: ='اسماء العملاء'!A45 -> 0 | AM438: ='اسماء العملاء'!B45 -> 0 | AN438: ='اسماء العملاء'!C45 -> 0
AK439: 45 | AL439: ='اسماء العملاء'!A46 -> 0 | AM439: ='اسماء العملاء'!B46 -> 0 | AN439: ='اسماء العملاء'!C46 -> 0
AK440: 46 | AL440: ='اسماء العملاء'!A47 -> 0 | AM440: ='اسماء العملاء'!B47 -> 0 | AN440: ='اسماء العملاء'!C47 -> 0
AK441: 47 | AL441: ='اسماء العملاء'!A48 -> 0 | AM441: ='اسماء العملاء'!B48 -> 0 | AN441: ='اسماء العملاء'!C48 -> 0
AK442: 48 | AL442: ='اسماء العملاء'!A49 -> 0 | AM442: ='اسماء العملاء'!B49 -> 0 | AN442: ='اسماء العملاء'!C49 -> 0
AK443: 49 | AL443: ='اسماء العملاء'!A50 -> 0 | AM443: ='اسماء العملاء'!B50 -> 0 | AN443: ='اسماء العملاء'!C50 -> 0
AK444: 50 | AL444: ='اسماء العملاء'!A51 -> 0 | AM444: ='اسماء العملاء'!B51 -> 0 | AN444: ='اسماء العملاء'!C51 -> 0
AK445: 51 | AL445: ='اسماء العملاء'!A52 -> 0 | AM445: ='اسماء العملاء'!B52 -> 0 | AN445: ='اسماء العملاء'!C52 -> 0
AK446: 52 | AL446: ='اسماء العملاء'!A53 -> 0 | AM446: ='اسماء العملاء'!B53 -> 0 | AN446: ='اسماء العملاء'!C53 -> 0
AK447: 53 | AL447: ='اسماء العملاء'!A54 -> 0 | AM447: ='اسماء العملاء'!B54 -> 0 | AN447: ='اسماء العملاء'!C54 -> 0
AK448: 54 | AL448: ='اسماء العملاء'!A55 -> 0 | AM448: ='اسماء العملاء'!B55 -> 0 | AN448: ='اسماء العملاء'!C55 -> 0
AK449: 55 | AL449: ='اسماء العملاء'!A56 -> 0 | AM449: ='اسماء العملاء'!B56 -> 0 | AN449: ='اسماء العملاء'!C56 -> 0
AK450: 56 | AL450: ='اسماء العملاء'!A57 -> 0 | AM450: ='اسماء العملاء'!B57 -> 0 | AN450: ='اسماء العملاء'!C57 -> 0
AK451: 57 | AL451: ='اسماء العملاء'!A58 -> 0 | AM451: ='اسماء العملاء'!B58 -> 0 | AN451: ='اسماء العملاء'!C58 -> 0
AK452: 58 | AL452: ='اسماء العملاء'!A59 -> 0 | AM452: ='اسماء العملاء'!B59 -> 0 | AN452: ='اسماء العملاء'!C59 -> 0
AK453: 59 | AL453: ='اسماء العملاء'!A60 -> 0 | AM453: ='اسماء العملاء'!B60 -> 0 | AN453: ='اسماء العملاء'!C60 -> 0
AK454: 60 | AL454: ='اسماء العملاء'!A101 -> 0 | AM454: ='اسماء العملاء'!B101 -> 0 | AN454: ='اسماء العملاء'!C101 -> 0
AK455: 61 | AL455: ='اسماء العملاء'!A102 -> 0 | AM455: ='اسماء العملاء'!B102 -> 0 | AN455: ='اسماء العملاء'!C102 -> 0
AK456: 62 | AL456: ='اسماء العملاء'!A103 -> 0 | AM456: ='اسماء العملاء'!B103 -> 0 | AN456: ='اسماء العملاء'!C103 -> 0
AK457: 63 | AL457: ='اسماء العملاء'!A104 -> 0 | AM457: ='اسماء العملاء'!B104 -> 0 | AN457: ='اسماء العملاء'!C104 -> 0
AK458: 64 | AL458: ='اسماء العملاء'!A105 -> 0 | AM458: ='اسماء العملاء'!B105 -> 0 | AN458: ='اسماء العملاء'!C105 -> 0
AK459: 65 | AL459: ='اسماء العملاء'!A106 -> 0 | AM459: ='اسماء العملاء'!B106 -> 0 | AN459: ='اسماء العملاء'!C106 -> 0
AK460: 66 | AL460: ='اسماء العملاء'!A107 -> 0 | AM460: ='اسماء العملاء'!B107 -> 0 | AN460: ='اسماء العملاء'!C107 -> 0
AK461: 67 | AL461: ='اسماء العملاء'!A108 -> 0 | AM461: ='اسماء العملاء'!B108 -> 0 | AN461: ='اسماء العملاء'!C108 -> 0
AK462: 68 | AL462: ='اسماء العملاء'!A109 -> 0 | AM462: ='اسماء العملاء'!B109 -> 0 | AN462: ='اسماء العملاء'!C109 -> 0
AK463: 69 | AL463: ='اسماء العملاء'!A110 -> 0 | AM463: ='اسماء العملاء'!B110 -> 0 | AN463: ='اسماء العملاء'!C110 -> 0
AK464: 70 | AL464: ='اسماء العملاء'!A111 -> 0 | AM464: ='اسماء العملاء'!B111 -> 0 | AN464: ='اسماء العملاء'!C111 -> 0
AK465: 71 | AL465: ='اسماء العملاء'!A112 -> 0 | AM465: ='اسماء العملاء'!B112 -> 0 | AN465: ='اسماء العملاء'!C112 -> 0
AK466: 72 | AL466: ='اسماء العملاء'!A113 -> 0 | AM466: ='اسماء العملاء'!B113 -> 0 | AN466: ='اسماء العملاء'!C113 -> 0
AK467: 73 | AL467: ='اسماء العملاء'!A114 -> 0 | AM467: ='اسماء العملاء'!B114 -> 0 | AN467: ='اسماء العملاء'!C114 -> 0
AK468: 74 | AL468: ='اسماء العملاء'!A115 -> 0 | AM468: ='اسماء العملاء'!B115 -> 0 | AN468: ='اسماء العملاء'!C115 -> 0
AK469: 75 | AL469: ='اسماء العملاء'!A116 -> 0 | AM469: ='اسماء العملاء'!B116 -> 0 | AN469: ='اسماء العملاء'!C116 -> 0
AK470: 76 | AL470: ='اسماء العملاء'!A117 -> 0 | AM470: ='اسماء العملاء'!B117 -> 0 | AN470: ='اسماء العملاء'!C117 -> 0
AK471: 77 | AL471: ='اسماء العملاء'!A118 -> 0 | AM471: ='اسماء العملاء'!B118 -> 0 | AN471: ='اسماء العملاء'!C118 -> 0
AK472: 78 | AL472: ='اسماء العملاء'!A119 -> 0 | AM472: ='اسماء العملاء'!B119 -> 0 | AN472: ='اسماء العملاء'!C119 -> 0
AK473: 79 | AL473: ='اسماء العملاء'!A120 -> 0 | AM473: ='اسماء العملاء'!B120 -> 0 | AN473: ='اسماء العملاء'!C120 -> 0
AK474: 80 | AL474: ='اسماء العملاء'!A121 -> 0 | AM474: ='اسماء العملاء'!B121 -> 0 | AN474: ='اسماء العملاء'!C121 -> 0
AK475: 81 | AL475: ='اسماء العملاء'!A122 -> 0 | AM475: ='اسماء العملاء'!B122 -> 0 | AN475: ='اسماء العملاء'!C122 -> 0
AK476: 82 | AL476: ='اسماء العملاء'!A123 -> 0 | AM476: ='اسماء العملاء'!B123 -> 0 | AN476: ='اسماء العملاء'!C123 -> 0
AK477: 83 | AL477: ='اسماء العملاء'!A124 -> 0 | AM477: ='اسماء العملاء'!B124 -> 0 | AN477: ='اسماء العملاء'!C124 -> 0
AK478: 84 | AL478: ='اسماء العملاء'!A125 -> 0 | AM478: ='اسماء العملاء'!B125 -> 0 | AN478: ='اسماء العملاء'!C125 -> 0
AK479: 85 | AL479: ='اسماء العملاء'!A126 -> 0 | AM479: ='اسماء العملاء'!B126 -> 0 | AN479: ='اسماء العملاء'!C126 -> 0
AK480: 86 | AL480: ='اسماء العملاء'!A127 -> 0 | AM480: ='اسماء العملاء'!B127 -> 0 | AN480: ='اسماء العملاء'!C127 -> 0
AK481: 87 | AL481: ='اسماء العملاء'!A128 -> 0 | AM481: ='اسماء العملاء'!B128 -> 0 | AN481: ='اسماء العملاء'!C128 -> 0
AK482: 88 | AL482: ='اسماء العملاء'!A129 -> 0 | AM482: ='اسماء العملاء'!B129 -> 0 | AN482: ='اسماء العملاء'!C129 -> 0
AK483: 89 | AL483: ='اسماء العملاء'!A130 -> 0 | AM483: ='اسماء العملاء'!B130 -> 0 | AN483: ='اسماء العملاء'!C130 -> 0
AK484: 90 | AL484: ='اسماء العملاء'!A131 -> 0 | AM484: ='اسماء العملاء'!B131 -> 0 | AN484: ='اسماء العملاء'!C131 -> 0
AK485: 91 | AL485: ='اسماء العملاء'!A132 -> 0 | AM485: ='اسماء العملاء'!B132 -> 0 | AN485: ='اسماء العملاء'!C132 -> 0
AK486: 92 | AL486: ='اسماء العملاء'!A133 -> 0 | AM486: ='اسماء العملاء'!B133 -> 0 | AN486: ='اسماء العملاء'!C133 -> 0
AK487: 93 | AL487: ='اسماء العملاء'!A134 -> 0 | AM487: ='اسماء العملاء'!B134 -> 0 | AN487: ='اسماء العملاء'!C134 -> 0
AK488: 94 | AL488: ='اسماء العملاء'!A135 -> 0 | AM488: ='اسماء العملاء'!B135 -> 0 | AN488: ='اسماء العملاء'!C135 -> 0
AK489: 95 | AL489: ='اسماء العملاء'!A136 -> 0 | AM489: ='اسماء العملاء'!B136 -> 0 | AN489: ='اسماء العملاء'!C136 -> 0
AK490: 96 | AL490: ='اسماء العملاء'!A137 -> 0 | AM490: ='اسماء العملاء'!B137 -> 0 | AN490: ='اسماء العملاء'!C137 -> 0
... 124 more rows

Sheet ايصلات مجمعة
A2: التاريخ | B2: اسم العميل | C2: كود العميل | D2: عنوان العميل | E2: رقم التليفون | F2: قيمة القسط | G2: اجمالي الحساب | H2: تاريخ اول قسط
A3: =IF(B3="","",TODAY()) -> 2018-09-24 | B3: احمد محمد | C3: =IFERROR(VLOOKUP(B3,'اسماء العملاء'!$A$2:$E$142,5,FALSE),"") -> 1 | D3: =IFERROR(VLOOKUP(B3,'اسماء العملاء'!$A$2:$C$142,2,FALSE),"") -> العجمي | E3: =IFERROR(VLOOKUP(B3,'اسماء العملاء'!$A$2:$C$142,3,FALSE),"") -> 123456789
A4: =IF(B4="","",TODAY()) ->  | C4: =IFERROR(VLOOKUP(B4,'اسماء العملاء'!$A$2:$E$142,5,FALSE),"") ->  | D4: =IFERROR(VLOOKUP(B4,'اسماء العملاء'!$A$2:$C$142,2,FALSE),"") ->  | E4: =IFERROR(VLOOKUP(B4,'اسماء العملاء'!$A$2:$C$142,3,FALSE),"") -> 
C5: =IFERROR(VLOOKUP(B5,'اسماء العملاء'!$A$2:$E$142,5,FALSE),"") ->  | D5: =IFERROR(VLOOKUP(B5,'اسماء العملاء'!$A$2:$C$142,2,FALSE),"") ->  | E5: =IFERROR(VLOOKUP(B5,'اسماء العملاء'!$A$2:$C$142,3,FALSE),"") -> 
C6: =IFERROR(VLOOKUP(B6,'اسماء العملاء'!$A$2:$E$142,5,FALSE),"") ->  | D6: =IFERROR(VLOOKUP(B6,'اسماء العملاء'!$A$2:$C$142,2,FALSE),"") ->  | E6: =IFERROR(VLOOKUP(B6,'اسماء العملاء'!$A$2:$C$142,3,FALSE),"") -> 
C7: =IFERROR(VLOOKUP(B7,'اسماء العملاء'!$A$2:$E$142,5,FALSE),"") ->  | D7: =IFERROR(VLOOKUP(B7,'اسماء العملاء'!$A$2:$C$142,2,FALSE),"") ->  | E7: =IFERROR(VLOOKUP(B7,'اسماء العملاء'!$A$2:$C$142,3,FALSE),"") -> 
C8: =IFERROR(VLOOKUP(B8,'اسماء العملاء'!$A$2:$E$142,5,FALSE),"") ->  | D8: =IFERROR(VLOOKUP(B8,'اسماء العملاء'!$A$2:$C$142,2,FALSE),"") ->  | E8: =IFERROR(VLOOKUP(B8,'اسماء العملاء'!$A$2:$C$142,3,FALSE),"") -> 
C9: =IFERROR(VLOOKUP(B9,'اسماء العملاء'!$A$2:$E$142,5,FALSE),"") ->  | D9: =IFERROR(VLOOKUP(B9,'اسماء العملاء'!$A$2:$C$142,2,FALSE),"") ->  | E9: =IFERROR(VLOOKUP(B9,'اسماء العملاء'!$A$2:$C$142,3,FALSE),"") -> 
C10: =IFERROR(VLOOKUP(B10,'اسماء العملاء'!$A$2:$E$142,5,FALSE),"") ->  | D10: =IFERROR(VLOOKUP(B10,'اسماء العملاء'!$A$2:$C$142,2,FALSE),"") ->  | E10: =IFERROR(VLOOKUP(B10,'اسماء العملاء'!$A$2:$C$142,3,FALSE),"") -> 
C11: =IFERROR(VLOOKUP(B11,'اسماء العملاء'!$A$2:$E$142,5,FALSE),"") ->  | D11: =IFERROR(VLOOKUP(B11,'اسماء العملاء'!$A$2:$C$142,2,FALSE),"") ->  | E11: =IFERROR(VLOOKUP(B11,'اسماء العملاء'!$A$2:$C$142,3,FALSE),"") -> 
C12: =IFERROR(VLOOKUP(B12,'اسماء العملاء'!$A$2:$E$142,5,FALSE),"") ->  | D12: =IFERROR(VLOOKUP(B12,'اسماء العملاء'!$A$2:$C$142,2,FALSE),"") ->  | E12: =IFERROR(VLOOKUP(B12,'اسماء العملاء'!$A$2:$C$142,3,FALSE),"") -> 
C13: =IFERROR(VLOOKUP(B13,'اسماء العملاء'!$A$2:$E$142,5,FALSE),"") ->  | D13: =IFERROR(VLOOKUP(B13,'اسماء العملاء'!$A$2:$C$142,2,FALSE),"") ->  | E13: =IFERROR(VLOOKUP(B13,'اسماء العملاء'!$A$2:$C$142,3,FALSE),"") -> 
C14: =IFERROR(VLOOKUP(B14,'اسماء العملاء'!$A$2:$E$142,5,FALSE),"") ->  | D14: =IFERROR(VLOOKUP(B14,'اسماء العملاء'!$A$2:$C$142,2,FALSE),"") ->  | E14: =IFERROR(VLOOKUP(B14,'اسماء العملاء'!$A$2:$C$142,3,FALSE),"") -> 
C15: =IFERROR(VLOOKUP(B15,'اسماء العملاء'!$A$2:$E$142,5,FALSE),"") ->  | D15: =IFERROR(VLOOKUP(B15,'اسماء العملاء'!$A$2:$C$142,2,FALSE),"") ->  | E15: =IFERROR(VLOOKUP(B15,'اسماء العملاء'!$A$2:$C$142,3,FALSE),"") -> 
C16: =IFERROR(VLOOKUP(B16,'اسماء العملاء'!$A$2:$E$142,5,FALSE),"") ->  | D16: =IFERROR(VLOOKUP(B16,'اسماء العملاء'!$A$2:$C$142,2,FALSE),"") ->  | E16: =IFERROR(VLOOKUP(B16,'اسماء العملاء'!$A$2:$C$142,3,FALSE),"") -> 
C17: =IFERROR(VLOOKUP(B17,'اسماء العملاء'!$A$2:$E$142,5,FALSE),"") ->  | D17: =IFERROR(VLOOKUP(B17,'اسماء العملاء'!$A$2:$C$142,2,FALSE),"") ->  | E17: =IFERROR(VLOOKUP(B17,'اسماء العملاء'!$A$2:$C$142,3,FALSE),"") -> 
C18: =IFERROR(VLOOKUP(B18,'اسماء العملاء'!$A$2:$E$142,5,FALSE),"") ->  | D18: =IFERROR(VLOOKUP(B18,'اسماء العملاء'!$A$2:$C$142,2,FALSE),"") ->  | E18: =IFERROR(VLOOKUP(B18,'اسماء العملاء'!$A$2:$C$142,3,FALSE),"") -> 
C19: =IFERROR(VLOOKUP(B19,'اسماء العملاء'!$A$2:$E$142,5,FALSE),"") ->  | D19: =IFERROR(VLOOKUP(B19,'اسماء العملاء'!$A$2:$C$142,2,FALSE),"") ->  | E19: =IFERROR(VLOOKUP(B19,'اسماء العملاء'!$A$2:$C$142,3,FALSE),"") -> 
C20: =IFERROR(VLOOKUP(B20,'اسماء العملاء'!$A$2:$E$142,5,FALSE),"") ->  | D20: =IFERROR(VLOOKUP(B20,'اسماء العملاء'!$A$2:$C$142,2,FALSE),"") ->  | E20: =IFERROR(VLOOKUP(B20,'اسماء العملاء'!$A$2:$C$142,3,FALSE),"") -> 
C21: =IFERROR(VLOOKUP(B21,'اسماء العملاء'!$A$2:$E$142,5,FALSE),"") ->  | D21: =IFERROR(VLOOKUP(B21,'اسماء العملاء'!$A$2:$C$142,2,FALSE),"") ->  | E21: =IFERROR(VLOOKUP(B21,'اسماء العملاء'!$A$2:$C$142,3,FALSE),"") -> 
C22: =IFERROR(VLOOKUP(B22,'اسماء العملاء'!$A$2:$E$142,5,FALSE),"") ->  | D22: =IFERROR(VLOOKUP(B22,'اسماء العملاء'!$A$2:$C$142,2,FALSE),"") ->  | E22: =IFERROR(VLOOKUP(B22,'اسماء العملاء'!$A$2:$C$142,3,FALSE),"") -> 
C23: =IFERROR(VLOOKUP(B23,'اسماء العملاء'!$A$2:$E$142,5,FALSE),"") ->  | D23: =IFERROR(VLOOKUP(B23,'اسماء العملاء'!$A$2:$C$142,2,FALSE),"") ->  | E23: =IFERROR(VLOOKUP(B23,'اسماء العملاء'!$A$2:$C$142,3,FALSE),"") -> 
C24: =IFERROR(VLOOKUP(B24,'اسماء العملاء'!$A$2:$E$142,5,FALSE),"") ->  | D24: =IFERROR(VLOOKUP(B24,'اسماء العملاء'!$A$2:$C$142,2,FALSE),"") ->  | E24: =IFERROR(VLOOKUP(B24,'اسماء العملاء'!$A$2:$C$142,3,FALSE),"") -> 
C25: =IFERROR(VLOOKUP(B25,'اسماء العملاء'!$A$2:$E$142,5,FALSE),"") ->  | D25: =IFERROR(VLOOKUP(B25,'اسماء العملاء'!$A$2:$C$142,2,FALSE),"") ->  | E25: =IFERROR(VLOOKUP(B25,'اسماء العملاء'!$A$2:$C$142,3,FALSE),"") -> 
C26: =IFERROR(VLOOKUP(B26,'اسماء العملاء'!$A$2:$E$142,5,FALSE),"") ->  | D26: =IFERROR(VLOOKUP(B26,'اسماء العملاء'!$A$2:$C$142,2,FALSE),"") ->  | E26: =IFERROR(VLOOKUP(B26,'اسماء العملاء'!$A$2:$C$142,3,FALSE),"") -> 
C27: =IFERROR(VLOOKUP(B27,'اسماء العملاء'!$A$2:$E$142,5,FALSE),"") ->  | D27: =IFERROR(VLOOKUP(B27,'اسماء العملاء'!$A$2:$C$142,2,FALSE),"") ->  | E27: =IFERROR(VLOOKUP(B27,'اسماء العملاء'!$A$2:$C$142,3,FALSE),"") -> 
C28: =IFERROR(VLOOKUP(B28,'اسماء العملاء'!$A$2:$E$142,5,FALSE),"") ->  | D28: =IFERROR(VLOOKUP(B28,'اسماء العملاء'!$A$2:$C$142,2,FALSE),"") ->  | E28: =IFERROR(VLOOKUP(B28,'اسماء العملاء'!$A$2:$C$142,3,FALSE),"") -> 
C29: =IFERROR(VLOOKUP(B29,'اسماء العملاء'!$A$2:$E$142,5,FALSE),"") ->  | D29: =IFERROR(VLOOKUP(B29,'اسماء العملاء'!$A$2:$C$142,2,FALSE),"") ->  | E29: =IFERROR(VLOOKUP(B29,'اسماء العملاء'!$A$2:$C$142,3,FALSE),"") -> 
C30: =IFERROR(VLOOKUP(B30,'اسماء العملاء'!$A$2:$E$142,5,FALSE),"") ->  | D30: =IFERROR(VLOOKUP(B30,'اسماء العملاء'!$A$2:$C$142,2,FALSE),"") ->  | E30: =IFERROR(VLOOKUP(B30,'اسماء العملاء'!$A$2:$C$142,3,FALSE),"") -> 
C31: =IFERROR(VLOOKUP(B31,'اسماء العملاء'!$A$2:$E$142,5,FALSE),"") ->  | D31: =IFERROR(VLOOKUP(B31,'اسماء العملاء'!$A$2:$C$142,2,FALSE),"") ->  | E31: =IFERROR(VLOOKUP(B31,'اسماء العملاء'!$A$2:$C$142,3,FALSE),"") -> 
C32: =IFERROR(VLOOKUP(B32,'اسماء العملاء'!$A$2:$E$142,5,FALSE),"") ->  | D32: =IFERROR(VLOOKUP(B32,'اسماء العملاء'!$A$2:$C$142,2,FALSE),"") ->  | E32: =IFERROR(VLOOKUP(B32,'اسماء العملاء'!$A$2:$C$142,3,FALSE),"") -> 
C33: =IFERROR(VLOOKUP(B33,'اسماء العملاء'!$A$2:$E$142,5,FALSE),"") ->  | D33: =IFERROR(VLOOKUP(B33,'اسماء العملاء'!$A$2:$C$142,2,FALSE),"") ->  | E33: =IFERROR(VLOOKUP(B33,'اسماء العملاء'!$A$2:$C$142,3,FALSE),"") -> 
C34: =IFERROR(VLOOKUP(B34,'اسماء العملاء'!$A$2:$E$142,5,FALSE),"") ->  | D34: =IFERROR(VLOOKUP(B34,'اسماء العملاء'!$A$2:$C$142,2,FALSE),"") ->  | E34: =IFERROR(VLOOKUP(B34,'اسماء العملاء'!$A$2:$C$142,3,FALSE),"") -> 
C35: =IFERROR(VLOOKUP(B35,'اسماء العملاء'!$A$2:$E$142,5,FALSE),"") ->  | D35: =IFERROR(VLOOKUP(B35,'اسماء العملاء'!$A$2:$C$142,2,FALSE),"") ->  | E35: =IFERROR(VLOOKUP(B35,'اسماء العملاء'!$A$2:$C$142,3,FALSE),"") -> 
C36: =IFERROR(VLOOKUP(B36,'اسماء العملاء'!$A$2:$E$142,5,FALSE),"") ->  | D36: =IFERROR(VLOOKUP(B36,'اسماء العملاء'!$A$2:$C$142,2,FALSE),"") ->  | E36: =IFERROR(VLOOKUP(B36,'اسماء العملاء'!$A$2:$C$142,3,FALSE),"") -> 
C37: =IFERROR(VLOOKUP(B37,'اسماء العملاء'!$A$2:$E$142,5,FALSE),"") ->  | D37: =IFERROR(VLOOKUP(B37,'اسماء العملاء'!$A$2:$C$142,2,FALSE),"") ->  | E37: =IFERROR(VLOOKUP(B37,'اسماء العملاء'!$A$2:$C$142,3,FALSE),"") -> 
C38: =IFERROR(VLOOKUP(B38,'اسماء العملاء'!$A$2:$E$142,5,FALSE),"") ->  | D38: =IFERROR(VLOOKUP(B38,'اسماء العملاء'!$A$2:$C$142,2,FALSE),"") ->  | E38: =IFERROR(VLOOKUP(B38,'اسماء العملاء'!$A$2:$C$142,3,FALSE),"") -> 
C39: =IFERROR(VLOOKUP(B39,'اسماء العملاء'!$A$2:$E$142,5,FALSE),"") ->  | D39: =IFERROR(VLOOKUP(B39,'اسماء العملاء'!$A$2:$C$142,2,FALSE),"") ->  | E39: =IFERROR(VLOOKUP(B39,'اسماء العملاء'!$A$2:$C$142,3,FALSE),"") -> 
C40: =IFERROR(VLOOKUP(B40,'اسماء العملاء'!$A$2:$E$142,5,FALSE),"") ->  | D40: =IFERROR(VLOOKUP(B40,'اسماء العملاء'!$A$2:$C$142,2,FALSE),"") ->  | E40: =IFERROR(VLOOKUP(B40,'اسماء العملاء'!$A$2:$C$142,3,FALSE),"") -> 
C41: =IFERROR(VLOOKUP(B41,'اسماء العملاء'!$A$2:$E$142,5,FALSE),"") ->  | D41: =IFERROR(VLOOKUP(B41,'اسماء العملاء'!$A$2:$C$142,2,FALSE),"") ->  | E41: =IFERROR(VLOOKUP(B41,'اسماء العملاء'!$A$2:$C$142,3,FALSE),"") -> 
C42: =IFERROR(VLOOKUP(B42,'اسماء العملاء'!$A$2:$E$142,5,FALSE),"") ->  | D42: =IFERROR(VLOOKUP(B42,'اسماء العملاء'!$A$2:$C$142,2,FALSE),"") ->  | E42: =IFERROR(VLOOKUP(B42,'اسماء العملاء'!$A$2:$C$142,3,FALSE),"") -> 
C43: =IFERROR(VLOOKUP(B43,'اسماء العملاء'!$A$2:$E$142,5,FALSE),"") ->  | D43: =IFERROR(VLOOKUP(B43,'اسماء العملاء'!$A$2:$C$142,2,FALSE),"") ->  | E43: =IFERROR(VLOOKUP(B43,'اسماء العملاء'!$A$2:$C$142,3,FALSE),"") -> 
C44: =IFERROR(VLOOKUP(B44,'اسماء العملاء'!$A$2:$E$142,5,FALSE),"") ->  | D44: =IFERROR(VLOOKUP(B44,'اسماء العملاء'!$A$2:$C$142,2,FALSE),"") ->  | E44: =IFERROR(VLOOKUP(B44,'اسماء العملاء'!$A$2:$C$142,3,FALSE),"") -> 
C45: =IFERROR(VLOOKUP(B45,'اسماء العملاء'!$A$2:$E$142,5,FALSE),"") ->  | D45: =IFERROR(VLOOKUP(B45,'اسماء العملاء'!$A$2:$C$142,2,FALSE),"") ->  | E45: =IFERROR(VLOOKUP(B45,'اسماء العملاء'!$A$2:$C$142,3,FALSE),"") -> 
C46: =IFERROR(VLOOKUP(B46,'اسماء العملاء'!$A$2:$E$142,5,FALSE),"") ->  | D46: =IFERROR(VLOOKUP(B46,'اسماء العملاء'!$A$2:$C$142,2,FALSE),"") ->  | E46: =IFERROR(VLOOKUP(B46,'اسماء العملاء'!$A$2:$C$142,3,FALSE),"") -> 
C47: =IFERROR(VLOOKUP(B47,'اسماء العملاء'!$A$2:$E$142,5,FALSE),"") ->  | D47: =IFERROR(VLOOKUP(B47,'اسماء العملاء'!$A$2:$C$142,2,FALSE),"") ->  | E47: =IFERROR(VLOOKUP(B47,'اسماء العملاء'!$A$2:$C$142,3,FALSE),"") -> 
C48: =IFERROR(VLOOKUP(B48,'اسماء العملاء'!$A$2:$E$142,5,FALSE),"") ->  | D48: =IFERROR(VLOOKUP(B48,'اسماء العملاء'!$A$2:$C$142,2,FALSE),"") ->  | E48: =IFERROR(VLOOKUP(B48,'اسماء العملاء'!$A$2:$C$142,3,FALSE),"") -> 
C49: =IFERROR(VLOOKUP(B49,'اسماء العملاء'!$A$2:$E$142,5,FALSE),"") ->  | D49: =IFERROR(VLOOKUP(B49,'اسماء العملاء'!$A$2:$C$142,2,FALSE),"") ->  | E49: =IFERROR(VLOOKUP(B49,'اسماء العملاء'!$A$2:$C$142,3,FALSE),"") -> 
C50: =IFERROR(VLOOKUP(B50,'اسماء العملاء'!$A$2:$E$142,5,FALSE),"") ->  | D50: =IFERROR(VLOOKUP(B50,'اسماء العملاء'!$A$2:$C$142,2,FALSE),"") ->  | E50: =IFERROR(VLOOKUP(B50,'اسماء العملاء'!$A$2:$C$142,3,FALSE),"") -> 
C51: =IFERROR(VLOOKUP(B51,'اسماء العملاء'!$A$2:$E$142,5,FALSE),"") ->  | D51: =IFERROR(VLOOKUP(B51,'اسماء العملاء'!$A$2:$C$142,2,FALSE),"") ->  | E51: =IFERROR(VLOOKUP(B51,'اسماء العملاء'!$A$2:$C$142,3,FALSE),"") -> 
C52: =IFERROR(VLOOKUP(B52,'اسماء العملاء'!$A$2:$E$142,5,FALSE),"") ->  | D52: =IFERROR(VLOOKUP(B52,'اسماء العملاء'!$A$2:$C$142,2,FALSE),"") ->  | E52: =IFERROR(VLOOKUP(B52,'اسماء العملاء'!$A$2:$C$142,3,FALSE),"") -> 
C53: =IFERROR(VLOOKUP(B53,'اسماء العملاء'!$A$2:$E$142,5,FALSE),"") ->  | D53: =IFERROR(VLOOKUP(B53,'اسماء العملاء'!$A$2:$C$142,2,FALSE),"") ->  | E53: =IFERROR(VLOOKUP(B53,'اسماء العملاء'!$A$2:$C$142,3,FALSE),"") -> 
C54: =IFERROR(VLOOKUP(B54,'اسماء العملاء'!$A$2:$E$142,5,FALSE),"") ->  | D54: =IFERROR(VLOOKUP(B54,'اسماء العملاء'!$A$2:$C$142,2,FALSE),"") ->  | E54: =IFERROR(VLOOKUP(B54,'اسماء العملاء'!$A$2:$C$142,3,FALSE),"") -> 
C55: =IFERROR(VLOOKUP(B55,'اسماء العملاء'!$A$2:$E$142,5,FALSE),"") ->  | D55: =IFERROR(VLOOKUP(B55,'اسماء العملاء'!$A$2:$C$142,2,FALSE),"") ->  | E55: =IFERROR(VLOOKUP(B55,'اسماء العملاء'!$A$2:$C$142,3,FALSE),"") -> 
C56: =IFERROR(VLOOKUP(B56,'اسماء العملاء'!$A$2:$E$142,5,FALSE),"") ->  | D56: =IFERROR(VLOOKUP(B56,'اسماء العملاء'!$A$2:$C$142,2,FALSE),"") ->  | E56: =IFERROR(VLOOKUP(B56,'اسماء العملاء'!$A$2:$C$142,3,FALSE),"") -> 
C57: =IFERROR(VLOOKUP(B57,'اسماء العملاء'!$A$2:$E$142,5,FALSE),"") ->  | D57: =IFERROR(VLOOKUP(B57,'اسماء العملاء'!$A$2:$C$142,2,FALSE),"") ->  | E57: =IFERROR(VLOOKUP(B57,'اسماء العملاء'!$A$2:$C$142,3,FALSE),"") -> 
C58: =IFERROR(VLOOKUP(B58,'اسماء العملاء'!$A$2:$E$142,5,FALSE),"") ->  | D58: =IFERROR(VLOOKUP(B58,'اسماء العملاء'!$A$2:$C$142,2,FALSE),"") ->  | E58: =IFERROR(VLOOKUP(B58,'اسماء العملاء'!$A$2:$C$142,3,FALSE),"") -> 
C59: =IFERROR(VLOOKUP(B59,'اسماء العملاء'!$A$2:$E$142,5,FALSE),"") ->  | D59: =IFERROR(VLOOKUP(B59,'اسماء العملاء'!$A$2:$C$142,2,FALSE),"") ->  | E59: =IFERROR(VLOOKUP(B59,'اسماء العملاء'!$A$2:$C$142,3,FALSE),"") -> 
C60: =IFERROR(VLOOKUP(B60,'اسماء العملاء'!$A$2:$E$142,5,FALSE),"") ->  | D60: =IFERROR(VLOOKUP(B60,'اسماء العملاء'!$A$2:$C$142,2,FALSE),"") ->  | E60: =IFERROR(VLOOKUP(B60,'اسماء العملاء'!$A$2:$C$142,3,FALSE),"") -> 
C61: =IFERROR(VLOOKUP(B61,'اسماء العملاء'!$A$2:$E$142,5,FALSE),"") ->  | D61: =IFERROR(VLOOKUP(B61,'اسماء العملاء'!$A$2:$C$142,2,FALSE),"") ->  | E61: =IFERROR(VLOOKUP(B61,'اسماء العملاء'!$A$2:$C$142,3,FALSE),"") -> 
C62: =IFERROR(VLOOKUP(B62,'اسماء العملاء'!$A$2:$E$142,5,FALSE),"") ->  | D62: =IFERROR(VLOOKUP(B62,'اسماء العملاء'!$A$2:$C$142,2,FALSE),"") ->  | E62: =IFERROR(VLOOKUP(B62,'اسماء العملاء'!$A$2:$C$142,3,FALSE),"") -> 
C63: =IFERROR(VLOOKUP(B63,'اسماء العملاء'!$A$2:$E$142,5,FALSE),"") ->  | D63: =IFERROR(VLOOKUP(B63,'اسماء العملاء'!$A$2:$C$142,2,FALSE),"") ->  | E63: =IFERROR(VLOOKUP(B63,'اسماء العملاء'!$A$2:$C$142,3,FALSE),"") -> 
C64: =IFERROR(VLOOKUP(B64,'اسماء العملاء'!$A$2:$E$142,5,FALSE),"") ->  | D64: =IFERROR(VLOOKUP(B64,'اسماء العملاء'!$A$2:$C$142,2,FALSE),"") ->  | E64: =IFERROR(VLOOKUP(B64,'اسماء العملاء'!$A$2:$C$142,3,FALSE),"") -> 
C65: =IFERROR(VLOOKUP(B65,'اسماء العملاء'!$A$2:$E$142,5,FALSE),"") ->  | D65: =IFERROR(VLOOKUP(B65,'اسماء العملاء'!$A$2:$C$142,2,FALSE),"") ->  | E65: =IFERROR(VLOOKUP(B65,'اسماء العملاء'!$A$2:$C$142,3,FALSE),"") -> 
C66: =IFERROR(VLOOKUP(B66,'اسماء العملاء'!$A$2:$E$142,5,FALSE),"") ->  | D66: =IFERROR(VLOOKUP(B66,'اسماء العملاء'!$A$2:$C$142,2,FALSE),"") ->  | E66: =IFERROR(VLOOKUP(B66,'اسماء العملاء'!$A$2:$C$142,3,FALSE),"") -> 
C67: =IFERROR(VLOOKUP(B67,'اسماء العملاء'!$A$2:$E$142,5,FALSE),"") ->  | D67: =IFERROR(VLOOKUP(B67,'اسماء العملاء'!$A$2:$C$142,2,FALSE),"") ->  | E67: =IFERROR(VLOOKUP(B67,'اسماء العملاء'!$A$2:$C$142,3,FALSE),"") -> 
A68: =IF(B68="","",TODAY()) ->  | C68: =IFERROR(VLOOKUP(B68,'اسماء العملاء'!$A$2:$E$142,5,FALSE),"") ->  | D68: =IFERROR(VLOOKUP(B68,'اسماء العملاء'!$A$2:$C$142,2,FALSE),"") ->  | E68: =IFERROR(VLOOKUP(B68,'اسماء العملاء'!$A$2:$C$142,3,FALSE),"") -> 
C69: =IFERROR(VLOOKUP(B69,'اسماء العملاء'!$A$2:$E$142,5,FALSE),"") ->  | D69: =IFERROR(VLOOKUP(B69,'اسماء العملاء'!$A$2:$C$142,2,FALSE),"") ->  | E69: =IFERROR(VLOOKUP(B69,'اسماء العملاء'!$A$2:$C$142,3,FALSE),"") -> 
C70: =IFERROR(VLOOKUP(B70,'اسماء العملاء'!$A$2:$E$142,5,FALSE),"") ->  | D70: =IFERROR(VLOOKUP(B70,'اسماء العملاء'!$A$2:$C$142,2,FALSE),"") ->  | E70: =IFERROR(VLOOKUP(B70,'اسماء العملاء'!$A$2:$C$142,3,FALSE),"") -> 
C71: =IFERROR(VLOOKUP(B71,'اسماء العملاء'!$A$2:$E$142,5,FALSE),"") ->  | D71: =IFERROR(VLOOKUP(B71,'اسماء العملاء'!$A$2:$C$142,2,FALSE),"") ->  | E71: =IFERROR(VLOOKUP(B71,'اسماء العملاء'!$A$2:$C$142,3,FALSE),"") -> 
C72: =IFERROR(VLOOKUP(B72,'اسماء العملاء'!$A$2:$E$142,5,FALSE),"") ->  | D72: =IFERROR(VLOOKUP(B72,'اسماء العملاء'!$A$2:$C$142,2,FALSE),"") ->  | E72: =IFERROR(VLOOKUP(B72,'اسماء العملاء'!$A$2:$C$142,3,FALSE),"") -> 
C73: =IFERROR(VLOOKUP(B73,'اسماء العملاء'!$A$2:$E$142,5,FALSE),"") ->  | D73: =IFERROR(VLOOKUP(B73,'اسماء العملاء'!$A$2:$C$142,2,FALSE),"") ->  | E73: =IFERROR(VLOOKUP(B73,'اسماء العملاء'!$A$2:$C$142,3,FALSE),"") -> 
C74: =IFERROR(VLOOKUP(B74,'اسماء العملاء'!$A$2:$E$142,5,FALSE),"") ->  | D74: =IFERROR(VLOOKUP(B74,'اسماء العملاء'!$A$2:$C$142,2,FALSE),"") ->  | E74: =IFERROR(VLOOKUP(B74,'اسماء العملاء'!$A$2:$C$142,3,FALSE),"") -> 
C75: =IFERROR(VLOOKUP(B75,'اسماء العملاء'!$A$2:$E$142,5,FALSE),"") ->  | D75: =IFERROR(VLOOKUP(B75,'اسماء العملاء'!$A$2:$C$142,2,FALSE),"") ->  | E75: =IFERROR(VLOOKUP(B75,'اسماء العملاء'!$A$2:$C$142,3,FALSE),"") -> 
C76: =IFERROR(VLOOKUP(B76,'اسماء العملاء'!$A$2:$E$142,5,FALSE),"") ->  | D76: =IFERROR(VLOOKUP(B76,'اسماء العملاء'!$A$2:$C$142,2,FALSE),"") ->  | E76: =IFERROR(VLOOKUP(B76,'اسماء العملاء'!$A$2:$C$142,3,FALSE),"") -> 
C77: =IFERROR(VLOOKUP(B77,'اسماء العملاء'!$A$2:$E$142,5,FALSE),"") ->  | D77: =IFERROR(VLOOKUP(B77,'اسماء العملاء'!$A$2:$C$142,2,FALSE),"") ->  | E77: =IFERROR(VLOOKUP(B77,'اسماء العملاء'!$A$2:$C$142,3,FALSE),"") -> 
C78: =IFERROR(VLOOKUP(B78,'اسماء العملاء'!$A$2:$E$142,5,FALSE),"") ->  | D78: =IFERROR(VLOOKUP(B78,'اسماء العملاء'!$A$2:$C$142,2,FALSE),"") ->  | E78: =IFERROR(VLOOKUP(B78,'اسماء العملاء'!$A$2:$C$142,3,FALSE),"") -> 
C79: =IFERROR(VLOOKUP(B79,'اسماء العملاء'!$A$2:$E$142,5,FALSE),"") ->  | D79: =IFERROR(VLOOKUP(B79,'اسماء العملاء'!$A$2:$C$142,2,FALSE),"") ->  | E79: =IFERROR(VLOOKUP(B79,'اسماء العملاء'!$A$2:$C$142,3,FALSE),"") -> 
C80: =IFERROR(VLOOKUP(B80,'اسماء العملاء'!$A$2:$E$142,5,FALSE),"") ->  | D80: =IFERROR(VLOOKUP(B80,'اسماء العملاء'!$A$2:$C$142,2,FALSE),"") ->  | E80: =IFERROR(VLOOKUP(B80,'اسماء العملاء'!$A$2:$C$142,3,FALSE),"") -> 
C81: =IFERROR(VLOOKUP(B81,'اسماء العملاء'!$A$2:$E$142,5,FALSE),"") ->  | D81: =IFERROR(VLOOKUP(B81,'اسماء العملاء'!$A$2:$C$142,2,FALSE),"") ->  | E81: =IFERROR(VLOOKUP(B81,'اسماء العملاء'!$A$2:$C$142,3,FALSE),"") -> 
C82: =IFERROR(VLOOKUP(B82,'اسماء العملاء'!$A$2:$E$142,5,FALSE),"") ->  | D82: =IFERROR(VLOOKUP(B82,'اسماء العملاء'!$A$2:$C$142,2,FALSE),"") ->  | E82: =IFERROR(VLOOKUP(B82,'اسماء العملاء'!$A$2:$C$142,3,FALSE),"") -> 
C83: =IFERROR(VLOOKUP(B83,'اسماء العملاء'!$A$2:$E$142,5,FALSE),"") ->  | D83: =IFERROR(VLOOKUP(B83,'اسماء العملاء'!$A$2:$C$142,2,FALSE),"") ->  | E83: =IFERROR(VLOOKUP(B83,'اسماء العملاء'!$A$2:$C$142,3,FALSE),"") -> 
C84: =IFERROR(VLOOKUP(B84,'اسماء العملاء'!$A$2:$E$142,5,FALSE),"") ->  | D84: =IFERROR(VLOOKUP(B84,'اسماء العملاء'!$A$2:$C$142,2,FALSE),"") ->  | E84: =IFERROR(VLOOKUP(B84,'اسماء العملاء'!$A$2:$C$142,3,FALSE),"") -> 
C85: =IFERROR(VLOOKUP(B85,'اسماء العملاء'!$A$2:$E$142,5,FALSE),"") ->  | D85: =IFERROR(VLOOKUP(B85,'اسماء العملاء'!$A$2:$C$142,2,FALSE),"") ->  | E85: =IFERROR(VLOOKUP(B85,'اسماء العملاء'!$A$2:$C$142,3,FALSE),"") -> 
C86: =IFERROR(VLOOKUP(B86,'اسماء العملاء'!$A$2:$E$142,5,FALSE),"") ->  | D86: =IFERROR(VLOOKUP(B86,'اسماء العملاء'!$A$2:$C$142,2,FALSE),"") ->  | E86: =IFERROR(VLOOKUP(B86,'اسماء العملاء'!$A$2:$C$142,3,FALSE),"") -> 
C87: =IFERROR(VLOOKUP(B87,'اسماء العملاء'!$A$2:$E$142,5,FALSE),"") ->  | D87: =IFERROR(VLOOKUP(B87,'اسماء العملاء'!$A$2:$C$142,2,FALSE),"") ->  | E87: =IFERROR(VLOOKUP(B87,'اسماء العملاء'!$A$2:$C$142,3,FALSE),"") -> 
C88: =IFERROR(VLOOKUP(B88,'اسماء العملاء'!$A$2:$E$142,5,FALSE),"") ->  | D88: =IFERROR(VLOOKUP(B88,'اسماء العملاء'!$A$2:$C$142,2,FALSE),"") ->  | E88: =IFERROR(VLOOKUP(B88,'اسماء العملاء'!$A$2:$C$142,3,FALSE),"") -> 
C89: =IFERROR(VLOOKUP(B89,'اسماء العملاء'!$A$2:$E$142,5,FALSE),"") ->  | D89: =IFERROR(VLOOKUP(B89,'اسماء العملاء'!$A$2:$C$142,2,FALSE),"") ->  | E89: =IFERROR(VLOOKUP(B89,'اسماء العملاء'!$A$2:$C$142,3,FALSE),"") -> 
C90: =IFERROR(VLOOKUP(B90,'اسماء العملاء'!$A$2:$E$142,5,FALSE),"") ->  | D90: =IFERROR(VLOOKUP(B90,'اسماء العملاء'!$A$2:$C$142,2,FALSE),"") ->  | E90: =IFERROR(VLOOKUP(B90,'اسماء العملاء'!$A$2:$C$142,3,FALSE),"") -> 
C91: =IFERROR(VLOOKUP(B91,'اسماء العملاء'!$A$2:$E$142,5,FALSE),"") ->  | D91: =IFERROR(VLOOKUP(B91,'اسماء العملاء'!$A$2:$C$142,2,FALSE),"") ->  | E91: =IFERROR(VLOOKUP(B91,'اسماء العملاء'!$A$2:$C$142,3,FALSE),"") -> 
C92: =IFERROR(VLOOKUP(B92,'اسماء العملاء'!$A$2:$E$142,5,FALSE),"") ->  | D92: =IFERROR(VLOOKUP(B92,'اسماء العملاء'!$A$2:$C$142,2,FALSE),"") ->  | E92: =IFERROR(VLOOKUP(B92,'اسماء العملاء'!$A$2:$C$142,3,FALSE),"") -> 
C93: =IFERROR(VLOOKUP(B93,'اسماء العملاء'!$A$2:$E$142,5,FALSE),"") ->  | D93: =IFERROR(VLOOKUP(B93,'اسماء العملاء'!$A$2:$C$142,2,FALSE),"") ->  | E93: =IFERROR(VLOOKUP(B93,'اسماء العملاء'!$A$2:$C$142,3,FALSE),"") -> 
C94: =IFERROR(VLOOKUP(B94,'اسماء العملاء'!$A$2:$E$142,5,FALSE),"") ->  | D94: =IFERROR(VLOOKUP(B94,'اسماء العملاء'!$A$2:$C$142,2,FALSE),"") ->  | E94: =IFERROR(VLOOKUP(B94,'اسماء العملاء'!$A$2:$C$142,3,FALSE),"") -> 
C95: =IFERROR(VLOOKUP(B95,'اسماء العملاء'!$A$2:$E$142,5,FALSE),"") ->  | D95: =IFERROR(VLOOKUP(B95,'اسماء العملاء'!$A$2:$C$142,2,FALSE),"") ->  | E95: =IFERROR(VLOOKUP(B95,'اسماء العملاء'!$A$2:$C$142,3,FALSE),"") -> 
C96: =IFERROR(VLOOKUP(B96,'اسماء العملاء'!$A$2:$E$142,5,FALSE),"") ->  | D96: =IFERROR(VLOOKUP(B96,'اسماء العملاء'!$A$2:$C$142,2,FALSE),"") ->  | E96: =IFERROR(VLOOKUP(B96,'اسماء العملاء'!$A$2:$C$142,3,FALSE),"") -> 
C97: =IFERROR(VLOOKUP(B97,'اسماء العملاء'!$A$2:$E$142,5,FALSE),"") ->  | D97: =IFERROR(VLOOKUP(B97,'اسماء العملاء'!$A$2:$C$142,2,FALSE),"") ->  | E97: =IFERROR(VLOOKUP(B97,'اسماء العملاء'!$A$2:$C$142,3,FALSE),"") -> 
C98: =IFERROR(VLOOKUP(B98,'اسماء العملاء'!$A$2:$E$142,5,FALSE),"") ->  | D98: =IFERROR(VLOOKUP(B98,'اسماء العملاء'!$A$2:$C$142,2,FALSE),"") ->  | E98: =IFERROR(VLOOKUP(B98,'اسماء العملاء'!$A$2:$C$142,3,FALSE),"") -> 
C99: =IFERROR(VLOOKUP(B99,'اسماء العملاء'!$A$2:$E$142,5,FALSE),"") ->  | D99: =IFERROR(VLOOKUP(B99,'اسماء العملاء'!$A$2:$C$142,2,FALSE),"") ->  | E99: =IFERROR(VLOOKUP(B99,'اسماء العملاء'!$A$2:$C$142,3,FALSE),"") -> 
C100: =IFERROR(VLOOKUP(B100,'اسماء العملاء'!$A$2:$E$142,5,FALSE),"") ->  | D100: =IFERROR(VLOOKUP(B100,'اسماء العملاء'!$A$2:$C$142,2,FALSE),"") ->  | E100: =IFERROR(VLOOKUP(B100,'اسماء العملاء'!$A$2:$C$142,3,FALSE),"") -> 
C101: =IFERROR(VLOOKUP(B101,'اسماء العملاء'!$A$2:$E$142,5,FALSE),"") ->  | D101: =IFERROR(VLOOKUP(B101,'اسماء العملاء'!$A$2:$C$142,2,FALSE),"") ->  | E101: =IFERROR(VLOOKUP(B101,'اسماء العملاء'!$A$2:$C$142,3,FALSE),"") -> 
C102: =IFERROR(VLOOKUP(B102,'اسماء العملاء'!$A$2:$E$142,5,FALSE),"") ->  | D102: =IFERROR(VLOOKUP(B102,'اسماء العملاء'!$A$2:$C$142,2,FALSE),"") ->  | E102: =IFERROR(VLOOKUP(B102,'اسماء العملاء'!$A$2:$C$142,3,FALSE),"") -> 
C103: =IFERROR(VLOOKUP(B103,'اسماء العملاء'!$A$2:$E$142,5,FALSE),"") ->  | D103: =IFERROR(VLOOKUP(B103,'اسماء العملاء'!$A$2:$C$142,2,FALSE),"") ->  | E103: =IFERROR(VLOOKUP(B103,'اسماء العملاء'!$A$2:$C$142,3,FALSE),"") -> 
C104: =IFERROR(VLOOKUP(B104,'اسماء العملاء'!$A$2:$E$142,5,FALSE),"") ->  | D104: =IFERROR(VLOOKUP(B104,'اسماء العملاء'!$A$2:$C$142,2,FALSE),"") ->  | E104: =IFERROR(VLOOKUP(B104,'اسماء العملاء'!$A$2:$C$142,3,FALSE),"") -> 
C105: =IFERROR(VLOOKUP(B105,'اسماء العملاء'!$A$2:$E$142,5,FALSE),"") ->  | D105: =IFERROR(VLOOKUP(B105,'اسماء العملاء'!$A$2:$C$142,2,FALSE),"") ->  | E105: =IFERROR(VLOOKUP(B105,'اسماء العملاء'!$A$2:$C$142,3,FALSE),"") -> 
C106: =IFERROR(VLOOKUP(B106,'اسماء العملاء'!$A$2:$E$142,5,FALSE),"") ->  | D106: =IFERROR(VLOOKUP(B106,'اسماء العملاء'!$A$2:$C$142,2,FALSE),"") ->  | E106: =IFERROR(VLOOKUP(B106,'اسماء العملاء'!$A$2:$C$142,3,FALSE),"") -> 
C107: =IFERROR(VLOOKUP(B107,'اسماء العملاء'!$A$2:$E$142,5,FALSE),"") ->  | D107: =IFERROR(VLOOKUP(B107,'اسماء العملاء'!$A$2:$C$142,2,FALSE),"") ->  | E107: =IFERROR(VLOOKUP(B107,'اسماء العملاء'!$A$2:$C$142,3,FALSE),"") -> 
C108: =IFERROR(VLOOKUP(B108,'اسماء العملاء'!$A$2:$E$142,5,FALSE),"") ->  | D108: =IFERROR(VLOOKUP(B108,'اسماء العملاء'!$A$2:$C$142,2,FALSE),"") ->  | E108: =IFERROR(VLOOKUP(B108,'اسماء العملاء'!$A$2:$C$142,3,FALSE),"") -> 
C109: =IFERROR(VLOOKUP(B109,'اسماء العملاء'!$A$2:$E$142,5,FALSE),"") ->  | D109: =IFERROR(VLOOKUP(B109,'اسماء العملاء'!$A$2:$C$142,2,FALSE),"") ->  | E109: =IFERROR(VLOOKUP(B109,'اسماء العملاء'!$A$2:$C$142,3,FALSE),"") -> 
C110: =IFERROR(VLOOKUP(B110,'اسماء العملاء'!$A$2:$E$142,5,FALSE),"") ->  | D110: =IFERROR(VLOOKUP(B110,'اسماء العملاء'!$A$2:$C$142,2,FALSE),"") ->  | E110: =IFERROR(VLOOKUP(B110,'اسماء العملاء'!$A$2:$C$142,3,FALSE),"") -> 
C111: =IFERROR(VLOOKUP(B111,'اسماء العملاء'!$A$2:$E$142,5,FALSE),"") ->  | D111: =IFERROR(VLOOKUP(B111,'اسماء العملاء'!$A$2:$C$142,2,FALSE),"") ->  | E111: =IFERROR(VLOOKUP(B111,'اسماء العملاء'!$A$2:$C$142,3,FALSE),"") -> 
C112: =IFERROR(VLOOKUP(B112,'اسماء العملاء'!$A$2:$E$142,5,FALSE),"") ->  | D112: =IFERROR(VLOOKUP(B112,'اسماء العملاء'!$A$2:$C$142,2,FALSE),"") ->  | E112: =IFERROR(VLOOKUP(B112,'اسماء العملاء'!$A$2:$C$142,3,FALSE),"") -> 
C113: =IFERROR(VLOOKUP(B113,'اسماء العملاء'!$A$2:$E$142,5,FALSE),"") ->  | D113: =IFERROR(VLOOKUP(B113,'اسماء العملاء'!$A$2:$C$142,2,FALSE),"") ->  | E113: =IFERROR(VLOOKUP(B113,'اسماء العملاء'!$A$2:$C$142,3,FALSE),"") -> 
C114: =IFERROR(VLOOKUP(B114,'اسماء العملاء'!$A$2:$E$142,5,FALSE),"") ->  | D114: =IFERROR(VLOOKUP(B114,'اسماء العملاء'!$A$2:$C$142,2,FALSE),"") ->  | E114: =IFERROR(VLOOKUP(B114,'اسماء العملاء'!$A$2:$C$142,3,FALSE),"") -> 
C115: =IFERROR(VLOOKUP(B115,'اسماء العملاء'!$A$2:$E$142,5,FALSE),"") ->  | D115: =IFERROR(VLOOKUP(B115,'اسماء العملاء'!$A$2:$C$142,2,FALSE),"") ->  | E115: =IFERROR(VLOOKUP(B115,'اسماء العملاء'!$A$2:$C$142,3,FALSE),"") -> 
C116: =IFERROR(VLOOKUP(B116,'اسماء العملاء'!$A$2:$E$142,5,FALSE),"") ->  | D116: =IFERROR(VLOOKUP(B116,'اسماء العملاء'!$A$2:$C$142,2,FALSE),"") ->  | E116: =IFERROR(VLOOKUP(B116,'اسماء العملاء'!$A$2:$C$142,3,FALSE),"") -> 
C117: =IFERROR(VLOOKUP(B117,'اسماء العملاء'!$A$2:$E$142,5,FALSE),"") ->  | D117: =IFERROR(VLOOKUP(B117,'اسماء العملاء'!$A$2:$C$142,2,FALSE),"") ->  | E117: =IFERROR(VLOOKUP(B117,'اسماء العملاء'!$A$2:$C$142,3,FALSE),"") -> 
C118: =IFERROR(VLOOKUP(B118,'اسماء العملاء'!$A$2:$E$142,5,FALSE),"") ->  | D118: =IFERROR(VLOOKUP(B118,'اسماء العملاء'!$A$2:$C$142,2,FALSE),"") ->  | E118: =IFERROR(VLOOKUP(B118,'اسماء العملاء'!$A$2:$C$142,3,FALSE),"") -> 
C119: =IFERROR(VLOOKUP(B119,'اسماء العملاء'!$A$2:$E$142,5,FALSE),"") ->  | D119: =IFERROR(VLOOKUP(B119,'اسماء العملاء'!$A$2:$C$142,2,FALSE),"") ->  | E119: =IFERROR(VLOOKUP(B119,'اسماء العملاء'!$A$2:$C$142,3,FALSE),"") -> 
C120: =IFERROR(VLOOKUP(B120,'اسماء العملاء'!$A$2:$E$142,5,FALSE),"") ->  | D120: =IFERROR(VLOOKUP(B120,'اسماء العملاء'!$A$2:$C$142,2,FALSE),"") ->  | E120: =IFERROR(VLOOKUP(B120,'اسماء العملاء'!$A$2:$C$142,3,FALSE),"") -> 
C121: =IFERROR(VLOOKUP(B121,'اسماء العملاء'!$A$2:$E$142,5,FALSE),"") ->  | D121: =IFERROR(VLOOKUP(B121,'اسماء العملاء'!$A$2:$C$142,2,FALSE),"") ->  | E121: =IFERROR(VLOOKUP(B121,'اسماء العملاء'!$A$2:$C$142,3,FALSE),"") -> 
C122: =IFERROR(VLOOKUP(B122,'اسماء العملاء'!$A$2:$E$142,5,FALSE),"") ->  | D122: =IFERROR(VLOOKUP(B122,'اسماء العملاء'!$A$2:$C$142,2,FALSE),"") ->  | E122: =IFERROR(VLOOKUP(B122,'اسماء العملاء'!$A$2:$C$142,3,FALSE),"") -> 
C123: =IFERROR(VLOOKUP(B123,'اسماء العملاء'!$A$2:$E$142,5,FALSE),"") ->  | D123: =IFERROR(VLOOKUP(B123,'اسماء العملاء'!$A$2:$C$142,2,FALSE),"") ->  | E123: =IFERROR(VLOOKUP(B123,'اسماء العملاء'!$A$2:$C$142,3,FALSE),"") -> 
C124: =IFERROR(VLOOKUP(B124,'اسماء العملاء'!$A$2:$E$142,5,FALSE),"") ->  | D124: =IFERROR(VLOOKUP(B124,'اسماء العملاء'!$A$2:$C$142,2,FALSE),"") ->  | E124: =IFERROR(VLOOKUP(B124,'اسماء العملاء'!$A$2:$C$142,3,FALSE),"") -> 
C125: =IFERROR(VLOOKUP(B125,'اسماء العملاء'!$A$2:$E$142,5,FALSE),"") ->  | D125: =IFERROR(VLOOKUP(B125,'اسماء العملاء'!$A$2:$C$142,2,FALSE),"") ->  | E125: =IFERROR(VLOOKUP(B125,'اسماء العملاء'!$A$2:$C$142,3,FALSE),"") -> 
C126: =IFERROR(VLOOKUP(B126,'اسماء العملاء'!$A$2:$E$142,5,FALSE),"") ->  | D126: =IFERROR(VLOOKUP(B126,'اسماء العملاء'!$A$2:$C$142,2,FALSE),"") ->  | E126: =IFERROR(VLOOKUP(B126,'اسماء العملاء'!$A$2:$C$142,3,FALSE),"") -> 
C127: =IFERROR(VLOOKUP(B127,'اسماء العملاء'!$A$2:$E$142,5,FALSE),"") ->  | D127: =IFERROR(VLOOKUP(B127,'اسماء العملاء'!$A$2:$C$142,2,FALSE),"") ->  | E127: =IFERROR(VLOOKUP(B127,'اسماء العملاء'!$A$2:$C$142,3,FALSE),"") -> 
C128: =IFERROR(VLOOKUP(B128,'اسماء العملاء'!$A$2:$E$142,5,FALSE),"") ->  | D128: =IFERROR(VLOOKUP(B128,'اسماء العملاء'!$A$2:$C$142,2,FALSE),"") ->  | E128: =IFERROR(VLOOKUP(B128,'اسماء العملاء'!$A$2:$C$142,3,FALSE),"") -> 
C129: =IFERROR(VLOOKUP(B129,'اسماء العملاء'!$A$2:$E$142,5,FALSE),"") ->  | D129: =IFERROR(VLOOKUP(B129,'اسماء العملاء'!$A$2:$C$142,2,FALSE),"") ->  | E129: =IFERROR(VLOOKUP(B129,'اسماء العملاء'!$A$2:$C$142,3,FALSE),"") -> 
C130: =IFERROR(VLOOKUP(B130,'اسماء العملاء'!$A$2:$E$142,5,FALSE),"") ->  | D130: =IFERROR(VLOOKUP(B130,'اسماء العملاء'!$A$2:$C$142,2,FALSE),"") ->  | E130: =IFERROR(VLOOKUP(B130,'اسماء العملاء'!$A$2:$C$142,3,FALSE),"") -> 
C131: =IFERROR(VLOOKUP(B131,'اسماء العملاء'!$A$2:$E$142,5,FALSE),"") ->  | D131: =IFERROR(VLOOKUP(B131,'اسماء العملاء'!$A$2:$C$142,2,FALSE),"") ->  | E131: =IFERROR(VLOOKUP(B131,'اسماء العملاء'!$A$2:$C$142,3,FALSE),"") -> 
A132: =IF(B132="","",TODAY()) ->  | C132: =IFERROR(VLOOKUP(B132,'اسماء العملاء'!$A$2:$E$142,5,FALSE),"") ->  | D132: =IFERROR(VLOOKUP(B132,'اسماء العملاء'!$A$2:$C$142,2,FALSE),"") ->  | E132: =IFERROR(VLOOKUP(B132,'اسماء العملاء'!$A$2:$C$142,3,FALSE),"") -> 
C133: =IFERROR(VLOOKUP(B133,'اسماء العملاء'!$A$2:$E$142,5,FALSE),"") ->  | D133: =IFERROR(VLOOKUP(B133,'اسماء العملاء'!$A$2:$C$142,2,FALSE),"") ->  | E133: =IFERROR(VLOOKUP(B133,'اسماء العملاء'!$A$2:$C$142,3,FALSE),"") -> 
C134: =IFERROR(VLOOKUP(B134,'اسماء العملاء'!$A$2:$E$142,5,FALSE),"") ->  | D134: =IFERROR(VLOOKUP(B134,'اسماء العملاء'!$A$2:$C$142,2,FALSE),"") ->  | E134: =IFERROR(VLOOKUP(B134,'اسماء العملاء'!$A$2:$C$142,3,FALSE),"") -> 
C135: =IFERROR(VLOOKUP(B135,'اسماء العملاء'!$A$2:$E$142,5,FALSE),"") ->  | D135: =IFERROR(VLOOKUP(B135,'اسماء العملاء'!$A$2:$C$142,2,FALSE),"") ->  | E135: =IFERROR(VLOOKUP(B135,'اسماء العملاء'!$A$2:$C$142,3,FALSE),"") -> 
C136: =IFERROR(VLOOKUP(B136,'اسماء العملاء'!$A$2:$E$142,5,FALSE),"") ->  | D136: =IFERROR(VLOOKUP(B136,'اسماء العملاء'!$A$2:$C$142,2,FALSE),"") ->  | E136: =IFERROR(VLOOKUP(B136,'اسماء العملاء'!$A$2:$C$142,3,FALSE),"") -> 
C137: =IFERROR(VLOOKUP(B137,'اسماء العملاء'!$A$2:$E$142,5,FALSE),"") ->  | D137: =IFERROR(VLOOKUP(B137,'اسماء العملاء'!$A$2:$C$142,2,FALSE),"") ->  | E137: =IFERROR(VLOOKUP(B137,'اسماء العملاء'!$A$2:$C$142,3,FALSE),"") -> 
C138: =IFERROR(VLOOKUP(B138,'اسماء العملاء'!$A$2:$E$142,5,FALSE),"") ->  | D138: =IFERROR(VLOOKUP(B138,'اسماء العملاء'!$A$2:$C$142,2,FALSE),"") ->  | E138: =IFERROR(VLOOKUP(B138,'اسماء العملاء'!$A$2:$C$142,3,FALSE),"") -> 
C139: =IFERROR(VLOOKUP(B139,'اسماء العملاء'!$A$2:$E$142,5,FALSE),"") ->  | D139: =IFERROR(VLOOKUP(B139,'اسماء العملاء'!$A$2:$C$142,2,FALSE),"") ->  | E139: =IFERROR(VLOOKUP(B139,'اسماء العملاء'!$A$2:$C$142,3,FALSE),"") -> 
C140: =IFERROR(VLOOKUP(B140,'اسماء العملاء'!$A$2:$E$142,5,FALSE),"") ->  | D140: =IFERROR(VLOOKUP(B140,'اسماء العملاء'!$A$2:$C$142,2,FALSE),"") ->  | E140: =IFERROR(VLOOKUP(B140,'اسماء العملاء'!$A$2:$C$142,3,FALSE),"") -> 
C141: =IFERROR(VLOOKUP(B141,'اسماء العملاء'!$A$2:$E$142,5,FALSE),"") ->  | D141: =IFERROR(VLOOKUP(B141,'اسماء العملاء'!$A$2:$C$142,2,FALSE),"") ->  | E141: =IFERROR(VLOOKUP(B141,'اسماء العملاء'!$A$2:$C$142,3,FALSE),"") -> 
C142: =IFERROR(VLOOKUP(B142,'اسماء العملاء'!$A$2:$E$142,5,FALSE),"") ->  | D142: =IFERROR(VLOOKUP(B142,'اسماء العملاء'!$A$2:$C$142,2,FALSE),"") ->  | E142: =IFERROR(VLOOKUP(B142,'اسماء العملاء'!$A$2:$C$142,3,FALSE),"") -> 
C143: =IFERROR(VLOOKUP(B143,'اسماء العملاء'!$A$2:$E$142,5,FALSE),"") ->  | D143: =IFERROR(VLOOKUP(B143,'اسماء العملاء'!$A$2:$C$142,2,FALSE),"") ->  | E143: =IFERROR(VLOOKUP(B143,'اسماء العملاء'!$A$2:$C$142,3,FALSE),"") -> 
C144: =IFERROR(VLOOKUP(B144,'اسماء العملاء'!$A$2:$E$142,5,FALSE),"") ->  | D144: =IFERROR(VLOOKUP(B144,'اسماء العملاء'!$A$2:$C$142,2,FALSE),"") ->  | E144: =IFERROR(VLOOKUP(B144,'اسماء العملاء'!$A$2:$C$142,3,FALSE),"") -> 
C145: =IFERROR(VLOOKUP(B145,'اسماء العملاء'!$A$2:$E$142,5,FALSE),"") ->  | D145: =IFERROR(VLOOKUP(B145,'اسماء العملاء'!$A$2:$C$142,2,FALSE),"") ->  | E145: =IFERROR(VLOOKUP(B145,'اسماء العملاء'!$A$2:$C$142,3,FALSE),"") -> 
C146: =IFERROR(VLOOKUP(B146,'اسماء العملاء'!$A$2:$E$142,5,FALSE),"") ->  | D146: =IFERROR(VLOOKUP(B146,'اسماء العملاء'!$A$2:$C$142,2,FALSE),"") ->  | E146: =IFERROR(VLOOKUP(B146,'اسماء العملاء'!$A$2:$C$142,3,FALSE),"") -> 
C147: =IFERROR(VLOOKUP(B147,'اسماء العملاء'!$A$2:$E$142,5,FALSE),"") ->  | D147: =IFERROR(VLOOKUP(B147,'اسماء العملاء'!$A$2:$C$142,2,FALSE),"") ->  | E147: =IFERROR(VLOOKUP(B147,'اسماء العملاء'!$A$2:$C$142,3,FALSE),"") -> 
C148: =IFERROR(VLOOKUP(B148,'اسماء العملاء'!$A$2:$E$142,5,FALSE),"") ->  | D148: =IFERROR(VLOOKUP(B148,'اسماء العملاء'!$A$2:$C$142,2,FALSE),"") ->  | E148: =IFERROR(VLOOKUP(B148,'اسماء العملاء'!$A$2:$C$142,3,FALSE),"") -> 
C149: =IFERROR(VLOOKUP(B149,'اسماء العملاء'!$A$2:$E$142,5,FALSE),"") ->  | D149: =IFERROR(VLOOKUP(B149,'اسماء العملاء'!$A$2:$C$142,2,FALSE),"") ->  | E149: =IFERROR(VLOOKUP(B149,'اسماء العملاء'!$A$2:$C$142,3,FALSE),"") -> 
C150: =IFERROR(VLOOKUP(B150,'اسماء العملاء'!$A$2:$E$142,5,FALSE),"") ->  | D150: =IFERROR(VLOOKUP(B150,'اسماء العملاء'!$A$2:$C$142,2,FALSE),"") ->  | E150: =IFERROR(VLOOKUP(B150,'اسماء العملاء'!$A$2:$C$142,3,FALSE),"") -> 
C151: =IFERROR(VLOOKUP(B151,'اسماء العملاء'!$A$2:$E$142,5,FALSE),"") ->  | D151: =IFERROR(VLOOKUP(B151,'اسماء العملاء'!$A$2:$C$142,2,FALSE),"") ->  | E151: =IFERROR(VLOOKUP(B151,'اسماء العملاء'!$A$2:$C$142,3,FALSE),"") -> 
C152: =IFERROR(VLOOKUP(B152,'اسماء العملاء'!$A$2:$E$142,5,FALSE),"") ->  | D152: =IFERROR(VLOOKUP(B152,'اسماء العملاء'!$A$2:$C$142,2,FALSE),"") ->  | E152: =IFERROR(VLOOKUP(B152,'اسماء العملاء'!$A$2:$C$142,3,FALSE),"") -> 
C153: =IFERROR(VLOOKUP(B153,'اسماء العملاء'!$A$2:$E$142,5,FALSE),"") ->  | D153: =IFERROR(VLOOKUP(B153,'اسماء العملاء'!$A$2:$C$142,2,FALSE),"") ->  | E153: =IFERROR(VLOOKUP(B153,'اسماء العملاء'!$A$2:$C$142,3,FALSE),"") -> 
C154: =IFERROR(VLOOKUP(B154,'اسماء العملاء'!$A$2:$E$142,5,FALSE),"") ->  | D154: =IFERROR(VLOOKUP(B154,'اسماء العملاء'!$A$2:$C$142,2,FALSE),"") ->  | E154: =IFERROR(VLOOKUP(B154,'اسماء العملاء'!$A$2:$C$142,3,FALSE),"") -> 
C155: =IFERROR(VLOOKUP(B155,'اسماء العملاء'!$A$2:$E$142,5,FALSE),"") ->  | D155: =IFERROR(VLOOKUP(B155,'اسماء العملاء'!$A$2:$C$142,2,FALSE),"") ->  | E155: =IFERROR(VLOOKUP(B155,'اسماء العملاء'!$A$2:$C$142,3,FALSE),"") -> 
C156: =IFERROR(VLOOKUP(B156,'اسماء العملاء'!$A$2:$E$142,5,FALSE),"") ->  | D156: =IFERROR(VLOOKUP(B156,'اسماء العملاء'!$A$2:$C$142,2,FALSE),"") ->  | E156: =IFERROR(VLOOKUP(B156,'اسماء العملاء'!$A$2:$C$142,3,FALSE),"") -> 
C157: =IFERROR(VLOOKUP(B157,'اسماء العملاء'!$A$2:$E$142,5,FALSE),"") ->  | D157: =IFERROR(VLOOKUP(B157,'اسماء العملاء'!$A$2:$C$142,2,FALSE),"") ->  | E157: =IFERROR(VLOOKUP(B157,'اسماء العملاء'!$A$2:$C$142,3,FALSE),"") -> 
C158: =IFERROR(VLOOKUP(B158,'اسماء العملاء'!$A$2:$E$142,5,FALSE),"") ->  | D158: =IFERROR(VLOOKUP(B158,'اسماء العملاء'!$A$2:$C$142,2,FALSE),"") ->  | E158: =IFERROR(VLOOKUP(B158,'اسماء العملاء'!$A$2:$C$142,3,FALSE),"") -> 
C159: =IFERROR(VLOOKUP(B159,'اسماء العملاء'!$A$2:$E$142,5,FALSE),"") ->  | D159: =IFERROR(VLOOKUP(B159,'اسماء العملاء'!$A$2:$C$142,2,FALSE),"") ->  | E159: =IFERROR(VLOOKUP(B159,'اسماء العملاء'!$A$2:$C$142,3,FALSE),"") -> 
C160: =IFERROR(VLOOKUP(B160,'اسماء العملاء'!$A$2:$E$142,5,FALSE),"") ->  | D160: =IFERROR(VLOOKUP(B160,'اسماء العملاء'!$A$2:$C$142,2,FALSE),"") ->  | E160: =IFERROR(VLOOKUP(B160,'اسماء العملاء'!$A$2:$C$142,3,FALSE),"") -> 
C161: =IFERROR(VLOOKUP(B161,'اسماء العملاء'!$A$2:$E$142,5,FALSE),"") ->  | D161: =IFERROR(VLOOKUP(B161,'اسماء العملاء'!$A$2:$C$142,2,FALSE),"") ->  | E161: =IFERROR(VLOOKUP(B161,'اسماء العملاء'!$A$2:$C$142,3,FALSE),"") -> 
C162: =IFERROR(VLOOKUP(B162,'اسماء العملاء'!$A$2:$E$142,5,FALSE),"") ->  | D162: =IFERROR(VLOOKUP(B162,'اسماء العملاء'!$A$2:$C$142,2,FALSE),"") ->  | E162: =IFERROR(VLOOKUP(B162,'اسماء العملاء'!$A$2:$C$142,3,FALSE),"") -> 
C163: =IFERROR(VLOOKUP(B163,'اسماء العملاء'!$A$2:$E$142,5,FALSE),"") ->  | D163: =IFERROR(VLOOKUP(B163,'اسماء العملاء'!$A$2:$C$142,2,FALSE),"") ->  | E163: =IFERROR(VLOOKUP(B163,'اسماء العملاء'!$A$2:$C$142,3,FALSE),"") -> 
C164: =IFERROR(VLOOKUP(B164,'اسماء العملاء'!$A$2:$E$142,5,FALSE),"") ->  | D164: =IFERROR(VLOOKUP(B164,'اسماء العملاء'!$A$2:$C$142,2,FALSE),"") ->  | E164: =IFERROR(VLOOKUP(B164,'اسماء العملاء'!$A$2:$C$142,3,FALSE),"") -> 
C165: =IFERROR(VLOOKUP(B165,'اسماء العملاء'!$A$2:$E$142,5,FALSE),"") ->  | D165: =IFERROR(VLOOKUP(B165,'اسماء العملاء'!$A$2:$C$142,2,FALSE),"") ->  | E165: =IFERROR(VLOOKUP(B165,'اسماء العملاء'!$A$2:$C$142,3,FALSE),"") -> 
C166: =IFERROR(VLOOKUP(B166,'اسماء العملاء'!$A$2:$E$142,5,FALSE),"") ->  | D166: =IFERROR(VLOOKUP(B166,'اسماء العملاء'!$A$2:$C$142,2,FALSE),"") ->  | E166: =IFERROR(VLOOKUP(B166,'اسماء العملاء'!$A$2:$C$142,3,FALSE),"") -> 
C167: =IFERROR(VLOOKUP(B167,'اسماء العملاء'!$A$2:$E$142,5,FALSE),"") ->  | D167: =IFERROR(VLOOKUP(B167,'اسماء العملاء'!$A$2:$C$142,2,FALSE),"") ->  | E167: =IFERROR(VLOOKUP(B167,'اسماء العملاء'!$A$2:$C$142,3,FALSE),"") -> 
C168: =IFERROR(VLOOKUP(B168,'اسماء العملاء'!$A$2:$E$142,5,FALSE),"") ->  | D168: =IFERROR(VLOOKUP(B168,'اسماء العملاء'!$A$2:$C$142,2,FALSE),"") ->  | E168: =IFERROR(VLOOKUP(B168,'اسماء العملاء'!$A$2:$C$142,3,FALSE),"") -> 
C169: =IFERROR(VLOOKUP(B169,'اسماء العملاء'!$A$2:$E$142,5,FALSE),"") ->  | D169: =IFERROR(VLOOKUP(B169,'اسماء العملاء'!$A$2:$C$142,2,FALSE),"") ->  | E169: =IFERROR(VLOOKUP(B169,'اسماء العملاء'!$A$2:$C$142,3,FALSE),"") -> 
C170: =IFERROR(VLOOKUP(B170,'اسماء العملاء'!$A$2:$E$142,5,FALSE),"") ->  | D170: =IFERROR(VLOOKUP(B170,'اسماء العملاء'!$A$2:$C$142,2,FALSE),"") ->  | E170: =IFERROR(VLOOKUP(B170,'اسماء العملاء'!$A$2:$C$142,3,FALSE),"") -> 
C171: =IFERROR(VLOOKUP(B171,'اسماء العملاء'!$A$2:$E$142,5,FALSE),"") ->  | D171: =IFERROR(VLOOKUP(B171,'اسماء العملاء'!$A$2:$C$142,2,FALSE),"") ->  | E171: =IFERROR(VLOOKUP(B171,'اسماء العملاء'!$A$2:$C$142,3,FALSE),"") -> 
C172: =IFERROR(VLOOKUP(B172,'اسماء العملاء'!$A$2:$E$142,5,FALSE),"") ->  | D172: =IFERROR(VLOOKUP(B172,'اسماء العملاء'!$A$2:$C$142,2,FALSE),"") ->  | E172: =IFERROR(VLOOKUP(B172,'اسماء العملاء'!$A$2:$C$142,3,FALSE),"") -> 
C173: =IFERROR(VLOOKUP(B173,'اسماء العملاء'!$A$2:$E$142,5,FALSE),"") ->  | D173: =IFERROR(VLOOKUP(B173,'اسماء العملاء'!$A$2:$C$142,2,FALSE),"") ->  | E173: =IFERROR(VLOOKUP(B173,'اسماء العملاء'!$A$2:$C$142,3,FALSE),"") -> 
C174: =IFERROR(VLOOKUP(B174,'اسماء العملاء'!$A$2:$E$142,5,FALSE),"") ->  | D174: =IFERROR(VLOOKUP(B174,'اسماء العملاء'!$A$2:$C$142,2,FALSE),"") ->  | E174: =IFERROR(VLOOKUP(B174,'اسماء العملاء'!$A$2:$C$142,3,FALSE),"") -> 
C175: =IFERROR(VLOOKUP(B175,'اسماء العملاء'!$A$2:$E$142,5,FALSE),"") ->  | D175: =IFERROR(VLOOKUP(B175,'اسماء العملاء'!$A$2:$C$142,2,FALSE),"") ->  | E175: =IFERROR(VLOOKUP(B175,'اسماء العملاء'!$A$2:$C$142,3,FALSE),"") -> 
C176: =IFERROR(VLOOKUP(B176,'اسماء العملاء'!$A$2:$E$142,5,FALSE),"") ->  | D176: =IFERROR(VLOOKUP(B176,'اسماء العملاء'!$A$2:$C$142,2,FALSE),"") ->  | E176: =IFERROR(VLOOKUP(B176,'اسماء العملاء'!$A$2:$C$142,3,FALSE),"") -> 
C177: =IFERROR(VLOOKUP(B177,'اسماء العملاء'!$A$2:$E$142,5,FALSE),"") ->  | D177: =IFERROR(VLOOKUP(B177,'اسماء العملاء'!$A$2:$C$142,2,FALSE),"") ->  | E177: =IFERROR(VLOOKUP(B177,'اسماء العملاء'!$A$2:$C$142,3,FALSE),"") -> 
C178: =IFERROR(VLOOKUP(B178,'اسماء العملاء'!$A$2:$E$142,5,FALSE),"") ->  | D178: =IFERROR(VLOOKUP(B178,'اسماء العملاء'!$A$2:$C$142,2,FALSE),"") ->  | E178: =IFERROR(VLOOKUP(B178,'اسماء العملاء'!$A$2:$C$142,3,FALSE),"") -> 
C179: =IFERROR(VLOOKUP(B179,'اسماء العملاء'!$A$2:$E$142,5,FALSE),"") ->  | D179: =IFERROR(VLOOKUP(B179,'اسماء العملاء'!$A$2:$C$142,2,FALSE),"") ->  | E179: =IFERROR(VLOOKUP(B179,'اسماء العملاء'!$A$2:$C$142,3,FALSE),"") -> 
C180: =IFERROR(VLOOKUP(B180,'اسماء العملاء'!$A$2:$E$142,5,FALSE),"") ->  | D180: =IFERROR(VLOOKUP(B180,'اسماء العملاء'!$A$2:$C$142,2,FALSE),"") ->  | E180: =IFERROR(VLOOKUP(B180,'اسماء العملاء'!$A$2:$C$142,3,FALSE),"") -> 
C181: =IFERROR(VLOOKUP(B181,'اسماء العملاء'!$A$2:$E$142,5,FALSE),"") ->  | D181: =IFERROR(VLOOKUP(B181,'اسماء العملاء'!$A$2:$C$142,2,FALSE),"") ->  | E181: =IFERROR(VLOOKUP(B181,'اسماء العملاء'!$A$2:$C$142,3,FALSE),"") -> 
C182: =IFERROR(VLOOKUP(B182,'اسماء العملاء'!$A$2:$E$142,5,FALSE),"") ->  | D182: =IFERROR(VLOOKUP(B182,'اسماء العملاء'!$A$2:$C$142,2,FALSE),"") ->  | E182: =IFERROR(VLOOKUP(B182,'اسماء العملاء'!$A$2:$C$142,3,FALSE),"") -> 
C183: =IFERROR(VLOOKUP(B183,'اسماء العملاء'!$A$2:$E$142,5,FALSE),"") ->  | D183: =IFERROR(VLOOKUP(B183,'اسماء العملاء'!$A$2:$C$142,2,FALSE),"") ->  | E183: =IFERROR(VLOOKUP(B183,'اسماء العملاء'!$A$2:$C$142,3,FALSE),"") -> 
C184: =IFERROR(VLOOKUP(B184,'اسماء العملاء'!$A$2:$E$142,5,FALSE),"") ->  | D184: =IFERROR(VLOOKUP(B184,'اسماء العملاء'!$A$2:$C$142,2,FALSE),"") ->  | E184: =IFERROR(VLOOKUP(B184,'اسماء العملاء'!$A$2:$C$142,3,FALSE),"") -> 
C185: =IFERROR(VLOOKUP(B185,'اسماء العملاء'!$A$2:$E$142,5,FALSE),"") ->  | D185: =IFERROR(VLOOKUP(B185,'اسماء العملاء'!$A$2:$C$142,2,FALSE),"") ->  | E185: =IFERROR(VLOOKUP(B185,'اسماء العملاء'!$A$2:$C$142,3,FALSE),"") -> 
C186: =IFERROR(VLOOKUP(B186,'اسماء العملاء'!$A$2:$E$142,5,FALSE),"") ->  | D186: =IFERROR(VLOOKUP(B186,'اسماء العملاء'!$A$2:$C$142,2,FALSE),"") ->  | E186: =IFERROR(VLOOKUP(B186,'اسماء العملاء'!$A$2:$C$142,3,FALSE),"") -> 
C187: =IFERROR(VLOOKUP(B187,'اسماء العملاء'!$A$2:$E$142,5,FALSE),"") ->  | D187: =IFERROR(VLOOKUP(B187,'اسماء العملاء'!$A$2:$C$142,2,FALSE),"") ->  | E187: =IFERROR(VLOOKUP(B187,'اسماء العملاء'!$A$2:$C$142,3,FALSE),"") -> 
C188: =IFERROR(VLOOKUP(B188,'اسماء العملاء'!$A$2:$E$142,5,FALSE),"") ->  | D188: =IFERROR(VLOOKUP(B188,'اسماء العملاء'!$A$2:$C$142,2,FALSE),"") ->  | E188: =IFERROR(VLOOKUP(B188,'اسماء العملاء'!$A$2:$C$142,3,FALSE),"") -> 
C189: =IFERROR(VLOOKUP(B189,'اسماء العملاء'!$A$2:$E$142,5,FALSE),"") ->  | D189: =IFERROR(VLOOKUP(B189,'اسماء العملاء'!$A$2:$C$142,2,FALSE),"") ->  | E189: =IFERROR(VLOOKUP(B189,'اسماء العملاء'!$A$2:$C$142,3,FALSE),"") -> 
C190: =IFERROR(VLOOKUP(B190,'اسماء العملاء'!$A$2:$E$142,5,FALSE),"") ->  | D190: =IFERROR(VLOOKUP(B190,'اسماء العملاء'!$A$2:$C$142,2,FALSE),"") ->  | E190: =IFERROR(VLOOKUP(B190,'اسماء العملاء'!$A$2:$C$142,3,FALSE),"") -> 
C191: =IFERROR(VLOOKUP(B191,'اسماء العملاء'!$A$2:$E$142,5,FALSE),"") ->  | D191: =IFERROR(VLOOKUP(B191,'اسماء العملاء'!$A$2:$C$142,2,FALSE),"") ->  | E191: =IFERROR(VLOOKUP(B191,'اسماء العملاء'!$A$2:$C$142,3,FALSE),"") -> 
C192: =IFERROR(VLOOKUP(B192,'اسماء العملاء'!$A$2:$E$142,5,FALSE),"") ->  | D192: =IFERROR(VLOOKUP(B192,'اسماء العملاء'!$A$2:$C$142,2,FALSE),"") ->  | E192: =IFERROR(VLOOKUP(B192,'اسماء العملاء'!$A$2:$C$142,3,FALSE),"") -> 
C193: =IFERROR(VLOOKUP(B193,'اسماء العملاء'!$A$2:$E$142,5,FALSE),"") ->  | D193: =IFERROR(VLOOKUP(B193,'اسماء العملاء'!$A$2:$C$142,2,FALSE),"") ->  | E193: =IFERROR(VLOOKUP(B193,'اسماء العملاء'!$A$2:$C$142,3,FALSE),"") -> 
C194: =IFERROR(VLOOKUP(B194,'اسماء العملاء'!$A$2:$E$142,5,FALSE),"") ->  | D194: =IFERROR(VLOOKUP(B194,'اسماء العملاء'!$A$2:$C$142,2,FALSE),"") ->  | E194: =IFERROR(VLOOKUP(B194,'اسماء العملاء'!$A$2:$C$142,3,FALSE),"") -> 
C195: =IFERROR(VLOOKUP(B195,'اسماء العملاء'!$A$2:$E$142,5,FALSE),"") ->  | D195: =IFERROR(VLOOKUP(B195,'اسماء العملاء'!$A$2:$C$142,2,FALSE),"") ->  | E195: =IFERROR(VLOOKUP(B195,'اسماء العملاء'!$A$2:$C$142,3,FALSE),"") -> 
A196: =IF(B196="","",TODAY()) ->  | C196: =IFERROR(VLOOKUP(B196,'اسماء العملاء'!$A$2:$E$142,5,FALSE),"") ->  | D196: =IFERROR(VLOOKUP(B196,'اسماء العملاء'!$A$2:$C$142,2,FALSE),"") ->  | E196: =IFERROR(VLOOKUP(B196,'اسماء العملاء'!$A$2:$C$142,3,FALSE),"") -> 
C197: =IFERROR(VLOOKUP(B197,'اسماء العملاء'!$A$2:$E$142,5,FALSE),"") ->  | D197: =IFERROR(VLOOKUP(B197,'اسماء العملاء'!$A$2:$C$142,2,FALSE),"") ->  | E197: =IFERROR(VLOOKUP(B197,'اسماء العملاء'!$A$2:$C$142,3,FALSE),"") -> 
C198: =IFERROR(VLOOKUP(B198,'اسماء العملاء'!$A$2:$E$142,5,FALSE),"") ->  | D198: =IFERROR(VLOOKUP(B198,'اسماء العملاء'!$A$2:$C$142,2,FALSE),"") ->  | E198: =IFERROR(VLOOKUP(B198,'اسماء العملاء'!$A$2:$C$142,3,FALSE),"") -> 
C199: =IFERROR(VLOOKUP(B199,'اسماء العملاء'!$A$2:$E$142,5,FALSE),"") ->  | D199: =IFERROR(VLOOKUP(B199,'اسماء العملاء'!$A$2:$C$142,2,FALSE),"") ->  | E199: =IFERROR(VLOOKUP(B199,'اسماء العملاء'!$A$2:$C$142,3,FALSE),"") -> 
C200: =IFERROR(VLOOKUP(B200,'اسماء العملاء'!$A$2:$E$142,5,FALSE),"") ->  | D200: =IFERROR(VLOOKUP(B200,'اسماء العملاء'!$A$2:$C$142,2,FALSE),"") ->  | E200: =IFERROR(VLOOKUP(B200,'اسماء العملاء'!$A$2:$C$142,3,FALSE),"") -> 
C201: =IFERROR(VLOOKUP(B201,'اسماء العملاء'!$A$2:$E$142,5,FALSE),"") ->  | D201: =IFERROR(VLOOKUP(B201,'اسماء العملاء'!$A$2:$C$142,2,FALSE),"") ->  | E201: =IFERROR(VLOOKUP(B201,'اسماء العملاء'!$A$2:$C$142,3,FALSE),"") -> 
... 800 more rows

Sheet الفواتير
A1: الفاتورة
A2: اكوا ايجيبت لفلاتر المياه
A3: العنوان: | B3: شاطئ الزهور شارع موبيليكا | F3: التاريخ : | H3: =TODAY() -> 2018-09-24
A4: رقم التليفون: | B4: 03-3197081 | F4: رقم الفاتورة : | H4: 2
A5: رقم الموبايل: | B5: 01224437063
A6: ايميل : | B6: aquaegypt9@gmail.com
A7: بيانات العميل :
A8: اسم العميل :
A9: عنوان العميل :
A10: رقم التليفون:
A13: مسلسل | B13: الوصف | E13: الكمية | F13: سعر الوحدة | G13: الضريبة | H13: الاجمالي
A14: 1 | G14: x | H14: =E14*F14 -> 0
A15: 2 | G15: x | H15: 0
A16: 3 | G16: x | H16: 0
A17: 4 | H17: 0
A18: 5 | H18: 0
H19: 0
H20: 0
H21: 0
H22: 0
H23: 0
E25: [42] | F25: SubTotal | H25: =SUM(H14:H23) -> 0
F26: Taxable | H26: =SUMIF(G14:G23,"x",H14:H23) -> 0
F27: Tax Rate | H27: 0.01
F28: Tax | H28: =H27*H26 -> 0
F29: Other
F30: Total | H30: =H25+H28+H29 -> 0
B138: ='انواع الفلاتر'!B2 -> فلتر 5 عادي
B139: ='انواع الفلاتر'!B3 -> فلتر 7 عادي
B140: ='انواع الفلاتر'!B4 -> فلتر 5 RO
B141: ='انواع الفلاتر'!B5 -> فلتر 7 RO
B142: ='انواع الفلاتر'!B6 -> شمعة ممبرين
B143: ='انواع الفلاتر'!B7 -> شمعة أولى
B144: ='انواع الفلاتر'!B8 -> شمعة ثانية
B145: ='انواع الفلاتر'!B9 -> شمعة ثالثة
B146: ='انواع الفلاتر'!B10 -> شمعة جوز هند
B147: ='انواع الفلاتر'!B11 -> شمعة كلسيدة
B148: ='انواع الفلاتر'!B12 -> شمعة انفرا
B149: ='انواع الفلاتر'!B13 -> شمعة UV
B150: ='انواع الفلاتر'!B14 -> شاسيه خماسي
B151: ='انواع الفلاتر'!B15 -> شاسيه RO
B152: ='انواع الفلاتر'!B16 -> كريمب 2x1
B153: ='انواع الفلاتر'!B17 -> كريمب قاعدة
B154: ='انواع الفلاتر'!B18 -> لوبرشير
B155: ='انواع الفلاتر'!B19 -> هاي برشير
B156: ='انواع الفلاتر'!B20 -> رباعي
B157: ='انواع الفلاتر'!B21 -> كوع
B158: ='انواع الفلاتر'!B22 -> خرطوم
B159: ='انواع الفلاتر'!B23 -> هاوزينج
B160: ='انواع الفلاتر'!B24 -> ناطرة نصف
B161: ='انواع الفلاتر'!B25 -> ناطرة ثلاثة ارباع
B162: ='انواع الفلاتر'!B26 -> محبس نصف
B163: ='انواع الفلاتر'!B27 -> جوانات
B164: ='انواع الفلاتر'!B28 -> خزان
B165: ='انواع الفلاتر'!B29 -> مسامير
B166: ='انواع الفلاتر'!B30 -> 0
B167: ='انواع الفلاتر'!B31 -> 0
B168: ='انواع الفلاتر'!B32 -> 0
B169: ='انواع الفلاتر'!B33 -> 0
B170: ='انواع الفلاتر'!B34 -> 0
B171: ='انواع الفلاتر'!B35 -> 0
B172: ='انواع الفلاتر'!B36 -> 0
B173: ='انواع الفلاتر'!B37 -> 0
B174: ='انواع الفلاتر'!B38 -> 0
B175: ='انواع الفلاتر'!B39 -> 0
B176: ='انواع الفلاتر'!B40 -> 0
B177: ='انواع الفلاتر'!B41 -> 0
B178: ='انواع الفلاتر'!B42 -> 0
B179: ='انواع الفلاتر'!B43 -> 0
B180: ='انواع الفلاتر'!B44 -> 0
B181: ='انواع الفلاتر'!B45 -> 0
B182: ='انواع الفلاتر'!B46 -> 0
B183: ='انواع الفلاتر'!B47 -> 0
B184: ='انواع الفلاتر'!B48 -> 0
B185: ='انواع الفلاتر'!B49 -> 0
B186: ='انواع الفلاتر'!B50 -> 0
B187: ='انواع الفلاتر'!B51 -> 0
B188: ='انواع الفلاتر'!B52 -> 0
